Workbook

Sheet Input
A1: The RPEC_2014_v2020 model to construct a mortality improvement scale | R1: Unrounded rates for MP-2020
A2: Written Oct, 2014 by Bob Howard & modified October, 2020 | G2: bob@howardfamily.ca | R2: Male | T2: Female
R3: 2015 | S3: 2016 | T3: 2015 | U3: 2016
A4: Name of improvement scale | D4: MP-2020 | Q4: 20 | R4: -0.01305108013 | S4: -0.02024635147 | T4: -0.01679632259 | U4: -0.02263488089
A5: Long term rates | H5: Convergence | N5: Rounding | Q5: 21 | R5: -0.01494858572 | S5: -0.02140255208 | T5: -0.01869324424 | U5: -0.02423622576 | W5: Manual Ultimate
C6: Age | D6: Rate | H6: The rates for intervening years are obtained by | N6: 4 | O6: decimals | Q6: 22 | R6: -0.01746821924 | S6: -0.02340105231 | T6: -0.02084272355 | U6: -0.02623446771 | X6: Male | Y6: Female
A7: Line segments | C7: 62 | D7: 0.0135 | H7: combining cubics running from historical to long term | N7: Calculations are done without | Q7: 23 | R7: -0.0205210865 | S7: -0.02614798406 | T7: -0.02320578556 | U7: -0.02857414936 | W7: 20
C8: 80 | D8: 0.011 | H8: 1. by attained age | N8: rounding until the final | Q8: 24 | R8: -0.02396937434 | S8: -0.02947470747 | T8: -0.02572619497 | U8: -0.03117649581 | W8: 21
C9: 95 | D9: 0.004 | H9: 2. by birth cohort | N9: numbers are displayed. | Q9: 25 | R9: -0.02764065718 | S9: -0.03315833602 | T9: -0.02833311023 | U9: -0.03394422941 | W9: 22
C10: 115 | D10: 0 | I10: Birth cohort proportion | Q10: 26 | R10: -0.03135113357 | S10: -0.03695938986 | T10: -0.03094759631 | U10: -0.03676322672 | W10: 23
H11: Male | I11: 0.5 | Q11: 27 | R11: -0.03492905297 | S11: -0.04066134834 | T11: -0.03347909848 | U11: -0.03950276296 | W11: 24
A12: The long term rates are developed as line segments. | H12: Female | I12: 0.5 | Q12: 28 | R12: -0.03823105548 | S12: -0.04409965297 | T12: -0.03581724713 | U12: -0.04201705402 | W12: 25
A13: The first line segment is flat from age 20 to the age specified. | Q13: 29 | R13: -0.04115123079 | S13: -0.04717008153 | T13: -0.0378325708 | U13: -0.0441489036 | W13: 26
A14: Tne next segment begins there and ends at the next age and rate | H14: Convergence to ultimate in year | Q14: 30 | R14: -0.04361800681 | S14: -0.04981763944 | T14: -0.0393881695 | U14: -0.04574031983 | W14: 27
A15: specified, until all the age-rates are used. The ages must be | H15: Age | I15: 2026 | Q15: 31 | R15: -0.0455785322 | S15: -0.05201123252 | T15: -0.04035370762 | U15: -0.04665207289 | W15: 28
A16: ascending order. | H16: Cohort | I16: 2036 | Q16: 32 | R16: -0.04697980166 | S16: -0.05371381864 | T16: -0.04062270104 | U16: -0.04678239798 | W16: 29
A17: Alternatively, cell C7 can be set to "Manual". In that case the | Q17: 33 | R17: -0.0477543397 | S17: -0.05486004619 | T17: -0.0401282954 | U17: -0.04607771248 | W17: 30
A18: values shown in cells X7:Y107 are used for the ultimate. | H18: Constraint on initial slope | Q18: 34 | R18: -0.04781699037 | S18: -0.05534899487 | T18: -0.03885046203 | U18: -0.0445338727 | W18: 31
A19: Otherwise the values in cells X7:Y107 are ignored. | H19: Age | I19: 0 | Q19: 35 | R19: -0.04707642656 | S19: -0.05505858476 | T19: -0.03681068312 | U19: -0.04219158809 | W19: 32
H20: Cohort | I20: 0 | Q20: 36 | R20: -0.04545798299 | S20: -0.05387499329 | T20: -0.03406540109 | U20: -0.03912473824 | W20: 33
Q21: 37 | R21: -0.04293038133 | S21: -0.05172703992 | T21: -0.03069868189 | U21: -0.0354323485 | W21: 34
A22: About RPEC_2014_v2020 | Q22: 38 | R22: -0.0395253706 | S22: -0.04861332701 | T22: -0.02681959794 | U22: -0.03123373691 | W22: 35
A23: This model includes historical data through 2018. Historical mortality improvement rates have been developed using Order 3 Whittaker-Henderson graduation. | Q23: 39 | R23: -0.03534401521 | S23: -0.04461283592 | T23: -0.02256007131 | U23: -0.02666483283 | W23: 36
Q24: 40 | R24: -0.03054922415 | S24: -0.03987648921 | T24: -0.01807076533 | U24: -0.0218743732 | W24: 37
Q25: 41 | R25: -0.02534929899 | S25: -0.03460754466 | T25: -0.01351826115 | U25: -0.01701913466 | W25: 38
A26: How to… | Q26: 42 | R26: -0.01997969766 | S26: -0.02903708807 | T26: -0.009079898033 | U26: -0.0122586275 | W26: 39
A27: You can enter values in any of the cells with a pale yellow background. These fields provide the parameters for the RPEC_2014_v2020 model, which along with the historical | Q27: 43 | R27: -0.0146872768 | S27: -0.02340180821 | T27: -0.004935524864 | U27: -0.007749741521 | W27: 40
A28: improvement rates, will be used to construct improvement scales in the worksheets "Male" and "Female". The rates in the new scales are the same as Scale MP-2020 | Q28: 44 | R28: -0.009712039074 | S28: -0.01792479081 | T28: -0.001258516367 | U28: -0.003639442332 | W28: 41
A29: through to year 2016 (with a light blue or pink background); projected rates are shown for year 2017 and later (with a yellow background). The name for your scale | Q29: 45 | R29: -0.005266445746 | S29: -0.01280183691 | T29: 0.001796374364 | U29: -5.93591484e-05 | W29: 42
A30: cannot include the text "MP-2020". Click on the button "Calculate" to calculate the new scale. | Q30: 46 | R30: -0.001515425814 | S30: -0.008192801811 | T30: 0.004105381871 | U30: 0.002878519048 | W30: 43
A31: You can restore the parameters and rates for Scale MP-2020 by clicking on the button "Calculate with input values for MP-2020". | Q31: 47 | R31: 0.001438765254 | S31: -0.004218974085 | T31: 0.00558624714 | U31: 0.005084468804 | W31: 44
Q32: 48 | R32: 0.003562510847 | S32: -0.0009633132782 | T32: 0.006205052222 | U32: 0.006494341325 | W32: 45
Q33: 49 | R33: 0.00488408464 | S33: 0.001527010526 | T33: 0.005978492313 | U33: 0.007074118947 | W33: 46
A34: Troubleshooting | Q34: 50 | R34: 0.00547684405 | S34: 0.003237149699 | T34: 0.004973623888 | U34: 0.006826309659 | W34: 47
A35: Some when clicking on the buttons on this worksheet have received the error, “Can’t find project or library”. This is most likely caused by a missing | Q35: 51 | R35: 0.005437942467 | S35: 0.004181521504 | T35: 0.003305488127 | U35: 0.005797956977 | W35: 48
A36: reference. It can be fixed by the following steps: | Q36: 52 | R36: 0.004868550917 | S36: 0.004402419712 | T36: 0.00113342496 | U36: 0.004088756457 | W36: 49
B37: Bring up the list of workbook macros (Alt + T + M + M) | Q37: 53 | R37: 0.003861084473 | S37: 0.003968969508 | T37: -0.001344909969 | U37: 0.001853165779 | W37: 50
B38: Select “Edit” | Q38: 54 | R38: 0.002497218475 | S38: 0.002975496841 | T38: -0.00390505831 | U38: -0.0007055883626 | W38: 51
B39: In the Visual Basic Window, select “Tools” -> “References” | Q39: 55 | R39: 0.0008561305152 | S39: 0.001539144396 | T39: -0.006313007062 | U39: -0.003350673325 | W39: 52
B40: Look at the list of available references. If any have the text “MISSING” in front of them, uncheck the box for that reference | Q40: 56 | R40: -0.0009711088144 | S40: -0.0002027754347 | T40: -0.008345891642 | U40: -0.005833355284 | W40: 53
Q41: 57 | R41: -0.002866883417 | S41: -0.002095323762 | T41: -0.009810885196 | U41: -0.007915039862 | W41: 54
A42: Disclaimer | Q42: 58 | R42: -0.004680521232 | S42: -0.003970140445 | T42: -0.01056042643 | U42: -0.009387268413 | W42: 55
A43: This software is made available free of charge with the understanding that neither the author nor the Society of Actuaries accepts | Q43: 59 | R43: -0.006236116947 | S43: -0.005654861666 | T43: -0.01050479336 | U43: -0.01009121468 | W43: 56
A44: any liability for its use. It may be used for any personal, research or commercial use provided that the user does not represent it | Q44: 60 | R44: -0.007356184461 | S44: -0.006988068221 | T44: -0.009622512994 | U44: -0.009936568157 | W44: 57
A45: as his or her own work and does not distribute it to others for a fee. | Q45: 61 | R45: -0.007894550924 | S45: -0.007837095487 | T45: -0.007967909151 | U45: -0.008917277037 | W45: 58
Q46: 62 | R46: -0.007768497022 | S46: -0.008115283397 | T46: -0.005674703831 | U46: -0.007120976868 | W46: 59
Q47: 63 | R47: -0.006978916749 | S47: -0.007793948551 | T47: -0.002948999492 | U47: -0.004725554998 | W47: 60
Q48: 64 | R48: -0.005611119503 | S48: -0.006905110749 | T48: -4.589924535e-05 | U48: -0.001976729403 | W48: 61
Q49: 65 | R49: -0.003816037988 | S49: -0.005534518088 | T49: 0.002768673132 | U49: 0.0008509840401 | W49: 62
Q50: 66 | R50: -0.001779318229 | S50: -0.003808368842 | T50: 0.005261213059 | U50: 0.003498942806 | W50: 63
Q51: 67 | R51: 0.0003113081017 | S51: -0.001877302591 | T51: 0.007267185806 | U51: 0.005762931883 | W51: 64
Q52: 68 | R52: 0.002292305401 | S52: 0.0001001850841 | T52: 0.008709810248 | U52: 0.007515994782 | W52: 65
Q53: 69 | R53: 0.004040567885 | S53: 0.001974865739 | T53: 0.009596118072 | U53: 0.008712749964 | W53: 66
Q54: 70 | R54: 0.005479862916 | S54: 0.003622932228 | T54: 0.009993942791 | U54: 0.009376936023 | W54: 67
Q55: 71 | R55: 0.006578472003 | S55: 0.004957861708 | T55: 0.01000430906 | U55: 0.009578026901 | W55: 68
Q56: 72 | R56: 0.007342170996 | S56: 0.005936847825 | T56: 0.009733769659 | U56: 0.009408505609 | W56: 69
Q57: 73 | R57: 0.007805167073 | S57: 0.006561045763 | T57: 0.009274438987 | U57: 0.008965732952 | W57: 70
Q58: 74 | R58: 0.008018507154 | S58: 0.006868511286 | T58: 0.008693953372 | U58: 0.008339510374 | W58: 71
Q59: 75 | R59: 0.008040395862 | S59: 0.006920364681 | T59: 0.008037685008 | U59: 0.007604100565 | W59: 72
Q60: 76 | R60: 0.00792754037 | S60: 0.006786777524 | T60: 0.00733647706 | U60: 0.006817076886 | W60: 73
Q61: 77 | R61: 0.007728248712 | S61: 0.006533963033 | T61: 0.00661470888 | U61: 0.006020848697 | W61: 74
Q62: 78 | R62: 0.007478344725 | S62: 0.006215098684 | T62: 0.005895785949 | U62: 0.005245262085 | W62: 75
Q63: 79 | R63: 0.007200553262 | S63: 0.005866707343 | T63: 0.005204266551 | U63: 0.004510537296 | W63: 76
Q64: 80 | R64: 0.006906945167 | S64: 0.005509931004 | T64: 0.004564598639 | U64: 0.003829869039 | W64: 77
Q65: 81 | R65: 0.00660285182 | S65: 0.0051547331 | T65: 0.003997600153 | U65: 0.003211503404 | W65: 78
Q66: 82 | R66: 0.006290665944 | S66: 0.00480496271 | T66: 0.003517004615 | U66: 0.002660372043 | W66: 79
Q67: 83 | R67: 0.005972845585 | S67: 0.004462654097 | T67: 0.003127870895 | U67: 0.002179157077 | W67: 80
Q68: 84 | R68: 0.005653858573 | S68: 0.004131200705 | T68: 0.002827117657 | U68: 0.001769387271 | W68: 81
Q69: 85 | R69: 0.005341257667 | S69: 0.003817274369 | T69: 0.002606064618 | U69: 0.001432326182 | W69: 82
Q70: 86 | R70: 0.005045847712 | S70: 0.003531488132 | T70: 0.002453975023 | U70: 0.001169643019 | W70: 83
Q71: 87 | R71: 0.004781116582 | S71: 0.003288074196 | T71: 0.002361483838 | U71: 0.0009838561214 | W71: 84
Q72: 88 | R72: 0.004562181871 | S72: 0.003103852662 | T72: 0.002322763606 | U72: 0.0008785015149 | W72: 85
Q73: 89 | R73: 0.00440444811 | S73: 0.002996890051 | T73: 0.002336117336 | U73: 0.0008581252272 | W73: 86
Q74: 90 | R74: 0.004322319871 | S74: 0.002985056404 | T74: 0.002403384066 | U74: 0.0009280734395 | W74: 87
Q75: 91 | R75: 0.004328268237 | S75: 0.003084562479 | T75: 0.002528608023 | U75: 0.00109393676 | W75: 88
Q76: 92 | R76: 0.004432217102 | S76: 0.003308888284 | T76: 0.002716476468 | U76: 0.00136098 | W76: 89
Q77: 93 | R77: 0.004641334809 | S77: 0.003668203721 | T77: 0.002971164407 | U77: 0.001733561187 | W77: 90
Q78: 94 | R78: 0.004960200022 | S78: 0.004169290111 | T78: 0.003295715041 | U78: 0.002214751115 | W78: 91
Q79: 95 | R79: 0.005391229173 | S79: 0.004815935564 | T79: 0.00369182098 | U79: 0.002806340937 | W79: 92
Q80: =Q79+1 -> 96 | R80: 0.005121667714 | S80: 0.004575138786 | T80: 0.003507229931 | U80: 0.00266602389 | W80: 93
Q81: =Q80+1 -> 97 | R81: 0.004852106255 | S81: 0.004334342008 | T81: 0.003322638882 | U81: 0.002525706843 | W81: 94
Q82: 98 | R82: 0.004582544797 | S82: 0.00409354523 | T82: 0.003138047833 | U82: 0.002385389796 | W82: 95
Q83: 99 | R83: 0.004312983338 | S83: 0.003852748451 | T83: 0.002953456784 | U83: 0.002245072749 | W83: 96
Q84: 100 | R84: 0.004043421879 | S84: 0.003611951673 | T84: 0.002768865735 | U84: 0.002104755702 | W84: 97
Q85: 101 | R85: 0.003773860421 | S85: 0.003371154895 | T85: 0.002584274686 | U85: 0.001964438656 | W85: 98
Q86: 102 | R86: 0.003504298962 | S86: 0.003130358117 | T86: 0.002399683637 | U86: 0.001824121609 | W86: 99
Q87: 103 | R87: 0.003234737504 | S87: 0.002889561339 | T87: 0.002215092588 | U87: 0.001683804562 | W87: 100
Q88: 104 | R88: 0.002965176045 | S88: 0.00264876456 | T88: 0.002030501539 | U88: 0.001543487515 | W88: 101
Q89: 105 | R89: 0.002695614586 | S89: 0.002407967782 | T89: 0.00184591049 | U89: 0.001403170468 | W89: 102
Q90: 106 | R90: 0.002426053128 | S90: 0.002167171004 | T90: 0.001661319441 | U90: 0.001262853421 | W90: 103
Q91: 107 | R91: 0.002156491669 | S91: 0.001926374226 | T91: 0.001476728392 | U91: 0.001122536375 | W91: 104
Q92: 108 | R92: 0.00188693021 | S92: 0.001685577448 | T92: 0.001292137343 | U92: 0.0009822193278 | W92: 105
Q93: 109 | R93: 0.001617368752 | S93: 0.001444780669 | T93: 0.001107546294 | U93: 0.000841902281 | W93: 106
Q94: 110 | R94: 0.001347807293 | S94: 0.001203983891 | T94: 0.0009229552451 | U94: 0.0007015852342 | W94: 107
Q95: 111 | R95: 0.001078245835 | S95: 0.0009631871129 | T95: 0.0007383641961 | U95: 0.0005612681873 | W95: 108
Q96: 112 | R96: 0.0008086843759 | S96: 0.0007223903347 | T96: 0.000553773147 | U96: 0.0004209511405 | W96: 109
Q97: 113 | R97: 0.0005391229173 | S97: 0.0004815935564 | T97: 0.000369182098 | U97: 0.0002806340937 | W97: 110
Q98: 114 | R98: 0.0002695614586 | S98: 0.0002407967782 | T98: 0.000184591049 | U98: 0.0001403170468 | W98: 111
Q99: 115 | R99: 0 | S99: 0 | T99: 0 | U99: 0 | W99: 112
Q100: 116 | R100: 0 | S100: 0 | T100: 0 | U100: 0 | W100: 113
Q101: 117 | R101: 0 | S101: 0 | T101: 0 | U101: 0 | W101: 114
Q102: 118 | R102: 0 | S102: 0 | T102: 0 | U102: 0 | W102: 115
Q103: 119 | R103: 0 | S103: 0 | T103: 0 | U103: 0 | W103: 116
Q104: 120 | R104: 0 | S104: 0 | T104: 0 | U104: 0 | W104: 117
W105: 118
W106: 119
W107: 120

Sheet Male
A1: MP-2020 - Male
B2: 1951 | C2: 1952 | D2: 1953 | E2: 1954 | F2: 1955 | G2: 1956 | H2: 1957 | I2: 1958 | J2: 1959 | K2: 1960 | L2: 1961 | M2: 1962 | N2: 1963 | O2: 1964 | P2: 1965 | Q2: 1966 | R2: 1967 | S2: 1968 | T2: 1969 | U2: 1970 | V2: 1971 | W2: 1972 | X2: 1973 | Y2: 1974 | Z2: 1975 | AA2: 1976 | AB2: 1977 | AC2: 1978 | AD2: 1979 | AE2: 1980 | AF2: 1981 | AG2: 1982 | AH2: 1983 | AI2: 1984 | AJ2: 1985 | AK2: 1986 | AL2: 1987 | AM2: 1988 | AN2: 1989 | AO2: 1990 | AP2: 1991 | AQ2: 1992 | AR2: 1993 | AS2: 1994 | AT2: 1995 | AU2: 1996 | AV2: 1997 | AW2: 1998 | AX2: 1999 | AY2: 2000 | AZ2: 2001 | BA2: 2002 | BB2: 2003 | BC2: 2004 | BD2: 2005 | BE2: 2006 | BF2: 2007 | BG2: 2008 | BH2: 2009 | BI2: 2010 | BJ2: 2011 | BK2: 2012 | BL2: 2013 | BM2: 2014 | BN2: 2015 | BO2: 2016 | BP2: 2017 | BQ2: 2018 | BR2: 2019 | BS2: 2020 | BT2: 2021 | BU2: 2022 | BV2: 2023 | BW2: 2024 | BX2: 2025 | BY2: 2026 | BZ2: 2027 | CA2: 2028 | CB2: 2029 | CC2: 2030 | CD2: 2031 | CE2: 2032 | CF2: 2033 | CG2: 2034 | CH2: 2035 | CI2: 2036+
A3: ≤ 20 | B3: -0.0149 | C3: -0.0064 | D3: 0.0017 | E3: 0.009 | F3: 0.0149 | G3: 0.0192 | H3: 0.0215 | I3: 0.0213 | J3: 0.0183 | K3: 0.0125 | L3: 0.0042 | M3: -0.0057 | N3: -0.0162 | O3: -0.0257 | P3: -0.0331 | Q3: -0.0372 | R3: -0.0371 | S3: -0.0328 | T3: -0.025 | U3: -0.0151 | V3: -0.005 | W3: 0.0039 | X3: 0.0109 | Y3: 0.0157 | Z3: 0.0182 | AA3: 0.0192 | AB3: 0.02 | AC3: 0.022 | AD3: 0.0257 | AE3: 0.0302 | AF3: 0.0335 | AG3: 0.0335 | AH3: 0.0294 | AI3: 0.0219 | AJ3: 0.013 | AK3: 0.0048 | AL3: -0.0012 | AM3: -0.0044 | AN3: -0.0048 | AO3: -0.0027 | AP3: 0.0018 | AQ3: 0.0078 | AR3: 0.0146 | AS3: 0.0213 | AT3: 0.0268 | AU3: 0.0297 | AV3: 0.029 | AW3: 0.0247 | AX3: 0.0177 | AY3: 0.0096 | AZ3: 0.0024 | BA3: -0.0021 | BB3: -0.0029 | BC3: 0.0002 | BD3: 0.0069 | BE3: 0.016 | BF3: 0.0257 | BG3: 0.0335 | BH3: 0.0371 | BI3: 0.0358 | BJ3: 0.0298 | BK3: 0.0203 | BL3: 0.0088 | BM3: -0.003 | BN3: -0.0131 | BO3: -0.0202 | BP3: -0.0197 | BQ3: -0.018 | BR3: -0.0156 | BS3: -0.0126 | BT3: -0.0092 | BU3: -0.0057 | BV3: -0.0023 | BW3: 0.0008 | BX3: 0.0033 | BY3: 0.0051 | BZ3: 0.0063 | CA3: 0.0076 | CB3: 0.0087 | CC3: 0.0099 | CD3: 0.0109 | CE3: 0.0117 | CF3: 0.0125 | CG3: 0.013 | CH3: 0.0134 | CI3: 0.0135
A4: 21 | B4: -0.0142 | C4: -0.0059 | D4: 0.0021 | E4: 0.0093 | F4: 0.0151 | G4: 0.0193 | H4: 0.0214 | I4: 0.021 | J4: 0.0178 | K4: 0.0119 | L4: 0.0037 | M4: -0.006 | N4: -0.016 | O4: -0.0252 | P4: -0.0324 | Q4: -0.0363 | R4: -0.0362 | S4: -0.032 | T4: -0.0243 | U4: -0.0147 | V4: -0.0049 | W4: 0.0037 | X4: 0.0103 | Y4: 0.0147 | Z4: 0.0168 | AA4: 0.0177 | AB4: 0.0184 | AC4: 0.0204 | AD4: 0.0241 | AE4: 0.0287 | AF4: 0.0323 | AG4: 0.0327 | AH4: 0.029 | AI4: 0.0219 | AJ4: 0.0134 | AK4: 0.0055 | AL4: 0 | AM4: -0.0028 | AN4: -0.0029 | AO4: -0.0006 | AP4: 0.0038 | AQ4: 0.0096 | AR4: 0.016 | AS4: 0.0222 | AT4: 0.0269 | AU4: 0.029 | AV4: 0.0275 | AW4: 0.0224 | AX4: 0.0147 | AY4: 0.006 | AZ4: -0.0016 | BA4: -0.0063 | BB4: -0.0073 | BC4: -0.0043 | BD4: 0.0022 | BE4: 0.0113 | BF4: 0.0211 | BG4: 0.0289 | BH4: 0.0328 | BI4: 0.0317 | BJ4: 0.026 | BK4: 0.0169 | BL4: 0.0058 | BM4: -0.0055 | BN4: -0.0149 | BO4: -0.0214 | BP4: -0.0202 | BQ4: -0.0185 | BR4: -0.016 | BS4: -0.0129 | BT4: -0.0095 | BU4: -0.0059 | BV4: -0.0024 | BW4: 0.0008 | BX4: 0.0033 | BY4: 0.0051 | BZ4: 0.0063 | CA4: 0.0076 | CB4: 0.0087 | CC4: 0.0099 | CD4: 0.0109 | CE4: 0.0117 | CF4: 0.0125 | CG4: 0.013 | CH4: 0.0134 | CI4: 0.0135
A5: 22 | B5: -0.0118 | C5: -0.0039 | D5: 0.0036 | E5: 0.0104 | F5: 0.0157 | G5: 0.0195 | H5: 0.0211 | I5: 0.0204 | J5: 0.017 | K5: 0.011 | L5: 0.003 | M5: -0.0064 | N5: -0.0159 | O5: -0.0246 | P5: -0.0313 | Q5: -0.0349 | R5: -0.0347 | S5: -0.0305 | T5: -0.0231 | U5: -0.0139 | V5: -0.0045 | W5: 0.0036 | X5: 0.0098 | Y5: 0.0137 | Z5: 0.0156 | AA5: 0.0162 | AB5: 0.0168 | AC5: 0.0187 | AD5: 0.0223 | AE5: 0.0268 | AF5: 0.0306 | AG5: 0.0313 | AH5: 0.0279 | AI5: 0.0211 | AJ5: 0.0129 | AK5: 0.0054 | AL5: 0.0002 | AM5: -0.0023 | AN5: -0.0019 | AO5: 0.0008 | AP5: 0.0056 | AQ5: 0.0116 | AR5: 0.018 | AS5: 0.0239 | AT5: 0.0283 | AU5: 0.0297 | AV5: 0.0275 | AW5: 0.0216 | AX5: 0.013 | AY5: 0.0035 | AZ5: -0.0047 | BA5: -0.0099 | BB5: -0.0112 | BC5: -0.0084 | BD5: -0.002 | BE5: 0.007 | BF5: 0.0167 | BG5: 0.0246 | BH5: 0.0286 | BI5: 0.0276 | BJ5: 0.0221 | BK5: 0.0132 | BL5: 0.0024 | BM5: -0.0085 | BN5: -0.0175 | BO5: -0.0234 | BP5: -0.0218 | BQ5: -0.0194 | BR5: -0.0168 | BS5: -0.0136 | BT5: -0.01 | BU5: -0.0062 | BV5: -0.0026 | BW5: 0.0006 | BX5: 0.0033 | BY5: 0.0051 | BZ5: 0.0063 | CA5: 0.0076 | CB5: 0.0087 | CC5: 0.0099 | CD5: 0.0109 | CE5: 0.0117 | CF5: 0.0125 | CG5: 0.013 | CH5: 0.0134 | CI5: 0.0135
A6: 23 | B6: -0.0079 | C6: -0.0008 | D6: 0.006 | E6: 0.012 | F6: 0.0166 | G6: 0.0196 | H6: 0.0207 | I6: 0.0195 | J6: 0.0158 | K6: 0.0098 | L6: 0.002 | M6: -0.0069 | N6: -0.0159 | O6: -0.0239 | P6: -0.0299 | Q6: -0.0331 | R6: -0.0327 | S6: -0.0286 | T6: -0.0215 | U6: -0.0127 | V6: -0.0039 | W6: 0.0038 | X6: 0.0095 | Y6: 0.013 | Z6: 0.0145 | AA6: 0.0149 | AB6: 0.0153 | AC6: 0.0169 | AD6: 0.0203 | AE6: 0.0247 | AF6: 0.0284 | AG6: 0.0292 | AH6: 0.0261 | AI6: 0.0195 | AJ6: 0.0115 | AK6: 0.0042 | AL6: -0.0008 | AM6: -0.0028 | AN6: -0.0019 | AO6: 0.0015 | AP6: 0.0069 | AQ6: 0.0135 | AR6: 0.0203 | AS6: 0.0265 | AT6: 0.0308 | AU6: 0.0319 | AV6: 0.029 | AW6: 0.0222 | AX6: 0.0126 | AY6: 0.0022 | AZ6: -0.0069 | BA6: -0.0127 | BB6: -0.0144 | BC6: -0.0119 | BD6: -0.0057 | BE6: 0.0031 | BF6: 0.0127 | BG6: 0.0205 | BH6: 0.0245 | BI6: 0.0235 | BJ6: 0.0181 | BK6: 0.0094 | BL6: -0.0012 | BM6: -0.0118 | BN6: -0.0205 | BO6: -0.0261 | BP6: -0.0241 | BQ6: -0.0212 | BR6: -0.0179 | BS6: -0.0145 | BT6: -0.0106 | BU6: -0.0067 | BV6: -0.0029 | BW6: 0.0005 | BX6: 0.0032 | BY6: 0.0051 | BZ6: 0.0063 | CA6: 0.0076 | CB6: 0.0087 | CC6: 0.0099 | CD6: 0.0109 | CE6: 0.0117 | CF6: 0.0125 | CG6: 0.013 | CH6: 0.0134 | CI6: 0.0135
A7: 24 | B7: -0.0028 | C7: 0.0033 | D7: 0.0091 | E7: 0.014 | F7: 0.0177 | G7: 0.0198 | H7: 0.0201 | I7: 0.0182 | J7: 0.0142 | K7: 0.0083 | L7: 0.0008 | M7: -0.0076 | N7: -0.0159 | O7: -0.0231 | P7: -0.0285 | Q7: -0.0311 | R7: -0.0304 | S7: -0.0263 | T7: -0.0195 | U7: -0.0113 | V7: -0.003 | W7: 0.0041 | X7: 0.0094 | Y7: 0.0126 | Z7: 0.0138 | AA7: 0.0139 | AB7: 0.014 | AC7: 0.0152 | AD7: 0.0182 | AE7: 0.0222 | AF7: 0.0258 | AG7: 0.0266 | AH7: 0.0236 | AI7: 0.0172 | AJ7: 0.0093 | AK7: 0.0021 | AL7: -0.0027 | AM7: -0.0044 | AN7: -0.0029 | AO7: 0.0013 | AP7: 0.0077 | AQ7: 0.0152 | AR7: 0.0228 | AS7: 0.0296 | AT7: 0.0342 | AU7: 0.0353 | AV7: 0.032 | AW7: 0.0244 | AX7: 0.0137 | AY7: 0.0022 | AZ7: -0.0079 | BA7: -0.0145 | BB7: -0.0168 | BC7: -0.0148 | BD7: -0.0088 | BE7: -0.0002 | BF7: 0.0092 | BG7: 0.0167 | BH7: 0.0205 | BI7: 0.0195 | BJ7: 0.0141 | BK7: 0.0054 | BL7: -0.005 | BM7: -0.0154 | BN7: -0.024 | BO7: -0.0295 | BP7: -0.0271 | BQ7: -0.0237 | BR7: -0.0197 | BS7: -0.0155 | BT7: -0.0115 | BU7: -0.0073 | BV7: -0.0033 | BW7: 0.0003 | BX7: 0.0032 | BY7: 0.0051 | BZ7: 0.0063 | CA7: 0.0076 | CB7: 0.0087 | CC7: 0.0099 | CD7: 0.0109 | CE7: 0.0117 | CF7: 0.0125 | CG7: 0.013 | CH7: 0.0134 | CI7: 0.0135
A8: 25 | B8: 0.003 | C8: 0.008 | D8: 0.0125 | E8: 0.0163 | F8: 0.0188 | G8: 0.0198 | H8: 0.0192 | I8: 0.0168 | J8: 0.0125 | K8: 0.0066 | L8: -0.0005 | M8: -0.0083 | N8: -0.0159 | O8: -0.0224 | P8: -0.0269 | Q8: -0.0289 | R8: -0.0279 | S8: -0.0239 | T8: -0.0175 | U8: -0.0097 | V8: -0.002 | W8: 0.0047 | X8: 0.0096 | Y8: 0.0125 | Z8: 0.0135 | AA8: 0.0134 | AB8: 0.0131 | AC8: 0.0138 | AD8: 0.0161 | AE8: 0.0196 | AF8: 0.0227 | AG8: 0.0234 | AH8: 0.0203 | AI8: 0.014 | AJ8: 0.0062 | AK8: -0.0009 | AL8: -0.0055 | AM8: -0.0069 | AN8: -0.0048 | AO8: 0.0004 | AP8: 0.0078 | AQ8: 0.0164 | AR8: 0.0252 | AS8: 0.0329 | AT8: 0.0382 | AU8: 0.0396 | AV8: 0.0361 | AW8: 0.0279 | AX8: 0.0162 | AY8: 0.0035 | AZ8: -0.0076 | BA8: -0.0152 | BB8: -0.0183 | BC8: -0.0168 | BD8: -0.0113 | BE8: -0.003 | BF8: 0.006 | BG8: 0.0132 | BH8: 0.0167 | BI8: 0.0156 | BJ8: 0.0101 | BK8: 0.0015 | BL8: -0.0088 | BM8: -0.0191 | BN8: -0.0276 | BO8: -0.0332 | BP8: -0.0305 | BQ8: -0.0267 | BR8: -0.0221 | BS8: -0.0173 | BT8: -0.0124 | BU8: -0.0079 | BV8: -0.0037 | BW8: 0.0001 | BX8: 0.0031 | BY8: 0.0051 | BZ8: 0.0063 | CA8: 0.0076 | CB8: 0.0087 | CC8: 0.0099 | CD8: 0.0109 | CE8: 0.0117 | CF8: 0.0125 | CG8: 0.013 | CH8: 0.0134 | CI8: 0.0135
A9: 26 | B9: 0.0092 | C9: 0.0129 | D9: 0.0161 | E9: 0.0186 | F9: 0.0198 | G9: 0.0197 | H9: 0.0182 | I9: 0.0152 | J9: 0.0107 | K9: 0.0049 | L9: -0.0018 | M9: -0.009 | N9: -0.0159 | O9: -0.0216 | P9: -0.0254 | Q9: -0.0268 | R9: -0.0255 | S9: -0.0215 | T9: -0.0154 | U9: -0.0081 | V9: -0.0008 | W9: 0.0055 | X9: 0.0102 | Y9: 0.013 | Z9: 0.0138 | AA9: 0.0135 | AB9: 0.0127 | AC9: 0.0128 | AD9: 0.0143 | AE9: 0.017 | AF9: 0.0194 | AG9: 0.0196 | AH9: 0.0163 | AI9: 0.0099 | AJ9: 0.0022 | AK9: -0.0047 | AL9: -0.0091 | AM9: -0.01 | AN9: -0.0073 | AO9: -0.0013 | AP9: 0.0072 | AQ9: 0.017 | AR9: 0.027 | AS9: 0.036 | AT9: 0.0424 | AU9: 0.0445 | AV9: 0.0412 | AW9: 0.0325 | AX9: 0.02 | AY9: 0.0062 | AZ9: -0.0061 | BA9: -0.0147 | BB9: -0.0186 | BC9: -0.0178 | BD9: -0.0129 | BE9: -0.0052 | BF9: 0.0033 | BG9: 0.0101 | BH9: 0.0132 | BI9: 0.0118 | BJ9: 0.0063 | BK9: -0.0023 | BL9: -0.0126 | BM9: -0.0228 | BN9: -0.0314 | BO9: -0.037 | BP9: -0.0342 | BQ9: -0.03 | BR9: -0.0249 | BS9: -0.0194 | BT9: -0.0138 | BU9: -0.0086 | BV9: -0.0041 | BW9: -0.0001 | BX9: 0.0031 | BY9: 0.0051 | BZ9: 0.0063 | CA9: 0.0076 | CB9: 0.0087 | CC9: 0.0099 | CD9: 0.0109 | CE9: 0.0117 | CF9: 0.0125 | CG9: 0.013 | CH9: 0.0134 | CI9: 0.0135
A10: 27 | B10: 0.0154 | C10: 0.0177 | D10: 0.0196 | E10: 0.0207 | F10: 0.0206 | G10: 0.0194 | H10: 0.0171 | I10: 0.0135 | J10: 0.0089 | K10: 0.0033 | L10: -0.003 | M10: -0.0096 | N10: -0.0158 | O10: -0.0208 | P10: -0.024 | Q10: -0.0249 | R10: -0.0233 | S10: -0.0193 | T10: -0.0134 | U10: -0.0065 | V10: 0.0005 | W10: 0.0066 | X10: 0.0112 | Y10: 0.0139 | Z10: 0.0148 | AA10: 0.0142 | AB10: 0.013 | AC10: 0.0124 | AD10: 0.0129 | AE10: 0.0146 | AF10: 0.0159 | AG10: 0.0154 | AH10: 0.0117 | AI10: 0.0052 | AJ10: -0.0025 | AK10: -0.0092 | AL10: -0.0131 | AM10: -0.0136 | AN10: -0.0102 | AO10: -0.0034 | AP10: 0.006 | AQ10: 0.0169 | AR10: 0.0282 | AS10: 0.0386 | AT10: 0.0464 | AU10: 0.0496 | AV10: 0.0467 | AW10: 0.0379 | AX10: 0.0247 | AY10: 0.01 | AZ10: -0.0033 | BA10: -0.013 | BB10: -0.0179 | BC10: -0.0179 | BD10: -0.0137 | BE10: -0.0067 | BF10: 0.0011 | BG10: 0.0073 | BH10: 0.01 | BI10: 0.0083 | BJ10: 0.0027 | BK10: -0.006 | BL10: -0.0162 | BM10: -0.0264 | BN10: -0.0349 | BO10: -0.0407 | BP10: -0.0379 | BQ10: -0.0334 | BR10: -0.0279 | BS10: -0.0218 | BT10: -0.0156 | BU10: -0.0097 | BV10: -0.0045 | BW10: -0.0003 | BX10: 0.003 | BY10: 0.0051 | BZ10: 0.0063 | CA10: 0.0076 | CB10: 0.0087 | CC10: 0.0099 | CD10: 0.0109 | CE10: 0.0117 | CF10: 0.0125 | CG10: 0.013 | CH10: 0.0134 | CI10: 0.0135
A11: 28 | B11: 0.0213 | C11: 0.0221 | D11: 0.0227 | E11: 0.0224 | F11: 0.0212 | G11: 0.019 | H11: 0.0158 | I11: 0.0119 | J11: 0.0072 | K11: 0.0018 | L11: -0.004 | M11: -0.0101 | N11: -0.0157 | O11: -0.0201 | P11: -0.0226 | Q11: -0.0231 | R11: -0.0213 | S11: -0.0174 | T11: -0.0116 | U11: -0.0049 | V11: 0.0018 | W11: 0.0078 | X11: 0.0125 | Y11: 0.0153 | Z11: 0.0163 | AA11: 0.0156 | AB11: 0.014 | AC11: 0.0126 | AD11: 0.0121 | AE11: 0.0124 | AF11: 0.0126 | AG11: 0.0111 | AH11: 0.0067 | AI11: 0 | AJ11: -0.0076 | AK11: -0.0141 | AL11: -0.0175 | AM11: -0.0174 | AN11: -0.0135 | AO11: -0.006 | AP11: 0.0041 | AQ11: 0.016 | AR11: 0.0285 | AS11: 0.0404 | AT11: 0.0498 | AU11: 0.0543 | AV11: 0.0523 | AW11: 0.0436 | AX11: 0.0301 | AY11: 0.0146 | AZ11: 0.0004 | BA11: -0.0102 | BB11: -0.016 | BC11: -0.017 | BD11: -0.0136 | BE11: -0.0075 | BF11: -0.0005 | BG11: 0.005 | BH11: 0.0071 | BI11: 0.0052 | BJ11: -0.0006 | BK11: -0.0093 | BL11: -0.0194 | BM11: -0.0296 | BN11: -0.0382 | BO11: -0.0441 | BP11: -0.0414 | BQ11: -0.0368 | BR11: -0.031 | BS11: -0.0244 | BT11: -0.0176 | BU11: -0.0111 | BV11: -0.0053 | BW11: -0.0004 | BX11: 0.003 | BY11: 0.0051 | BZ11: 0.0063 | CA11: 0.0076 | CB11: 0.0087 | CC11: 0.0099 | CD11: 0.0109 | CE11: 0.0117 | CF11: 0.0125 | CG11: 0.013 | CH11: 0.0134 | CI11: 0.0135
A12: 29 | B12: 0.0265 | C12: 0.026 | D12: 0.0253 | E12: 0.0238 | F12: 0.0215 | G12: 0.0183 | H12: 0.0146 | I12: 0.0104 | J12: 0.0057 | K12: 0.0006 | L12: -0.0049 | M12: -0.0105 | N12: -0.0155 | O12: -0.0193 | P12: -0.0214 | Q12: -0.0216 | R12: -0.0196 | S12: -0.0157 | T12: -0.0101 | U12: -0.0035 | V12: 0.0032 | W12: 0.0093 | X12: 0.0141 | Y12: 0.0172 | Z12: 0.0183 | AA12: 0.0176 | AB12: 0.0156 | AC12: 0.0135 | AD12: 0.0119 | AE12: 0.0109 | AF12: 0.0096 | AG12: 0.0069 | AH12: 0.0017 | AI12: -0.0054 | AJ12: -0.013 | AK12: -0.0191 | AL12: -0.0221 | AM12: -0.0213 | AN12: -0.0168 | AO12: -0.0088 | AP12: 0.0018 | AQ12: 0.0144 | AR12: 0.0281 | AS12: 0.0415 | AT12: 0.0525 | AU12: 0.0584 | AV12: 0.0574 | AW12: 0.0491 | AX12: 0.0355 | AY12: 0.0197 | AZ12: 0.0048 | BA12: -0.0066 | BB12: -0.0132 | BC12: -0.015 | BD12: -0.0126 | BE12: -0.0074 | BF12: -0.0014 | BG12: 0.0033 | BH12: 0.0049 | BI12: 0.0026 | BJ12: -0.0034 | BK12: -0.0121 | BL12: -0.0223 | BM12: -0.0325 | BN12: -0.0412 | BO12: -0.0472 | BP12: -0.0446 | BQ12: -0.04 | BR12: -0.034 | BS12: -0.0271 | BT12: -0.0198 | BU12: -0.0127 | BV12: -0.0063 | BW12: -0.001 | BX12: 0.003 | BY12: 0.0051 | BZ12: 0.0063 | CA12: 0.0076 | CB12: 0.0087 | CC12: 0.0099 | CD12: 0.0109 | CE12: 0.0117 | CF12: 0.0125 | CG12: 0.013 | CH12: 0.0134 | CI12: 0.0135
A13: 30 | B13: 0.031 | C13: 0.0293 | D13: 0.0273 | E13: 0.0248 | F13: 0.0215 | G13: 0.0176 | H13: 0.0134 | I13: 0.009 | J13: 0.0044 | K13: -0.0005 | L13: -0.0056 | M13: -0.0107 | N13: -0.0152 | O13: -0.0186 | P13: -0.0204 | Q13: -0.0203 | R13: -0.0182 | S13: -0.0143 | T13: -0.0088 | U13: -0.0022 | V13: 0.0045 | W13: 0.0108 | X13: 0.0159 | Y13: 0.0193 | Z13: 0.0206 | AA13: 0.02 | AB13: 0.0178 | AC13: 0.015 | AD13: 0.0123 | AE13: 0.01 | AF13: 0.0073 | AG13: 0.0032 | AH13: -0.0029 | AI13: -0.0105 | AJ13: -0.0182 | AK13: -0.024 | AL13: -0.0265 | AM13: -0.0252 | AN13: -0.0202 | AO13: -0.0118 | AP13: -0.0008 | AQ13: 0.0124 | AR13: 0.027 | AS13: 0.0417 | AT13: 0.0543 | AU13: 0.0617 | AV13: 0.0616 | AW13: 0.054 | AX13: 0.0406 | AY13: 0.0246 | AZ13: 0.0094 | BA13: -0.0024 | BB13: -0.0096 | BC13: -0.0122 | BD13: -0.0108 | BE13: -0.0066 | BF13: -0.0015 | BG13: 0.0023 | BH13: 0.0033 | BI13: 0.0006 | BJ13: -0.0056 | BK13: -0.0144 | BL13: -0.0246 | BM13: -0.0349 | BN13: -0.0436 | BO13: -0.0498 | BP13: -0.0474 | BQ13: -0.0429 | BR13: -0.0368 | BS13: -0.0296 | BT13: -0.022 | BU13: -0.0145 | BV13: -0.0076 | BW13: -0.0017 | BX13: 0.0026 | BY13: 0.0051 | BZ13: 0.0063 | CA13: 0.0076 | CB13: 0.0087 | CC13: 0.0099 | CD13: 0.0109 | CE13: 0.0117 | CF13: 0.0125 | CG13: 0.013 | CH13: 0.0134 | CI13: 0.0135
A14: 31 | B14: 0.0346 | C14: 0.0318 | D14: 0.0289 | E14: 0.0254 | F14: 0.0213 | G14: 0.0168 | H14: 0.0123 | I14: 0.0078 | J14: 0.0033 | K14: -0.0013 | L14: -0.0061 | M14: -0.0108 | N14: -0.0149 | O14: -0.018 | P14: -0.0194 | Q14: -0.0191 | R14: -0.017 | S14: -0.0131 | T14: -0.0076 | U14: -0.001 | V14: 0.0058 | W14: 0.0123 | X14: 0.0177 | Y14: 0.0215 | Z14: 0.0231 | AA14: 0.0226 | AB14: 0.0203 | AC14: 0.017 | AD14: 0.0134 | AE14: 0.0099 | AF14: 0.0058 | AG14: 0.0004 | AH14: -0.0067 | AI14: -0.0149 | AJ14: -0.0228 | AK14: -0.0285 | AL14: -0.0306 | AM14: -0.0288 | AN14: -0.0235 | AO14: -0.0148 | AP14: -0.0035 | AQ14: 0.0101 | AR14: 0.0255 | AS14: 0.0413 | AT14: 0.0551 | AU14: 0.0638 | AV14: 0.0647 | AW14: 0.0577 | AX14: 0.0448 | AY14: 0.029 | AZ14: 0.0139 | BA14: 0.0019 | BB14: -0.0056 | BC14: -0.0087 | BD14: -0.008 | BE14: -0.0049 | BF14: -0.0008 | BG14: 0.0022 | BH14: 0.0025 | BI14: -0.0006 | BJ14: -0.007 | BK14: -0.016 | BL14: -0.0263 | BM14: -0.0367 | BN14: -0.0456 | BO14: -0.052 | BP14: -0.0498 | BQ14: -0.0453 | BR14: -0.0392 | BS14: -0.032 | BT14: -0.0242 | BU14: -0.0163 | BV14: -0.009 | BW14: -0.0028 | BX14: 0.002 | BY14: 0.0048 | BZ14: 0.0063 | CA14: 0.0076 | CB14: 0.0087 | CC14: 0.0099 | CD14: 0.0109 | CE14: 0.0117 | CF14: 0.0125 | CG14: 0.013 | CH14: 0.0134 | CI14: 0.0135
A15: 32 | B15: 0.0372 | C15: 0.0337 | D15: 0.0299 | E15: 0.0258 | F15: 0.0211 | G15: 0.0161 | H15: 0.0113 | I15: 0.0068 | J15: 0.0024 | K15: -0.0019 | L15: -0.0064 | M15: -0.0108 | N15: -0.0146 | O15: -0.0173 | P15: -0.0186 | Q15: -0.0182 | R15: -0.016 | S15: -0.0121 | T15: -0.0065 | U15: 0.0001 | V15: 0.0071 | W15: 0.0138 | X15: 0.0195 | Y15: 0.0236 | Z15: 0.0255 | AA15: 0.0252 | AB15: 0.0229 | AC15: 0.0193 | AD15: 0.0151 | AE15: 0.0106 | AF15: 0.0053 | AG15: -0.0013 | AH15: -0.0093 | AI15: -0.0183 | AJ15: -0.0265 | AK15: -0.0322 | AL15: -0.0342 | AM15: -0.0322 | AN15: -0.0266 | AO15: -0.0178 | AP15: -0.0063 | AQ15: 0.0077 | AR15: 0.0236 | AS15: 0.0402 | AT15: 0.055 | AU15: 0.0647 | AV15: 0.0665 | AW15: 0.0602 | AX15: 0.0478 | AY15: 0.0325 | AZ15: 0.0178 | BA15: 0.0061 | BB15: -0.0014 | BC15: -0.0047 | BD15: -0.0047 | BE15: -0.0023 | BF15: 0.0008 | BG15: 0.0029 | BH15: 0.0026 | BI15: -0.001 | BJ15: -0.0077 | BK15: -0.0168 | BL15: -0.0274 | BM15: -0.0379 | BN15: -0.047 | BO15: -0.0537 | BP15: -0.0517 | BQ15: -0.0474 | BR15: -0.0413 | BS15: -0.0341 | BT15: -0.0262 | BU15: -0.0181 | BV15: -0.0105 | BW15: -0.0039 | BX15: 0.0012 | BY15: 0.0043 | BZ15: 0.0061 | CA15: 0.0076 | CB15: 0.0087 | CC15: 0.0099 | CD15: 0.0109 | CE15: 0.0117 | CF15: 0.0125 | CG15: 0.013 | CH15: 0.0134 | CI15: 0.0135
A16: 33 | B16: 0.039 | C16: 0.0349 | D16: 0.0305 | E16: 0.0259 | F16: 0.0208 | G16: 0.0155 | H16: 0.0106 | I16: 0.006 | J16: 0.0018 | K16: -0.0024 | L16: -0.0067 | M16: -0.0108 | N16: -0.0143 | O16: -0.0167 | P16: -0.0178 | Q16: -0.0173 | R16: -0.0151 | S16: -0.0111 | T16: -0.0055 | U16: 0.0012 | V16: 0.0083 | W16: 0.0152 | X16: 0.0212 | Y16: 0.0255 | Z16: 0.0277 | AA16: 0.0276 | AB16: 0.0254 | AC16: 0.0218 | AD16: 0.0172 | AE16: 0.012 | AF16: 0.0058 | AG16: -0.0017 | AH16: -0.0106 | AI16: -0.0202 | AJ16: -0.0289 | AK16: -0.0349 | AL16: -0.037 | AM16: -0.035 | AN16: -0.0293 | AO16: -0.0205 | AP16: -0.0089 | AQ16: 0.0053 | AR16: 0.0215 | AS16: 0.0386 | AT16: 0.054 | AU16: 0.0643 | AV16: 0.0668 | AW16: 0.0611 | AX16: 0.0494 | AY16: 0.0348 | AZ16: 0.0208 | BA16: 0.0098 | BB16: 0.0027 | BC16: -0.0005 | BD16: -0.0008 | BE16: 0.0009 | BF16: 0.0032 | BG16: 0.0045 | BH16: 0.0035 | BI16: -0.0004 | BJ16: -0.0074 | BK16: -0.0168 | BL16: -0.0276 | BM16: -0.0383 | BN16: -0.0478 | BO16: -0.0549 | BP16: -0.0531 | BQ16: -0.049 | BR16: -0.043 | BS16: -0.0358 | BT16: -0.0279 | BU16: -0.0198 | BV16: -0.012 | BW16: -0.0052 | BX16: 0.0002 | BY16: 0.0036 | BZ16: 0.0057 | CA16: 0.0074 | CB16: 0.0087 | CC16: 0.0099 | CD16: 0.0109 | CE16: 0.0117 | CF16: 0.0125 | CG16: 0.013 | CH16: 0.0134 | CI16: 0.0135
A17: 34 | B17: 0.04 | C17: 0.0355 | D17: 0.0308 | E17: 0.0258 | F17: 0.0205 | G17: 0.0151 | H17: 0.01 | I17: 0.0055 | J17: 0.0013 | K17: -0.0028 | L17: -0.0068 | M17: -0.0106 | N17: -0.0139 | O17: -0.0161 | P17: -0.0171 | Q17: -0.0165 | R17: -0.0143 | S17: -0.0103 | T17: -0.0046 | U17: 0.0022 | V17: 0.0094 | W17: 0.0165 | X17: 0.0226 | Y17: 0.0272 | Z17: 0.0296 | AA17: 0.0298 | AB17: 0.0278 | AC17: 0.0243 | AD17: 0.0197 | AE17: 0.0141 | AF17: 0.0073 | AG17: -0.0009 | AH17: -0.0105 | AI17: -0.0208 | AJ17: -0.03 | AK17: -0.0364 | AL17: -0.0388 | AM17: -0.0371 | AN17: -0.0316 | AO17: -0.0228 | AP17: -0.0112 | AQ17: 0.003 | AR17: 0.0193 | AS17: 0.0365 | AT17: 0.0521 | AU17: 0.0628 | AV17: 0.0658 | AW17: 0.0607 | AX17: 0.0496 | AY17: 0.0359 | AZ17: 0.0228 | BA17: 0.0128 | BB17: 0.0064 | BC17: 0.0036 | BD17: 0.0032 | BE17: 0.0045 | BF17: 0.0062 | BG17: 0.0069 | BH17: 0.0054 | BI17: 0.001 | BJ17: -0.0063 | BK17: -0.016 | BL17: -0.027 | BM17: -0.0381 | BN17: -0.0478 | BO17: -0.0553 | BP17: -0.0539 | BQ17: -0.05 | BR17: -0.0443 | BS17: -0.0372 | BT17: -0.0293 | BU17: -0.0212 | BV17: -0.0134 | BW17: -0.0064 | BX17: -0.0009 | BY17: 0.0028 | BZ17: 0.0051 | CA17: 0.007 | CB17: 0.0086 | CC17: 0.0099 | CD17: 0.0109 | CE17: 0.0117 | CF17: 0.0125 | CG17: 0.013 | CH17: 0.0134 | CI17: 0.0135
A18: 35 | B18: 0.0402 | C18: 0.0356 | D18: 0.0308 | E18: 0.0256 | F18: 0.0202 | G18: 0.0148 | H18: 0.0097 | I18: 0.0052 | J18: 0.0011 | K18: -0.0029 | L18: -0.0067 | M18: -0.0104 | N18: -0.0134 | O18: -0.0155 | P18: -0.0164 | Q18: -0.0158 | R18: -0.0135 | S18: -0.0094 | T18: -0.0037 | U18: 0.0031 | V18: 0.0105 | W18: 0.0176 | X18: 0.0238 | Y18: 0.0285 | Z18: 0.0312 | AA18: 0.0315 | AB18: 0.0299 | AC18: 0.0267 | AD18: 0.0222 | AE18: 0.0165 | AF18: 0.0095 | AG18: 0.0009 | AH18: -0.0092 | AI18: -0.0199 | AJ18: -0.0295 | AK18: -0.0364 | AL18: -0.0394 | AM18: -0.0382 | AN18: -0.0331 | AO18: -0.0247 | AP18: -0.0133 | AQ18: 0.0007 | AR18: 0.0168 | AS18: 0.0339 | AT18: 0.0494 | AU18: 0.0602 | AV18: 0.0635 | AW18: 0.0589 | AX18: 0.0486 | AY18: 0.0358 | AZ18: 0.0239 | BA18: 0.0149 | BB18: 0.0095 | BC18: 0.0072 | BD18: 0.0072 | BE18: 0.0083 | BF18: 0.0097 | BG18: 0.0099 | BH18: 0.008 | BI18: 0.0032 | BJ18: -0.0044 | BK18: -0.0143 | BL18: -0.0256 | BM18: -0.037 | BN18: -0.0471 | BO18: -0.0551 | BP18: -0.054 | BQ18: -0.0504 | BR18: -0.0449 | BS18: -0.0381 | BT18: -0.0304 | BU18: -0.0223 | BV18: -0.0146 | BW18: -0.0076 | BX18: -0.002 | BY18: 0.0018 | BZ18: 0.0044 | CA18: 0.0065 | CB18: 0.0083 | CC18: 0.0097 | CD18: 0.0109 | CE18: 0.0117 | CF18: 0.0125 | CG18: 0.013 | CH18: 0.0134 | CI18: 0.0135
A19: 36 | B19: 0.0398 | C19: 0.0352 | D19: 0.0305 | E19: 0.0254 | F19: 0.02 | G19: 0.0147 | H19: 0.0097 | I19: 0.0052 | J19: 0.0011 | K19: -0.0028 | L19: -0.0065 | M19: -0.01 | N19: -0.0129 | O19: -0.0149 | P19: -0.0157 | Q19: -0.015 | R19: -0.0127 | S19: -0.0087 | T19: -0.0029 | U19: 0.004 | V19: 0.0114 | W19: 0.0185 | X19: 0.0248 | Y19: 0.0295 | Z19: 0.0323 | AA19: 0.0329 | AB19: 0.0316 | AC19: 0.0288 | AD19: 0.0247 | AE19: 0.0192 | AF19: 0.0122 | AG19: 0.0035 | AH19: -0.0068 | AI19: -0.0177 | AJ19: -0.0277 | AK19: -0.035 | AL19: -0.0386 | AM19: -0.0381 | AN19: -0.0337 | AO19: -0.0259 | AP19: -0.0151 | AQ19: -0.0016 | AR19: 0.0141 | AS19: 0.0308 | AT19: 0.046 | AU19: 0.0567 | AV19: 0.0602 | AW19: 0.0561 | AX19: 0.0465 | AY19: 0.0348 | AZ19: 0.024 | BA19: 0.0162 | BB19: 0.0118 | BC19: 0.0103 | BD19: 0.0107 | BE19: 0.0121 | BF19: 0.0133 | BG19: 0.0134 | BH19: 0.0111 | BI19: 0.0061 | BJ19: -0.0017 | BK19: -0.0119 | BL19: -0.0234 | BM19: -0.035 | BN19: -0.0455 | BO19: -0.0539 | BP19: -0.0533 | BQ19: -0.0501 | BR19: -0.045 | BS19: -0.0384 | BT19: -0.031 | BU19: -0.0232 | BV19: -0.0156 | BW19: -0.0087 | BX19: -0.003 | BY19: 0.0009 | BZ19: 0.0036 | CA19: 0.0059 | CB19: 0.0079 | CC19: 0.0095 | CD19: 0.0108 | CE19: 0.0117 | CF19: 0.0125 | CG19: 0.013 | CH19: 0.0134 | CI19: 0.0135
A20: 37 | B20: 0.0389 | C20: 0.0345 | D20: 0.0299 | E20: 0.025 | F20: 0.0198 | G20: 0.0147 | H20: 0.0097 | I20: 0.0053 | J20: 0.0013 | K20: -0.0025 | L20: -0.0061 | M20: -0.0094 | N20: -0.0122 | O20: -0.0141 | P20: -0.0149 | Q20: -0.0143 | R20: -0.012 | S20: -0.0079 | T20: -0.0022 | U20: 0.0048 | V20: 0.0121 | W20: 0.0192 | X20: 0.0254 | Y20: 0.0302 | Z20: 0.033 | AA20: 0.0339 | AB20: 0.033 | AC20: 0.0307 | AD20: 0.027 | AE20: 0.0218 | AF20: 0.0151 | AG20: 0.0066 | AH20: -0.0036 | AI20: -0.0145 | AJ20: -0.0245 | AK20: -0.0322 | AL20: -0.0364 | AM20: -0.0367 | AN20: -0.0332 | AO20: -0.0264 | AP20: -0.0166 | AQ20: -0.0039 | AR20: 0.0111 | AS20: 0.0272 | AT20: 0.042 | AU20: 0.0525 | AV20: 0.0561 | AW20: 0.0525 | AX20: 0.0437 | AY20: 0.033 | AZ20: 0.0233 | BA20: 0.0167 | BB20: 0.0133 | BC20: 0.0127 | BD20: 0.0137 | BE20: 0.0155 | BF20: 0.0169 | BG20: 0.0169 | BH20: 0.0146 | BI20: 0.0095 | BJ20: 0.0015 | BK20: -0.0088 | BL20: -0.0204 | BM20: -0.0322 | BN20: -0.0429 | BO20: -0.0517 | BP20: -0.0516 | BQ20: -0.049 | BR20: -0.0444 | BS20: -0.0383 | BT20: -0.0312 | BU20: -0.0237 | BV20: -0.0163 | BW20: -0.0095 | BX20: -0.004 | BY20: 0 | BZ20: 0.0028 | CA20: 0.0053 | CB20: 0.0074 | CC20: 0.0092 | CD20: 0.0106 | CE20: 0.0117 | CF20: 0.0125 | CG20: 0.013 | CH20: 0.0134 | CI20: 0.0135
A21: 38 | B21: 0.0375 | C21: 0.0334 | D21: 0.0292 | E21: 0.0246 | F21: 0.0197 | G21: 0.0147 | H21: 0.0099 | I21: 0.0057 | J21: 0.0017 | K21: -0.0019 | L21: -0.0054 | M21: -0.0087 | N21: -0.0114 | O21: -0.0133 | P21: -0.0141 | Q21: -0.0135 | R21: -0.0113 | S21: -0.0072 | T21: -0.0015 | U21: 0.0054 | V21: 0.0127 | W21: 0.0198 | X21: 0.0259 | Y21: 0.0305 | Z21: 0.0335 | AA21: 0.0346 | AB21: 0.0341 | AC21: 0.0322 | AD21: 0.029 | AE21: 0.0243 | AF21: 0.0179 | AG21: 0.0098 | AH21: 0 | AI21: -0.0105 | AJ21: -0.0204 | AK21: -0.0281 | AL21: -0.0328 | AM21: -0.034 | AN21: -0.0317 | AO21: -0.0262 | AP21: -0.0175 | AQ21: -0.006 | AR21: 0.0081 | AS21: 0.0233 | AT21: 0.0375 | AU21: 0.0477 | AV21: 0.0514 | AW21: 0.0482 | AX21: 0.0403 | AY21: 0.0306 | AZ21: 0.022 | BA21: 0.0164 | BB21: 0.014 | BC21: 0.0143 | BD21: 0.016 | BE21: 0.0183 | BF21: 0.0201 | BG21: 0.0204 | BH21: 0.0182 | BI21: 0.0131 | BJ21: 0.0051 | BK21: -0.0052 | BL21: -0.0169 | BM21: -0.0287 | BN21: -0.0395 | BO21: -0.0486 | BP21: -0.0491 | BQ21: -0.0471 | BR21: -0.043 | BS21: -0.0375 | BT21: -0.0309 | BU21: -0.0238 | BV21: -0.0167 | BW21: -0.0102 | BX21: -0.0048 | BY21: -0.0009 | BZ21: 0.002 | CA21: 0.0046 | CB21: 0.0069 | CC21: 0.0089 | CD21: 0.0104 | CE21: 0.0116 | CF21: 0.0124 | CG21: 0.013 | CH21: 0.0134 | CI21: 0.0135
A22: 39 | B22: 0.0358 | C22: 0.0322 | D22: 0.0284 | E22: 0.0241 | F22: 0.0195 | G22: 0.0147 | H22: 0.0102 | I22: 0.0061 | J22: 0.0023 | K22: -0.0013 | L22: -0.0046 | M22: -0.0078 | N22: -0.0105 | O22: -0.0124 | P22: -0.0132 | Q22: -0.0127 | R22: -0.0105 | S22: -0.0065 | T22: -0.0009 | U22: 0.0059 | V22: 0.0132 | W22: 0.0201 | X22: 0.026 | Y22: 0.0306 | Z22: 0.0336 | AA22: 0.0349 | AB22: 0.0348 | AC22: 0.0334 | AD22: 0.0306 | AE22: 0.0264 | AF22: 0.0206 | AG22: 0.013 | AH22: 0.0038 | AI22: -0.0061 | AJ22: -0.0155 | AK22: -0.0232 | AL22: -0.0283 | AM22: -0.0303 | AN22: -0.0292 | AO22: -0.0251 | AP22: -0.018 | AQ22: -0.0078 | AR22: 0.0051 | AS22: 0.0193 | AT22: 0.0328 | AU22: 0.0425 | AV22: 0.0463 | AW22: 0.0436 | AX22: 0.0364 | AY22: 0.0278 | AZ22: 0.0202 | BA22: 0.0155 | BB22: 0.014 | BC22: 0.0151 | BD22: 0.0176 | BE22: 0.0205 | BF22: 0.0228 | BG22: 0.0235 | BH22: 0.0215 | BI22: 0.0166 | BJ22: 0.0088 | BK22: -0.0014 | BL22: -0.0128 | BM22: -0.0245 | BN22: -0.0353 | BO22: -0.0446 | BP22: -0.0456 | BQ22: -0.0442 | BR22: -0.0409 | BS22: -0.036 | BT22: -0.0301 | BU22: -0.0235 | BV22: -0.0169 | BW22: -0.0107 | BX22: -0.0055 | BY22: -0.0017 | BZ22: 0.0013 | CA22: 0.004 | CB22: 0.0064 | CC22: 0.0085 | CD22: 0.0101 | CE22: 0.0114 | CF22: 0.0124 | CG22: 0.013 | CH22: 0.0134 | CI22: 0.0135
A23: 40 | B23: 0.0339 | C23: 0.0308 | D23: 0.0274 | E23: 0.0235 | F23: 0.0192 | G23: 0.0147 | H23: 0.0104 | I23: 0.0065 | J23: 0.0029 | K23: -0.0005 | L23: -0.0038 | M23: -0.0068 | N23: -0.0095 | O23: -0.0114 | P23: -0.0122 | Q23: -0.0118 | R23: -0.0097 | S23: -0.0058 | T23: -0.0004 | U23: 0.0063 | V23: 0.0134 | W23: 0.0201 | X23: 0.026 | Y23: 0.0305 | Z23: 0.0335 | AA23: 0.0351 | AB23: 0.0352 | AC23: 0.0342 | AD23: 0.0319 | AE23: 0.0282 | AF23: 0.0229 | AG23: 0.016 | AH23: 0.0076 | AI23: -0.0015 | AJ23: -0.0103 | AK23: -0.0177 | AL23: -0.023 | AM23: -0.0258 | AN23: -0.0259 | AO23: -0.0232 | AP23: -0.0177 | AQ23: -0.009 | AR23: 0.0024 | AS23: 0.0156 | AT23: 0.0281 | AU23: 0.0373 | AV23: 0.0409 | AW23: 0.0387 | AX23: 0.0323 | AY23: 0.0246 | AZ23: 0.0181 | BA23: 0.0142 | BB23: 0.0135 | BC23: 0.0152 | BD23: 0.0184 | BE23: 0.022 | BF23: 0.0248 | BG23: 0.0259 | BH23: 0.0244 | BI23: 0.0198 | BJ23: 0.0123 | BK23: 0.0026 | BL23: -0.0085 | BM23: -0.0199 | BN23: -0.0305 | BO23: -0.0399 | BP23: -0.0413 | BQ23: -0.0406 | BR23: -0.0381 | BS23: -0.034 | BT23: -0.0288 | BU23: -0.0229 | BV23: -0.0168 | BW23: -0.0111 | BX23: -0.0061 | BY23: -0.0023 | BZ23: 0.0006 | CA23: 0.0034 | CB23: 0.0059 | CC23: 0.0081 | CD23: 0.0099 | CE23: 0.0113 | CF23: 0.0123 | CG23: 0.013 | CH23: 0.0134 | CI23: 0.0135
A24: 41 | B24: 0.0321 | C24: 0.0293 | D24: 0.0262 | E24: 0.0228 | F24: 0.0188 | G24: 0.0146 | H24: 0.0106 | I24: 0.0069 | J24: 0.0035 | K24: 0.0002 | L24: -0.0029 | M24: -0.0059 | N24: -0.0084 | O24: -0.0103 | P24: -0.0111 | Q24: -0.0107 | R24: -0.0088 | S24: -0.0051 | T24: 0.0001 | U24: 0.0066 | V24: 0.0135 | W24: 0.02 | X24: 0.0257 | Y24: 0.0302 | Z24: 0.0333 | AA24: 0.035 | AB24: 0.0354 | AC24: 0.0346 | AD24: 0.0327 | AE24: 0.0295 | AF24: 0.0249 | AG24: 0.0187 | AH24: 0.0112 | AI24: 0.003 | AJ24: -0.005 | AK24: -0.012 | AL24: -0.0174 | AM24: -0.0209 | AN24: -0.022 | AO24: -0.0206 | AP24: -0.0166 | AQ24: -0.0095 | AR24: 0.0005 | AS24: 0.0123 | AT24: 0.0236 | AU24: 0.0321 | AV24: 0.0355 | AW24: 0.0336 | AX24: 0.028 | AY24: 0.0213 | AZ24: 0.0157 | BA24: 0.0126 | BB24: 0.0126 | BC24: 0.0149 | BD24: 0.0186 | BE24: 0.0227 | BF24: 0.0261 | BG24: 0.0276 | BH24: 0.0265 | BI24: 0.0225 | BJ24: 0.0155 | BK24: 0.0064 | BL24: -0.0041 | BM24: -0.015 | BN24: -0.0253 | BO24: -0.0346 | BP24: -0.0364 | BQ24: -0.0363 | BR24: -0.0345 | BS24: -0.0313 | BT24: -0.027 | BU24: -0.0218 | BV24: -0.0164 | BW24: -0.0112 | BX24: -0.0065 | BY24: -0.0029 | BZ24: 0 | CA24: 0.0028 | CB24: 0.0054 | CC24: 0.0077 | CD24: 0.0096 | CE24: 0.0111 | CF24: 0.0122 | CG24: 0.0129 | CH24: 0.0134 | CI24: 0.0135
A25: 42 | B25: 0.0302 | C25: 0.0277 | D25: 0.025 | E25: 0.0219 | F25: 0.0183 | G25: 0.0144 | H25: 0.0107 | I25: 0.0072 | J25: 0.004 | K25: 0.0009 | L25: -0.0021 | M25: -0.0049 | N25: -0.0073 | O25: -0.0091 | P25: -0.01 | Q25: -0.0096 | R25: -0.0078 | S25: -0.0043 | T25: 0.0007 | U25: 0.0068 | V25: 0.0134 | W25: 0.0197 | X25: 0.0253 | Y25: 0.0298 | Z25: 0.0329 | AA25: 0.0347 | AB25: 0.0353 | AC25: 0.0348 | AD25: 0.0331 | AE25: 0.0304 | AF25: 0.0264 | AG25: 0.0211 | AH25: 0.0145 | AI25: 0.0073 | AJ25: 0 | AK25: -0.0065 | AL25: -0.0119 | AM25: -0.0157 | AN25: -0.0177 | AO25: -0.0174 | AP25: -0.0146 | AQ25: -0.009 | AR25: -0.0005 | AS25: 0.0097 | AT25: 0.0197 | AU25: 0.0272 | AV25: 0.0302 | AW25: 0.0285 | AX25: 0.0236 | AY25: 0.0178 | AZ25: 0.0131 | BA25: 0.0108 | BB25: 0.0114 | BC25: 0.0142 | BD25: 0.0183 | BE25: 0.0227 | BF25: 0.0265 | BG25: 0.0284 | BH25: 0.0278 | BI25: 0.0244 | BJ25: 0.0182 | BK25: 0.0098 | BL25: 0.0001 | BM25: -0.0101 | BN25: -0.02 | BO25: -0.029 | BP25: -0.0311 | BQ25: -0.0315 | BR25: -0.0305 | BS25: -0.0281 | BT25: -0.0247 | BU25: -0.0204 | BV25: -0.0157 | BW25: -0.011 | BX25: -0.0067 | BY25: -0.0033 | BZ25: -0.0004 | CA25: 0.0024 | CB25: 0.005 | CC25: 0.0073 | CD25: 0.0093 | CE25: 0.0109 | CF25: 0.0121 | CG25: 0.0129 | CH25: 0.0134 | CI25: 0.0135
A26: 43 | B26: 0.0285 | C26: 0.0262 | D26: 0.0238 | E26: 0.0209 | F26: 0.0176 | G26: 0.0141 | H26: 0.0106 | I26: 0.0073 | J26: 0.0043 | K26: 0.0014 | L26: -0.0014 | M26: -0.004 | N26: -0.0063 | O26: -0.0079 | P26: -0.0087 | Q26: -0.0083 | R26: -0.0066 | S26: -0.0034 | T26: 0.0013 | U26: 0.007 | V26: 0.0132 | W26: 0.0192 | X26: 0.0247 | Y26: 0.0292 | Z26: 0.0324 | AA26: 0.0343 | AB26: 0.035 | AC26: 0.0346 | AD26: 0.0332 | AE26: 0.0308 | AF26: 0.0275 | AG26: 0.023 | AH26: 0.0174 | AI26: 0.0111 | AJ26: 0.0047 | AK26: -0.0014 | AL26: -0.0066 | AM26: -0.0107 | AN26: -0.0132 | AO26: -0.0137 | AP26: -0.0119 | AQ26: -0.0075 | AR26: -0.0006 | AS26: 0.008 | AT26: 0.0165 | AU26: 0.0228 | AV26: 0.0253 | AW26: 0.0237 | AX26: 0.0193 | AY26: 0.0143 | AZ26: 0.0104 | BA26: 0.0089 | BB26: 0.0099 | BC26: 0.0131 | BD26: 0.0175 | BE26: 0.0222 | BF26: 0.0261 | BG26: 0.0283 | BH26: 0.0282 | BI26: 0.0254 | BJ26: 0.0201 | BK26: 0.0127 | BL26: 0.004 | BM26: -0.0054 | BN26: -0.0147 | BO26: -0.0234 | BP26: -0.0255 | BQ26: -0.0264 | BR26: -0.026 | BS26: -0.0245 | BT26: -0.0219 | BU26: -0.0186 | BV26: -0.0147 | BW26: -0.0106 | BX26: -0.0068 | BY26: -0.0036 | BZ26: -0.0008 | CA26: 0.002 | CB26: 0.0046 | CC26: 0.0069 | CD26: 0.009 | CE26: 0.0107 | CF26: 0.012 | CG26: 0.0128 | CH26: 0.0133 | CI26: 0.0135
A27: 44 | B27: 0.0269 | C27: 0.0248 | D27: 0.0225 | E27: 0.0199 | F27: 0.0168 | G27: 0.0136 | H27: 0.0103 | I27: 0.0073 | J27: 0.0044 | K27: 0.0017 | L27: -0.0009 | M27: -0.0033 | N27: -0.0053 | O27: -0.0067 | P27: -0.0074 | Q27: -0.007 | R27: -0.0054 | S27: -0.0024 | T27: 0.002 | U27: 0.0073 | V27: 0.013 | W27: 0.0187 | X27: 0.024 | Y27: 0.0285 | Z27: 0.0318 | AA27: 0.0337 | AB27: 0.0345 | AC27: 0.0342 | AD27: 0.033 | AE27: 0.031 | AF27: 0.0282 | AG27: 0.0245 | AH27: 0.0198 | AI27: 0.0144 | AJ27: 0.0087 | AK27: 0.0032 | AL27: -0.0018 | AM27: -0.0059 | AN27: -0.0086 | AO27: -0.0096 | AP27: -0.0086 | AQ27: -0.0052 | AR27: 0.0003 | AS27: 0.0073 | AT27: 0.0141 | AU27: 0.0192 | AV27: 0.0209 | AW27: 0.0192 | AX27: 0.0153 | AY27: 0.011 | AZ27: 0.0078 | BA27: 0.0069 | BB27: 0.0083 | BC27: 0.0118 | BD27: 0.0163 | BE27: 0.021 | BF27: 0.025 | BG27: 0.0275 | BH27: 0.0278 | BI27: 0.0257 | BJ27: 0.0213 | BK27: 0.015 | BL27: 0.0073 | BM27: -0.0012 | BN27: -0.0097 | BO27: -0.0179 | BP27: -0.0201 | BQ27: -0.0213 | BR27: -0.0214 | BS27: -0.0206 | BT27: -0.0189 | BU27: -0.0164 | BV27: -0.0133 | BW27: -0.01 | BX27: -0.0066 | BY27: -0.0037 | BZ27: -0.001 | CA27: 0.0017 | CB27: 0.0043 | CC27: 0.0067 | CD27: 0.0088 | CE27: 0.0105 | CF27: 0.0119 | CG27: 0.0128 | CH27: 0.0133 | CI27: 0.0135
A28: 45 | B28: 0.0254 | C28: 0.0233 | D28: 0.0212 | E28: 0.0188 | F28: 0.016 | G28: 0.013 | H28: 0.01 | I28: 0.0071 | J28: 0.0044 | K28: 0.0018 | L28: -0.0005 | M28: -0.0026 | N28: -0.0044 | O28: -0.0056 | P28: -0.0061 | Q28: -0.0056 | R28: -0.004 | S28: -0.0012 | T28: 0.0028 | U28: 0.0077 | V28: 0.0129 | W28: 0.0183 | X28: 0.0233 | Y28: 0.0277 | Z28: 0.031 | AA28: 0.033 | AB28: 0.0337 | AC28: 0.0335 | AD28: 0.0325 | AE28: 0.0308 | AF28: 0.0285 | AG28: 0.0255 | AH28: 0.0216 | AI28: 0.0171 | AJ28: 0.0121 | AK28: 0.0071 | AL28: 0.0025 | AM28: -0.0014 | AN28: -0.0041 | AO28: -0.0054 | AP28: -0.0048 | AQ28: -0.0023 | AR28: 0.002 | AS28: 0.0074 | AT28: 0.0127 | AU28: 0.0164 | AV28: 0.0173 | AW28: 0.0155 | AX28: 0.0118 | AY28: 0.0079 | AZ28: 0.0053 | BA28: 0.0048 | BB28: 0.0065 | BC28: 0.0101 | BD28: 0.0147 | BE28: 0.0194 | BF28: 0.0234 | BG28: 0.026 | BH28: 0.0267 | BI28: 0.0253 | BJ28: 0.0218 | BK28: 0.0165 | BL28: 0.0098 | BM28: 0.0024 | BN28: -0.0053 | BO28: -0.0128 | BP28: -0.0149 | BQ28: -0.0162 | BR28: -0.0168 | BS28: -0.0166 | BT28: -0.0156 | BU28: -0.0139 | BV28: -0.0116 | BW28: -0.009 | BX28: -0.0062 | BY28: -0.0036 | BZ28: -0.0011 | CA28: 0.0015 | CB28: 0.004 | CC28: 0.0064 | CD28: 0.0086 | CE28: 0.0103 | CF28: 0.0118 | CG28: 0.0127 | CH28: 0.0133 | CI28: 0.0135
A29: 46 | B29: 0.024 | C29: 0.022 | D29: 0.02 | E29: 0.0177 | F29: 0.0151 | G29: 0.0123 | H29: 0.0095 | I29: 0.0067 | J29: 0.0042 | K29: 0.0019 | L29: -0.0002 | M29: -0.0021 | N29: -0.0036 | O29: -0.0045 | P29: -0.0048 | Q29: -0.0042 | R29: -0.0026 | S29: 0 | T29: 0.0038 | U29: 0.0082 | V29: 0.013 | W29: 0.018 | X29: 0.0227 | Y29: 0.0269 | Z29: 0.0301 | AA29: 0.032 | AB29: 0.0328 | AC29: 0.0326 | AD29: 0.0317 | AE29: 0.0303 | AF29: 0.0285 | AG29: 0.0261 | AH29: 0.0229 | AI29: 0.0191 | AJ29: 0.0148 | AK29: 0.0104 | AL29: 0.0062 | AM29: 0.0027 | AN29: 0.0002 | AO29: -0.0011 | AP29: -0.0009 | AQ29: 0.001 | AR29: 0.0042 | AS29: 0.0082 | AT29: 0.012 | AU29: 0.0146 | AV29: 0.0148 | AW29: 0.0126 | AX29: 0.009 | AY29: 0.0054 | AZ29: 0.003 | BA29: 0.0027 | BB29: 0.0046 | BC29: 0.0081 | BD29: 0.0127 | BE29: 0.0174 | BF29: 0.0214 | BG29: 0.0241 | BH29: 0.0251 | BI29: 0.0242 | BJ29: 0.0215 | BK29: 0.0172 | BL29: 0.0116 | BM29: 0.0052 | BN29: -0.0015 | BO29: -0.0082 | BP29: -0.0101 | BQ29: -0.0115 | BR29: -0.0123 | BS29: -0.0126 | BT29: -0.0122 | BU29: -0.0112 | BV29: -0.0097 | BW29: -0.0078 | BX29: -0.0055 | BY29: -0.0033 | BZ29: -0.0011 | CA29: 0.0014 | CB29: 0.0039 | CC29: 0.0062 | CD29: 0.0084 | CE29: 0.0102 | CF29: 0.0117 | CG29: 0.0127 | CH29: 0.0133 | CI29: 0.0135
A30: 47 | B30: 0.0226 | C30: 0.0207 | D30: 0.0188 | E30: 0.0167 | F30: 0.0143 | G30: 0.0116 | H30: 0.0089 | I30: 0.0063 | J30: 0.0039 | K30: 0.0018 | L30: 0 | M30: -0.0016 | N30: -0.0029 | O30: -0.0035 | P30: -0.0036 | Q30: -0.0029 | R30: -0.0012 | S30: 0.0013 | T30: 0.0048 | U30: 0.0089 | V30: 0.0133 | W30: 0.0178 | X30: 0.0222 | Y30: 0.0261 | Z30: 0.0291 | AA30: 0.0309 | AB30: 0.0316 | AC30: 0.0315 | AD30: 0.0308 | AE30: 0.0297 | AF30: 0.0283 | AG30: 0.0263 | AH30: 0.0237 | AI30: 0.0204 | AJ30: 0.0167 | AK30: 0.013 | AL30: 0.0094 | AM30: 0.0064 | AN30: 0.0042 | AO30: 0.0031 | AP30: 0.0031 | AQ30: 0.0044 | AR30: 0.0066 | AS30: 0.0095 | AT30: 0.0122 | AU30: 0.0138 | AV30: 0.0133 | AW30: 0.0108 | AX30: 0.0071 | AY30: 0.0034 | AZ30: 0.0011 | BA30: 0.0007 | BB30: 0.0025 | BC30: 0.006 | BD30: 0.0104 | BE30: 0.015 | BF30: 0.0191 | BG30: 0.0219 | BH30: 0.0232 | BI30: 0.0227 | BJ30: 0.0207 | BK30: 0.0171 | BL30: 0.0125 | BM30: 0.0071 | BN30: 0.0014 | BO30: -0.0042 | BP30: -0.0059 | BQ30: -0.0072 | BR30: -0.0082 | BS30: -0.0088 | BT30: -0.0089 | BU30: -0.0085 | BV30: -0.0076 | BW30: -0.0062 | BX30: -0.0046 | BY30: -0.0028 | BZ30: -0.0008 | CA30: 0.0014 | CB30: 0.0038 | CC30: 0.0061 | CD30: 0.0082 | CE30: 0.0101 | CF30: 0.0116 | CG30: 0.0127 | CH30: 0.0133 | CI30: 0.0135
A31: 48 | B31: 0.0213 | C31: 0.0196 | D31: 0.0178 | E31: 0.0158 | F31: 0.0135 | G31: 0.0109 | H31: 0.0083 | I31: 0.0059 | J31: 0.0036 | K31: 0.0017 | L31: 0.0001 | M31: -0.0013 | N31: -0.0023 | O31: -0.0027 | P31: -0.0026 | Q31: -0.0017 | R31: 0 | S31: 0.0026 | T31: 0.0059 | U31: 0.0097 | V31: 0.0138 | W31: 0.0179 | X31: 0.0219 | Y31: 0.0254 | Z31: 0.0281 | AA31: 0.0297 | AB31: 0.0303 | AC31: 0.0303 | AD31: 0.0298 | AE31: 0.0289 | AF31: 0.0277 | AG31: 0.0261 | AH31: 0.0239 | AI31: 0.0212 | AJ31: 0.0181 | AK31: 0.015 | AL31: 0.0121 | AM31: 0.0097 | AN31: 0.0079 | AO31: 0.0069 | AP31: 0.0068 | AQ31: 0.0076 | AR31: 0.0092 | AS31: 0.0112 | AT31: 0.013 | AU31: 0.0138 | AV31: 0.0128 | AW31: 0.01 | AX31: 0.0061 | AY31: 0.0023 | AZ31: -0.0003 | BA31: -0.001 | BB31: 0.0005 | BC31: 0.0037 | BD31: 0.008 | BE31: 0.0125 | BF31: 0.0166 | BG31: 0.0195 | BH31: 0.0209 | BI31: 0.0208 | BJ31: 0.0192 | BK31: 0.0164 | BL31: 0.0125 | BM31: 0.0081 | BN31: 0.0036 | BO31: -0.001 | BP31: -0.0023 | BQ31: -0.0035 | BR31: -0.0045 | BS31: -0.0053 | BT31: -0.0057 | BU31: -0.0057 | BV31: -0.0053 | BW31: -0.0045 | BX31: -0.0034 | BY31: -0.002 | BZ31: -0.0004 | CA31: 0.0016 | CB31: 0.0038 | CC31: 0.0061 | CD31: 0.0082 | CE31: 0.01 | CF31: 0.0115 | CG31: 0.0126 | CH31: 0.0133 | CI31: 0.0135
A32: 49 | B32: 0.0201 | C32: 0.0185 | D32: 0.0169 | E32: 0.015 | F32: 0.0128 | G32: 0.0103 | H32: 0.0078 | I32: 0.0054 | J32: 0.0034 | K32: 0.0016 | L32: 0.0002 | M32: -0.001 | N32: -0.0018 | O32: -0.0021 | P32: -0.0017 | Q32: -0.0007 | R32: 0.0011 | S32: 0.0037 | T32: 0.0069 | U32: 0.0106 | V32: 0.0144 | W32: 0.0182 | X32: 0.0218 | Y32: 0.0249 | Z32: 0.0271 | AA32: 0.0285 | AB32: 0.0291 | AC32: 0.029 | AD32: 0.0286 | AE32: 0.0279 | AF32: 0.0269 | AG32: 0.0256 | AH32: 0.0237 | AI32: 0.0214 | AJ32: 0.0189 | AK32: 0.0164 | AL32: 0.0143 | AM32: 0.0125 | AN32: 0.0112 | AO32: 0.0104 | AP32: 0.0102 | AQ32: 0.0106 | AR32: 0.0116 | AS32: 0.013 | AT32: 0.0142 | AU32: 0.0146 | AV32: 0.0132 | AW32: 0.0101 | AX32: 0.006 | AY32: 0.0019 | AZ32: -0.0011 | BA32: -0.0023 | BB32: -0.0013 | BC32: 0.0016 | BD32: 0.0056 | BE32: 0.01 | BF32: 0.014 | BG32: 0.017 | BH32: 0.0185 | BI32: 0.0186 | BJ32: 0.0173 | BK32: 0.015 | BL32: 0.0119 | BM32: 0.0084 | BN32: 0.0049 | BO32: 0.0015 | BP32: 0.0005 | BQ32: -0.0005 | BR32: -0.0014 | BS32: -0.0022 | BT32: -0.0028 | BU32: -0.0031 | BV32: -0.0031 | BW32: -0.0027 | BX32: -0.002 | BY32: -0.001 | BZ32: 0.0003 | CA32: 0.002 | CB32: 0.004 | CC32: 0.0061 | CD32: 0.0081 | CE32: 0.0099 | CF32: 0.0115 | CG32: 0.0126 | CH32: 0.0133 | CI32: 0.0135
A33: 50 | B33: 0.019 | C33: 0.0176 | D33: 0.0161 | E33: 0.0143 | F33: 0.0122 | G33: 0.0097 | H33: 0.0073 | I33: 0.0051 | J33: 0.0032 | K33: 0.0016 | L33: 0.0003 | M33: -0.0007 | N33: -0.0014 | O33: -0.0016 | P33: -0.0012 | Q33: 0 | R33: 0.0019 | S33: 0.0045 | T33: 0.0078 | U33: 0.0113 | V33: 0.015 | W33: 0.0186 | X33: 0.0219 | Y33: 0.0246 | Z33: 0.0265 | AA33: 0.0275 | AB33: 0.0279 | AC33: 0.0278 | AD33: 0.0274 | AE33: 0.0268 | AF33: 0.0259 | AG33: 0.0247 | AH33: 0.0231 | AI33: 0.0212 | AJ33: 0.0192 | AK33: 0.0175 | AL33: 0.016 | AM33: 0.0149 | AN33: 0.014 | AO33: 0.0134 | AP33: 0.0132 | AQ33: 0.0133 | AR33: 0.0139 | AS33: 0.0149 | AT33: 0.0157 | AU33: 0.0157 | AV33: 0.0142 | AW33: 0.0109 | AX33: 0.0066 | AY33: 0.0022 | AZ33: -0.0012 | BA33: -0.0029 | BB33: -0.0024 | BC33: -0.0001 | BD33: 0.0036 | BE33: 0.0077 | BF33: 0.0115 | BG33: 0.0144 | BH33: 0.0159 | BI33: 0.0161 | BJ33: 0.0151 | BK33: 0.0131 | BL33: 0.0106 | BM33: 0.008 | BN33: 0.0055 | BO33: 0.0032 | BP33: 0.0026 | BQ33: 0.0019 | BR33: 0.0011 | BS33: 0.0004 | BT33: -0.0002 | BU33: -0.0007 | BV33: -0.0009 | BW33: -0.0008 | BX33: -0.0005 | BY33: 0.0002 | BZ33: 0.0011 | CA33: 0.0026 | CB33: 0.0043 | CC33: 0.0062 | CD33: 0.0081 | CE33: 0.0099 | CF33: 0.0114 | CG33: 0.0126 | CH33: 0.0133 | CI33: 0.0135
A34: 51 | B34: 0.0181 | C34: 0.0168 | D34: 0.0154 | E34: 0.0137 | F34: 0.0116 | G34: 0.0093 | H34: 0.0069 | I34: 0.0048 | J34: 0.003 | K34: 0.0016 | L34: 0.0004 | M34: -0.0006 | N34: -0.0012 | O34: -0.0013 | P34: -0.0008 | Q34: 0.0004 | R34: 0.0024 | S34: 0.005 | T34: 0.0083 | U34: 0.0119 | V34: 0.0156 | W34: 0.0191 | X34: 0.0221 | Y34: 0.0245 | Z34: 0.0261 | AA34: 0.0269 | AB34: 0.027 | AC34: 0.0268 | AD34: 0.0263 | AE34: 0.0256 | AF34: 0.0247 | AG34: 0.0235 | AH34: 0.0222 | AI34: 0.0207 | AJ34: 0.0193 | AK34: 0.0181 | AL34: 0.0173 | AM34: 0.0167 | AN34: 0.0163 | AO34: 0.0159 | AP34: 0.0157 | AQ34: 0.0156 | AR34: 0.016 | AS34: 0.0167 | AT34: 0.0173 | AU34: 0.0171 | AV34: 0.0155 | AW34: 0.0122 | AX34: 0.0078 | AY34: 0.0033 | AZ34: -0.0005 | BA34: -0.0026 | BB34: -0.0027 | BC34: -0.001 | BD34: 0.0021 | BE34: 0.0057 | BF34: 0.0092 | BG34: 0.0118 | BH34: 0.0132 | BI34: 0.0134 | BJ34: 0.0125 | BK34: 0.0109 | BL34: 0.009 | BM34: 0.0071 | BN34: 0.0054 | BO34: 0.0042 | BP34: 0.0039 | BQ34: 0.0035 | BR34: 0.003 | BS34: 0.0025 | BT34: 0.002 | BU34: 0.0015 | BV34: 0.0012 | BW34: 0.001 | BX34: 0.0011 | BY34: 0.0015 | BZ34: 0.0022 | CA34: 0.0033 | CB34: 0.0047 | CC34: 0.0065 | CD34: 0.0082 | CE34: 0.0099 | CF34: 0.0114 | CG34: 0.0125 | CH34: 0.0133 | CI34: 0.0135
A35: 52 | B35: 0.0174 | C35: 0.0162 | D35: 0.0149 | E35: 0.0132 | F35: 0.0111 | G35: 0.0088 | H35: 0.0065 | I35: 0.0046 | J35: 0.0029 | K35: 0.0016 | L35: 0.0005 | M35: -0.0005 | N35: -0.0011 | O35: -0.0012 | P35: -0.0008 | Q35: 0.0005 | R35: 0.0025 | S35: 0.0052 | T35: 0.0086 | U35: 0.0122 | V35: 0.016 | W35: 0.0195 | X35: 0.0225 | Y35: 0.0247 | Z35: 0.0261 | AA35: 0.0266 | AB35: 0.0264 | AC35: 0.0259 | AD35: 0.0251 | AE35: 0.0242 | AF35: 0.0233 | AG35: 0.0222 | AH35: 0.021 | AI35: 0.02 | AJ35: 0.0191 | AK35: 0.0185 | AL35: 0.0182 | AM35: 0.0181 | AN35: 0.018 | AO35: 0.0178 | AP35: 0.0176 | AQ35: 0.0176 | AR35: 0.0178 | AS35: 0.0184 | AT35: 0.0188 | AU35: 0.0185 | AV35: 0.0168 | AW35: 0.0136 | AX35: 0.0094 | AY35: 0.0049 | AZ35: 0.001 | BA35: -0.0014 | BB35: -0.0021 | BC35: -0.001 | BD35: 0.0013 | BE35: 0.0042 | BF35: 0.0071 | BG35: 0.0093 | BH35: 0.0105 | BI35: 0.0106 | BJ35: 0.0099 | BK35: 0.0085 | BL35: 0.0071 | BM35: 0.0058 | BN35: 0.0049 | BO35: 0.0044 | BP35: 0.0044 | BQ35: 0.0044 | BR35: 0.0043 | BS35: 0.004 | BT35: 0.0037 | BU35: 0.0033 | BV35: 0.003 | BW35: 0.0028 | BX35: 0.0027 | BY35: 0.0029 | BZ35: 0.0033 | CA35: 0.0041 | CB35: 0.0053 | CC35: 0.0068 | CD35: 0.0084 | CE35: 0.01 | CF35: 0.0114 | CG35: 0.0125 | CH35: 0.0133 | CI35: 0.0135
A36: 53 | B36: 0.0169 | C36: 0.0157 | D36: 0.0143 | E36: 0.0127 | F36: 0.0107 | G36: 0.0084 | H36: 0.0063 | I36: 0.0044 | J36: 0.0029 | K36: 0.0016 | L36: 0.0005 | M36: -0.0005 | N36: -0.0011 | O36: -0.0013 | P36: -0.0009 | Q36: 0.0003 | R36: 0.0023 | S36: 0.0051 | T36: 0.0085 | U36: 0.0123 | V36: 0.0162 | W36: 0.0199 | X36: 0.0229 | Y36: 0.0251 | Z36: 0.0263 | AA36: 0.0266 | AB36: 0.0262 | AC36: 0.0252 | AD36: 0.0241 | AE36: 0.0229 | AF36: 0.0218 | AG36: 0.0207 | AH36: 0.0198 | AI36: 0.0191 | AJ36: 0.0187 | AK36: 0.0185 | AL36: 0.0187 | AM36: 0.0189 | AN36: 0.0191 | AO36: 0.0192 | AP36: 0.0192 | AQ36: 0.0192 | AR36: 0.0194 | AS36: 0.0198 | AT36: 0.0201 | AU36: 0.0197 | AV36: 0.018 | AW36: 0.015 | AX36: 0.0111 | AY36: 0.0069 | AZ36: 0.0032 | BA36: 0.0006 | BB36: -0.0005 | BC36: -0.0002 | BD36: 0.0013 | BE36: 0.0033 | BF36: 0.0054 | BG36: 0.007 | BH36: 0.0078 | BI36: 0.0079 | BJ36: 0.0072 | BK36: 0.0061 | BL36: 0.005 | BM36: 0.0042 | BN36: 0.0039 | BO36: 0.004 | BP36: 0.0043 | BQ36: 0.0047 | BR36: 0.0049 | BS36: 0.005 | BT36: 0.005 | BU36: 0.0048 | BV36: 0.0046 | BW36: 0.0044 | BX36: 0.0043 | BY36: 0.0042 | BZ36: 0.0045 | CA36: 0.005 | CB36: 0.006 | CC36: 0.0072 | CD36: 0.0086 | CE36: 0.0101 | CF36: 0.0115 | CG36: 0.0125 | CH36: 0.0133 | CI36: 0.0135
A37: 54 | B37: 0.0164 | C37: 0.0152 | D37: 0.0139 | E37: 0.0122 | F37: 0.0102 | G37: 0.008 | H37: 0.006 | I37: 0.0042 | J37: 0.0028 | K37: 0.0015 | L37: 0.0004 | M37: -0.0006 | N37: -0.0013 | O37: -0.0015 | P37: -0.0012 | Q37: -0.0001 | R37: 0.0019 | S37: 0.0047 | T37: 0.0083 | U37: 0.0123 | V37: 0.0163 | W37: 0.0201 | X37: 0.0233 | Y37: 0.0256 | Z37: 0.0268 | AA37: 0.0269 | AB37: 0.0262 | AC37: 0.0248 | AD37: 0.0232 | AE37: 0.0217 | AF37: 0.0203 | AG37: 0.0193 | AH37: 0.0186 | AI37: 0.0182 | AJ37: 0.0181 | AK37: 0.0184 | AL37: 0.0188 | AM37: 0.0193 | AN37: 0.0198 | AO37: 0.0201 | AP37: 0.0203 | AQ37: 0.0204 | AR37: 0.0207 | AS37: 0.021 | AT37: 0.0211 | AU37: 0.0206 | AV37: 0.019 | AW37: 0.0164 | AX37: 0.0129 | AY37: 0.0092 | AZ37: 0.0058 | BA37: 0.0033 | BB37: 0.0019 | BC37: 0.0016 | BD37: 0.0021 | BE37: 0.0031 | BF37: 0.0042 | BG37: 0.0051 | BH37: 0.0054 | BI37: 0.0053 | BJ37: 0.0046 | BK37: 0.0037 | BL37: 0.0029 | BM37: 0.0025 | BN37: 0.0025 | BO37: 0.003 | BP37: 0.0036 | BQ37: 0.0043 | BR37: 0.005 | BS37: 0.0054 | BT37: 0.0057 | BU37: 0.0059 | BV37: 0.0059 | BW37: 0.0058 | BX37: 0.0057 | BY37: 0.0056 | BZ37: 0.0056 | CA37: 0.006 | CB37: 0.0067 | CC37: 0.0077 | CD37: 0.009 | CE37: 0.0103 | CF37: 0.0115 | CG37: 0.0126 | CH37: 0.0133 | CI37: 0.0135
A38: 55 | B38: 0.0161 | C38: 0.0148 | D38: 0.0134 | E38: 0.0116 | F38: 0.0096 | G38: 0.0075 | H38: 0.0056 | I38: 0.004 | J38: 0.0026 | K38: 0.0014 | L38: 0.0002 | M38: -0.0008 | N38: -0.0015 | O38: -0.0018 | P38: -0.0016 | Q38: -0.0005 | R38: 0.0014 | S38: 0.0043 | T38: 0.0079 | U38: 0.012 | V38: 0.0163 | W38: 0.0203 | X38: 0.0237 | Y38: 0.0261 | Z38: 0.0273 | AA38: 0.0274 | AB38: 0.0264 | AC38: 0.0246 | AD38: 0.0226 | AE38: 0.0207 | AF38: 0.0191 | AG38: 0.018 | AH38: 0.0174 | AI38: 0.0172 | AJ38: 0.0175 | AK38: 0.018 | AL38: 0.0187 | AM38: 0.0194 | AN38: 0.02 | AO38: 0.0206 | AP38: 0.0209 | AQ38: 0.0213 | AR38: 0.0216 | AS38: 0.0219 | AT38: 0.0219 | AU38: 0.0213 | AV38: 0.0199 | AW38: 0.0176 | AX38: 0.0147 | AY38: 0.0116 | AZ38: 0.0087 | BA38: 0.0064 | BB38: 0.0048 | BC38: 0.004 | BD38: 0.0036 | BE38: 0.0036 | BF38: 0.0038 | BG38: 0.0038 | BH38: 0.0036 | BI38: 0.0031 | BJ38: 0.0023 | BK38: 0.0015 | BL38: 0.0009 | BM38: 0.0006 | BN38: 0.0009 | BO38: 0.0015 | BP38: 0.0025 | BQ38: 0.0035 | BR38: 0.0045 | BS38: 0.0054 | BT38: 0.0061 | BU38: 0.0066 | BV38: 0.0069 | BW38: 0.007 | BX38: 0.007 | BY38: 0.0068 | BZ38: 0.0067 | CA38: 0.007 | CB38: 0.0075 | CC38: 0.0083 | CD38: 0.0093 | CE38: 0.0105 | CF38: 0.0116 | CG38: 0.0126 | CH38: 0.0133 | CI38: 0.0135
A39: 56 | B39: 0.0157 | C39: 0.0143 | D39: 0.0128 | E39: 0.011 | F39: 0.009 | G39: 0.007 | H39: 0.0051 | I39: 0.0035 | J39: 0.0022 | K39: 0.001 | L39: -0.0001 | M39: -0.0011 | N39: -0.0019 | O39: -0.0022 | P39: -0.0019 | Q39: -0.0009 | R39: 0.001 | S39: 0.0039 | T39: 0.0076 | U39: 0.0118 | V39: 0.0162 | W39: 0.0203 | X39: 0.0239 | Y39: 0.0264 | Z39: 0.0278 | AA39: 0.0277 | AB39: 0.0266 | AC39: 0.0246 | AD39: 0.0222 | AE39: 0.0199 | AF39: 0.0181 | AG39: 0.0169 | AH39: 0.0163 | AI39: 0.0163 | AJ39: 0.0167 | AK39: 0.0175 | AL39: 0.0183 | AM39: 0.0192 | AN39: 0.02 | AO39: 0.0207 | AP39: 0.0213 | AQ39: 0.0217 | AR39: 0.0221 | AS39: 0.0224 | AT39: 0.0223 | AU39: 0.0218 | AV39: 0.0206 | AW39: 0.0187 | AX39: 0.0164 | AY39: 0.014 | AZ39: 0.0116 | BA39: 0.0096 | BB39: 0.008 | BC39: 0.0068 | BD39: 0.0057 | BE39: 0.0048 | BF39: 0.0041 | BG39: 0.0033 | BH39: 0.0024 | BI39: 0.0014 | BJ39: 0.0004 | BK39: -0.0005 | BL39: -0.0011 | BM39: -0.0013 | BN39: -0.001 | BO39: -0.0002 | BP39: 0.0009 | BQ39: 0.0022 | BR39: 0.0036 | BS39: 0.0049 | BT39: 0.006 | BU39: 0.0069 | BV39: 0.0076 | BW39: 0.008 | BX39: 0.0081 | BY39: 0.0079 | BZ39: 0.0078 | CA39: 0.0079 | CB39: 0.0083 | CC39: 0.0089 | CD39: 0.0097 | CE39: 0.0107 | CF39: 0.0117 | CG39: 0.0126 | CH39: 0.0133 | CI39: 0.0135
A40: 57 | B40: 0.0152 | C40: 0.0137 | D40: 0.0121 | E40: 0.0103 | F40: 0.0083 | G40: 0.0063 | H40: 0.0045 | I40: 0.003 | J40: 0.0017 | K40: 0.0005 | L40: -0.0006 | M40: -0.0016 | N40: -0.0023 | O40: -0.0026 | P40: -0.0022 | Q40: -0.0012 | R40: 0.0008 | S40: 0.0037 | T40: 0.0074 | U40: 0.0116 | V40: 0.016 | W40: 0.0202 | X40: 0.0239 | Y40: 0.0265 | Z40: 0.0279 | AA40: 0.028 | AB40: 0.0267 | AC40: 0.0246 | AD40: 0.0221 | AE40: 0.0195 | AF40: 0.0175 | AG40: 0.0161 | AH40: 0.0154 | AI40: 0.0154 | AJ40: 0.0159 | AK40: 0.0168 | AL40: 0.0178 | AM40: 0.0188 | AN40: 0.0197 | AO40: 0.0206 | AP40: 0.0213 | AQ40: 0.0218 | AR40: 0.0223 | AS40: 0.0225 | AT40: 0.0225 | AU40: 0.0221 | AV40: 0.0211 | AW40: 0.0197 | AX40: 0.018 | AY40: 0.0162 | AZ40: 0.0144 | BA40: 0.0127 | BB40: 0.0112 | BC40: 0.0097 | BD40: 0.0082 | BE40: 0.0067 | BF40: 0.0051 | BG40: 0.0036 | BH40: 0.0021 | BI40: 0.0005 | BJ40: -0.0009 | BK40: -0.0022 | BL40: -0.003 | BM40: -0.0032 | BN40: -0.0029 | BO40: -0.0021 | BP40: -0.0009 | BQ40: 0.0007 | BR40: 0.0024 | BS40: 0.0041 | BT40: 0.0057 | BU40: 0.007 | BV40: 0.008 | BW40: 0.0086 | BX40: 0.0089 | BY40: 0.0089 | BZ40: 0.0087 | CA40: 0.0087 | CB40: 0.009 | CC40: 0.0095 | CD40: 0.0102 | CE40: 0.011 | CF40: 0.0119 | CG40: 0.0127 | CH40: 0.0133 | CI40: 0.0135
A41: 58 | B41: 0.0146 | C41: 0.013 | D41: 0.0113 | E41: 0.0094 | F41: 0.0074 | G41: 0.0054 | H41: 0.0037 | I41: 0.0022 | J41: 0.001 | K41: -0.0001 | L41: -0.0012 | M41: -0.0021 | N41: -0.0028 | O41: -0.0029 | P41: -0.0024 | Q41: -0.0012 | R41: 0.0008 | S41: 0.0037 | T41: 0.0074 | U41: 0.0115 | V41: 0.0159 | W41: 0.02 | X41: 0.0236 | Y41: 0.0264 | Z41: 0.0278 | AA41: 0.0279 | AB41: 0.0267 | AC41: 0.0247 | AD41: 0.0221 | AE41: 0.0194 | AF41: 0.0172 | AG41: 0.0156 | AH41: 0.0148 | AI41: 0.0147 | AJ41: 0.0152 | AK41: 0.0161 | AL41: 0.0172 | AM41: 0.0183 | AN41: 0.0193 | AO41: 0.0203 | AP41: 0.0211 | AQ41: 0.0216 | AR41: 0.022 | AS41: 0.0223 | AT41: 0.0224 | AU41: 0.0222 | AV41: 0.0216 | AW41: 0.0207 | AX41: 0.0195 | AY41: 0.0182 | AZ41: 0.0169 | BA41: 0.0155 | BB41: 0.0142 | BC41: 0.0126 | BD41: 0.0109 | BE41: 0.009 | BF41: 0.0069 | BG41: 0.0047 | BH41: 0.0026 | BI41: 0.0004 | BJ41: -0.0016 | BK41: -0.0033 | BL41: -0.0045 | BM41: -0.0049 | BN41: -0.0047 | BO41: -0.004 | BP41: -0.0027 | BQ41: -0.001 | BR41: 0.001 | BS41: 0.003 | BT41: 0.005 | BU41: 0.0067 | BV41: 0.0081 | BW41: 0.0091 | BX41: 0.0096 | BY41: 0.0097 | BZ41: 0.0095 | CA41: 0.0095 | CB41: 0.0096 | CC41: 0.01 | CD41: 0.0106 | CE41: 0.0113 | CF41: 0.012 | CG41: 0.0128 | CH41: 0.0133 | CI41: 0.0135
A42: 59 | B42: 0.0138 | C42: 0.0121 | D42: 0.0104 | E42: 0.0085 | F42: 0.0065 | G42: 0.0045 | H42: 0.0028 | I42: 0.0014 | J42: 0.0002 | K42: -0.0009 | L42: -0.0019 | M42: -0.0027 | N42: -0.0032 | O42: -0.0031 | P42: -0.0025 | Q42: -0.0011 | R42: 0.001 | S42: 0.0039 | T42: 0.0075 | U42: 0.0115 | V42: 0.0157 | W42: 0.0197 | X42: 0.0232 | Y42: 0.0259 | Z42: 0.0273 | AA42: 0.0275 | AB42: 0.0265 | AC42: 0.0246 | AD42: 0.0222 | AE42: 0.0195 | AF42: 0.0172 | AG42: 0.0154 | AH42: 0.0144 | AI42: 0.0141 | AJ42: 0.0145 | AK42: 0.0154 | AL42: 0.0165 | AM42: 0.0177 | AN42: 0.0189 | AO42: 0.0198 | AP42: 0.0206 | AQ42: 0.0211 | AR42: 0.0215 | AS42: 0.0218 | AT42: 0.022 | AU42: 0.0221 | AV42: 0.022 | AW42: 0.0215 | AX42: 0.0208 | AY42: 0.02 | AZ42: 0.019 | BA42: 0.018 | BB42: 0.0168 | BC42: 0.0154 | BD42: 0.0136 | BE42: 0.0115 | BF42: 0.0091 | BG42: 0.0065 | BH42: 0.0038 | BI42: 0.001 | BJ42: -0.0017 | BK42: -0.0039 | BL42: -0.0055 | BM42: -0.0063 | BN42: -0.0062 | BO42: -0.0057 | BP42: -0.0045 | BQ42: -0.0027 | BR42: -0.0005 | BS42: 0.0018 | BT42: 0.0041 | BU42: 0.0062 | BV42: 0.008 | BW42: 0.0093 | BX42: 0.01 | BY42: 0.0103 | BZ42: 0.0102 | CA42: 0.0102 | CB42: 0.0102 | CC42: 0.0105 | CD42: 0.0109 | CE42: 0.0115 | CF42: 0.0122 | CG42: 0.0128 | CH42: 0.0133 | CI42: 0.0135
A43: 60 | B43: 0.0129 | C43: 0.0112 | D43: 0.0094 | E43: 0.0074 | F43: 0.0054 | G43: 0.0035 | H43: 0.0018 | I43: 0.0004 | J43: -0.0007 | K43: -0.0017 | L43: -0.0026 | M43: -0.0032 | N43: -0.0035 | O43: -0.0032 | P43: -0.0024 | Q43: -0.0008 | R43: 0.0014 | S43: 0.0043 | T43: 0.0078 | U43: 0.0116 | V43: 0.0155 | W43: 0.0192 | X43: 0.0225 | Y43: 0.0251 | Z43: 0.0265 | AA43: 0.0268 | AB43: 0.0261 | AC43: 0.0244 | AD43: 0.0222 | AE43: 0.0197 | AF43: 0.0174 | AG43: 0.0154 | AH43: 0.0142 | AI43: 0.0137 | AJ43: 0.0139 | AK43: 0.0148 | AL43: 0.0159 | AM43: 0.0171 | AN43: 0.0183 | AO43: 0.0193 | AP43: 0.02 | AQ43: 0.0204 | AR43: 0.0208 | AS43: 0.0211 | AT43: 0.0215 | AU43: 0.0219 | AV43: 0.0222 | AW43: 0.0222 | AX43: 0.0219 | AY43: 0.0214 | AZ43: 0.0208 | BA43: 0.02 | BB43: 0.019 | BC43: 0.0178 | BD43: 0.0162 | BE43: 0.0141 | BF43: 0.0116 | BG43: 0.0087 | BH43: 0.0056 | BI43: 0.0023 | BJ43: -0.001 | BK43: -0.0039 | BL43: -0.006 | BM43: -0.0071 | BN43: -0.0074 | BO43: -0.007 | BP43: -0.006 | BQ43: -0.0042 | BR43: -0.0019 | BS43: 0.0006 | BT43: 0.0032 | BU43: 0.0056 | BV43: 0.0076 | BW43: 0.0092 | BX43: 0.0103 | BY43: 0.0107 | BZ43: 0.0107 | CA43: 0.0107 | CB43: 0.0108 | CC43: 0.0109 | CD43: 0.0113 | CE43: 0.0117 | CF43: 0.0123 | CG43: 0.0129 | CH43: 0.0133 | CI43: 0.0135
A44: 61 | B44: 0.0119 | C44: 0.0101 | D44: 0.0083 | E44: 0.0064 | F44: 0.0044 | G44: 0.0025 | H44: 0.0008 | I44: -0.0005 | J44: -0.0016 | K44: -0.0025 | L44: -0.0032 | M44: -0.0037 | N44: -0.0037 | O44: -0.0032 | P44: -0.0021 | Q44: -0.0004 | R44: 0.0019 | S44: 0.0048 | T44: 0.0081 | U44: 0.0116 | V44: 0.0152 | W44: 0.0186 | X44: 0.0217 | Y44: 0.0241 | Z44: 0.0255 | AA44: 0.0259 | AB44: 0.0254 | AC44: 0.0241 | AD44: 0.0221 | AE44: 0.0199 | AF44: 0.0176 | AG44: 0.0156 | AH44: 0.0141 | AI44: 0.0135 | AJ44: 0.0136 | AK44: 0.0143 | AL44: 0.0154 | AM44: 0.0166 | AN44: 0.0178 | AO44: 0.0187 | AP44: 0.0193 | AQ44: 0.0196 | AR44: 0.0199 | AS44: 0.0203 | AT44: 0.0209 | AU44: 0.0216 | AV44: 0.0222 | AW44: 0.0227 | AX44: 0.0228 | AY44: 0.0226 | AZ44: 0.0222 | BA44: 0.0217 | BB44: 0.021 | BC44: 0.02 | BD44: 0.0185 | BE44: 0.0166 | BF44: 0.0142 | BG44: 0.0112 | BH44: 0.0077 | BI44: 0.004 | BJ44: 0.0002 | BK44: -0.0032 | BL44: -0.0057 | BM44: -0.0073 | BN44: -0.0079 | BO44: -0.0078 | BP44: -0.007 | BQ44: -0.0054 | BR44: -0.0031 | BS44: -0.0005 | BT44: 0.0022 | BU44: 0.0049 | BV44: 0.0072 | BW44: 0.009 | BX44: 0.0103 | BY44: 0.0109 | BZ44: 0.011 | CA44: 0.0111 | CB44: 0.0112 | CC44: 0.0113 | CD44: 0.0116 | CE44: 0.0119 | CF44: 0.0124 | CG44: 0.0129 | CH44: 0.0133 | CI44: 0.0135
A45: 62 | B45: 0.0109 | C45: 0.009 | D45: 0.0072 | E45: 0.0053 | F45: 0.0033 | G45: 0.0015 | H45: -0.0001 | I45: -0.0013 | J45: -0.0023 | K45: -0.0031 | L45: -0.0037 | M45: -0.004 | N45: -0.0038 | O45: -0.0031 | P45: -0.0018 | Q45: 0.0001 | R45: 0.0024 | S45: 0.0052 | T45: 0.0083 | U45: 0.0115 | V45: 0.0148 | W45: 0.0179 | X45: 0.0208 | Y45: 0.023 | Z45: 0.0244 | AA45: 0.0249 | AB45: 0.0245 | AC45: 0.0235 | AD45: 0.0219 | AE45: 0.0198 | AF45: 0.0177 | AG45: 0.0157 | AH45: 0.0142 | AI45: 0.0135 | AJ45: 0.0134 | AK45: 0.0141 | AL45: 0.0151 | AM45: 0.0162 | AN45: 0.0173 | AO45: 0.018 | AP45: 0.0185 | AQ45: 0.0187 | AR45: 0.0189 | AS45: 0.0194 | AT45: 0.0202 | AU45: 0.0211 | AV45: 0.0221 | AW45: 0.0229 | AX45: 0.0233 | AY45: 0.0235 | AZ45: 0.0234 | BA45: 0.0231 | BB45: 0.0226 | BC45: 0.0218 | BD45: 0.0206 | BE45: 0.0189 | BF45: 0.0165 | BG45: 0.0135 | BH45: 0.01 | BI45: 0.0061 | BJ45: 0.002 | BK45: -0.0018 | BL45: -0.0048 | BM45: -0.0067 | BN45: -0.0078 | BO45: -0.0081 | BP45: -0.0076 | BQ45: -0.0062 | BR45: -0.004 | BS45: -0.0014 | BT45: 0.0014 | BU45: 0.0041 | BV45: 0.0066 | BW45: 0.0087 | BX45: 0.0101 | BY45: 0.0109 | BZ45: 0.0112 | CA45: 0.0113 | CB45: 0.0115 | CC45: 0.0116 | CD45: 0.0118 | CE45: 0.0121 | CF45: 0.0125 | CG45: 0.0129 | CH45: 0.0133 | CI45: 0.0135
A46: 63 | B46: 0.0098 | C46: 0.008 | D46: 0.0062 | E46: 0.0043 | F46: 0.0024 | G46: 0.0006 | H46: -0.0009 | I46: -0.0021 | J46: -0.003 | K46: -0.0036 | L46: -0.004 | M46: -0.0041 | N46: -0.0037 | O46: -0.0028 | P46: -0.0014 | Q46: 0.0005 | R46: 0.0028 | S46: 0.0055 | T46: 0.0084 | U46: 0.0113 | V46: 0.0143 | W46: 0.0172 | X46: 0.0197 | Y46: 0.0218 | Z46: 0.0231 | AA46: 0.0237 | AB46: 0.0235 | AC46: 0.0227 | AD46: 0.0214 | AE46: 0.0196 | AF46: 0.0177 | AG46: 0.0159 | AH46: 0.0144 | AI46: 0.0136 | AJ46: 0.0135 | AK46: 0.014 | AL46: 0.0149 | AM46: 0.0159 | AN46: 0.0168 | AO46: 0.0174 | AP46: 0.0177 | AQ46: 0.0178 | AR46: 0.018 | AS46: 0.0185 | AT46: 0.0193 | AU46: 0.0205 | AV46: 0.0218 | AW46: 0.0229 | AX46: 0.0236 | AY46: 0.0241 | AZ46: 0.0242 | BA46: 0.0242 | BB46: 0.0239 | BC46: 0.0234 | BD46: 0.0224 | BE46: 0.0208 | BF46: 0.0186 | BG46: 0.0157 | BH46: 0.0122 | BI46: 0.0082 | BJ46: 0.004 | BK46: 0.0001 | BL46: -0.0032 | BM46: -0.0055 | BN46: -0.007 | BO46: -0.0078 | BP46: -0.0076 | BQ46: -0.0065 | BR46: -0.0046 | BS46: -0.0021 | BT46: 0.0006 | BU46: 0.0034 | BV46: 0.006 | BW46: 0.0081 | BX46: 0.0098 | BY46: 0.0107 | BZ46: 0.0111 | CA46: 0.0114 | CB46: 0.0116 | CC46: 0.0118 | CD46: 0.0119 | CE46: 0.0122 | CF46: 0.0125 | CG46: 0.0129 | CH46: 0.0132 | CI46: 0.0134
A47: 64 | B47: 0.0089 | C47: 0.0071 | D47: 0.0053 | E47: 0.0034 | F47: 0.0016 | G47: -0.0001 | H47: -0.0016 | I47: -0.0026 | J47: -0.0034 | K47: -0.004 | L47: -0.0042 | M47: -0.0041 | N47: -0.0036 | O47: -0.0025 | P47: -0.001 | Q47: 0.0009 | R47: 0.0031 | S47: 0.0056 | T47: 0.0083 | U47: 0.011 | V47: 0.0137 | W47: 0.0163 | X47: 0.0187 | Y47: 0.0206 | Z47: 0.0219 | AA47: 0.0225 | AB47: 0.0224 | AC47: 0.0218 | AD47: 0.0206 | AE47: 0.0191 | AF47: 0.0175 | AG47: 0.0159 | AH47: 0.0146 | AI47: 0.0138 | AJ47: 0.0137 | AK47: 0.0141 | AL47: 0.0149 | AM47: 0.0158 | AN47: 0.0165 | AO47: 0.0169 | AP47: 0.017 | AQ47: 0.017 | AR47: 0.0171 | AS47: 0.0176 | AT47: 0.0185 | AU47: 0.0198 | AV47: 0.0212 | AW47: 0.0226 | AX47: 0.0237 | AY47: 0.0244 | AZ47: 0.0249 | BA47: 0.0251 | BB47: 0.025 | BC47: 0.0247 | BD47: 0.0238 | BE47: 0.0224 | BF47: 0.0203 | BG47: 0.0176 | BH47: 0.0142 | BI47: 0.0104 | BJ47: 0.0062 | BK47: 0.0023 | BL47: -0.0011 | BM47: -0.0038 | BN47: -0.0056 | BO47: -0.0069 | BP47: -0.007 | BQ47: -0.0062 | BR47: -0.0046 | BS47: -0.0025 | BT47: 0.0001 | BU47: 0.0027 | BV47: 0.0053 | BW47: 0.0075 | BX47: 0.0093 | BY47: 0.0103 | BZ47: 0.0109 | CA47: 0.0113 | CB47: 0.0116 | CC47: 0.0118 | CD47: 0.012 | CE47: 0.0122 | CF47: 0.0125 | CG47: 0.0128 | CH47: 0.0131 | CI47: 0.0132
A48: 65 | B48: 0.0082 | C48: 0.0064 | D48: 0.0046 | E48: 0.0028 | F48: 0.001 | G48: -0.0007 | H48: -0.002 | I48: -0.003 | J48: -0.0037 | K48: -0.0041 | L48: -0.0042 | M48: -0.004 | N48: -0.0034 | O48: -0.0022 | P48: -0.0007 | Q48: 0.0011 | R48: 0.0032 | S48: 0.0056 | T48: 0.008 | U48: 0.0106 | V48: 0.0131 | W48: 0.0155 | X48: 0.0177 | Y48: 0.0195 | Z48: 0.0207 | AA48: 0.0213 | AB48: 0.0212 | AC48: 0.0207 | AD48: 0.0197 | AE48: 0.0185 | AF48: 0.0171 | AG48: 0.0157 | AH48: 0.0147 | AI48: 0.014 | AJ48: 0.014 | AK48: 0.0143 | AL48: 0.015 | AM48: 0.0157 | AN48: 0.0163 | AO48: 0.0165 | AP48: 0.0165 | AQ48: 0.0163 | AR48: 0.0163 | AS48: 0.0167 | AT48: 0.0176 | AU48: 0.0189 | AV48: 0.0205 | AW48: 0.0221 | AX48: 0.0234 | AY48: 0.0245 | AZ48: 0.0253 | BA48: 0.0258 | BB48: 0.0259 | BC48: 0.0257 | BD48: 0.025 | BE48: 0.0237 | BF48: 0.0217 | BG48: 0.0192 | BH48: 0.016 | BI48: 0.0124 | BJ48: 0.0084 | BK48: 0.0046 | BL48: 0.0012 | BM48: -0.0016 | BN48: -0.0038 | BO48: -0.0055 | BP48: -0.0059 | BQ48: -0.0055 | BR48: -0.0043 | BS48: -0.0025 | BT48: -0.0002 | BU48: 0.0023 | BV48: 0.0047 | BW48: 0.0069 | BX48: 0.0087 | BY48: 0.0099 | BZ48: 0.0106 | CA48: 0.0111 | CB48: 0.0115 | CC48: 0.0118 | CD48: 0.012 | CE48: 0.0122 | CF48: 0.0125 | CG48: 0.0127 | CH48: 0.0129 | CI48: 0.0131
A49: 66 | B49: 0.0077 | C49: 0.0059 | D49: 0.0041 | E49: 0.0023 | F49: 0.0006 | G49: -0.001 | H49: -0.0023 | I49: -0.0031 | J49: -0.0037 | K49: -0.004 | L49: -0.0041 | M49: -0.0038 | N49: -0.0031 | O49: -0.002 | P49: -0.0006 | Q49: 0.0012 | R49: 0.0032 | S49: 0.0053 | T49: 0.0077 | U49: 0.01 | V49: 0.0124 | W49: 0.0147 | X49: 0.0167 | Y49: 0.0184 | Z49: 0.0196 | AA49: 0.0201 | AB49: 0.02 | AC49: 0.0195 | AD49: 0.0187 | AE49: 0.0176 | AF49: 0.0165 | AG49: 0.0154 | AH49: 0.0146 | AI49: 0.0142 | AJ49: 0.0142 | AK49: 0.0146 | AL49: 0.0152 | AM49: 0.0158 | AN49: 0.0163 | AO49: 0.0163 | AP49: 0.0161 | AQ49: 0.0158 | AR49: 0.0157 | AS49: 0.016 | AT49: 0.0168 | AU49: 0.0181 | AV49: 0.0196 | AW49: 0.0214 | AX49: 0.023 | AY49: 0.0244 | AZ49: 0.0255 | BA49: 0.0262 | BB49: 0.0266 | BC49: 0.0265 | BD49: 0.0259 | BE49: 0.0246 | BF49: 0.0228 | BG49: 0.0204 | BH49: 0.0175 | BI49: 0.0141 | BJ49: 0.0105 | BK49: 0.0068 | BL49: 0.0035 | BM49: 0.0006 | BN49: -0.0018 | BO49: -0.0038 | BP49: -0.0044 | BQ49: -0.0043 | BR49: -0.0035 | BS49: -0.0021 | BT49: -0.0002 | BU49: 0.002 | BV49: 0.0042 | BW49: 0.0063 | BX49: 0.0081 | BY49: 0.0093 | BZ49: 0.0102 | CA49: 0.0108 | CB49: 0.0113 | CC49: 0.0117 | CD49: 0.012 | CE49: 0.0122 | CF49: 0.0124 | CG49: 0.0126 | CH49: 0.0128 | CI49: 0.0129
A50: 67 | B50: 0.0075 | C50: 0.0057 | D50: 0.0039 | E50: 0.0021 | F50: 0.0004 | G50: -0.0011 | H50: -0.0023 | I50: -0.0031 | J50: -0.0036 | K50: -0.0039 | L50: -0.0039 | M50: -0.0036 | N50: -0.0029 | O50: -0.0018 | P50: -0.0005 | Q50: 0.0011 | R50: 0.0029 | S50: 0.005 | T50: 0.0072 | U50: 0.0094 | V50: 0.0117 | W50: 0.0139 | X50: 0.0159 | Y50: 0.0175 | Z50: 0.0185 | AA50: 0.019 | AB50: 0.0189 | AC50: 0.0184 | AD50: 0.0176 | AE50: 0.0166 | AF50: 0.0157 | AG50: 0.015 | AH50: 0.0144 | AI50: 0.0142 | AJ50: 0.0144 | AK50: 0.0149 | AL50: 0.0155 | AM50: 0.016 | AN50: 0.0163 | AO50: 0.0163 | AP50: 0.0159 | AQ50: 0.0154 | AR50: 0.0152 | AS50: 0.0153 | AT50: 0.016 | AU50: 0.0172 | AV50: 0.0187 | AW50: 0.0205 | AX50: 0.0223 | AY50: 0.024 | AZ50: 0.0254 | BA50: 0.0265 | BB50: 0.0271 | BC50: 0.0271 | BD50: 0.0265 | BE50: 0.0254 | BF50: 0.0236 | BG50: 0.0214 | BH50: 0.0187 | BI50: 0.0155 | BJ50: 0.0122 | BK50: 0.0088 | BL50: 0.0056 | BM50: 0.0028 | BN50: 0.0003 | BO50: -0.0019 | BP50: -0.0026 | BQ50: -0.0027 | BR50: -0.0023 | BS50: -0.0013 | BT50: 0.0001 | BU50: 0.0019 | BV50: 0.0039 | BW50: 0.0058 | BX50: 0.0075 | BY50: 0.0087 | BZ50: 0.0097 | CA50: 0.0105 | CB50: 0.0111 | CC50: 0.0115 | CD50: 0.0119 | CE50: 0.0121 | CF50: 0.0123 | CG50: 0.0125 | CH50: 0.0127 | CI50: 0.0128
A51: 68 | B51: 0.0076 | C51: 0.0058 | D51: 0.004 | E51: 0.0022 | F51: 0.0005 | G51: -0.001 | H51: -0.0022 | I51: -0.0029 | J51: -0.0034 | K51: -0.0036 | L51: -0.0036 | M51: -0.0033 | N51: -0.0027 | O51: -0.0018 | P51: -0.0006 | Q51: 0.0009 | R51: 0.0026 | S51: 0.0045 | T51: 0.0066 | U51: 0.0088 | V51: 0.0111 | W51: 0.0132 | X51: 0.0151 | Y51: 0.0167 | Z51: 0.0176 | AA51: 0.018 | AB51: 0.0178 | AC51: 0.0172 | AD51: 0.0165 | AE51: 0.0156 | AF51: 0.0149 | AG51: 0.0143 | AH51: 0.014 | AI51: 0.014 | AJ51: 0.0144 | AK51: 0.0151 | AL51: 0.0157 | AM51: 0.0163 | AN51: 0.0165 | AO51: 0.0164 | AP51: 0.0159 | AQ51: 0.0153 | AR51: 0.0148 | AS51: 0.0148 | AT51: 0.0153 | AU51: 0.0163 | AV51: 0.0178 | AW51: 0.0196 | AX51: 0.0216 | AY51: 0.0235 | AZ51: 0.0252 | BA51: 0.0265 | BB51: 0.0273 | BC51: 0.0275 | BD51: 0.027 | BE51: 0.0259 | BF51: 0.0243 | BG51: 0.0221 | BH51: 0.0196 | BI51: 0.0167 | BJ51: 0.0135 | BK51: 0.0104 | BL51: 0.0074 | BM51: 0.0047 | BN51: 0.0023 | BO51: 0.0001 | BP51: -0.0007 | BQ51: -0.001 | BR51: -0.0009 | BS51: -0.0004 | BT51: 0.0007 | BU51: 0.002 | BV51: 0.0036 | BW51: 0.0054 | BX51: 0.0069 | BY51: 0.0082 | BZ51: 0.0092 | CA51: 0.01 | CB51: 0.0107 | CC51: 0.0113 | CD51: 0.0117 | CE51: 0.012 | CF51: 0.0122 | CG51: 0.0124 | CH51: 0.0126 | CI51: 0.0127
A52: 69 | B52: 0.0079 | C52: 0.0061 | D52: 0.0042 | E52: 0.0024 | F52: 0.0007 | G52: -0.0007 | H52: -0.0018 | I52: -0.0026 | J52: -0.0031 | K52: -0.0033 | L52: -0.0033 | M52: -0.0031 | N52: -0.0026 | O52: -0.0018 | P52: -0.0008 | Q52: 0.0005 | R52: 0.0021 | S52: 0.004 | T52: 0.0061 | U52: 0.0083 | V52: 0.0105 | W52: 0.0126 | X52: 0.0145 | Y52: 0.016 | Z52: 0.0168 | AA52: 0.0171 | AB52: 0.0168 | AC52: 0.0162 | AD52: 0.0154 | AE52: 0.0146 | AF52: 0.0139 | AG52: 0.0135 | AH52: 0.0134 | AI52: 0.0137 | AJ52: 0.0143 | AK52: 0.0151 | AL52: 0.0159 | AM52: 0.0165 | AN52: 0.0168 | AO52: 0.0166 | AP52: 0.016 | AQ52: 0.0152 | AR52: 0.0146 | AS52: 0.0144 | AT52: 0.0147 | AU52: 0.0155 | AV52: 0.0168 | AW52: 0.0186 | AX52: 0.0207 | AY52: 0.0228 | AZ52: 0.0248 | BA52: 0.0263 | BB52: 0.0274 | BC52: 0.0277 | BD52: 0.0274 | BE52: 0.0263 | BF52: 0.0248 | BG52: 0.0227 | BH52: 0.0202 | BI52: 0.0175 | BJ52: 0.0146 | BK52: 0.0116 | BL52: 0.0089 | BM52: 0.0063 | BN52: 0.004 | BO52: 0.002 | BP52: 0.0012 | BQ52: 0.0007 | BR52: 0.0006 | BS52: 0.0008 | BT52: 0.0014 | BU52: 0.0024 | BV52: 0.0036 | BW52: 0.005 | BX52: 0.0064 | BY52: 0.0076 | BZ52: 0.0087 | CA52: 0.0096 | CB52: 0.0104 | CC52: 0.011 | CD52: 0.0115 | CE52: 0.0118 | CF52: 0.0121 | CG52: 0.0123 | CH52: 0.0124 | CI52: 0.0125
A53: 70 | B53: 0.0084 | C53: 0.0066 | D53: 0.0047 | E53: 0.0029 | F53: 0.0012 | G53: -0.0003 | H53: -0.0014 | I53: -0.0022 | J53: -0.0027 | K53: -0.0029 | L53: -0.003 | M53: -0.0029 | N53: -0.0025 | O53: -0.0019 | P53: -0.001 | Q53: 0.0002 | R53: 0.0017 | S53: 0.0035 | T53: 0.0056 | U53: 0.0078 | V53: 0.01 | W53: 0.0121 | X53: 0.014 | Y53: 0.0154 | Z53: 0.0162 | AA53: 0.0163 | AB53: 0.016 | AC53: 0.0152 | AD53: 0.0144 | AE53: 0.0136 | AF53: 0.013 | AG53: 0.0127 | AH53: 0.0127 | AI53: 0.0132 | AJ53: 0.014 | AK53: 0.015 | AL53: 0.016 | AM53: 0.0167 | AN53: 0.017 | AO53: 0.0168 | AP53: 0.0162 | AQ53: 0.0153 | AR53: 0.0145 | AS53: 0.0141 | AT53: 0.0142 | AU53: 0.0148 | AV53: 0.016 | AW53: 0.0177 | AX53: 0.0198 | AY53: 0.0221 | AZ53: 0.0242 | BA53: 0.026 | BB53: 0.0272 | BC53: 0.0277 | BD53: 0.0275 | BE53: 0.0266 | BF53: 0.0251 | BG53: 0.0231 | BH53: 0.0207 | BI53: 0.0181 | BJ53: 0.0153 | BK53: 0.0125 | BL53: 0.0099 | BM53: 0.0076 | BN53: 0.0055 | BO53: 0.0036 | BP53: 0.0029 | BQ53: 0.0024 | BR53: 0.0021 | BS53: 0.0021 | BT53: 0.0023 | BU53: 0.0029 | BV53: 0.0038 | BW53: 0.0049 | BX53: 0.0061 | BY53: 0.0072 | BZ53: 0.0082 | CA53: 0.0091 | CB53: 0.01 | CC53: 0.0107 | CD53: 0.0112 | CE53: 0.0117 | CF53: 0.0119 | CG53: 0.0121 | CH53: 0.0123 | CI53: 0.0124
A54: 71 | B54: 0.009 | C54: 0.0071 | D54: 0.0052 | E54: 0.0034 | F54: 0.0017 | G54: 0.0003 | H54: -0.0009 | I54: -0.0017 | J54: -0.0022 | K54: -0.0026 | L54: -0.0027 | M54: -0.0028 | N54: -0.0026 | O54: -0.0021 | P54: -0.0013 | Q54: -0.0002 | R54: 0.0013 | S54: 0.0031 | T54: 0.0052 | U54: 0.0074 | V54: 0.0096 | W54: 0.0117 | X54: 0.0136 | Y54: 0.0149 | Z54: 0.0156 | AA54: 0.0157 | AB54: 0.0152 | AC54: 0.0144 | AD54: 0.0135 | AE54: 0.0126 | AF54: 0.012 | AG54: 0.0118 | AH54: 0.0119 | AI54: 0.0125 | AJ54: 0.0135 | AK54: 0.0147 | AL54: 0.0159 | AM54: 0.0167 | AN54: 0.0171 | AO54: 0.017 | AP54: 0.0163 | AQ54: 0.0154 | AR54: 0.0145 | AS54: 0.0139 | AT54: 0.0138 | AU54: 0.0142 | AV54: 0.0152 | AW54: 0.0169 | AX54: 0.0189 | AY54: 0.0212 | AZ54: 0.0235 | BA54: 0.0255 | BB54: 0.0269 | BC54: 0.0276 | BD54: 0.0275 | BE54: 0.0267 | BF54: 0.0253 | BG54: 0.0234 | BH54: 0.021 | BI54: 0.0184 | BJ54: 0.0157 | BK54: 0.013 | BL54: 0.0106 | BM54: 0.0084 | BN54: 0.0066 | BO54: 0.005 | BP54: 0.0044 | BQ54: 0.0039 | BR54: 0.0035 | BS54: 0.0033 | BT54: 0.0033 | BU54: 0.0036 | BV54: 0.0041 | BW54: 0.0049 | BX54: 0.0058 | BY54: 0.0068 | BZ54: 0.0078 | CA54: 0.0087 | CB54: 0.0096 | CC54: 0.0104 | CD54: 0.011 | CE54: 0.0114 | CF54: 0.0118 | CG54: 0.012 | CH54: 0.0122 | CI54: 0.0123
A55: 72 | B55: 0.0096 | C55: 0.0077 | D55: 0.0058 | E55: 0.004 | F55: 0.0023 | G55: 0.0008 | H55: -0.0003 | I55: -0.0012 | J55: -0.0018 | K55: -0.0023 | L55: -0.0025 | M55: -0.0027 | N55: -0.0026 | O55: -0.0022 | P55: -0.0016 | Q55: -0.0005 | R55: 0.001 | S55: 0.0028 | T55: 0.0049 | U55: 0.0071 | V55: 0.0094 | W55: 0.0115 | X55: 0.0132 | Y55: 0.0145 | Z55: 0.0151 | AA55: 0.0151 | AB55: 0.0146 | AC55: 0.0137 | AD55: 0.0127 | AE55: 0.0117 | AF55: 0.0111 | AG55: 0.0108 | AH55: 0.0111 | AI55: 0.0118 | AJ55: 0.0129 | AK55: 0.0143 | AL55: 0.0156 | AM55: 0.0166 | AN55: 0.0171 | AO55: 0.017 | AP55: 0.0164 | AQ55: 0.0155 | AR55: 0.0145 | AS55: 0.0138 | AT55: 0.0135 | AU55: 0.0137 | AV55: 0.0146 | AW55: 0.0161 | AX55: 0.0181 | AY55: 0.0204 | AZ55: 0.0227 | BA55: 0.0248 | BB55: 0.0264 | BC55: 0.0273 | BD55: 0.0274 | BE55: 0.0267 | BF55: 0.0254 | BG55: 0.0235 | BH55: 0.0212 | BI55: 0.0186 | BJ55: 0.0159 | BK55: 0.0133 | BL55: 0.011 | BM55: 0.009 | BN55: 0.0073 | BO55: 0.0059 | BP55: 0.0055 | BQ55: 0.0051 | BR55: 0.0048 | BS55: 0.0045 | BT55: 0.0043 | BU55: 0.0044 | BV55: 0.0046 | BW55: 0.0051 | BX55: 0.0058 | BY55: 0.0065 | BZ55: 0.0074 | CA55: 0.0084 | CB55: 0.0093 | CC55: 0.01 | CD55: 0.0107 | CE55: 0.0112 | CF55: 0.0116 | CG55: 0.0118 | CH55: 0.012 | CI55: 0.0121
A56: 73 | B56: 0.0101 | C56: 0.0082 | D56: 0.0064 | E56: 0.0046 | F56: 0.0029 | G56: 0.0014 | H56: 0.0002 | I56: -0.0007 | J56: -0.0014 | K56: -0.002 | L56: -0.0024 | M56: -0.0026 | N56: -0.0027 | O56: -0.0024 | P56: -0.0017 | Q56: -0.0007 | R56: 0.0008 | S56: 0.0026 | T56: 0.0047 | U56: 0.007 | V56: 0.0092 | W56: 0.0113 | X56: 0.013 | Y56: 0.0142 | Z56: 0.0148 | AA56: 0.0147 | AB56: 0.014 | AC56: 0.013 | AD56: 0.0119 | AE56: 0.0109 | AF56: 0.0102 | AG56: 0.0099 | AH56: 0.0102 | AI56: 0.011 | AJ56: 0.0122 | AK56: 0.0137 | AL56: 0.0151 | AM56: 0.0163 | AN56: 0.0169 | AO56: 0.0169 | AP56: 0.0164 | AQ56: 0.0155 | AR56: 0.0145 | AS56: 0.0137 | AT56: 0.0132 | AU56: 0.0134 | AV56: 0.0141 | AW56: 0.0155 | AX56: 0.0174 | AY56: 0.0196 | AZ56: 0.0219 | BA56: 0.0241 | BB56: 0.0258 | BC56: 0.0268 | BD56: 0.0271 | BE56: 0.0266 | BF56: 0.0253 | BG56: 0.0235 | BH56: 0.0212 | BI56: 0.0186 | BJ56: 0.016 | BK56: 0.0135 | BL56: 0.0112 | BM56: 0.0093 | BN56: 0.0078 | BO56: 0.0066 | BP56: 0.0063 | BQ56: 0.0061 | BR56: 0.0058 | BS56: 0.0055 | BT56: 0.0052 | BU56: 0.0051 | BV56: 0.0052 | BW56: 0.0054 | BX56: 0.0059 | BY56: 0.0064 | BZ56: 0.0072 | CA56: 0.008 | CB56: 0.009 | CC56: 0.0097 | CD56: 0.0104 | CE56: 0.011 | CF56: 0.0114 | CG56: 0.0117 | CH56: 0.0119 | CI56: 0.012
A57: 74 | B57: 0.0104 | C57: 0.0086 | D57: 0.0068 | E57: 0.0051 | F57: 0.0034 | G57: 0.002 | H57: 0.0007 | I57: -0.0003 | J57: -0.0011 | K57: -0.0017 | L57: -0.0023 | M57: -0.0026 | N57: -0.0027 | O57: -0.0024 | P57: -0.0018 | Q57: -0.0008 | R57: 0.0007 | S57: 0.0025 | T57: 0.0047 | U57: 0.0069 | V57: 0.0091 | W57: 0.0111 | X57: 0.0128 | Y57: 0.014 | Z57: 0.0145 | AA57: 0.0143 | AB57: 0.0136 | AC57: 0.0125 | AD57: 0.0113 | AE57: 0.0102 | AF57: 0.0094 | AG57: 0.0091 | AH57: 0.0093 | AI57: 0.0101 | AJ57: 0.0114 | AK57: 0.0129 | AL57: 0.0145 | AM57: 0.0157 | AN57: 0.0165 | AO57: 0.0167 | AP57: 0.0162 | AQ57: 0.0153 | AR57: 0.0144 | AS57: 0.0135 | AT57: 0.013 | AU57: 0.0131 | AV57: 0.0137 | AW57: 0.0149 | AX57: 0.0167 | AY57: 0.0189 | AZ57: 0.0212 | BA57: 0.0233 | BB57: 0.0251 | BC57: 0.0263 | BD57: 0.0267 | BE57: 0.0263 | BF57: 0.0251 | BG57: 0.0233 | BH57: 0.0211 | BI57: 0.0186 | BJ57: 0.016 | BK57: 0.0135 | BL57: 0.0113 | BM57: 0.0095 | BN57: 0.008 | BO57: 0.0069 | BP57: 0.0068 | BQ57: 0.0067 | BR57: 0.0065 | BS57: 0.0063 | BT57: 0.006 | BU57: 0.0059 | BV57: 0.0058 | BW57: 0.0059 | BX57: 0.0061 | BY57: 0.0065 | BZ57: 0.007 | CA57: 0.0077 | CB57: 0.0086 | CC57: 0.0095 | CD57: 0.0102 | CE57: 0.0108 | CF57: 0.0112 | CG57: 0.0115 | CH57: 0.0117 | CI57: 0.0118
A58: 75 | B58: 0.0105 | C58: 0.0088 | D58: 0.0071 | E58: 0.0054 | F58: 0.0038 | G58: 0.0024 | H58: 0.0012 | I58: 0.0001 | J58: -0.0008 | K58: -0.0015 | L58: -0.0021 | M58: -0.0025 | N58: -0.0027 | O58: -0.0024 | P58: -0.0018 | Q58: -0.0007 | R58: 0.0008 | S58: 0.0026 | T58: 0.0047 | U58: 0.0069 | V58: 0.0091 | W58: 0.0111 | X58: 0.0127 | Y58: 0.0138 | Z58: 0.0143 | AA58: 0.014 | AB58: 0.0133 | AC58: 0.0121 | AD58: 0.0108 | AE58: 0.0096 | AF58: 0.0088 | AG58: 0.0083 | AH58: 0.0085 | AI58: 0.0092 | AJ58: 0.0105 | AK58: 0.0121 | AL58: 0.0137 | AM58: 0.015 | AN58: 0.0159 | AO58: 0.0162 | AP58: 0.0158 | AQ58: 0.015 | AR58: 0.0141 | AS58: 0.0133 | AT58: 0.0128 | AU58: 0.0128 | AV58: 0.0133 | AW58: 0.0145 | AX58: 0.0161 | AY58: 0.0182 | AZ58: 0.0204 | BA58: 0.0226 | BB58: 0.0244 | BC58: 0.0257 | BD58: 0.0262 | BE58: 0.0259 | BF58: 0.0248 | BG58: 0.0231 | BH58: 0.0209 | BI58: 0.0184 | BJ58: 0.0158 | BK58: 0.0134 | BL58: 0.0112 | BM58: 0.0095 | BN58: 0.008 | BO58: 0.0069 | BP58: 0.007 | BQ58: 0.007 | BR58: 0.0069 | BS58: 0.0068 | BT58: 0.0067 | BU58: 0.0065 | BV58: 0.0064 | BW58: 0.0064 | BX58: 0.0064 | BY58: 0.0066 | BZ58: 0.007 | CA58: 0.0076 | CB58: 0.0083 | CC58: 0.0091 | CD58: 0.0099 | CE58: 0.0105 | CF58: 0.011 | CG58: 0.0114 | CH58: 0.0116 | CI58: 0.0117
A59: 76 | B59: 0.0105 | C59: 0.0088 | D59: 0.0072 | E59: 0.0056 | F59: 0.0041 | G59: 0.0027 | H59: 0.0015 | I59: 0.0004 | J59: -0.0006 | K59: -0.0014 | L59: -0.002 | M59: -0.0024 | N59: -0.0026 | O59: -0.0023 | P59: -0.0016 | Q59: -0.0006 | R59: 0.0009 | S59: 0.0028 | T59: 0.0048 | U59: 0.007 | V59: 0.0092 | W59: 0.0111 | X59: 0.0127 | Y59: 0.0137 | Z59: 0.0141 | AA59: 0.0138 | AB59: 0.013 | AC59: 0.0118 | AD59: 0.0104 | AE59: 0.0092 | AF59: 0.0082 | AG59: 0.0077 | AH59: 0.0077 | AI59: 0.0084 | AJ59: 0.0096 | AK59: 0.0111 | AL59: 0.0127 | AM59: 0.0141 | AN59: 0.0151 | AO59: 0.0154 | AP59: 0.0152 | AQ59: 0.0145 | AR59: 0.0137 | AS59: 0.013 | AT59: 0.0125 | AU59: 0.0125 | AV59: 0.013 | AW59: 0.0141 | AX59: 0.0156 | AY59: 0.0176 | AZ59: 0.0197 | BA59: 0.0218 | BB59: 0.0237 | BC59: 0.025 | BD59: 0.0256 | BE59: 0.0253 | BF59: 0.0244 | BG59: 0.0227 | BH59: 0.0206 | BI59: 0.0182 | BJ59: 0.0157 | BK59: 0.0133 | BL59: 0.0111 | BM59: 0.0094 | BN59: 0.0079 | BO59: 0.0068 | BP59: 0.0069 | BQ59: 0.007 | BR59: 0.0071 | BS59: 0.0072 | BT59: 0.0071 | BU59: 0.007 | BV59: 0.0069 | BW59: 0.0068 | BX59: 0.0068 | BY59: 0.0069 | BZ59: 0.0071 | CA59: 0.0075 | CB59: 0.0081 | CC59: 0.0088 | CD59: 0.0096 | CE59: 0.0103 | CF59: 0.0108 | CG59: 0.0112 | CH59: 0.0114 | CI59: 0.0116
A60: 77 | B60: 0.0102 | C60: 0.0087 | D60: 0.0072 | E60: 0.0056 | F60: 0.0042 | G60: 0.0028 | H60: 0.0016 | I60: 0.0005 | J60: -0.0004 | K60: -0.0013 | L60: -0.0019 | M60: -0.0023 | N60: -0.0024 | O60: -0.0021 | P60: -0.0014 | Q60: -0.0003 | R60: 0.0012 | S60: 0.003 | T60: 0.0051 | U60: 0.0072 | V60: 0.0093 | W60: 0.0112 | X60: 0.0127 | Y60: 0.0137 | Z60: 0.014 | AA60: 0.0137 | AB60: 0.0128 | AC60: 0.0116 | AD60: 0.0101 | AE60: 0.0088 | AF60: 0.0077 | AG60: 0.0071 | AH60: 0.007 | AI60: 0.0076 | AJ60: 0.0087 | AK60: 0.0101 | AL60: 0.0117 | AM60: 0.0131 | AN60: 0.0141 | AO60: 0.0145 | AP60: 0.0144 | AQ60: 0.0138 | AR60: 0.0131 | AS60: 0.0125 | AT60: 0.0121 | AU60: 0.0121 | AV60: 0.0126 | AW60: 0.0136 | AX60: 0.0151 | AY60: 0.017 | AZ60: 0.0191 | BA60: 0.0212 | BB60: 0.023 | BC60: 0.0243 | BD60: 0.0249 | BE60: 0.0247 | BF60: 0.0238 | BG60: 0.0223 | BH60: 0.0202 | BI60: 0.0179 | BJ60: 0.0154 | BK60: 0.0131 | BL60: 0.011 | BM60: 0.0092 | BN60: 0.0077 | BO60: 0.0065 | BP60: 0.0067 | BQ60: 0.0069 | BR60: 0.0072 | BS60: 0.0073 | BT60: 0.0074 | BU60: 0.0074 | BV60: 0.0074 | BW60: 0.0073 | BX60: 0.0072 | BY60: 0.0072 | BZ60: 0.0073 | CA60: 0.0075 | CB60: 0.008 | CC60: 0.0086 | CD60: 0.0093 | CE60: 0.01 | CF60: 0.0107 | CG60: 0.011 | CH60: 0.0113 | CI60: 0.0114
A61: 78 | B61: 0.0097 | C61: 0.0083 | D61: 0.0069 | E61: 0.0055 | F61: 0.0041 | G61: 0.0028 | H61: 0.0016 | I61: 0.0005 | J61: -0.0004 | K61: -0.0012 | L61: -0.0018 | M61: -0.0021 | N61: -0.0021 | O61: -0.0018 | P61: -0.0011 | Q61: 0.0001 | R61: 0.0015 | S61: 0.0033 | T61: 0.0053 | U61: 0.0074 | V61: 0.0095 | W61: 0.0113 | X61: 0.0127 | Y61: 0.0137 | Z61: 0.014 | AA61: 0.0136 | AB61: 0.0127 | AC61: 0.0114 | AD61: 0.0099 | AE61: 0.0085 | AF61: 0.0073 | AG61: 0.0066 | AH61: 0.0064 | AI61: 0.0069 | AJ61: 0.0078 | AK61: 0.0091 | AL61: 0.0106 | AM61: 0.0119 | AN61: 0.0129 | AO61: 0.0134 | AP61: 0.0133 | AQ61: 0.0129 | AR61: 0.0124 | AS61: 0.0119 | AT61: 0.0116 | AU61: 0.0116 | AV61: 0.0122 | AW61: 0.0132 | AX61: 0.0147 | AY61: 0.0165 | AZ61: 0.0185 | BA61: 0.0205 | BB61: 0.0222 | BC61: 0.0235 | BD61: 0.0241 | BE61: 0.024 | BF61: 0.0232 | BG61: 0.0217 | BH61: 0.0198 | BI61: 0.0175 | BJ61: 0.0151 | BK61: 0.0128 | BL61: 0.0108 | BM61: 0.009 | BN61: 0.0075 | BO61: 0.0062 | BP61: 0.0064 | BQ61: 0.0067 | BR61: 0.007 | BS61: 0.0073 | BT61: 0.0075 | BU61: 0.0077 | BV61: 0.0077 | BW61: 0.0077 | BX61: 0.0076 | BY61: 0.0075 | BZ61: 0.0075 | CA61: 0.0076 | CB61: 0.008 | CC61: 0.0085 | CD61: 0.0091 | CE61: 0.0097 | CF61: 0.0103 | CG61: 0.0109 | CH61: 0.0111 | CI61: 0.0113
A62: 79 | B62: 0.0091 | C62: 0.0078 | D62: 0.0065 | E62: 0.0052 | F62: 0.0038 | G62: 0.0026 | H62: 0.0014 | I62: 0.0004 | J62: -0.0005 | K62: -0.0012 | L62: -0.0017 | M62: -0.002 | N62: -0.0019 | O62: -0.0015 | P62: -0.0007 | Q62: 0.0005 | R62: 0.002 | S62: 0.0037 | T62: 0.0057 | U62: 0.0077 | V62: 0.0097 | W62: 0.0114 | X62: 0.0128 | Y62: 0.0137 | Z62: 0.014 | AA62: 0.0136 | AB62: 0.0126 | AC62: 0.0113 | AD62: 0.0098 | AE62: 0.0083 | AF62: 0.0071 | AG62: 0.0062 | AH62: 0.0059 | AI62: 0.0062 | AJ62: 0.007 | AK62: 0.0081 | AL62: 0.0094 | AM62: 0.0106 | AN62: 0.0116 | AO62: 0.0121 | AP62: 0.0121 | AQ62: 0.0119 | AR62: 0.0114 | AS62: 0.011 | AT62: 0.0109 | AU62: 0.011 | AV62: 0.0116 | AW62: 0.0127 | AX62: 0.0142 | AY62: 0.016 | AZ62: 0.0179 | BA62: 0.0199 | BB62: 0.0215 | BC62: 0.0228 | BD62: 0.0234 | BE62: 0.0233 | BF62: 0.0225 | BG62: 0.0211 | BH62: 0.0193 | BI62: 0.0171 | BJ62: 0.0148 | BK62: 0.0126 | BL62: 0.0105 | BM62: 0.0087 | BN62: 0.0072 | BO62: 0.0059 | BP62: 0.0061 | BQ62: 0.0064 | BR62: 0.0068 | BS62: 0.0072 | BT62: 0.0075 | BU62: 0.0077 | BV62: 0.0079 | BW62: 0.0079 | BX62: 0.0079 | BY62: 0.0078 | BZ62: 0.0077 | CA62: 0.0077 | CB62: 0.008 | CC62: 0.0084 | CD62: 0.0089 | CE62: 0.0095 | CF62: 0.0101 | CG62: 0.0106 | CH62: 0.011 | CI62: 0.0111
A63: 80 | B63: 0.0084 | C63: 0.0072 | D63: 0.0059 | E63: 0.0047 | F63: 0.0034 | G63: 0.0022 | H63: 0.0011 | I63: 0.0001 | J63: -0.0007 | K63: -0.0013 | L63: -0.0017 | M63: -0.0018 | N63: -0.0016 | O63: -0.0011 | P63: -0.0002 | Q63: 0.0009 | R63: 0.0024 | S63: 0.0041 | T63: 0.0061 | U63: 0.008 | V63: 0.0099 | W63: 0.0116 | X63: 0.0129 | Y63: 0.0137 | Z63: 0.014 | AA63: 0.0135 | AB63: 0.0126 | AC63: 0.0112 | AD63: 0.0097 | AE63: 0.0082 | AF63: 0.0069 | AG63: 0.0059 | AH63: 0.0055 | AI63: 0.0056 | AJ63: 0.0062 | AK63: 0.0071 | AL63: 0.0082 | AM63: 0.0093 | AN63: 0.0102 | AO63: 0.0107 | AP63: 0.0108 | AQ63: 0.0106 | AR63: 0.0103 | AS63: 0.0101 | AT63: 0.01 | AU63: 0.0103 | AV63: 0.011 | AW63: 0.0121 | AX63: 0.0136 | AY63: 0.0154 | AZ63: 0.0173 | BA63: 0.0192 | BB63: 0.0208 | BC63: 0.022 | BD63: 0.0226 | BE63: 0.0225 | BF63: 0.0218 | BG63: 0.0205 | BH63: 0.0187 | BI63: 0.0166 | BJ63: 0.0144 | BK63: 0.0123 | BL63: 0.0103 | BM63: 0.0085 | BN63: 0.0069 | BO63: 0.0055 | BP63: 0.0058 | BQ63: 0.0061 | BR63: 0.0065 | BS63: 0.007 | BT63: 0.0074 | BU63: 0.0077 | BV63: 0.008 | BW63: 0.0081 | BX63: 0.0081 | BY63: 0.008 | BZ63: 0.0079 | CA63: 0.0079 | CB63: 0.008 | CC63: 0.0083 | CD63: 0.0087 | CE63: 0.0092 | CF63: 0.0098 | CG63: 0.0103 | CH63: 0.0107 | CI63: 0.011
A64: 81 | B64: 0.0077 | C64: 0.0065 | D64: 0.0052 | E64: 0.004 | F64: 0.0028 | G64: 0.0017 | H64: 0.0006 | I64: -0.0003 | J64: -0.001 | K64: -0.0015 | L64: -0.0017 | M64: -0.0017 | N64: -0.0014 | O64: -0.0008 | P64: 0.0002 | Q64: 0.0014 | R64: 0.0029 | S64: 0.0046 | T64: 0.0065 | U64: 0.0084 | V64: 0.0102 | W64: 0.0118 | X64: 0.013 | Y64: 0.0138 | Z64: 0.014 | AA64: 0.0135 | AB64: 0.0126 | AC64: 0.0112 | AD64: 0.0097 | AE64: 0.0081 | AF64: 0.0068 | AG64: 0.0057 | AH64: 0.0051 | AI64: 0.005 | AJ64: 0.0054 | AK64: 0.0061 | AL64: 0.0071 | AM64: 0.008 | AN64: 0.0087 | AO64: 0.0092 | AP64: 0.0093 | AQ64: 0.0092 | AR64: 0.009 | AS64: 0.0089 | AT64: 0.009 | AU64: 0.0094 | AV64: 0.0102 | AW64: 0.0114 | AX64: 0.013 | AY64: 0.0148 | AZ64: 0.0167 | BA64: 0.0185 | BB64: 0.0201 | BC64: 0.0212 | BD64: 0.0218 | BE64: 0.0217 | BF64: 0.021 | BG64: 0.0198 | BH64: 0.0181 | BI64: 0.0161 | BJ64: 0.014 | BK64: 0.0119 | BL64: 0.01 | BM64: 0.0082 | BN64: 0.0066 | BO64: 0.0052 | BP64: 0.0054 | BQ64: 0.0058 | BR64: 0.0062 | BS64: 0.0066 | BT64: 0.0071 | BU64: 0.0075 | BV64: 0.0078 | BW64: 0.008 | BX64: 0.008 | BY64: 0.008 | BZ64: 0.0079 | CA64: 0.0078 | CB64: 0.0079 | CC64: 0.0081 | CD64: 0.0084 | CE64: 0.0089 | CF64: 0.0093 | CG64: 0.0098 | CH64: 0.0102 | CI64: 0.0105
A65: 82 | B65: 0.0068 | C65: 0.0056 | D65: 0.0045 | E65: 0.0033 | F65: 0.0021 | G65: 0.001 | H65: 0 | I65: -0.0008 | J65: -0.0014 | K65: -0.0018 | L65: -0.0019 | M65: -0.0017 | N65: -0.0012 | O65: -0.0004 | P65: 0.0006 | Q65: 0.0019 | R65: 0.0034 | S65: 0.0051 | T65: 0.0069 | U65: 0.0088 | V65: 0.0105 | W65: 0.012 | X65: 0.0132 | Y65: 0.0139 | Z65: 0.014 | AA65: 0.0135 | AB65: 0.0126 | AC65: 0.0113 | AD65: 0.0097 | AE65: 0.0082 | AF65: 0.0067 | AG65: 0.0056 | AH65: 0.0049 | AI65: 0.0046 | AJ65: 0.0047 | AK65: 0.0052 | AL65: 0.0059 | AM65: 0.0066 | AN65: 0.0072 | AO65: 0.0076 | AP65: 0.0078 | AQ65: 0.0077 | AR65: 0.0077 | AS65: 0.0077 | AT65: 0.0079 | AU65: 0.0084 | AV65: 0.0093 | AW65: 0.0106 | AX65: 0.0122 | AY65: 0.014 | AZ65: 0.016 | BA65: 0.0178 | BB65: 0.0193 | BC65: 0.0204 | BD65: 0.021 | BE65: 0.0209 | BF65: 0.0203 | BG65: 0.0191 | BH65: 0.0175 | BI65: 0.0156 | BJ65: 0.0136 | BK65: 0.0115 | BL65: 0.0096 | BM65: 0.0079 | BN65: 0.0063 | BO65: 0.0048 | BP65: 0.005 | BQ65: 0.0054 | BR65: 0.0058 | BS65: 0.0063 | BT65: 0.0068 | BU65: 0.0072 | BV65: 0.0075 | BW65: 0.0078 | BX65: 0.0079 | BY65: 0.0079 | BZ65: 0.0078 | CA65: 0.0077 | CB65: 0.0078 | CC65: 0.0079 | CD65: 0.0081 | CE65: 0.0085 | CF65: 0.0089 | CG65: 0.0094 | CH65: 0.0098 | CI65: 0.0101
A66: 83 | B66: 0.0059 | C66: 0.0047 | D66: 0.0036 | E66: 0.0024 | F66: 0.0013 | G66: 0.0002 | H66: -0.0007 | I66: -0.0014 | J66: -0.0019 | K66: -0.0021 | L66: -0.0021 | M66: -0.0017 | N66: -0.0011 | O66: -0.0002 | P66: 0.001 | Q66: 0.0024 | R66: 0.0039 | S66: 0.0056 | T66: 0.0074 | U66: 0.0092 | V66: 0.0108 | W66: 0.0122 | X66: 0.0133 | Y66: 0.0139 | Z66: 0.014 | AA66: 0.0135 | AB66: 0.0126 | AC66: 0.0113 | AD66: 0.0098 | AE66: 0.0082 | AF66: 0.0068 | AG66: 0.0055 | AH66: 0.0046 | AI66: 0.0042 | AJ66: 0.0041 | AK66: 0.0043 | AL66: 0.0048 | AM66: 0.0053 | AN66: 0.0057 | AO66: 0.0061 | AP66: 0.0062 | AQ66: 0.0062 | AR66: 0.0062 | AS66: 0.0063 | AT66: 0.0067 | AU66: 0.0073 | AV66: 0.0083 | AW66: 0.0097 | AX66: 0.0113 | AY66: 0.0132 | AZ66: 0.0151 | BA66: 0.017 | BB66: 0.0185 | BC66: 0.0196 | BD66: 0.0201 | BE66: 0.0201 | BF66: 0.0195 | BG66: 0.0184 | BH66: 0.0168 | BI66: 0.015 | BJ66: 0.0131 | BK66: 0.0112 | BL66: 0.0093 | BM66: 0.0076 | BN66: 0.006 | BO66: 0.0045 | BP66: 0.0047 | BQ66: 0.005 | BR66: 0.0055 | BS66: 0.0059 | BT66: 0.0064 | BU66: 0.0068 | BV66: 0.0072 | BW66: 0.0075 | BX66: 0.0077 | BY66: 0.0077 | BZ66: 0.0076 | CA66: 0.0076 | CB66: 0.0076 | CC66: 0.0077 | CD66: 0.0079 | CE66: 0.0082 | CF66: 0.0085 | CG66: 0.0089 | CH66: 0.0093 | CI66: 0.0096
A67: 84 | B67: 0.0049 | C67: 0.0037 | D67: 0.0026 | E67: 0.0014 | F67: 0.0003 | G67: -0.0007 | H67: -0.0015 | I67: -0.0021 | J67: -0.0025 | K67: -0.0025 | L67: -0.0023 | M67: -0.0018 | N67: -0.001 | O67: 0.0001 | P67: 0.0014 | Q67: 0.0028 | R67: 0.0045 | S67: 0.0062 | T67: 0.0079 | U67: 0.0096 | V67: 0.0111 | W67: 0.0124 | X67: 0.0134 | Y67: 0.0139 | Z67: 0.014 | AA67: 0.0135 | AB67: 0.0126 | AC67: 0.0113 | AD67: 0.0099 | AE67: 0.0083 | AF67: 0.0068 | AG67: 0.0055 | AH67: 0.0045 | AI67: 0.0038 | AJ67: 0.0035 | AK67: 0.0035 | AL67: 0.0037 | AM67: 0.004 | AN67: 0.0043 | AO67: 0.0045 | AP67: 0.0046 | AQ67: 0.0046 | AR67: 0.0047 | AS67: 0.0049 | AT67: 0.0054 | AU67: 0.0061 | AV67: 0.0072 | AW67: 0.0086 | AX67: 0.0103 | AY67: 0.0123 | AZ67: 0.0142 | BA67: 0.016 | BB67: 0.0176 | BC67: 0.0186 | BD67: 0.0192 | BE67: 0.0192 | BF67: 0.0186 | BG67: 0.0176 | BH67: 0.0162 | BI67: 0.0145 | BJ67: 0.0126 | BK67: 0.0107 | BL67: 0.0089 | BM67: 0.0073 | BN67: 0.0057 | BO67: 0.0041 | BP67: 0.0044 | BQ67: 0.0047 | BR67: 0.0051 | BS67: 0.0056 | BT67: 0.006 | BU67: 0.0065 | BV67: 0.0069 | BW67: 0.0072 | BX67: 0.0073 | BY67: 0.0074 | BZ67: 0.0074 | CA67: 0.0074 | CB67: 0.0074 | CC67: 0.0074 | CD67: 0.0076 | CE67: 0.0078 | CF67: 0.0081 | CG67: 0.0085 | CH67: 0.0088 | CI67: 0.0091
A68: 85 | B68: 0.0038 | C68: 0.0026 | D68: 0.0015 | E68: 0.0004 | F68: -0.0007 | G68: -0.0016 | H68: -0.0023 | I68: -0.0028 | J68: -0.0031 | K68: -0.003 | L68: -0.0026 | M68: -0.002 | N68: -0.001 | O68: 0.0002 | P68: 0.0017 | Q68: 0.0032 | R68: 0.0049 | S68: 0.0066 | T68: 0.0084 | U68: 0.01 | V68: 0.0114 | W68: 0.0126 | X68: 0.0135 | Y68: 0.014 | Z68: 0.014 | AA68: 0.0135 | AB68: 0.0126 | AC68: 0.0114 | AD68: 0.0099 | AE68: 0.0084 | AF68: 0.0069 | AG68: 0.0055 | AH68: 0.0043 | AI68: 0.0035 | AJ68: 0.0029 | AK68: 0.0027 | AL68: 0.0026 | AM68: 0.0027 | AN68: 0.0029 | AO68: 0.0029 | AP68: 0.003 | AQ68: 0.003 | AR68: 0.0031 | AS68: 0.0034 | AT68: 0.004 | AU68: 0.0048 | AV68: 0.006 | AW68: 0.0075 | AX68: 0.0093 | AY68: 0.0112 | AZ68: 0.0132 | BA68: 0.015 | BB68: 0.0165 | BC68: 0.0177 | BD68: 0.0182 | BE68: 0.0183 | BF68: 0.0178 | BG68: 0.0168 | BH68: 0.0155 | BI68: 0.0139 | BJ68: 0.0121 | BK68: 0.0103 | BL68: 0.0086 | BM68: 0.0069 | BN68: 0.0053 | BO68: 0.0038 | BP68: 0.004 | BQ68: 0.0044 | BR68: 0.0048 | BS68: 0.0052 | BT68: 0.0057 | BU68: 0.0061 | BV68: 0.0065 | BW68: 0.0068 | BX68: 0.007 | BY68: 0.0071 | BZ68: 0.0071 | CA68: 0.0071 | CB68: 0.0071 | CC68: 0.0072 | CD68: 0.0073 | CE68: 0.0075 | CF68: 0.0077 | CG68: 0.0081 | CH68: 0.0084 | CI68: 0.0087
A69: 86 | B69: 0.0025 | C69: 0.0014 | D69: 0.0003 | E69: -0.0008 | F69: -0.0018 | G69: -0.0026 | H69: -0.0032 | I69: -0.0036 | J69: -0.0037 | K69: -0.0035 | L69: -0.0029 | M69: -0.0021 | N69: -0.001 | O69: 0.0004 | P69: 0.002 | Q69: 0.0036 | R69: 0.0054 | S69: 0.0071 | T69: 0.0088 | U69: 0.0103 | V69: 0.0117 | W69: 0.0128 | X69: 0.0136 | Y69: 0.014 | Z69: 0.014 | AA69: 0.0135 | AB69: 0.0126 | AC69: 0.0114 | AD69: 0.01 | AE69: 0.0085 | AF69: 0.0069 | AG69: 0.0055 | AH69: 0.0042 | AI69: 0.0032 | AJ69: 0.0024 | AK69: 0.0019 | AL69: 0.0017 | AM69: 0.0015 | AN69: 0.0015 | AO69: 0.0015 | AP69: 0.0014 | AQ69: 0.0015 | AR69: 0.0016 | AS69: 0.002 | AT69: 0.0026 | AU69: 0.0035 | AV69: 0.0048 | AW69: 0.0063 | AX69: 0.0081 | AY69: 0.01 | AZ69: 0.012 | BA69: 0.0138 | BB69: 0.0154 | BC69: 0.0166 | BD69: 0.0172 | BE69: 0.0173 | BF69: 0.0169 | BG69: 0.016 | BH69: 0.0148 | BI69: 0.0133 | BJ69: 0.0116 | BK69: 0.0099 | BL69: 0.0082 | BM69: 0.0066 | BN69: 0.005 | BO69: 0.0035 | BP69: 0.0037 | BQ69: 0.004 | BR69: 0.0044 | BS69: 0.0049 | BT69: 0.0053 | BU69: 0.0058 | BV69: 0.0062 | BW69: 0.0065 | BX69: 0.0067 | BY69: 0.0067 | BZ69: 0.0067 | CA69: 0.0068 | CB69: 0.0068 | CC69: 0.0069 | CD69: 0.007 | CE69: 0.0071 | CF69: 0.0074 | CG69: 0.0076 | CH69: 0.0079 | CI69: 0.0082
A70: 87 | B70: 0.001 | C70: -0.0001 | D70: -0.0011 | E70: -0.002 | F70: -0.0029 | G70: -0.0036 | H70: -0.0041 | I70: -0.0043 | J70: -0.0043 | K70: -0.0039 | L70: -0.0032 | M70: -0.0023 | N70: -0.001 | O70: 0.0005 | P70: 0.0022 | Q70: 0.004 | R70: 0.0058 | S70: 0.0075 | T70: 0.0092 | U70: 0.0107 | V70: 0.012 | W70: 0.013 | X70: 0.0137 | Y70: 0.014 | Z70: 0.0139 | AA70: 0.0135 | AB70: 0.0126 | AC70: 0.0115 | AD70: 0.0101 | AE70: 0.0086 | AF70: 0.007 | AG70: 0.0055 | AH70: 0.0041 | AI70: 0.0029 | AJ70: 0.002 | AK70: 0.0013 | AL70: 0.0008 | AM70: 0.0004 | AN70: 0.0002 | AO70: 0 | AP70: -0.0001 | AQ70: -0.0001 | AR70: 0.0001 | AS70: 0.0005 | AT70: 0.0012 | AU70: 0.0022 | AV70: 0.0035 | AW70: 0.005 | AX70: 0.0068 | AY70: 0.0088 | AZ70: 0.0107 | BA70: 0.0126 | BB70: 0.0142 | BC70: 0.0154 | BD70: 0.0161 | BE70: 0.0163 | BF70: 0.016 | BG70: 0.0152 | BH70: 0.0141 | BI70: 0.0127 | BJ70: 0.0111 | BK70: 0.0095 | BL70: 0.0079 | BM70: 0.0063 | BN70: 0.0048 | BO70: 0.0033 | BP70: 0.0035 | BQ70: 0.0038 | BR70: 0.0041 | BS70: 0.0046 | BT70: 0.005 | BU70: 0.0054 | BV70: 0.0058 | BW70: 0.0061 | BX70: 0.0063 | BY70: 0.0064 | BZ70: 0.0064 | CA70: 0.0064 | CB70: 0.0064 | CC70: 0.0065 | CD70: 0.0066 | CE70: 0.0068 | CF70: 0.007 | CG70: 0.0072 | CH70: 0.0075 | CI70: 0.0077
A71: 88 | B71: -0.0008 | C71: -0.0017 | D71: -0.0025 | E71: -0.0033 | F71: -0.0041 | G71: -0.0046 | H71: -0.005 | I71: -0.0051 | J71: -0.0048 | K71: -0.0043 | L71: -0.0035 | M71: -0.0024 | N71: -0.001 | O71: 0.0006 | P71: 0.0024 | Q71: 0.0042 | R71: 0.0061 | S71: 0.0079 | T71: 0.0095 | U71: 0.0109 | V71: 0.0122 | W71: 0.0131 | X71: 0.0137 | Y71: 0.014 | Z71: 0.0139 | AA71: 0.0134 | AB71: 0.0126 | AC71: 0.0115 | AD71: 0.0101 | AE71: 0.0086 | AF71: 0.0071 | AG71: 0.0055 | AH71: 0.004 | AI71: 0.0027 | AJ71: 0.0016 | AK71: 0.0006 | AL71: -0.0001 | AM71: -0.0006 | AN71: -0.001 | AO71: -0.0013 | AP71: -0.0015 | AQ71: -0.0015 | AR71: -0.0013 | AS71: -0.0009 | AT71: -0.0002 | AU71: 0.0008 | AV71: 0.0021 | AW71: 0.0037 | AX71: 0.0055 | AY71: 0.0074 | AZ71: 0.0094 | BA71: 0.0112 | BB71: 0.0129 | BC71: 0.0141 | BD71: 0.0149 | BE71: 0.0152 | BF71: 0.015 | BG71: 0.0143 | BH71: 0.0134 | BI71: 0.0121 | BJ71: 0.0106 | BK71: 0.0091 | BL71: 0.0076 | BM71: 0.006 | BN71: 0.0046 | BO71: 0.0031 | BP71: 0.0032 | BQ71: 0.0035 | BR71: 0.0039 | BS71: 0.0042 | BT71: 0.0047 | BU71: 0.0051 | BV71: 0.0054 | BW71: 0.0057 | BX71: 0.0059 | BY71: 0.006 | BZ71: 0.0061 | CA71: 0.0061 | CB71: 0.006 | CC71: 0.0061 | CD71: 0.0062 | CE71: 0.0064 | CF71: 0.0065 | CG71: 0.0068 | CH71: 0.007 | CI71: 0.0073
A72: 89 | B72: -0.0027 | C72: -0.0034 | D72: -0.0041 | E72: -0.0048 | F72: -0.0053 | G72: -0.0057 | H72: -0.0058 | I72: -0.0058 | J72: -0.0054 | K72: -0.0047 | L72: -0.0037 | M72: -0.0025 | N72: -0.001 | O72: 0.0008 | P72: 0.0026 | Q72: 0.0045 | R72: 0.0064 | S72: 0.0081 | T72: 0.0098 | U72: 0.0112 | V72: 0.0123 | W72: 0.0132 | X72: 0.0138 | Y72: 0.014 | Z72: 0.0139 | AA72: 0.0134 | AB72: 0.0126 | AC72: 0.0115 | AD72: 0.0102 | AE72: 0.0087 | AF72: 0.0071 | AG72: 0.0055 | AH72: 0.0039 | AI72: 0.0025 | AJ72: 0.0012 | AK72: 0.0001 | AL72: -0.0008 | AM72: -0.0016 | AN72: -0.0021 | AO72: -0.0026 | AP72: -0.0028 | AQ72: -0.0029 | AR72: -0.0027 | AS72: -0.0023 | AT72: -0.0016 | AU72: -0.0006 | AV72: 0.0007 | AW72: 0.0023 | AX72: 0.0041 | AY72: 0.006 | AZ72: 0.008 | BA72: 0.0098 | BB72: 0.0114 | BC72: 0.0127 | BD72: 0.0136 | BE72: 0.014 | BF72: 0.0139 | BG72: 0.0134 | BH72: 0.0126 | BI72: 0.0115 | BJ72: 0.0101 | BK72: 0.0087 | BL72: 0.0073 | BM72: 0.0058 | BN72: 0.0044 | BO72: 0.003 | BP72: 0.0031 | BQ72: 0.0033 | BR72: 0.0036 | BS72: 0.004 | BT72: 0.0044 | BU72: 0.0047 | BV72: 0.0051 | BW72: 0.0054 | BX72: 0.0056 | BY72: 0.0057 | BZ72: 0.0057 | CA72: 0.0057 | CB72: 0.0057 | CC72: 0.0057 | CD72: 0.0058 | CE72: 0.006 | CF72: 0.0061 | CG72: 0.0063 | CH72: 0.0066 | CI72: 0.0068
A73: 90 | B73: -0.0049 | C73: -0.0054 | D73: -0.0058 | E73: -0.0062 | F73: -0.0066 | G73: -0.0067 | H73: -0.0067 | I73: -0.0064 | J73: -0.0059 | K73: -0.005 | L73: -0.0039 | M73: -0.0025 | N73: -0.0009 | O73: 0.0009 | P73: 0.0028 | Q73: 0.0047 | R73: 0.0066 | S73: 0.0084 | T73: 0.01 | U73: 0.0113 | V73: 0.0124 | W73: 0.0132 | X73: 0.0138 | Y73: 0.0139 | Z73: 0.0138 | AA73: 0.0133 | AB73: 0.0125 | AC73: 0.0114 | AD73: 0.0101 | AE73: 0.0087 | AF73: 0.0071 | AG73: 0.0054 | AH73: 0.0038 | AI73: 0.0022 | AJ73: 0.0008 | AK73: -0.0005 | AL73: -0.0015 | AM73: -0.0024 | AN73: -0.0032 | AO73: -0.0037 | AP73: -0.004 | AQ73: -0.0042 | AR73: -0.0041 | AS73: -0.0037 | AT73: -0.003 | AU73: -0.002 | AV73: -0.0007 | AW73: 0.0009 | AX73: 0.0027 | AY73: 0.0045 | AZ73: 0.0064 | BA73: 0.0083 | BB73: 0.0099 | BC73: 0.0112 | BD73: 0.0122 | BE73: 0.0127 | BF73: 0.0128 | BG73: 0.0124 | BH73: 0.0118 | BI73: 0.0108 | BJ73: 0.0096 | BK73: 0.0084 | BL73: 0.007 | BM73: 0.0057 | BN73: 0.0043 | BO73: 0.003 | BP73: 0.003 | BQ73: 0.0032 | BR73: 0.0034 | BS73: 0.0038 | BT73: 0.0041 | BU73: 0.0044 | BV73: 0.0047 | BW73: 0.005 | BX73: 0.0052 | BY73: 0.0053 | BZ73: 0.0053 | CA73: 0.0054 | CB73: 0.0054 | CC73: 0.0054 | CD73: 0.0054 | CE73: 0.0055 | CF73: 0.0057 | CG73: 0.0059 | CH73: 0.0061 | CI73: 0.0063
A74: 91 | B74: -0.0074 | C74: -0.0075 | D74: -0.0077 | E74: -0.0078 | F74: -0.0079 | G74: -0.0078 | H74: -0.0075 | I74: -0.007 | J74: -0.0063 | K74: -0.0053 | L74: -0.004 | M74: -0.0025 | N74: -0.0008 | O74: 0.001 | P74: 0.003 | Q74: 0.0049 | R74: 0.0068 | S74: 0.0085 | T74: 0.0101 | U74: 0.0114 | V74: 0.0125 | W74: 0.0132 | X74: 0.0137 | Y74: 0.0139 | Z74: 0.0137 | AA74: 0.0132 | AB74: 0.0124 | AC74: 0.0114 | AD74: 0.0101 | AE74: 0.0087 | AF74: 0.0071 | AG74: 0.0054 | AH74: 0.0037 | AI74: 0.002 | AJ74: 0.0005 | AK74: -0.0009 | AL74: -0.0022 | AM74: -0.0032 | AN74: -0.0041 | AO74: -0.0047 | AP74: -0.0052 | AQ74: -0.0054 | AR74: -0.0053 | AS74: -0.005 | AT74: -0.0043 | AU74: -0.0033 | AV74: -0.002 | AW74: -0.0005 | AX74: 0.0012 | AY74: 0.003 | AZ74: 0.0049 | BA74: 0.0067 | BB74: 0.0083 | BC74: 0.0097 | BD74: 0.0107 | BE74: 0.0113 | BF74: 0.0116 | BG74: 0.0114 | BH74: 0.0109 | BI74: 0.0101 | BJ74: 0.0091 | BK74: 0.008 | BL74: 0.0068 | BM74: 0.0056 | BN74: 0.0043 | BO74: 0.0031 | BP74: 0.0031 | BQ74: 0.0032 | BR74: 0.0033 | BS74: 0.0036 | BT74: 0.0039 | BU74: 0.0042 | BV74: 0.0044 | BW74: 0.0047 | BX74: 0.0048 | BY74: 0.0049 | BZ74: 0.005 | CA74: 0.005 | CB74: 0.005 | CC74: 0.0051 | CD74: 0.0051 | CE74: 0.0051 | CF74: 0.0052 | CG74: 0.0054 | CH74: 0.0056 | CI74: 0.0059
A75: 92 | B75: -0.01 | C75: -0.0099 | D75: -0.0097 | E75: -0.0095 | F75: -0.0092 | G75: -0.0088 | H75: -0.0083 | I75: -0.0076 | J75: -0.0066 | K75: -0.0055 | L75: -0.0041 | M75: -0.0025 | N75: -0.0007 | O75: 0.0012 | P75: 0.0031 | Q75: 0.0051 | R75: 0.0069 | S75: 0.0086 | T75: 0.0101 | U75: 0.0114 | V75: 0.0125 | W75: 0.0132 | X75: 0.0136 | Y75: 0.0138 | Z75: 0.0136 | AA75: 0.0131 | AB75: 0.0123 | AC75: 0.0113 | AD75: 0.0101 | AE75: 0.0086 | AF75: 0.007 | AG75: 0.0053 | AH75: 0.0036 | AI75: 0.0018 | AJ75: 0.0002 | AK75: -0.0013 | AL75: -0.0027 | AM75: -0.0039 | AN75: -0.0049 | AO75: -0.0057 | AP75: -0.0062 | AQ75: -0.0065 | AR75: -0.0065 | AS75: -0.0062 | AT75: -0.0056 | AU75: -0.0046 | AV75: -0.0034 | AW75: -0.002 | AX75: -0.0004 | AY75: 0.0014 | AZ75: 0.0032 | BA75: 0.005 | BB75: 0.0066 | BC75: 0.008 | BD75: 0.0091 | BE75: 0.0099 | BF75: 0.0103 | BG75: 0.0103 | BH75: 0.01 | BI75: 0.0094 | BJ75: 0.0086 | BK75: 0.0077 | BL75: 0.0066 | BM75: 0.0056 | BN75: 0.0044 | BO75: 0.0033 | BP75: 0.0032 | BQ75: 0.0032 | BR75: 0.0033 | BS75: 0.0035 | BT75: 0.0037 | BU75: 0.0039 | BV75: 0.0041 | BW75: 0.0043 | BX75: 0.0045 | BY75: 0.0046 | BZ75: 0.0046 | CA75: 0.0046 | CB75: 0.0047 | CC75: 0.0047 | CD75: 0.0047 | CE75: 0.0048 | CF75: 0.0048 | CG75: 0.005 | CH75: 0.0052 | CI75: 0.0054
A76: 93 | B76: -0.0129 | C76: -0.0123 | D76: -0.0118 | E76: -0.0112 | F76: -0.0106 | G76: -0.0099 | H76: -0.0091 | I76: -0.0081 | J76: -0.0069 | K76: -0.0056 | L76: -0.004 | M76: -0.0024 | N76: -0.0005 | O76: 0.0014 | P76: 0.0033 | Q76: 0.0052 | R76: 0.007 | S76: 0.0087 | T76: 0.0101 | U76: 0.0114 | V76: 0.0124 | W76: 0.0131 | X76: 0.0135 | Y76: 0.0136 | Z76: 0.0134 | AA76: 0.013 | AB76: 0.0122 | AC76: 0.0112 | AD76: 0.01 | AE76: 0.0085 | AF76: 0.0069 | AG76: 0.0052 | AH76: 0.0034 | AI76: 0.0016 | AJ76: -0.0001 | AK76: -0.0017 | AL76: -0.0032 | AM76: -0.0045 | AN76: -0.0056 | AO76: -0.0065 | AP76: -0.0071 | AQ76: -0.0075 | AR76: -0.0076 | AS76: -0.0073 | AT76: -0.0068 | AU76: -0.006 | AV76: -0.0048 | AW76: -0.0035 | AX76: -0.0019 | AY76: -0.0003 | AZ76: 0.0015 | BA76: 0.0032 | BB76: 0.0048 | BC76: 0.0063 | BD76: 0.0074 | BE76: 0.0083 | BF76: 0.0089 | BG76: 0.0091 | BH76: 0.009 | BI76: 0.0087 | BJ76: 0.0081 | BK76: 0.0074 | BL76: 0.0065 | BM76: 0.0056 | BN76: 0.0046 | BO76: 0.0037 | BP76: 0.0035 | BQ76: 0.0034 | BR76: 0.0034 | BS76: 0.0035 | BT76: 0.0036 | BU76: 0.0037 | BV76: 0.0039 | BW76: 0.004 | BX76: 0.0041 | BY76: 0.0042 | BZ76: 0.0042 | CA76: 0.0043 | CB76: 0.0043 | CC76: 0.0044 | CD76: 0.0044 | CE76: 0.0044 | CF76: 0.0045 | CG76: 0.0045 | CH76: 0.0047 | CI76: 0.0049
A77: 94 | B77: -0.016 | C77: -0.015 | D77: -0.0141 | E77: -0.0131 | F77: -0.0121 | G77: -0.011 | H77: -0.0098 | I77: -0.0085 | J77: -0.0071 | K77: -0.0056 | L77: -0.004 | M77: -0.0022 | N77: -0.0003 | O77: 0.0015 | P77: 0.0034 | Q77: 0.0053 | R77: 0.007 | S77: 0.0087 | T77: 0.0101 | U77: 0.0113 | V77: 0.0123 | W77: 0.0129 | X77: 0.0133 | Y77: 0.0134 | Z77: 0.0133 | AA77: 0.0128 | AB77: 0.0121 | AC77: 0.0111 | AD77: 0.0098 | AE77: 0.0084 | AF77: 0.0068 | AG77: 0.0051 | AH77: 0.0033 | AI77: 0.0015 | AJ77: -0.0003 | AK77: -0.002 | AL77: -0.0036 | AM77: -0.005 | AN77: -0.0062 | AO77: -0.0072 | AP77: -0.0079 | AQ77: -0.0084 | AR77: -0.0086 | AS77: -0.0084 | AT77: -0.008 | AU77: -0.0072 | AV77: -0.0062 | AW77: -0.005 | AX77: -0.0036 | AY77: -0.002 | AZ77: -0.0003 | BA77: 0.0014 | BB77: 0.003 | BC77: 0.0044 | BD77: 0.0057 | BE77: 0.0067 | BF77: 0.0075 | BG77: 0.0079 | BH77: 0.008 | BI77: 0.0079 | BJ77: 0.0076 | BK77: 0.0071 | BL77: 0.0064 | BM77: 0.0057 | BN77: 0.005 | BO77: 0.0042 | BP77: 0.0039 | BQ77: 0.0037 | BR77: 0.0036 | BS77: 0.0035 | BT77: 0.0035 | BU77: 0.0035 | BV77: 0.0036 | BW77: 0.0037 | BX77: 0.0038 | BY77: 0.0038 | BZ77: 0.0039 | CA77: 0.0039 | CB77: 0.004 | CC77: 0.004 | CD77: 0.004 | CE77: 0.0041 | CF77: 0.0041 | CG77: 0.0042 | CH77: 0.0042 | CI77: 0.0045
A78: 95 | B78: -0.0193 | C78: -0.0178 | D78: -0.0164 | E78: -0.015 | F78: -0.0136 | G78: -0.0121 | H78: -0.0105 | I78: -0.009 | J78: -0.0073 | K78: -0.0056 | L78: -0.0038 | M78: -0.002 | N78: -0.0001 | O78: 0.0018 | P78: 0.0036 | Q78: 0.0054 | R78: 0.0071 | S78: 0.0086 | T78: 0.01 | U78: 0.0111 | V78: 0.0121 | W78: 0.0127 | X78: 0.0131 | Y78: 0.0132 | Z78: 0.0131 | AA78: 0.0126 | AB78: 0.0119 | AC78: 0.0109 | AD78: 0.0097 | AE78: 0.0083 | AF78: 0.0067 | AG78: 0.0049 | AH78: 0.0031 | AI78: 0.0013 | AJ78: -0.0006 | AK78: -0.0023 | AL78: -0.004 | AM78: -0.0054 | AN78: -0.0067 | AO78: -0.0078 | AP78: -0.0086 | AQ78: -0.0092 | AR78: -0.0095 | AS78: -0.0094 | AT78: -0.0091 | AU78: -0.0085 | AV78: -0.0076 | AW78: -0.0065 | AX78: -0.0052 | AY78: -0.0037 | AZ78: -0.0022 | BA78: -0.0005 | BB78: 0.001 | BC78: 0.0025 | BD78: 0.0039 | BE78: 0.005 | BF78: 0.0059 | BG78: 0.0066 | BH78: 0.007 | BI78: 0.0071 | BJ78: 0.007 | BK78: 0.0068 | BL78: 0.0064 | BM78: 0.0059 | BN78: 0.0054 | BO78: 0.0048 | BP78: 0.0045 | BQ78: 0.0042 | BR78: 0.0039 | BS78: 0.0037 | BT78: 0.0035 | BU78: 0.0034 | BV78: 0.0034 | BW78: 0.0034 | BX78: 0.0034 | BY78: 0.0035 | BZ78: 0.0035 | CA78: 0.0036 | CB78: 0.0036 | CC78: 0.0037 | CD78: 0.0037 | CE78: 0.0037 | CF78: 0.0038 | CG78: 0.0038 | CH78: 0.0039 | CI78: 0.004
A79: 96 | B79: -0.0183 | C79: -0.017 | D79: -0.0156 | E79: -0.0143 | F79: -0.0129 | G79: -0.0115 | H79: -0.01 | I79: -0.0085 | J79: -0.0069 | K79: -0.0053 | L79: -0.0036 | M79: -0.0019 | N79: -0.0001 | O79: 0.0017 | P79: 0.0034 | Q79: 0.0051 | R79: 0.0067 | S79: 0.0082 | T79: 0.0095 | U79: 0.0106 | V79: 0.0115 | W79: 0.0121 | X79: 0.0125 | Y79: 0.0126 | Z79: 0.0124 | AA79: 0.012 | AB79: 0.0113 | AC79: 0.0104 | AD79: 0.0092 | AE79: 0.0078 | AF79: 0.0063 | AG79: 0.0047 | AH79: 0.003 | AI79: 0.0012 | AJ79: -0.0005 | AK79: -0.0022 | AL79: -0.0038 | AM79: -0.0052 | AN79: -0.0064 | AO79: -0.0074 | AP79: -0.0082 | AQ79: -0.0087 | AR79: -0.009 | AS79: -0.009 | AT79: -0.0087 | AU79: -0.0081 | AV79: -0.0073 | AW79: -0.0062 | AX79: -0.0049 | AY79: -0.0035 | AZ79: -0.002 | BA79: -0.0005 | BB79: 0.001 | BC79: 0.0024 | BD79: 0.0037 | BE79: 0.0048 | BF79: 0.0056 | BG79: 0.0063 | BH79: 0.0066 | BI79: 0.0068 | BJ79: 0.0067 | BK79: 0.0065 | BL79: 0.0061 | BM79: 0.0056 | BN79: 0.0051 | BO79: 0.0046 | BP79: 0.0047 | BQ79: 0.0043 | BR79: 0.0039 | BS79: 0.0037 | BT79: 0.0035 | BU79: 0.0033 | BV79: 0.0032 | BW79: 0.0032 | BX79: 0.0032 | BY79: 0.0032 | BZ79: 0.0033 | CA79: 0.0033 | CB79: 0.0034 | CC79: 0.0034 | CD79: 0.0035 | CE79: 0.0035 | CF79: 0.0036 | CG79: 0.0036 | CH79: 0.0037 | CI79: 0.0038
A80: 97 | B80: -0.0173 | C80: -0.0161 | D80: -0.0148 | E80: -0.0135 | F80: -0.0122 | G80: -0.0109 | H80: -0.0095 | I80: -0.0081 | J80: -0.0066 | K80: -0.005 | L80: -0.0034 | M80: -0.0018 | N80: -0.0001 | O80: 0.0016 | P80: 0.0032 | Q80: 0.0048 | R80: 0.0064 | S80: 0.0077 | T80: 0.009 | U80: 0.01 | V80: 0.0109 | W80: 0.0115 | X80: 0.0118 | Y80: 0.0119 | Z80: 0.0118 | AA80: 0.0113 | AB80: 0.0107 | AC80: 0.0098 | AD80: 0.0087 | AE80: 0.0074 | AF80: 0.006 | AG80: 0.0044 | AH80: 0.0028 | AI80: 0.0011 | AJ80: -0.0005 | AK80: -0.0021 | AL80: -0.0036 | AM80: -0.0049 | AN80: -0.0061 | AO80: -0.007 | AP80: -0.0078 | AQ80: -0.0083 | AR80: -0.0085 | AS80: -0.0085 | AT80: -0.0082 | AU80: -0.0077 | AV80: -0.0069 | AW80: -0.0059 | AX80: -0.0047 | AY80: -0.0034 | AZ80: -0.0019 | BA80: -0.0005 | BB80: 0.0009 | BC80: 0.0023 | BD80: 0.0035 | BE80: 0.0045 | BF80: 0.0053 | BG80: 0.0059 | BH80: 0.0063 | BI80: 0.0064 | BJ80: 0.0063 | BK80: 0.0061 | BL80: 0.0058 | BM80: 0.0053 | BN80: 0.0049 | BO80: 0.0043 | BP80: 0.0044 | BQ80: 0.0045 | BR80: 0.0041 | BS80: 0.0037 | BT80: 0.0034 | BU80: 0.0032 | BV80: 0.0031 | BW80: 0.003 | BX80: 0.003 | BY80: 0.003 | BZ80: 0.0031 | CA80: 0.0031 | CB80: 0.0032 | CC80: 0.0032 | CD80: 0.0033 | CE80: 0.0033 | CF80: 0.0034 | CG80: 0.0034 | CH80: 0.0035 | CI80: 0.0036
A81: 98 | B81: -0.0164 | C81: -0.0152 | D81: -0.014 | E81: -0.0128 | F81: -0.0115 | G81: -0.0103 | H81: -0.009 | I81: -0.0076 | J81: -0.0062 | K81: -0.0048 | L81: -0.0032 | M81: -0.0017 | N81: -0.0001 | O81: 0.0015 | P81: 0.0031 | Q81: 0.0046 | R81: 0.006 | S81: 0.0073 | T81: 0.0085 | U81: 0.0095 | V81: 0.0102 | W81: 0.0108 | X81: 0.0112 | Y81: 0.0112 | Z81: 0.0111 | AA81: 0.0107 | AB81: 0.0101 | AC81: 0.0093 | AD81: 0.0082 | AE81: 0.007 | AF81: 0.0057 | AG81: 0.0042 | AH81: 0.0027 | AI81: 0.0011 | AJ81: -0.0005 | AK81: -0.002 | AL81: -0.0034 | AM81: -0.0046 | AN81: -0.0057 | AO81: -0.0066 | AP81: -0.0073 | AQ81: -0.0078 | AR81: -0.008 | AS81: -0.008 | AT81: -0.0077 | AU81: -0.0072 | AV81: -0.0065 | AW81: -0.0055 | AX81: -0.0044 | AY81: -0.0032 | AZ81: -0.0018 | BA81: -0.0005 | BB81: 0.0009 | BC81: 0.0022 | BD81: 0.0033 | BE81: 0.0043 | BF81: 0.005 | BG81: 0.0056 | BH81: 0.0059 | BI81: 0.0061 | BJ81: 0.006 | BK81: 0.0058 | BL81: 0.0055 | BM81: 0.005 | BN81: 0.0046 | BO81: 0.0041 | BP81: 0.0042 | BQ81: 0.0042 | BR81: 0.0042 | BS81: 0.0038 | BT81: 0.0035 | BU81: 0.0032 | BV81: 0.003 | BW81: 0.0029 | BX81: 0.0028 | BY81: 0.0028 | BZ81: 0.0029 | CA81: 0.0029 | CB81: 0.003 | CC81: 0.003 | CD81: 0.0031 | CE81: 0.0031 | CF81: 0.0032 | CG81: 0.0032 | CH81: 0.0033 | CI81: 0.0034
A82: 99 | B82: -0.0154 | C82: -0.0143 | D82: -0.0131 | E82: -0.012 | F82: -0.0108 | G82: -0.0097 | H82: -0.0084 | I82: -0.0072 | J82: -0.0058 | K82: -0.0045 | L82: -0.003 | M82: -0.0016 | N82: -0.0001 | O82: 0.0014 | P82: 0.0029 | Q82: 0.0043 | R82: 0.0056 | S82: 0.0069 | T82: 0.008 | U82: 0.0089 | V82: 0.0096 | W82: 0.0102 | X82: 0.0105 | Y82: 0.0106 | Z82: 0.0104 | AA82: 0.0101 | AB82: 0.0095 | AC82: 0.0087 | AD82: 0.0077 | AE82: 0.0066 | AF82: 0.0053 | AG82: 0.004 | AH82: 0.0025 | AI82: 0.001 | AJ82: -0.0004 | AK82: -0.0019 | AL82: -0.0032 | AM82: -0.0044 | AN82: -0.0054 | AO82: -0.0062 | AP82: -0.0069 | AQ82: -0.0073 | AR82: -0.0076 | AS82: -0.0075 | AT82: -0.0073 | AU82: -0.0068 | AV82: -0.0061 | AW82: -0.0052 | AX82: -0.0042 | AY82: -0.003 | AZ82: -0.0017 | BA82: -0.0004 | BB82: 0.0008 | BC82: 0.002 | BD82: 0.0031 | BE82: 0.004 | BF82: 0.0047 | BG82: 0.0053 | BH82: 0.0056 | BI82: 0.0057 | BJ82: 0.0056 | BK82: 0.0054 | BL82: 0.0051 | BM82: 0.0047 | BN82: 0.0043 | BO82: 0.0039 | BP82: 0.0039 | BQ82: 0.004 | BR82: 0.004 | BS82: 0.004 | BT82: 0.0035 | BU82: 0.0032 | BV82: 0.0029 | BW82: 0.0028 | BX82: 0.0027 | BY82: 0.0026 | BZ82: 0.0027 | CA82: 0.0027 | CB82: 0.0027 | CC82: 0.0028 | CD82: 0.0029 | CE82: 0.0029 | CF82: 0.003 | CG82: 0.003 | CH82: 0.0031 | CI82: 0.0032
A83: 100 | B83: -0.0144 | C83: -0.0134 | D83: -0.0123 | E83: -0.0113 | F83: -0.0102 | G83: -0.0091 | H83: -0.0079 | I83: -0.0067 | J83: -0.0055 | K83: -0.0042 | L83: -0.0029 | M83: -0.0015 | N83: -0.0001 | O83: 0.0013 | P83: 0.0027 | Q83: 0.004 | R83: 0.0053 | S83: 0.0065 | T83: 0.0075 | U83: 0.0083 | V83: 0.009 | W83: 0.0095 | X83: 0.0098 | Y83: 0.0099 | Z83: 0.0098 | AA83: 0.0095 | AB83: 0.0089 | AC83: 0.0082 | AD83: 0.0073 | AE83: 0.0062 | AF83: 0.005 | AG83: 0.0037 | AH83: 0.0023 | AI83: 0.001 | AJ83: -0.0004 | AK83: -0.0017 | AL83: -0.003 | AM83: -0.0041 | AN83: -0.0051 | AO83: -0.0059 | AP83: -0.0065 | AQ83: -0.0069 | AR83: -0.0071 | AS83: -0.0071 | AT83: -0.0068 | AU83: -0.0064 | AV83: -0.0057 | AW83: -0.0049 | AX83: -0.0039 | AY83: -0.0028 | AZ83: -0.0016 | BA83: -0.0004 | BB83: 0.0008 | BC83: 0.0019 | BD83: 0.0029 | BE83: 0.0038 | BF83: 0.0045 | BG83: 0.0049 | BH83: 0.0052 | BI83: 0.0053 | BJ83: 0.0053 | BK83: 0.0051 | BL83: 0.0048 | BM83: 0.0045 | BN83: 0.004 | BO83: 0.0036 | BP83: 0.0037 | BQ83: 0.0038 | BR83: 0.0038 | BS83: 0.0037 | BT83: 0.0037 | BU83: 0.0033 | BV83: 0.0029 | BW83: 0.0027 | BX83: 0.0026 | BY83: 0.0025 | BZ83: 0.0025 | CA83: 0.0025 | CB83: 0.0025 | CC83: 0.0026 | CD83: 0.0026 | CE83: 0.0027 | CF83: 0.0028 | CG83: 0.0028 | CH83: 0.0029 | CI83: 0.003
A84: 101 | B84: -0.0135 | C84: -0.0125 | D84: -0.0115 | E84: -0.0105 | F84: -0.0095 | G84: -0.0085 | H84: -0.0074 | I84: -0.0063 | J84: -0.0051 | K84: -0.0039 | L84: -0.0027 | M84: -0.0014 | N84: -0.0001 | O84: 0.0012 | P84: 0.0025 | Q84: 0.0038 | R84: 0.0049 | S84: 0.006 | T84: 0.007 | U84: 0.0078 | V84: 0.0084 | W84: 0.0089 | X84: 0.0092 | Y84: 0.0093 | Z84: 0.0091 | AA84: 0.0088 | AB84: 0.0083 | AC84: 0.0076 | AD84: 0.0068 | AE84: 0.0058 | AF84: 0.0047 | AG84: 0.0035 | AH84: 0.0022 | AI84: 0.0009 | AJ84: -0.0004 | AK84: -0.0016 | AL84: -0.0028 | AM84: -0.0038 | AN84: -0.0047 | AO84: -0.0055 | AP84: -0.006 | AQ84: -0.0064 | AR84: -0.0066 | AS84: -0.0066 | AT84: -0.0064 | AU84: -0.006 | AV84: -0.0053 | AW84: -0.0046 | AX84: -0.0036 | AY84: -0.0026 | AZ84: -0.0015 | BA84: -0.0004 | BB84: 0.0007 | BC84: 0.0018 | BD84: 0.0027 | BE84: 0.0035 | BF84: 0.0042 | BG84: 0.0046 | BH84: 0.0049 | BI84: 0.005 | BJ84: 0.0049 | BK84: 0.0048 | BL84: 0.0045 | BM84: 0.0042 | BN84: 0.0038 | BO84: 0.0034 | BP84: 0.0035 | BQ84: 0.0035 | BR84: 0.0035 | BS84: 0.0035 | BT84: 0.0035 | BU84: 0.0034 | BV84: 0.003 | BW84: 0.0027 | BX84: 0.0025 | BY84: 0.0024 | BZ84: 0.0023 | CA84: 0.0023 | CB84: 0.0023 | CC84: 0.0024 | CD84: 0.0024 | CE84: 0.0025 | CF84: 0.0026 | CG84: 0.0026 | CH84: 0.0027 | CI84: 0.0028
A85: 102 | B85: -0.0125 | C85: -0.0116 | D85: -0.0107 | E85: -0.0098 | F85: -0.0088 | G85: -0.0078 | H85: -0.0069 | I85: -0.0058 | J85: -0.0048 | K85: -0.0036 | L85: -0.0025 | M85: -0.0013 | N85: -0.0001 | O85: 0.0011 | P85: 0.0023 | Q85: 0.0035 | R85: 0.0046 | S85: 0.0056 | T85: 0.0065 | U85: 0.0072 | V85: 0.0078 | W85: 0.0083 | X85: 0.0085 | Y85: 0.0086 | Z85: 0.0085 | AA85: 0.0082 | AB85: 0.0077 | AC85: 0.0071 | AD85: 0.0063 | AE85: 0.0054 | AF85: 0.0043 | AG85: 0.0032 | AH85: 0.002 | AI85: 0.0008 | AJ85: -0.0004 | AK85: -0.0015 | AL85: -0.0026 | AM85: -0.0035 | AN85: -0.0044 | AO85: -0.0051 | AP85: -0.0056 | AQ85: -0.006 | AR85: -0.0061 | AS85: -0.0061 | AT85: -0.0059 | AU85: -0.0055 | AV85: -0.005 | AW85: -0.0042 | AX85: -0.0034 | AY85: -0.0024 | AZ85: -0.0014 | BA85: -0.0004 | BB85: 0.0007 | BC85: 0.0017 | BD85: 0.0025 | BE85: 0.0033 | BF85: 0.0039 | BG85: 0.0043 | BH85: 0.0045 | BI85: 0.0046 | BJ85: 0.0046 | BK85: 0.0044 | BL85: 0.0042 | BM85: 0.0039 | BN85: 0.0035 | BO85: 0.0031 | BP85: 0.0032 | BQ85: 0.0033 | BR85: 0.0033 | BS85: 0.0033 | BT85: 0.0033 | BU85: 0.0032 | BV85: 0.0031 | BW85: 0.0027 | BX85: 0.0024 | BY85: 0.0023 | BZ85: 0.0022 | CA85: 0.0021 | CB85: 0.0022 | CC85: 0.0022 | CD85: 0.0022 | CE85: 0.0023 | CF85: 0.0024 | CG85: 0.0024 | CH85: 0.0025 | CI85: 0.0026
A86: 103 | B86: -0.0116 | C86: -0.0107 | D86: -0.0099 | E86: -0.009 | F86: -0.0081 | G86: -0.0072 | H86: -0.0063 | I86: -0.0054 | J86: -0.0044 | K86: -0.0034 | L86: -0.0023 | M86: -0.0012 | N86: -0.0001 | O86: 0.0011 | P86: 0.0022 | Q86: 0.0032 | R86: 0.0042 | S86: 0.0052 | T86: 0.006 | U86: 0.0067 | V86: 0.0072 | W86: 0.0076 | X86: 0.0079 | Y86: 0.0079 | Z86: 0.0078 | AA86: 0.0076 | AB86: 0.0071 | AC86: 0.0065 | AD86: 0.0058 | AE86: 0.005 | AF86: 0.004 | AG86: 0.003 | AH86: 0.0019 | AI86: 0.0008 | AJ86: -0.0003 | AK86: -0.0014 | AL86: -0.0024 | AM86: -0.0033 | AN86: -0.004 | AO86: -0.0047 | AP86: -0.0052 | AQ86: -0.0055 | AR86: -0.0057 | AS86: -0.0057 | AT86: -0.0055 | AU86: -0.0051 | AV86: -0.0046 | AW86: -0.0039 | AX86: -0.0031 | AY86: -0.0022 | AZ86: -0.0013 | BA86: -0.0003 | BB86: 0.0006 | BC86: 0.0015 | BD86: 0.0023 | BE86: 0.003 | BF86: 0.0036 | BG86: 0.004 | BH86: 0.0042 | BI86: 0.0043 | BJ86: 0.0042 | BK86: 0.0041 | BL86: 0.0038 | BM86: 0.0036 | BN86: 0.0032 | BO86: 0.0029 | BP86: 0.003 | BQ86: 0.0031 | BR86: 0.0031 | BS86: 0.0031 | BT86: 0.003 | BU86: 0.003 | BV86: 0.0029 | BW86: 0.0028 | BX86: 0.0024 | BY86: 0.0022 | BZ86: 0.0021 | CA86: 0.002 | CB86: 0.002 | CC86: 0.002 | CD86: 0.002 | CE86: 0.0021 | CF86: 0.0022 | CG86: 0.0022 | CH86: 0.0023 | CI86: 0.0024
A87: 104 | B87: -0.0106 | C87: -0.0098 | D87: -0.009 | E87: -0.0083 | F87: -0.0075 | G87: -0.0066 | H87: -0.0058 | I87: -0.0049 | J87: -0.004 | K87: -0.0031 | L87: -0.0021 | M87: -0.0011 | N87: -0.0001 | O87: 0.001 | P87: 0.002 | Q87: 0.003 | R87: 0.0039 | S87: 0.0047 | T87: 0.0055 | U87: 0.0061 | V87: 0.0066 | W87: 0.007 | X87: 0.0072 | Y87: 0.0073 | Z87: 0.0072 | AA87: 0.0069 | AB87: 0.0065 | AC87: 0.006 | AD87: 0.0053 | AE87: 0.0045 | AF87: 0.0037 | AG87: 0.0027 | AH87: 0.0017 | AI87: 0.0007 | AJ87: -0.0003 | AK87: -0.0013 | AL87: -0.0022 | AM87: -0.003 | AN87: -0.0037 | AO87: -0.0043 | AP87: -0.0047 | AQ87: -0.005 | AR87: -0.0052 | AS87: -0.0052 | AT87: -0.005 | AU87: -0.0047 | AV87: -0.0042 | AW87: -0.0036 | AX87: -0.0029 | AY87: -0.0021 | AZ87: -0.0012 | BA87: -0.0003 | BB87: 0.0006 | BC87: 0.0014 | BD87: 0.0021 | BE87: 0.0028 | BF87: 0.0033 | BG87: 0.0036 | BH87: 0.0038 | BI87: 0.0039 | BJ87: 0.0039 | BK87: 0.0037 | BL87: 0.0035 | BM87: 0.0033 | BN87: 0.003 | BO87: 0.0026 | BP87: 0.0027 | BQ87: 0.0028 | BR87: 0.0028 | BS87: 0.0029 | BT87: 0.0028 | BU87: 0.0028 | BV87: 0.0027 | BW87: 0.0026 | BX87: 0.0025 | BY87: 0.0022 | BZ87: 0.002 | CA87: 0.0019 | CB87: 0.0018 | CC87: 0.0018 | CD87: 0.0018 | CE87: 0.0019 | CF87: 0.002 | CG87: 0.002 | CH87: 0.0021 | CI87: 0.0022
A88: 105 | B88: -0.0096 | C88: -0.0089 | D88: -0.0082 | E88: -0.0075 | F88: -0.0068 | G88: -0.006 | H88: -0.0053 | I88: -0.0045 | J88: -0.0037 | K88: -0.0028 | L88: -0.0019 | M88: -0.001 | N88: -0.0001 | O88: 0.0009 | P88: 0.0018 | Q88: 0.0027 | R88: 0.0035 | S88: 0.0043 | T88: 0.005 | U88: 0.0056 | V88: 0.006 | W88: 0.0064 | X88: 0.0066 | Y88: 0.0066 | Z88: 0.0065 | AA88: 0.0063 | AB88: 0.0059 | AC88: 0.0055 | AD88: 0.0048 | AE88: 0.0041 | AF88: 0.0033 | AG88: 0.0025 | AH88: 0.0016 | AI88: 0.0006 | AJ88: -0.0003 | AK88: -0.0012 | AL88: -0.002 | AM88: -0.0027 | AN88: -0.0034 | AO88: -0.0039 | AP88: -0.0043 | AQ88: -0.0046 | AR88: -0.0047 | AS88: -0.0047 | AT88: -0.0046 | AU88: -0.0043 | AV88: -0.0038 | AW88: -0.0033 | AX88: -0.0026 | AY88: -0.0019 | AZ88: -0.0011 | BA88: -0.0003 | BB88: 0.0005 | BC88: 0.0013 | BD88: 0.0019 | BE88: 0.0025 | BF88: 0.003 | BG88: 0.0033 | BH88: 0.0035 | BI88: 0.0036 | BJ88: 0.0035 | BK88: 0.0034 | BL88: 0.0032 | BM88: 0.003 | BN88: 0.0027 | BO88: 0.0024 | BP88: 0.0025 | BQ88: 0.0026 | BR88: 0.0026 | BS88: 0.0026 | BT88: 0.0026 | BU88: 0.0026 | BV88: 0.0025 | BW88: 0.0024 | BX88: 0.0023 | BY88: 0.0022 | BZ88: 0.0019 | CA88: 0.0018 | CB88: 0.0017 | CC88: 0.0016 | CD88: 0.0017 | CE88: 0.0017 | CF88: 0.0018 | CG88: 0.0018 | CH88: 0.0019 | CI88: 0.002
A89: 106 | B89: -0.0087 | C89: -0.008 | D89: -0.0074 | E89: -0.0068 | F89: -0.0061 | G89: -0.0054 | H89: -0.0047 | I89: -0.004 | J89: -0.0033 | K89: -0.0025 | L89: -0.0017 | M89: -0.0009 | N89: -0.0001 | O89: 0.0008 | P89: 0.0016 | Q89: 0.0024 | R89: 0.0032 | S89: 0.0039 | T89: 0.0045 | U89: 0.005 | V89: 0.0054 | W89: 0.0057 | X89: 0.0059 | Y89: 0.006 | Z89: 0.0059 | AA89: 0.0057 | AB89: 0.0053 | AC89: 0.0049 | AD89: 0.0044 | AE89: 0.0037 | AF89: 0.003 | AG89: 0.0022 | AH89: 0.0014 | AI89: 0.0006 | AJ89: -0.0002 | AK89: -0.001 | AL89: -0.0018 | AM89: -0.0025 | AN89: -0.003 | AO89: -0.0035 | AP89: -0.0039 | AQ89: -0.0041 | AR89: -0.0043 | AS89: -0.0042 | AT89: -0.0041 | AU89: -0.0038 | AV89: -0.0034 | AW89: -0.0029 | AX89: -0.0023 | AY89: -0.0017 | AZ89: -0.001 | BA89: -0.0002 | BB89: 0.0005 | BC89: 0.0011 | BD89: 0.0017 | BE89: 0.0023 | BF89: 0.0027 | BG89: 0.003 | BH89: 0.0031 | BI89: 0.0032 | BJ89: 0.0032 | BK89: 0.0031 | BL89: 0.0029 | BM89: 0.0027 | BN89: 0.0024 | BO89: 0.0022 | BP89: 0.0023 | BQ89: 0.0023 | BR89: 0.0024 | BS89: 0.0024 | BT89: 0.0024 | BU89: 0.0024 | BV89: 0.0023 | BW89: 0.0022 | BX89: 0.0022 | BY89: 0.002 | BZ89: 0.0019 | CA89: 0.0017 | CB89: 0.0016 | CC89: 0.0015 | CD89: 0.0015 | CE89: 0.0015 | CF89: 0.0016 | CG89: 0.0016 | CH89: 0.0017 | CI89: 0.0018
A90: 107 | B90: -0.0077 | C90: -0.0071 | D90: -0.0066 | E90: -0.006 | F90: -0.0054 | G90: -0.0048 | H90: -0.0042 | I90: -0.0036 | J90: -0.0029 | K90: -0.0022 | L90: -0.0015 | M90: -0.0008 | N90: 0 | O90: 0.0007 | P90: 0.0014 | Q90: 0.0022 | R90: 0.0028 | S90: 0.0034 | T90: 0.004 | U90: 0.0045 | V90: 0.0048 | W90: 0.0051 | X90: 0.0052 | Y90: 0.0053 | Z90: 0.0052 | AA90: 0.005 | AB90: 0.0048 | AC90: 0.0044 | AD90: 0.0039 | AE90: 0.0033 | AF90: 0.0027 | AG90: 0.002 | AH90: 0.0012 | AI90: 0.0005 | AJ90: -0.0002 | AK90: -0.0009 | AL90: -0.0016 | AM90: -0.0022 | AN90: -0.0027 | AO90: -0.0031 | AP90: -0.0034 | AQ90: -0.0037 | AR90: -0.0038 | AS90: -0.0038 | AT90: -0.0036 | AU90: -0.0034 | AV90: -0.0031 | AW90: -0.0026 | AX90: -0.0021 | AY90: -0.0015 | AZ90: -0.0009 | BA90: -0.0002 | BB90: 0.0004 | BC90: 0.001 | BD90: 0.0016 | BE90: 0.002 | BF90: 0.0024 | BG90: 0.0026 | BH90: 0.0028 | BI90: 0.0028 | BJ90: 0.0028 | BK90: 0.0027 | BL90: 0.0026 | BM90: 0.0024 | BN90: 0.0022 | BO90: 0.0019 | BP90: 0.002 | BQ90: 0.0021 | BR90: 0.0021 | BS90: 0.0021 | BT90: 0.0022 | BU90: 0.0021 | BV90: 0.0021 | BW90: 0.0021 | BX90: 0.002 | BY90: 0.0019 | BZ90: 0.0018 | CA90: 0.0016 | CB90: 0.0015 | CC90: 0.0014 | CD90: 0.0013 | CE90: 0.0013 | CF90: 0.0014 | CG90: 0.0014 | CH90: 0.0015 | CI90: 0.0016
A91: 108 | B91: -0.0067 | C91: -0.0062 | D91: -0.0057 | E91: -0.0053 | F91: -0.0047 | G91: -0.0042 | H91: -0.0037 | I91: -0.0031 | J91: -0.0026 | K91: -0.002 | L91: -0.0013 | M91: -0.0007 | N91: 0 | O91: 0.0006 | P91: 0.0013 | Q91: 0.0019 | R91: 0.0025 | S91: 0.003 | T91: 0.0035 | U91: 0.0039 | V91: 0.0042 | W91: 0.0045 | X91: 0.0046 | Y91: 0.0046 | Z91: 0.0046 | AA91: 0.0044 | AB91: 0.0042 | AC91: 0.0038 | AD91: 0.0034 | AE91: 0.0029 | AF91: 0.0023 | AG91: 0.0017 | AH91: 0.0011 | AI91: 0.0004 | AJ91: -0.0002 | AK91: -0.0008 | AL91: -0.0014 | AM91: -0.0019 | AN91: -0.0024 | AO91: -0.0027 | AP91: -0.003 | AQ91: -0.0032 | AR91: -0.0033 | AS91: -0.0033 | AT91: -0.0032 | AU91: -0.003 | AV91: -0.0027 | AW91: -0.0023 | AX91: -0.0018 | AY91: -0.0013 | AZ91: -0.0008 | BA91: -0.0002 | BB91: 0.0004 | BC91: 0.0009 | BD91: 0.0014 | BE91: 0.0018 | BF91: 0.0021 | BG91: 0.0023 | BH91: 0.0024 | BI91: 0.0025 | BJ91: 0.0025 | BK91: 0.0024 | BL91: 0.0022 | BM91: 0.0021 | BN91: 0.0019 | BO91: 0.0017 | BP91: 0.0018 | BQ91: 0.0019 | BR91: 0.0019 | BS91: 0.0019 | BT91: 0.0019 | BU91: 0.0019 | BV91: 0.0019 | BW91: 0.0019 | BX91: 0.0018 | BY91: 0.0017 | BZ91: 0.0016 | CA91: 0.0015 | CB91: 0.0014 | CC91: 0.0012 | CD91: 0.0012 | CE91: 0.0011 | CF91: 0.0012 | CG91: 0.0012 | CH91: 0.0013 | CI91: 0.0014
A92: 109 | B92: -0.0058 | C92: -0.0054 | D92: -0.0049 | E92: -0.0045 | F92: -0.0041 | G92: -0.0036 | H92: -0.0032 | I92: -0.0027 | J92: -0.0022 | K92: -0.0017 | L92: -0.0011 | M92: -0.0006 | N92: 0 | O92: 0.0005 | P92: 0.0011 | Q92: 0.0016 | R92: 0.0021 | S92: 0.0026 | T92: 0.003 | U92: 0.0033 | V92: 0.0036 | W92: 0.0038 | X92: 0.0039 | Y92: 0.004 | Z92: 0.0039 | AA92: 0.0038 | AB92: 0.0036 | AC92: 0.0033 | AD92: 0.0029 | AE92: 0.0025 | AF92: 0.002 | AG92: 0.0015 | AH92: 0.0009 | AI92: 0.0004 | AJ92: -0.0002 | AK92: -0.0007 | AL92: -0.0012 | AM92: -0.0016 | AN92: -0.002 | AO92: -0.0023 | AP92: -0.0026 | AQ92: -0.0028 | AR92: -0.0028 | AS92: -0.0028 | AT92: -0.0027 | AU92: -0.0026 | AV92: -0.0023 | AW92: -0.002 | AX92: -0.0016 | AY92: -0.0011 | AZ92: -0.0006 | BA92: -0.0002 | BB92: 0.0003 | BC92: 0.0008 | BD92: 0.0012 | BE92: 0.0015 | BF92: 0.0018 | BG92: 0.002 | BH92: 0.0021 | BI92: 0.0021 | BJ92: 0.0021 | BK92: 0.002 | BL92: 0.0019 | BM92: 0.0018 | BN92: 0.0016 | BO92: 0.0014 | BP92: 0.0015 | BQ92: 0.0016 | BR92: 0.0017 | BS92: 0.0017 | BT92: 0.0017 | BU92: 0.0017 | BV92: 0.0017 | BW92: 0.0017 | BX92: 0.0016 | BY92: 0.0016 | BZ92: 0.0015 | CA92: 0.0014 | CB92: 0.0012 | CC92: 0.0011 | CD92: 0.001 | CE92: 0.001 | CF92: 0.001 | CG92: 0.001 | CH92: 0.0011 | CI92: 0.0012
A93: 110 | B93: -0.0048 | C93: -0.0045 | D93: -0.0041 | E93: -0.0038 | F93: -0.0034 | G93: -0.003 | H93: -0.0026 | I93: -0.0022 | J93: -0.0018 | K93: -0.0014 | L93: -0.001 | M93: -0.0005 | N93: 0 | O93: 0.0004 | P93: 0.0009 | Q93: 0.0013 | R93: 0.0018 | S93: 0.0022 | T93: 0.0025 | U93: 0.0028 | V93: 0.003 | W93: 0.0032 | X93: 0.0033 | Y93: 0.0033 | Z93: 0.0033 | AA93: 0.0032 | AB93: 0.003 | AC93: 0.0027 | AD93: 0.0024 | AE93: 0.0021 | AF93: 0.0017 | AG93: 0.0012 | AH93: 0.0008 | AI93: 0.0003 | AJ93: -0.0001 | AK93: -0.0006 | AL93: -0.001 | AM93: -0.0014 | AN93: -0.0017 | AO93: -0.002 | AP93: -0.0022 | AQ93: -0.0023 | AR93: -0.0024 | AS93: -0.0024 | AT93: -0.0023 | AU93: -0.0021 | AV93: -0.0019 | AW93: -0.0016 | AX93: -0.0013 | AY93: -0.0009 | AZ93: -0.0005 | BA93: -0.0001 | BB93: 0.0003 | BC93: 0.0006 | BD93: 0.001 | BE93: 0.0013 | BF93: 0.0015 | BG93: 0.0016 | BH93: 0.0017 | BI93: 0.0018 | BJ93: 0.0018 | BK93: 0.0017 | BL93: 0.0016 | BM93: 0.0015 | BN93: 0.0013 | BO93: 0.0012 | BP93: 0.0013 | BQ93: 0.0014 | BR93: 0.0014 | BS93: 0.0014 | BT93: 0.0014 | BU93: 0.0014 | BV93: 0.0014 | BW93: 0.0014 | BX93: 0.0014 | BY93: 0.0014 | BZ93: 0.0013 | CA93: 0.0012 | CB93: 0.0011 | CC93: 0.001 | CD93: 0.0009 | CE93: 0.0008 | CF93: 0.0008 | CG93: 0.0008 | CH93: 0.0009 | CI93: 0.001
A94: 111 | B94: -0.0039 | C94: -0.0036 | D94: -0.0033 | E94: -0.003 | F94: -0.0027 | G94: -0.0024 | H94: -0.0021 | I94: -0.0018 | J94: -0.0015 | K94: -0.0011 | L94: -0.0008 | M94: -0.0004 | N94: 0 | O94: 0.0004 | P94: 0.0007 | Q94: 0.0011 | R94: 0.0014 | S94: 0.0017 | T94: 0.002 | U94: 0.0022 | V94: 0.0024 | W94: 0.0025 | X94: 0.0026 | Y94: 0.0026 | Z94: 0.0026 | AA94: 0.0025 | AB94: 0.0024 | AC94: 0.0022 | AD94: 0.0019 | AE94: 0.0017 | AF94: 0.0013 | AG94: 0.001 | AH94: 0.0006 | AI94: 0.0003 | AJ94: -0.0001 | AK94: -0.0005 | AL94: -0.0008 | AM94: -0.0011 | AN94: -0.0013 | AO94: -0.0016 | AP94: -0.0017 | AQ94: -0.0018 | AR94: -0.0019 | AS94: -0.0019 | AT94: -0.0018 | AU94: -0.0017 | AV94: -0.0015 | AW94: -0.0013 | AX94: -0.001 | AY94: -0.0007 | AZ94: -0.0004 | BA94: -0.0001 | BB94: 0.0002 | BC94: 0.0005 | BD94: 0.0008 | BE94: 0.001 | BF94: 0.0012 | BG94: 0.0013 | BH94: 0.0014 | BI94: 0.0014 | BJ94: 0.0014 | BK94: 0.0014 | BL94: 0.0013 | BM94: 0.0012 | BN94: 0.0011 | BO94: 0.001 | BP94: 0.0011 | BQ94: 0.0011 | BR94: 0.0012 | BS94: 0.0012 | BT94: 0.0012 | BU94: 0.0012 | BV94: 0.0012 | BW94: 0.0012 | BX94: 0.0012 | BY94: 0.0012 | BZ94: 0.0012 | CA94: 0.0011 | CB94: 0.001 | CC94: 0.0009 | CD94: 0.0008 | CE94: 0.0007 | CF94: 0.0006 | CG94: 0.0006 | CH94: 0.0007 | CI94: 0.0008
A95: 112 | B95: -0.0029 | C95: -0.0027 | D95: -0.0025 | E95: -0.0023 | F95: -0.002 | G95: -0.0018 | H95: -0.0016 | I95: -0.0013 | J95: -0.0011 | K95: -0.0008 | L95: -0.0006 | M95: -0.0003 | N95: 0 | O95: 0.0003 | P95: 0.0005 | Q95: 0.0008 | R95: 0.0011 | S95: 0.0013 | T95: 0.0015 | U95: 0.0017 | V95: 0.0018 | W95: 0.0019 | X95: 0.002 | Y95: 0.002 | Z95: 0.002 | AA95: 0.0019 | AB95: 0.0018 | AC95: 0.0016 | AD95: 0.0015 | AE95: 0.0012 | AF95: 0.001 | AG95: 0.0007 | AH95: 0.0005 | AI95: 0.0002 | AJ95: -0.0001 | AK95: -0.0003 | AL95: -0.0006 | AM95: -0.0008 | AN95: -0.001 | AO95: -0.0012 | AP95: -0.0013 | AQ95: -0.0014 | AR95: -0.0014 | AS95: -0.0014 | AT95: -0.0014 | AU95: -0.0013 | AV95: -0.0011 | AW95: -0.001 | AX95: -0.0008 | AY95: -0.0006 | AZ95: -0.0003 | BA95: -0.0001 | BB95: 0.0002 | BC95: 0.0004 | BD95: 0.0006 | BE95: 0.0008 | BF95: 0.0009 | BG95: 0.001 | BH95: 0.001 | BI95: 0.0011 | BJ95: 0.0011 | BK95: 0.001 | BL95: 0.001 | BM95: 0.0009 | BN95: 0.0008 | BO95: 0.0007 | BP95: 0.0008 | BQ95: 0.0009 | BR95: 0.0009 | BS95: 0.001 | BT95: 0.001 | BU95: 0.001 | BV95: 0.001 | BW95: 0.001 | BX95: 0.001 | BY95: 0.001 | BZ95: 0.0009 | CA95: 0.0009 | CB95: 0.0008 | CC95: 0.0007 | CD95: 0.0006 | CE95: 0.0005 | CF95: 0.0004 | CG95: 0.0005 | CH95: 0.0005 | CI95: 0.0006
A96: 113 | B96: -0.0019 | C96: -0.0018 | D96: -0.0016 | E96: -0.0015 | F96: -0.0014 | G96: -0.0012 | H96: -0.0011 | I96: -0.0009 | J96: -0.0007 | K96: -0.0006 | L96: -0.0004 | M96: -0.0002 | N96: 0 | O96: 0.0002 | P96: 0.0004 | Q96: 0.0005 | R96: 0.0007 | S96: 0.0009 | T96: 0.001 | U96: 0.0011 | V96: 0.0012 | W96: 0.0013 | X96: 0.0013 | Y96: 0.0013 | Z96: 0.0013 | AA96: 0.0013 | AB96: 0.0012 | AC96: 0.0011 | AD96: 0.001 | AE96: 0.0008 | AF96: 0.0007 | AG96: 0.0005 | AH96: 0.0003 | AI96: 0.0001 | AJ96: -0.0001 | AK96: -0.0002 | AL96: -0.0004 | AM96: -0.0005 | AN96: -0.0007 | AO96: -0.0008 | AP96: -0.0009 | AQ96: -0.0009 | AR96: -0.0009 | AS96: -0.0009 | AT96: -0.0009 | AU96: -0.0009 | AV96: -0.0008 | AW96: -0.0007 | AX96: -0.0005 | AY96: -0.0004 | AZ96: -0.0002 | BA96: -0.0001 | BB96: 0.0001 | BC96: 0.0003 | BD96: 0.0004 | BE96: 0.0005 | BF96: 0.0006 | BG96: 0.0007 | BH96: 0.0007 | BI96: 0.0007 | BJ96: 0.0007 | BK96: 0.0007 | BL96: 0.0006 | BM96: 0.0006 | BN96: 0.0005 | BO96: 0.0005 | BP96: 0.0006 | BQ96: 0.0007 | BR96: 0.0007 | BS96: 0.0007 | BT96: 0.0007 | BU96: 0.0008 | BV96: 0.0008 | BW96: 0.0007 | BX96: 0.0007 | BY96: 0.0007 | BZ96: 0.0007 | CA96: 0.0007 | CB96: 0.0007 | CC96: 0.0006 | CD96: 0.0005 | CE96: 0.0004 | CF96: 0.0003 | CG96: 0.0003 | CH96: 0.0003 | CI96: 0.0004
A97: 114 | B97: -0.001 | C97: -0.0009 | D97: -0.0008 | E97: -0.0008 | F97: -0.0007 | G97: -0.0006 | H97: -0.0005 | I97: -0.0004 | J97: -0.0004 | K97: -0.0003 | L97: -0.0002 | M97: -0.0001 | N97: 0 | O97: 0.0001 | P97: 0.0002 | Q97: 0.0003 | R97: 0.0004 | S97: 0.0004 | T97: 0.0005 | U97: 0.0006 | V97: 0.0006 | W97: 0.0006 | X97: 0.0007 | Y97: 0.0007 | Z97: 0.0007 | AA97: 0.0006 | AB97: 0.0006 | AC97: 0.0005 | AD97: 0.0005 | AE97: 0.0004 | AF97: 0.0003 | AG97: 0.0002 | AH97: 0.0002 | AI97: 0.0001 | AJ97: 0 | AK97: -0.0001 | AL97: -0.0002 | AM97: -0.0003 | AN97: -0.0003 | AO97: -0.0004 | AP97: -0.0004 | AQ97: -0.0005 | AR97: -0.0005 | AS97: -0.0005 | AT97: -0.0005 | AU97: -0.0004 | AV97: -0.0004 | AW97: -0.0003 | AX97: -0.0003 | AY97: -0.0002 | AZ97: -0.0001 | BA97: 0 | BB97: 0.0001 | BC97: 0.0001 | BD97: 0.0002 | BE97: 0.0003 | BF97: 0.0003 | BG97: 0.0003 | BH97: 0.0003 | BI97: 0.0004 | BJ97: 0.0004 | BK97: 0.0003 | BL97: 0.0003 | BM97: 0.0003 | BN97: 0.0003 | BO97: 0.0002 | BP97: 0.0003 | BQ97: 0.0004 | BR97: 0.0005 | BS97: 0.0005 | BT97: 0.0005 | BU97: 0.0005 | BV97: 0.0005 | BW97: 0.0005 | BX97: 0.0005 | BY97: 0.0005 | BZ97: 0.0005 | CA97: 0.0005 | CB97: 0.0005 | CC97: 0.0005 | CD97: 0.0004 | CE97: 0.0003 | CF97: 0.0002 | CG97: 0.0002 | CH97: 0.0001 | CI97: 0.0002
A98: 115 | B98: 0 | C98: 0 | D98: 0 | E98: 0 | F98: 0 | G98: 0 | H98: 0 | I98: 0 | J98: 0 | K98: 0 | L98: 0 | M98: 0 | N98: 0 | O98: 0 | P98: 0 | Q98: 0 | R98: 0 | S98: 0 | T98: 0 | U98: 0 | V98: 0 | W98: 0 | X98: 0 | Y98: 0 | Z98: 0 | AA98: 0 | AB98: 0 | AC98: 0 | AD98: 0 | AE98: 0 | AF98: 0 | AG98: 0 | AH98: 0 | AI98: 0 | AJ98: 0 | AK98: 0 | AL98: 0 | AM98: 0 | AN98: 0 | AO98: 0 | AP98: 0 | AQ98: 0 | AR98: 0 | AS98: 0 | AT98: 0 | AU98: 0 | AV98: 0 | AW98: 0 | AX98: 0 | AY98: 0 | AZ98: 0 | BA98: 0 | BB98: 0 | BC98: 0 | BD98: 0 | BE98: 0 | BF98: 0 | BG98: 0 | BH98: 0 | BI98: 0 | BJ98: 0 | BK98: 0 | BL98: 0 | BM98: 0 | BN98: 0 | BO98: 0 | BP98: 0.0001 | BQ98: 0.0002 | BR98: 0.0002 | BS98: 0.0003 | BT98: 0.0003 | BU98: 0.0003 | BV98: 0.0003 | BW98: 0.0003 | BX98: 0.0003 | BY98: 0.0003 | BZ98: 0.0003 | CA98: 0.0003 | CB98: 0.0003 | CC98: 0.0003 | CD98: 0.0003 | CE98: 0.0002 | CF98: 0.0001 | CG98: 0.0001 | CH98: 0 | CI98: 0
A99: 116 | B99: 0 | C99: 0 | D99: 0 | E99: 0 | F99: 0 | G99: 0 | H99: 0 | I99: 0 | J99: 0 | K99: 0 | L99: 0 | M99: 0 | N99: 0 | O99: 0 | P99: 0 | Q99: 0 | R99: 0 | S99: 0 | T99: 0 | U99: 0 | V99: 0 | W99: 0 | X99: 0 | Y99: 0 | Z99: 0 | AA99: 0 | AB99: 0 | AC99: 0 | AD99: 0 | AE99: 0 | AF99: 0 | AG99: 0 | AH99: 0 | AI99: 0 | AJ99: 0 | AK99: 0 | AL99: 0 | AM99: 0 | AN99: 0 | AO99: 0 | AP99: 0 | AQ99: 0 | AR99: 0 | AS99: 0 | AT99: 0 | AU99: 0 | AV99: 0 | AW99: 0 | AX99: 0 | AY99: 0 | AZ99: 0 | BA99: 0 | BB99: 0 | BC99: 0 | BD99: 0 | BE99: 0 | BF99: 0 | BG99: 0 | BH99: 0 | BI99: 0 | BJ99: 0 | BK99: 0 | BL99: 0 | BM99: 0 | BN99: 0 | BO99: 0 | BP99: 0 | BQ99: 0.0001 | BR99: 0.0001 | BS99: 0.0002 | BT99: 0.0002 | BU99: 0.0002 | BV99: 0.0002 | BW99: 0.0002 | BX99: 0.0002 | BY99: 0.0002 | BZ99: 0.0002 | CA99: 0.0002 | CB99: 0.0002 | CC99: 0.0002 | CD99: 0.0002 | CE99: 0.0002 | CF99: 0.0001 | CG99: 0.0001 | CH99: 0 | CI99: 0
A100: 117 | B100: 0 | C100: 0 | D100: 0 | E100: 0 | F100: 0 | G100: 0 | H100: 0 | I100: 0 | J100: 0 | K100: 0 | L100: 0 | M100: 0 | N100: 0 | O100: 0 | P100: 0 | Q100: 0 | R100: 0 | S100: 0 | T100: 0 | U100: 0 | V100: 0 | W100: 0 | X100: 0 | Y100: 0 | Z100: 0 | AA100: 0 | AB100: 0 | AC100: 0 | AD100: 0 | AE100: 0 | AF100: 0 | AG100: 0 | AH100: 0 | AI100: 0 | AJ100: 0 | AK100: 0 | AL100: 0 | AM100: 0 | AN100: 0 | AO100: 0 | AP100: 0 | AQ100: 0 | AR100: 0 | AS100: 0 | AT100: 0 | AU100: 0 | AV100: 0 | AW100: 0 | AX100: 0 | AY100: 0 | AZ100: 0 | BA100: 0 | BB100: 0 | BC100: 0 | BD100: 0 | BE100: 0 | BF100: 0 | BG100: 0 | BH100: 0 | BI100: 0 | BJ100: 0 | BK100: 0 | BL100: 0 | BM100: 0 | BN100: 0 | BO100: 0 | BP100: 0 | BQ100: 0 | BR100: 0.0001 | BS100: 0.0001 | BT100: 0.0001 | BU100: 0.0001 | BV100: 0.0001 | BW100: 0.0001 | BX100: 0.0001 | BY100: 0.0001 | BZ100: 0.0001 | CA100: 0.0001 | CB100: 0.0001 | CC100: 0.0001 | CD100: 0.0001 | CE100: 0.0001 | CF100: 0.0001 | CG100: 0.0001 | CH100: 0 | CI100: 0
A101: 118 | B101: 0 | C101: 0 | D101: 0 | E101: 0 | F101: 0 | G101: 0 | H101: 0 | I101: 0 | J101: 0 | K101: 0 | L101: 0 | M101: 0 | N101: 0 | O101: 0 | P101: 0 | Q101: 0 | R101: 0 | S101: 0 | T101: 0 | U101: 0 | V101: 0 | W101: 0 | X101: 0 | Y101: 0 | Z101: 0 | AA101: 0 | AB101: 0 | AC101: 0 | AD101: 0 | AE101: 0 | AF101: 0 | AG101: 0 | AH101: 0 | AI101: 0 | AJ101: 0 | AK101: 0 | AL101: 0 | AM101: 0 | AN101: 0 | AO101: 0 | AP101: 0 | AQ101: 0 | AR101: 0 | AS101: 0 | AT101: 0 | AU101: 0 | AV101: 0 | AW101: 0 | AX101: 0 | AY101: 0 | AZ101: 0 | BA101: 0 | BB101: 0 | BC101: 0 | BD101: 0 | BE101: 0 | BF101: 0 | BG101: 0 | BH101: 0 | BI101: 0 | BJ101: 0 | BK101: 0 | BL101: 0 | BM101: 0 | BN101: 0 | BO101: 0 | BP101: 0 | BQ101: 0 | BR101: 0 | BS101: 0 | BT101: 0 | BU101: 0.0001 | BV101: 0.0001 | BW101: 0.0001 | BX101: 0.0001 | BY101: 0.0001 | BZ101: 0.0001 | CA101: 0.0001 | CB101: 0.0001 | CC101: 0.0001 | CD101: 0.0001 | CE101: 0.0001 | CF101: 0.0001 | CG101: 0.0001 | CH101: 0 | CI101: 0
A102: 119 | B102: 0 | C102: 0 | D102: 0 | E102: 0 | F102: 0 | G102: 0 | H102: 0 | I102: 0 | J102: 0 | K102: 0 | L102: 0 | M102: 0 | N102: 0 | O102: 0 | P102: 0 | Q102: 0 | R102: 0 | S102: 0 | T102: 0 | U102: 0 | V102: 0 | W102: 0 | X102: 0 | Y102: 0 | Z102: 0 | AA102: 0 | AB102: 0 | AC102: 0 | AD102: 0 | AE102: 0 | AF102: 0 | AG102: 0 | AH102: 0 | AI102: 0 | AJ102: 0 | AK102: 0 | AL102: 0 | AM102: 0 | AN102: 0 | AO102: 0 | AP102: 0 | AQ102: 0 | AR102: 0 | AS102: 0 | AT102: 0 | AU102: 0 | AV102: 0 | AW102: 0 | AX102: 0 | AY102: 0 | AZ102: 0 | BA102: 0 | BB102: 0 | BC102: 0 | BD102: 0 | BE102: 0 | BF102: 0 | BG102: 0 | BH102: 0 | BI102: 0 | BJ102: 0 | BK102: 0 | BL102: 0 | BM102: 0 | BN102: 0 | BO102: 0 | BP102: 0 | BQ102: 0 | BR102: 0 | BS102: 0 | BT102: 0 | BU102: 0 | BV102: 0 | BW102: 0 | BX102: 0 | BY102: 0 | BZ102: 0 | CA102: 0 | CB102: 0 | CC102: 0 | CD102: 0 | CE102: 0 | CF102: 0 | CG102: 0 | CH102: 0 | CI102: 0
A103: 120 | B103: 0 | C103: 0 | D103: 0 | E103: 0 | F103: 0 | G103: 0 | H103: 0 | I103: 0 | J103: 0 | K103: 0 | L103: 0 | M103: 0 | N103: 0 | O103: 0 | P103: 0 | Q103: 0 | R103: 0 | S103: 0 | T103: 0 | U103: 0 | V103: 0 | W103: 0 | X103: 0 | Y103: 0 | Z103: 0 | AA103: 0 | AB103: 0 | AC103: 0 | AD103: 0 | AE103: 0 | AF103: 0 | AG103: 0 | AH103: 0 | AI103: 0 | AJ103: 0 | AK103: 0 | AL103: 0 | AM103: 0 | AN103: 0 | AO103: 0 | AP103: 0 | AQ103: 0 | AR103: 0 | AS103: 0 | AT103: 0 | AU103: 0 | AV103: 0 | AW103: 0 | AX103: 0 | AY103: 0 | AZ103: 0 | BA103: 0 | BB103: 0 | BC103: 0 | BD103: 0 | BE103: 0 | BF103: 0 | BG103: 0 | BH103: 0 | BI103: 0 | BJ103: 0 | BK103: 0 | BL103: 0 | BM103: 0 | BN103: 0 | BO103: 0 | BP103: 0 | BQ103: 0 | BR103: 0 | BS103: 0 | BT103: 0 | BU103: 0 | BV103: 0 | BW103: 0 | BX103: 0 | BY103: 0 | BZ103: 0 | CA103: 0 | CB103: 0 | CC103: 0 | CD103: 0 | CE103: 0 | CF103: 0 | CG103: 0 | CH103: 0 | CI103: 0

Sheet Female
A1: MP-2020 - Female
B2: 1951 | C2: 1952 | D2: 1953 | E2: 1954 | F2: 1955 | G2: 1956 | H2: 1957 | I2: 1958 | J2: 1959 | K2: 1960 | L2: 1961 | M2: 1962 | N2: 1963 | O2: 1964 | P2: 1965 | Q2: 1966 | R2: 1967 | S2: 1968 | T2: 1969 | U2: 1970 | V2: 1971 | W2: 1972 | X2: 1973 | Y2: 1974 | Z2: 1975 | AA2: 1976 | AB2: 1977 | AC2: 1978 | AD2: 1979 | AE2: 1980 | AF2: 1981 | AG2: 1982 | AH2: 1983 | AI2: 1984 | AJ2: 1985 | AK2: 1986 | AL2: 1987 | AM2: 1988 | AN2: 1989 | AO2: 1990 | AP2: 1991 | AQ2: 1992 | AR2: 1993 | AS2: 1994 | AT2: 1995 | AU2: 1996 | AV2: 1997 | AW2: 1998 | AX2: 1999 | AY2: 2000 | AZ2: 2001 | BA2: 2002 | BB2: 2003 | BC2: 2004 | BD2: 2005 | BE2: 2006 | BF2: 2007 | BG2: 2008 | BH2: =BG2+1 -> 2009 | BI2: 2010 | BJ2: 2011 | BK2: 2012 | BL2: 2013 | BM2: 2014 | BN2: 2015 | BO2: 2016 | BP2: 2017 | BQ2: 2018 | BR2: 2019 | BS2: 2020 | BT2: 2021 | BU2: 2022 | BV2: 2023 | BW2: 2024 | BX2: 2025 | BY2: 2026 | BZ2: 2027 | CA2: 2028 | CB2: 2029 | CC2: 2030 | CD2: 2031 | CE2: 2032 | CF2: 2033 | CG2: 2034 | CH2: 2035 | CI2: 2036+
A3: ≤ 20 | B3: 0.0667 | C3: 0.0602 | D3: 0.0537 | E3: 0.0468 | F3: 0.0398 | G3: 0.0331 | H3: 0.0269 | I3: 0.0209 | J3: 0.0149 | K3: 0.0088 | L3: 0.0025 | M3: -0.0035 | N3: -0.0089 | O3: -0.0132 | P3: -0.016 | Q3: -0.0173 | R3: -0.0165 | S3: -0.0135 | T3: -0.0084 | U3: -0.0019 | V3: 0.0051 | W3: 0.0116 | X3: 0.0167 | Y3: 0.0198 | Z3: 0.021 | AA3: 0.0209 | AB3: 0.0207 | AC3: 0.0215 | AD3: 0.0231 | AE3: 0.0247 | AF3: 0.0252 | AG3: 0.0236 | AH3: 0.02 | AI3: 0.0152 | AJ3: 0.0105 | AK3: 0.007 | AL3: 0.0054 | AM3: 0.0057 | AN3: 0.0074 | AO3: 0.0096 | AP3: 0.0117 | AQ3: 0.0136 | AR3: 0.0148 | AS3: 0.0154 | AT3: 0.0152 | AU3: 0.0141 | AV3: 0.0119 | AW3: 0.0088 | AX3: 0.0051 | AY3: 0.0017 | AZ3: -0.0006 | BA3: -0.0009 | BB3: 0.0012 | BC3: 0.0058 | BD3: 0.0121 | BE3: 0.0189 | BF3: 0.0249 | BG3: 0.0287 | BH3: 0.0292 | BI3: 0.0261 | BJ3: 0.0197 | BK3: 0.011 | BL3: 0.0011 | BM3: -0.0086 | BN3: -0.0168 | BO3: -0.0226 | BP3: -0.022 | BQ3: -0.0202 | BR3: -0.0176 | BS3: -0.0144 | BT3: -0.0108 | BU3: -0.007 | BV3: -0.0034 | BW3: -0.0001 | BX3: 0.0026 | BY3: 0.0045 | BZ3: 0.0058 | CA3: 0.0071 | CB3: 0.0084 | CC3: 0.0096 | CD3: 0.0107 | CE3: 0.0116 | CF3: 0.0124 | CG3: 0.013 | CH3: 0.0134 | CI3: 0.0135
A4: 21 | B4: 0.0691 | C4: 0.0618 | D4: 0.0544 | E4: 0.0468 | F4: 0.0393 | G4: 0.0322 | H4: 0.0256 | I4: 0.0196 | J4: 0.0137 | K4: 0.0079 | L4: 0.0023 | M4: -0.003 | N4: -0.0075 | O4: -0.0111 | P4: -0.0134 | Q4: -0.0143 | R4: -0.0135 | S4: -0.0107 | T4: -0.0061 | U4: -0.0001 | V4: 0.0063 | W4: 0.0123 | X4: 0.0171 | Y4: 0.0201 | Z4: 0.0212 | AA4: 0.0212 | AB4: 0.021 | AC4: 0.0215 | AD4: 0.0229 | AE4: 0.0243 | AF4: 0.0247 | AG4: 0.0234 | AH4: 0.0201 | AI4: 0.0157 | AJ4: 0.0111 | AK4: 0.0076 | AL4: 0.0059 | AM4: 0.0059 | AN4: 0.0073 | AO4: 0.0094 | AP4: 0.0116 | AQ4: 0.0136 | AR4: 0.0151 | AS4: 0.016 | AT4: 0.016 | AU4: 0.0148 | AV4: 0.0122 | AW4: 0.0086 | AX4: 0.0043 | AY4: 0.0002 | AZ4: -0.0027 | BA4: -0.0037 | BB4: -0.0023 | BC4: 0.0016 | BD4: 0.007 | BE4: 0.0132 | BF4: 0.0188 | BG4: 0.0224 | BH4: 0.0231 | BI4: 0.0205 | BJ4: 0.015 | BK4: 0.0071 | BL4: -0.002 | BM4: -0.011 | BN4: -0.0187 | BO4: -0.0242 | BP4: -0.0228 | BQ4: -0.021 | BR4: -0.0183 | BS4: -0.0149 | BT4: -0.0112 | BU4: -0.0073 | BV4: -0.0036 | BW4: -0.0002 | BX4: 0.0026 | BY4: 0.0045 | BZ4: 0.0058 | CA4: 0.0071 | CB4: 0.0084 | CC4: 0.0096 | CD4: 0.0107 | CE4: 0.0116 | CF4: 0.0124 | CG4: 0.013 | CH4: 0.0134 | CI4: 0.0135
A5: 22 | B5: 0.071 | C5: 0.0631 | D5: 0.0551 | E5: 0.0468 | F5: 0.0388 | G5: 0.0312 | H5: 0.0244 | I5: 0.0182 | J5: 0.0125 | K5: 0.0071 | L5: 0.0022 | M5: -0.0023 | N5: -0.006 | O5: -0.0088 | P5: -0.0105 | Q5: -0.0111 | R5: -0.0103 | S5: -0.0079 | T5: -0.0037 | U5: 0.0018 | V5: 0.0078 | W5: 0.0135 | X5: 0.0181 | Y5: 0.0209 | Z5: 0.022 | AA5: 0.0219 | AB5: 0.0215 | AC5: 0.0217 | AD5: 0.0226 | AE5: 0.0237 | AF5: 0.024 | AG5: 0.0228 | AH5: 0.0197 | AI5: 0.0154 | AJ5: 0.0109 | AK5: 0.0073 | AL5: 0.0054 | AM5: 0.0053 | AN5: 0.0067 | AO5: 0.0088 | AP5: 0.0111 | AQ5: 0.0134 | AR5: 0.0153 | AS5: 0.0167 | AT5: 0.0171 | AU5: 0.0161 | AV5: 0.0134 | AW5: 0.0093 | AX5: 0.0044 | AY5: -0.0003 | AZ5: -0.004 | BA5: -0.0058 | BB5: -0.0051 | BC5: -0.0021 | BD5: 0.0025 | BE5: 0.0079 | BF5: 0.013 | BG5: 0.0165 | BH5: 0.0174 | BI5: 0.0153 | BJ5: 0.0104 | BK5: 0.0033 | BL5: -0.005 | BM5: -0.0135 | BN5: -0.0208 | BO5: -0.0262 | BP5: -0.0245 | BQ5: -0.0219 | BR5: -0.019 | BS5: -0.0156 | BT5: -0.0117 | BU5: -0.0077 | BV5: -0.0038 | BW5: -0.0003 | BX5: 0.0026 | BY5: 0.0045 | BZ5: 0.0058 | CA5: 0.0071 | CB5: 0.0084 | CC5: 0.0096 | CD5: 0.0107 | CE5: 0.0116 | CF5: 0.0124 | CG5: 0.013 | CH5: 0.0134 | CI5: 0.0135
A6: 23 | B6: 0.0724 | C6: 0.0641 | D6: 0.0556 | E6: 0.0469 | F6: 0.0383 | G6: 0.0303 | H6: 0.0232 | I6: 0.0169 | J6: 0.0113 | K6: 0.0064 | L6: 0.0021 | M6: -0.0016 | N6: -0.0045 | O6: -0.0065 | P6: -0.0077 | Q6: -0.0081 | R6: -0.0073 | S6: -0.005 | T6: -0.0012 | U6: 0.004 | V6: 0.0096 | W6: 0.0151 | X6: 0.0194 | Y6: 0.0222 | Z6: 0.0232 | AA6: 0.023 | AB6: 0.0223 | AC6: 0.022 | AD6: 0.0225 | AE6: 0.0231 | AF6: 0.0231 | AG6: 0.0218 | AH6: 0.0188 | AI6: 0.0145 | AJ6: 0.0099 | AK6: 0.0061 | AL6: 0.004 | AM6: 0.004 | AN6: 0.0054 | AO6: 0.0077 | AP6: 0.0103 | AQ6: 0.013 | AR6: 0.0154 | AS6: 0.0174 | AT6: 0.0184 | AU6: 0.0178 | AV6: 0.0152 | AW6: 0.0109 | AX6: 0.0055 | AY6: 0 | AZ6: -0.0044 | BA6: -0.007 | BB6: -0.0072 | BC6: -0.005 | BD6: -0.0013 | BE6: 0.0033 | BF6: 0.0079 | BG6: 0.0112 | BH6: 0.0122 | BI6: 0.0106 | BJ6: 0.0063 | BK6: -0.0002 | BL6: -0.008 | BM6: -0.016 | BN6: -0.0232 | BO6: -0.0286 | BP6: -0.0267 | BQ6: -0.0237 | BR6: -0.02 | BS6: -0.0163 | BT6: -0.0123 | BU6: -0.0081 | BV6: -0.004 | BW6: -0.0004 | BX6: 0.0025 | BY6: 0.0045 | BZ6: 0.0058 | CA6: 0.0071 | CB6: 0.0084 | CC6: 0.0096 | CD6: 0.0107 | CE6: 0.0116 | CF6: 0.0124 | CG6: 0.013 | CH6: 0.0134 | CI6: 0.0135
A7: 24 | B7: 0.0732 | C7: 0.0646 | D7: 0.0559 | E7: 0.0468 | F7: 0.0378 | G7: 0.0294 | H7: 0.022 | I7: 0.0156 | J7: 0.0102 | K7: 0.0057 | L7: 0.002 | M7: -0.0009 | N7: -0.003 | O7: -0.0044 | P7: -0.0052 | Q7: -0.0052 | R7: -0.0044 | S7: -0.0023 | T7: 0.0013 | U7: 0.0062 | V7: 0.0117 | W7: 0.0169 | X7: 0.0212 | Y7: 0.0239 | Z7: 0.0248 | AA7: 0.0244 | AB7: 0.0234 | AC7: 0.0226 | AD7: 0.0224 | AE7: 0.0225 | AF7: 0.0221 | AG7: 0.0205 | AH7: 0.0174 | AI7: 0.0129 | AJ7: 0.0081 | AK7: 0.0041 | AL7: 0.0019 | AM7: 0.0019 | AN7: 0.0037 | AO7: 0.0063 | AP7: 0.0093 | AQ7: 0.0123 | AR7: 0.0153 | AS7: 0.0179 | AT7: 0.0197 | AU7: 0.0197 | AV7: 0.0175 | AW7: 0.0132 | AX7: 0.0073 | AY7: 0.0012 | AZ7: -0.004 | BA7: -0.0073 | BB7: -0.0084 | BC7: -0.0072 | BD7: -0.0044 | BE7: -0.0006 | BF7: 0.0035 | BG7: 0.0066 | BH7: 0.0077 | BI7: 0.0064 | BJ7: 0.0025 | BK7: -0.0035 | BL7: -0.0109 | BM7: -0.0187 | BN7: -0.0257 | BO7: -0.0312 | BP7: -0.0291 | BQ7: -0.0258 | BR7: -0.0217 | BS7: -0.0172 | BT7: -0.0129 | BU7: -0.0085 | BV7: -0.0043 | BW7: -0.0005 | BX7: 0.0025 | BY7: 0.0045 | BZ7: 0.0058 | CA7: 0.0071 | CB7: 0.0084 | CC7: 0.0096 | CD7: 0.0107 | CE7: 0.0116 | CF7: 0.0124 | CG7: 0.013 | CH7: 0.0134 | CI7: 0.0135
A8: 25 | B8: 0.0734 | C8: 0.0648 | D8: 0.0559 | E8: 0.0466 | F8: 0.0373 | G8: 0.0285 | H8: 0.0208 | I8: 0.0143 | J8: 0.0091 | K8: 0.005 | L8: 0.0019 | M8: -0.0004 | N8: -0.0018 | O8: -0.0026 | P8: -0.0029 | Q8: -0.0028 | R8: -0.0018 | S8: 0.0003 | T8: 0.0037 | U8: 0.0084 | V8: 0.0138 | W8: 0.0191 | X8: 0.0233 | Y8: 0.026 | Z8: 0.0268 | AA8: 0.0262 | AB8: 0.0248 | AC8: 0.0235 | AD8: 0.0226 | AE8: 0.022 | AF8: 0.021 | AG8: 0.019 | AH8: 0.0155 | AI8: 0.0108 | AJ8: 0.0057 | AK8: 0.0014 | AL8: -0.0008 | AM8: -0.0006 | AN8: 0.0015 | AO8: 0.0046 | AP8: 0.008 | AQ8: 0.0114 | AR8: 0.0149 | AS8: 0.0182 | AT8: 0.0208 | AU8: 0.0217 | AV8: 0.0201 | AW8: 0.0159 | AX8: 0.0098 | AY8: 0.0031 | AZ8: -0.0028 | BA8: -0.0069 | BB8: -0.0088 | BC8: -0.0085 | BD8: -0.0065 | BE8: -0.0035 | BF8: -0.0001 | BG8: 0.0027 | BH8: 0.0039 | BI8: 0.0028 | BJ8: -0.0008 | BK8: -0.0065 | BL8: -0.0137 | BM8: -0.0213 | BN8: -0.0283 | BO8: -0.0339 | BP8: -0.0317 | BQ8: -0.0282 | BR8: -0.0238 | BS8: -0.0188 | BT8: -0.0136 | BU8: -0.009 | BV8: -0.0046 | BW8: -0.0007 | BX8: 0.0025 | BY8: 0.0045 | BZ8: 0.0058 | CA8: 0.0071 | CB8: 0.0084 | CC8: 0.0096 | CD8: 0.0107 | CE8: 0.0116 | CF8: 0.0124 | CG8: 0.013 | CH8: 0.0134 | CI8: 0.0135
A9: 26 | B9: 0.0732 | C9: 0.0645 | D9: 0.0555 | E9: 0.0461 | F9: 0.0366 | G9: 0.0275 | H9: 0.0196 | I9: 0.0132 | J9: 0.0082 | K9: 0.0044 | L9: 0.0018 | M9: 0 | N9: -0.0009 | O9: -0.0012 | P9: -0.0012 | Q9: -0.0008 | R9: 0.0004 | S9: 0.0026 | T9: 0.006 | U9: 0.0106 | V9: 0.016 | W9: 0.0213 | X9: 0.0256 | Y9: 0.0283 | Z9: 0.0292 | AA9: 0.0284 | AB9: 0.0266 | AC9: 0.0247 | AD9: 0.0231 | AE9: 0.0216 | AF9: 0.02 | AG9: 0.0174 | AH9: 0.0134 | AI9: 0.0082 | AJ9: 0.0028 | AK9: -0.0016 | AL9: -0.0038 | AM9: -0.0034 | AN9: -0.0009 | AO9: 0.0026 | AP9: 0.0064 | AQ9: 0.0102 | AR9: 0.0142 | AS9: 0.0182 | AT9: 0.0217 | AU9: 0.0234 | AV9: 0.0226 | AW9: 0.0187 | AX9: 0.0125 | AY9: 0.0055 | AZ9: -0.001 | BA9: -0.0057 | BB9: -0.0083 | BC9: -0.0089 | BD9: -0.0078 | BE9: -0.0055 | BF9: -0.0027 | BG9: -0.0003 | BH9: 0.0007 | BI9: -0.0002 | BJ9: -0.0036 | BK9: -0.0092 | BL9: -0.0163 | BM9: -0.0238 | BN9: -0.0309 | BO9: -0.0368 | BP9: -0.0345 | BQ9: -0.0307 | BR9: -0.026 | BS9: -0.0206 | BT9: -0.015 | BU9: -0.0095 | BV9: -0.0049 | BW9: -0.0008 | BX9: 0.0024 | BY9: 0.0045 | BZ9: 0.0058 | CA9: 0.0071 | CB9: 0.0084 | CC9: 0.0096 | CD9: 0.0107 | CE9: 0.0116 | CF9: 0.0124 | CG9: 0.013 | CH9: 0.0134 | CI9: 0.0135
A10: 27 | B10: 0.0725 | C10: 0.0638 | D10: 0.0548 | E10: 0.0454 | F10: 0.0357 | G10: 0.0265 | H10: 0.0186 | I10: 0.0122 | J10: 0.0074 | K10: 0.0039 | L10: 0.0016 | M10: 0.0002 | N10: -0.0004 | O10: -0.0004 | P10: -0.0001 | Q10: 0.0007 | R10: 0.0022 | S10: 0.0045 | T10: 0.0081 | U10: 0.0128 | V10: 0.0182 | W10: 0.0236 | X10: 0.028 | Y10: 0.0308 | Z10: 0.0317 | AA10: 0.0308 | AB10: 0.0288 | AC10: 0.0263 | AD10: 0.0239 | AE10: 0.0216 | AF10: 0.0191 | AG10: 0.0157 | AH10: 0.0111 | AI10: 0.0054 | AJ10: -0.0003 | AK10: -0.0048 | AL10: -0.0069 | AM10: -0.0062 | AN10: -0.0034 | AO10: 0.0005 | AP10: 0.0046 | AQ10: 0.0088 | AR10: 0.0132 | AS10: 0.0178 | AT10: 0.0221 | AU10: 0.0247 | AV10: 0.0246 | AW10: 0.0213 | AX10: 0.0153 | AY10: 0.0082 | AZ10: 0.0014 | BA10: -0.0038 | BB10: -0.0071 | BC10: -0.0084 | BD10: -0.008 | BE10: -0.0065 | BF10: -0.0043 | BG10: -0.0024 | BH10: -0.0017 | BI10: -0.0027 | BJ10: -0.0061 | BK10: -0.0116 | BL10: -0.0186 | BM10: -0.0262 | BN10: -0.0335 | BO10: -0.0395 | BP10: -0.0372 | BQ10: -0.0333 | BR10: -0.0283 | BS10: -0.0225 | BT10: -0.0165 | BU10: -0.0106 | BV10: -0.0052 | BW10: -0.001 | BX10: 0.0024 | BY10: 0.0045 | BZ10: 0.0058 | CA10: 0.0071 | CB10: 0.0084 | CC10: 0.0096 | CD10: 0.0107 | CE10: 0.0116 | CF10: 0.0124 | CG10: 0.013 | CH10: 0.0134 | CI10: 0.0135
A11: 28 | B11: 0.0714 | C11: 0.0628 | D11: 0.0538 | E11: 0.0443 | F11: 0.0347 | G11: 0.0255 | H11: 0.0176 | I11: 0.0114 | J11: 0.0068 | K11: 0.0036 | L11: 0.0014 | M11: 0.0001 | N11: -0.0003 | O11: -0.0002 | P11: 0.0005 | Q11: 0.0016 | R11: 0.0035 | S11: 0.0062 | T11: 0.0099 | U11: 0.0147 | V11: 0.0202 | W11: 0.0257 | X11: 0.0303 | Y11: 0.0333 | Z11: 0.0343 | AA11: 0.0335 | AB11: 0.0312 | AC11: 0.0282 | AD11: 0.0251 | AE11: 0.0219 | AF11: 0.0184 | AG11: 0.0142 | AH11: 0.0088 | AI11: 0.0027 | AJ11: -0.0033 | AK11: -0.0078 | AL11: -0.0097 | AM11: -0.0088 | AN11: -0.0058 | AO11: -0.0018 | AP11: 0.0026 | AQ11: 0.007 | AR11: 0.0118 | AS11: 0.0169 | AT11: 0.0219 | AU11: 0.0254 | AV11: 0.0261 | AW11: 0.0234 | AX11: 0.0179 | AY11: 0.0109 | AZ11: 0.004 | BA11: -0.0015 | BB11: -0.0052 | BC11: -0.0071 | BD11: -0.0074 | BE11: -0.0065 | BF11: -0.005 | BG11: -0.0037 | BH11: -0.0034 | BI11: -0.0047 | BJ11: -0.0081 | BK11: -0.0136 | BL11: -0.0206 | BM11: -0.0284 | BN11: -0.0358 | BO11: -0.042 | BP11: -0.0398 | BQ11: -0.0358 | BR11: -0.0305 | BS11: -0.0245 | BT11: -0.0181 | BU11: -0.0118 | BV11: -0.006 | BW11: -0.0011 | BX11: 0.0023 | BY11: 0.0045 | BZ11: 0.0058 | CA11: 0.0071 | CB11: 0.0084 | CC11: 0.0096 | CD11: 0.0107 | CE11: 0.0116 | CF11: 0.0124 | CG11: 0.013 | CH11: 0.0134 | CI11: 0.0135
A12: 29 | B12: 0.0701 | C12: 0.0614 | D12: 0.0525 | E12: 0.0431 | F12: 0.0335 | G12: 0.0245 | H12: 0.0168 | I12: 0.0108 | J12: 0.0064 | K12: 0.0033 | L12: 0.0012 | M12: -0.0001 | N12: -0.0006 | O12: -0.0004 | P12: 0.0005 | Q12: 0.0021 | R12: 0.0044 | S12: 0.0074 | T12: 0.0115 | U12: 0.0165 | V12: 0.0221 | W12: 0.0277 | X12: 0.0325 | Y12: 0.0357 | Z12: 0.037 | AA12: 0.0361 | AB12: 0.0337 | AC12: 0.0303 | AD12: 0.0265 | AE12: 0.0225 | AF12: 0.0181 | AG12: 0.013 | AH12: 0.0069 | AI12: 0.0003 | AJ12: -0.0058 | AK12: -0.0103 | AL12: -0.012 | AM12: -0.0111 | AN12: -0.0081 | AO12: -0.004 | AP12: 0.0004 | AQ12: 0.005 | AR12: 0.01 | AS12: 0.0156 | AT12: 0.0212 | AU12: 0.0254 | AV12: 0.0268 | AW12: 0.0248 | AX12: 0.0199 | AY12: 0.0133 | AZ12: 0.0067 | BA12: 0.0011 | BB12: -0.0029 | BC12: -0.0051 | BD12: -0.0059 | BE12: -0.0056 | BF12: -0.0047 | BG12: -0.0041 | BH12: -0.0044 | BI12: -0.0061 | BJ12: -0.0098 | BK12: -0.0153 | BL12: -0.0224 | BM12: -0.0302 | BN12: -0.0378 | BO12: -0.0441 | BP12: -0.0421 | BQ12: -0.0381 | BR12: -0.0327 | BS12: -0.0264 | BT12: -0.0198 | BU12: -0.0131 | BV12: -0.007 | BW12: -0.0017 | BX12: 0.0023 | BY12: 0.0045 | BZ12: 0.0058 | CA12: 0.0071 | CB12: 0.0084 | CC12: 0.0096 | CD12: 0.0107 | CE12: 0.0116 | CF12: 0.0124 | CG12: 0.013 | CH12: 0.0134 | CI12: 0.0135
A13: 30 | B13: 0.0684 | C13: 0.0598 | D13: 0.051 | E13: 0.0418 | F13: 0.0324 | G13: 0.0236 | H13: 0.0162 | I13: 0.0104 | J13: 0.0061 | K13: 0.003 | L13: 0.0008 | M13: -0.0006 | N13: -0.0012 | O13: -0.001 | P13: 0.0001 | Q13: 0.0021 | R13: 0.0048 | S13: 0.0083 | T13: 0.0126 | U13: 0.0179 | V13: 0.0237 | W13: 0.0295 | X13: 0.0345 | Y13: 0.038 | Z13: 0.0394 | AA13: 0.0387 | AB13: 0.0362 | AC13: 0.0325 | AD13: 0.0282 | AE13: 0.0234 | AF13: 0.0182 | AG13: 0.0123 | AH13: 0.0056 | AI13: -0.0015 | AJ13: -0.0077 | AK13: -0.0121 | AL13: -0.0138 | AM13: -0.0129 | AN13: -0.0101 | AO13: -0.0062 | AP13: -0.0018 | AQ13: 0.0028 | AR13: 0.008 | AS13: 0.0138 | AT13: 0.0198 | AU13: 0.0246 | AV13: 0.0267 | AW13: 0.0254 | AX13: 0.0213 | AY13: 0.0153 | AZ13: 0.0091 | BA13: 0.0038 | BB13: -0.0002 | BC13: -0.0026 | BD13: -0.0037 | BE13: -0.0038 | BF13: -0.0036 | BG13: -0.0036 | BH13: -0.0046 | BI13: -0.0069 | BJ13: -0.0109 | BK13: -0.0165 | BL13: -0.0237 | BM13: -0.0317 | BN13: -0.0394 | BO13: -0.0457 | BP13: -0.0439 | BQ13: -0.04 | BR13: -0.0346 | BS13: -0.0282 | BT13: -0.0213 | BU13: -0.0144 | BV13: -0.008 | BW13: -0.0025 | BX13: 0.0018 | BY13: 0.0045 | BZ13: 0.0058 | CA13: 0.0071 | CB13: 0.0084 | CC13: 0.0096 | CD13: 0.0107 | CE13: 0.0116 | CF13: 0.0124 | CG13: 0.013 | CH13: 0.0134 | CI13: 0.0135
A14: 31 | B14: 0.0665 | C14: 0.0581 | D14: 0.0494 | E14: 0.0405 | F14: 0.0314 | G14: 0.023 | H14: 0.0157 | I14: 0.0101 | J14: 0.0059 | K14: 0.0028 | L14: 0.0004 | M14: -0.0012 | N14: -0.002 | O14: -0.0019 | P14: -0.0006 | Q14: 0.0017 | R14: 0.0048 | S14: 0.0086 | T14: 0.0134 | U14: 0.0189 | V14: 0.0249 | W14: 0.0309 | X14: 0.0362 | Y14: 0.04 | Z14: 0.0416 | AA14: 0.0411 | AB14: 0.0386 | AC14: 0.0347 | AD14: 0.0299 | AE14: 0.0246 | AF14: 0.0187 | AG14: 0.0122 | AH14: 0.005 | AI14: -0.0024 | AJ14: -0.0087 | AK14: -0.0131 | AL14: -0.0149 | AM14: -0.0142 | AN14: -0.0118 | AO14: -0.0082 | AP14: -0.0041 | AQ14: 0.0005 | AR14: 0.0057 | AS14: 0.0117 | AT14: 0.0179 | AU14: 0.0231 | AV14: 0.0258 | AW14: 0.0252 | AX14: 0.0217 | AY14: 0.0166 | AZ14: 0.011 | BA14: 0.0062 | BB14: 0.0026 | BC14: 0.0003 | BD14: -0.0009 | BE14: -0.0014 | BF14: -0.0017 | BG14: -0.0024 | BH14: -0.0041 | BI14: -0.007 | BJ14: -0.0114 | BK14: -0.0173 | BL14: -0.0245 | BM14: -0.0326 | BN14: -0.0404 | BO14: -0.0467 | BP14: -0.0451 | BQ14: -0.0415 | BR14: -0.0362 | BS14: -0.0297 | BT14: -0.0227 | BU14: -0.0157 | BV14: -0.009 | BW14: -0.0033 | BX14: 0.0012 | BY14: 0.0041 | BZ14: 0.0058 | CA14: 0.0071 | CB14: 0.0084 | CC14: 0.0096 | CD14: 0.0107 | CE14: 0.0116 | CF14: 0.0124 | CG14: 0.013 | CH14: 0.0134 | CI14: 0.0135
A15: 32 | B15: 0.0643 | C15: 0.0562 | D15: 0.0479 | E15: 0.0393 | F15: 0.0306 | G15: 0.0225 | H15: 0.0155 | I15: 0.0101 | J15: 0.0058 | K15: 0.0025 | L15: -0.0001 | M15: -0.0019 | N15: -0.0029 | O15: -0.0028 | P15: -0.0014 | Q15: 0.001 | R15: 0.0044 | S15: 0.0086 | T15: 0.0137 | U15: 0.0195 | V15: 0.0258 | W15: 0.0321 | X15: 0.0376 | Y15: 0.0416 | Z15: 0.0435 | AA15: 0.043 | AB15: 0.0406 | AC15: 0.0366 | AD15: 0.0316 | AE15: 0.0259 | AF15: 0.0197 | AG15: 0.0127 | AH15: 0.0052 | AI15: -0.0023 | AJ15: -0.0087 | AK15: -0.0132 | AL15: -0.0152 | AM15: -0.0149 | AN15: -0.013 | AO15: -0.0099 | AP15: -0.0062 | AQ15: -0.0019 | AR15: 0.0031 | AS15: 0.0092 | AT15: 0.0156 | AU15: 0.021 | AV15: 0.0241 | AW15: 0.024 | AX15: 0.0213 | AY15: 0.017 | AZ15: 0.0123 | BA15: 0.0083 | BB15: 0.0053 | BC15: 0.0033 | BD15: 0.0022 | BE15: 0.0016 | BF15: 0.0009 | BG15: -0.0005 | BH15: -0.0029 | BI15: -0.0065 | BJ15: -0.0113 | BK15: -0.0175 | BL15: -0.0249 | BM15: -0.033 | BN15: -0.0406 | BO15: -0.0468 | BP15: -0.0457 | BQ15: -0.0423 | BR15: -0.0372 | BS15: -0.0309 | BT15: -0.0239 | BU15: -0.0168 | BV15: -0.01 | BW15: -0.0041 | BX15: 0.0006 | BY15: 0.0036 | BZ15: 0.0055 | CA15: 0.0071 | CB15: 0.0084 | CC15: 0.0096 | CD15: 0.0107 | CE15: 0.0116 | CF15: 0.0124 | CG15: 0.013 | CH15: 0.0134 | CI15: 0.0135
A16: 33 | B16: 0.062 | C16: 0.0543 | D16: 0.0464 | E16: 0.0383 | F16: 0.0301 | G16: 0.0223 | H16: 0.0156 | I16: 0.0101 | J16: 0.0058 | K16: 0.0022 | L16: -0.0006 | M16: -0.0027 | N16: -0.0038 | O16: -0.0037 | P16: -0.0023 | Q16: 0.0002 | R16: 0.0037 | S16: 0.0081 | T16: 0.0135 | U16: 0.0197 | V16: 0.0263 | W16: 0.0328 | X16: 0.0386 | Y16: 0.0428 | Z16: 0.0448 | AA16: 0.0445 | AB16: 0.0422 | AC16: 0.0382 | AD16: 0.0332 | AE16: 0.0274 | AF16: 0.021 | AG16: 0.0139 | AH16: 0.0063 | AI16: -0.0012 | AJ16: -0.0077 | AK16: -0.0123 | AL16: -0.0147 | AM16: -0.0149 | AN16: -0.0136 | AO16: -0.0112 | AP16: -0.0081 | AQ16: -0.0043 | AR16: 0.0006 | AS16: 0.0065 | AT16: 0.0129 | AU16: 0.0184 | AV16: 0.0217 | AW16: 0.022 | AX16: 0.02 | AY16: 0.0165 | AZ16: 0.0129 | BA16: 0.0099 | BB16: 0.0077 | BC16: 0.0064 | BD16: 0.0055 | BE16: 0.0049 | BF16: 0.0038 | BG16: 0.0019 | BH16: -0.0011 | BI16: -0.0053 | BJ16: -0.0106 | BK16: -0.0171 | BL16: -0.0247 | BM16: -0.0327 | BN16: -0.0401 | BO16: -0.0461 | BP16: -0.0454 | BQ16: -0.0424 | BR16: -0.0377 | BS16: -0.0316 | BT16: -0.0248 | BU16: -0.0178 | BV16: -0.011 | BW16: -0.005 | BX16: -0.0002 | BY16: 0.003 | BZ16: 0.0051 | CA16: 0.0069 | CB16: 0.0084 | CC16: 0.0096 | CD16: 0.0107 | CE16: 0.0116 | CF16: 0.0124 | CG16: 0.013 | CH16: 0.0134 | CI16: 0.0135
A17: 34 | B17: 0.0596 | C17: 0.0524 | D17: 0.0451 | E17: 0.0375 | F17: 0.0298 | G17: 0.0224 | H17: 0.0158 | I17: 0.0104 | J17: 0.0058 | K17: 0.002 | L17: -0.0011 | M17: -0.0034 | N17: -0.0046 | O17: -0.0045 | P17: -0.0032 | Q17: -0.0007 | R17: 0.0028 | S17: 0.0074 | T17: 0.013 | U17: 0.0195 | V17: 0.0264 | W17: 0.0331 | X17: 0.0391 | Y17: 0.0435 | Z17: 0.0457 | AA17: 0.0456 | AB17: 0.0433 | AC17: 0.0395 | AD17: 0.0346 | AE17: 0.0289 | AF17: 0.0226 | AG17: 0.0156 | AH17: 0.0081 | AI17: 0.0007 | AJ17: -0.0058 | AK17: -0.0106 | AL17: -0.0134 | AM17: -0.0142 | AN17: -0.0137 | AO17: -0.0121 | AP17: -0.0097 | AQ17: -0.0064 | AR17: -0.002 | AS17: 0.0037 | AT17: 0.01 | AU17: 0.0155 | AV17: 0.0188 | AW17: 0.0194 | AX17: 0.0178 | AY17: 0.0152 | AZ17: 0.0126 | BA17: 0.0107 | BB17: 0.0096 | BC17: 0.0091 | BD17: 0.0087 | BE17: 0.0082 | BF17: 0.007 | BG17: 0.0048 | BH17: 0.0013 | BI17: -0.0034 | BJ17: -0.0093 | BK17: -0.0162 | BL17: -0.0239 | BM17: -0.0317 | BN17: -0.0389 | BO17: -0.0445 | BP17: -0.0443 | BQ17: -0.0418 | BR17: -0.0375 | BS17: -0.0318 | BT17: -0.0253 | BU17: -0.0185 | BV17: -0.0118 | BW17: -0.0058 | BX17: -0.0009 | BY17: 0.0023 | BZ17: 0.0046 | CA17: 0.0065 | CB17: 0.0082 | CC17: 0.0096 | CD17: 0.0107 | CE17: 0.0116 | CF17: 0.0124 | CG17: 0.013 | CH17: 0.0134 | CI17: 0.0135
A18: 35 | B18: 0.0572 | C18: 0.0506 | D18: 0.0439 | E18: 0.0369 | F18: 0.0296 | G18: 0.0226 | H18: 0.0162 | I18: 0.0107 | J18: 0.0059 | K18: 0.0018 | L18: -0.0015 | M18: -0.0039 | N18: -0.0052 | O18: -0.0052 | P18: -0.004 | Q18: -0.0016 | R18: 0.0018 | S18: 0.0064 | T18: 0.0122 | U18: 0.0189 | V18: 0.026 | W18: 0.033 | X18: 0.0391 | Y18: 0.0437 | Z18: 0.046 | AA18: 0.0461 | AB18: 0.0441 | AC18: 0.0405 | AD18: 0.0358 | AE18: 0.0304 | AF18: 0.0243 | AG18: 0.0177 | AH18: 0.0105 | AI18: 0.0033 | AJ18: -0.0031 | AK18: -0.0081 | AL18: -0.0114 | AM18: -0.0128 | AN18: -0.013 | AO18: -0.0123 | AP18: -0.0108 | AQ18: -0.0082 | AR18: -0.0042 | AS18: 0.001 | AT18: 0.007 | AU18: 0.0122 | AV18: 0.0154 | AW18: 0.0161 | AX18: 0.015 | AY18: 0.0132 | AZ18: 0.0116 | BA18: 0.0108 | BB18: 0.0109 | BC18: 0.0113 | BD18: 0.0116 | BE18: 0.0114 | BF18: 0.0103 | BG18: 0.0079 | BH18: 0.0041 | BI18: -0.0011 | BJ18: -0.0074 | BK18: -0.0146 | BL18: -0.0224 | BM18: -0.03 | BN18: -0.0368 | BO18: -0.0422 | BP18: -0.0424 | BQ18: -0.0404 | BR18: -0.0366 | BS18: -0.0315 | BT18: -0.0254 | BU18: -0.0189 | BV18: -0.0125 | BW18: -0.0066 | BX18: -0.0017 | BY18: 0.0016 | BZ18: 0.004 | CA18: 0.0061 | CB18: 0.0079 | CC18: 0.0094 | CD18: 0.0107 | CE18: 0.0116 | CF18: 0.0124 | CG18: 0.013 | CH18: 0.0134 | CI18: 0.0135
A19: 36 | B19: 0.0548 | C19: 0.0489 | D19: 0.0428 | E19: 0.0363 | F19: 0.0296 | G19: 0.0229 | H19: 0.0167 | I19: 0.0111 | J19: 0.0062 | K19: 0.0018 | L19: -0.0017 | M19: -0.0043 | N19: -0.0056 | O19: -0.0057 | P19: -0.0046 | Q19: -0.0025 | R19: 0.0007 | S19: 0.0053 | T19: 0.0111 | U19: 0.018 | V19: 0.0253 | W19: 0.0324 | X19: 0.0387 | Y19: 0.0433 | Z19: 0.0458 | AA19: 0.0461 | AB19: 0.0443 | AC19: 0.0411 | AD19: 0.0368 | AE19: 0.0317 | AF19: 0.0261 | AG19: 0.0199 | AH19: 0.0131 | AI19: 0.0063 | AJ19: 0 | AK19: -0.005 | AL19: -0.0087 | AM19: -0.0107 | AN19: -0.0116 | AO19: -0.0119 | AP19: -0.0112 | AQ19: -0.0094 | AR19: -0.0061 | AS19: -0.0014 | AT19: 0.004 | AU19: 0.0088 | AV19: 0.0118 | AW19: 0.0125 | AX19: 0.0118 | AY19: 0.0106 | AZ19: 0.0098 | BA19: 0.0102 | BB19: 0.0114 | BC19: 0.0128 | BD19: 0.0138 | BE19: 0.0142 | BF19: 0.0134 | BG19: 0.0111 | BH19: 0.0071 | BI19: 0.0017 | BJ19: -0.0049 | BK19: -0.0124 | BL19: -0.0202 | BM19: -0.0277 | BN19: -0.0341 | BO19: -0.0391 | BP19: -0.0397 | BQ19: -0.0383 | BR19: -0.0351 | BS19: -0.0306 | BT19: -0.025 | BU19: -0.019 | BV19: -0.0129 | BW19: -0.0072 | BX19: -0.0025 | BY19: 0.0009 | BZ19: 0.0034 | CA19: 0.0056 | CB19: 0.0076 | CC19: 0.0092 | CD19: 0.0106 | CE19: 0.0116 | CF19: 0.0124 | CG19: 0.013 | CH19: 0.0134 | CI19: 0.0135
A20: 37 | B20: 0.0526 | C20: 0.0473 | D20: 0.0418 | E20: 0.0359 | F20: 0.0296 | G20: 0.0233 | H20: 0.0172 | I20: 0.0116 | J20: 0.0065 | K20: 0.0019 | L20: -0.0018 | M20: -0.0044 | N20: -0.0058 | O20: -0.006 | P20: -0.0051 | Q20: -0.0032 | R20: -0.0002 | S20: 0.0042 | T20: 0.01 | U20: 0.0169 | V20: 0.0243 | W20: 0.0315 | X20: 0.0378 | Y20: 0.0425 | Z20: 0.0452 | AA20: 0.0457 | AB20: 0.0443 | AC20: 0.0414 | AD20: 0.0375 | AE20: 0.033 | AF20: 0.0278 | AG20: 0.022 | AH20: 0.0157 | AI20: 0.0093 | AJ20: 0.0034 | AK20: -0.0016 | AL20: -0.0055 | AM20: -0.008 | AN20: -0.0096 | AO20: -0.0107 | AP20: -0.0109 | AQ20: -0.01 | AR20: -0.0075 | AS20: -0.0035 | AT20: 0.0012 | AU20: 0.0055 | AV20: 0.0081 | AW20: 0.0088 | AX20: 0.0083 | AY20: 0.0075 | AZ20: 0.0075 | BA20: 0.0088 | BB20: 0.0111 | BC20: 0.0135 | BD20: 0.0154 | BE20: 0.0163 | BF20: 0.016 | BG20: 0.014 | BH20: 0.0101 | BI20: 0.0047 | BJ20: -0.002 | BK20: -0.0096 | BL20: -0.0174 | BM20: -0.0246 | BN20: -0.0307 | BO20: -0.0354 | BP20: -0.0364 | BQ20: -0.0355 | BR20: -0.0329 | BS20: -0.029 | BT20: -0.0242 | BU20: -0.0187 | BV20: -0.0131 | BW20: -0.0077 | BX20: -0.0031 | BY20: 0.0002 | BZ20: 0.0028 | CA20: 0.0051 | CB20: 0.0072 | CC20: 0.009 | CD20: 0.0104 | CE20: 0.0115 | CF20: 0.0124 | CG20: 0.013 | CH20: 0.0134 | CI20: 0.0135
A21: 38 | B21: 0.0506 | C21: 0.0458 | D21: 0.0408 | E21: 0.0354 | F21: 0.0295 | G21: 0.0235 | H21: 0.0176 | I21: 0.012 | J21: 0.0068 | K21: 0.0022 | L21: -0.0016 | M21: -0.0043 | N21: -0.0058 | O21: -0.0062 | P21: -0.0055 | Q21: -0.0038 | R21: -0.001 | S21: 0.0032 | T21: 0.0089 | U21: 0.0157 | V21: 0.0231 | W21: 0.0302 | X21: 0.0365 | Y21: 0.0413 | Z21: 0.0441 | AA21: 0.0449 | AB21: 0.0438 | AC21: 0.0414 | AD21: 0.038 | AE21: 0.0339 | AF21: 0.0292 | AG21: 0.024 | AH21: 0.0182 | AI21: 0.0123 | AJ21: 0.0068 | AK21: 0.002 | AL21: -0.0019 | AM21: -0.0049 | AN21: -0.0071 | AO21: -0.0089 | AP21: -0.0099 | AQ21: -0.0099 | AR21: -0.0082 | AS21: -0.0051 | AT21: -0.0012 | AU21: 0.0025 | AV21: 0.0047 | AW21: 0.0052 | AX21: 0.0047 | AY21: 0.0043 | AZ21: 0.0049 | BA21: 0.0069 | BB21: 0.01 | BC21: 0.0133 | BD21: 0.0161 | BE21: 0.0178 | BF21: 0.0181 | BG21: 0.0165 | BH21: 0.013 | BI21: 0.0077 | BJ21: 0.001 | BK21: -0.0065 | BL21: -0.0141 | BM21: -0.0211 | BN21: -0.0268 | BO21: -0.0312 | BP21: -0.0325 | BQ21: -0.0321 | BR21: -0.0302 | BS21: -0.027 | BT21: -0.0228 | BU21: -0.018 | BV21: -0.0129 | BW21: -0.008 | BX21: -0.0037 | BY21: -0.0004 | BZ21: 0.0022 | CA21: 0.0047 | CB21: 0.0068 | CC21: 0.0087 | CD21: 0.0102 | CE21: 0.0114 | CF21: 0.0124 | CG21: 0.013 | CH21: 0.0134 | CI21: 0.0135
A22: 39 | B22: 0.0489 | C22: 0.0444 | D22: 0.0398 | E22: 0.0348 | F22: 0.0293 | G22: 0.0236 | H22: 0.0179 | I22: 0.0124 | J22: 0.0072 | K22: 0.0026 | L22: -0.0012 | M22: -0.004 | N22: -0.0057 | O22: -0.0062 | P22: -0.0058 | Q22: -0.0043 | R22: -0.0016 | S22: 0.0024 | T22: 0.0079 | U22: 0.0145 | V22: 0.0217 | W22: 0.0288 | X22: 0.035 | Y22: 0.0398 | Z22: 0.0428 | AA22: 0.0438 | AB22: 0.0432 | AC22: 0.0412 | AD22: 0.0383 | AE22: 0.0346 | AF22: 0.0304 | AG22: 0.0256 | AH22: 0.0203 | AI22: 0.015 | AJ22: 0.01 | AK22: 0.0055 | AL22: 0.0017 | AM22: -0.0015 | AN22: -0.0042 | AO22: -0.0065 | AP22: -0.0083 | AQ22: -0.009 | AR22: -0.0083 | AS22: -0.0061 | AT22: -0.003 | AU22: -0.0001 | AV22: 0.0016 | AW22: 0.0018 | AX22: 0.0013 | AY22: 0.001 | AZ22: 0.0019 | BA22: 0.0044 | BB22: 0.0082 | BC22: 0.0123 | BD22: 0.0159 | BE22: 0.0185 | BF22: 0.0195 | BG22: 0.0185 | BH22: 0.0155 | BI22: 0.0106 | BJ22: 0.0042 | BK22: -0.0031 | BL22: -0.0105 | BM22: -0.0172 | BN22: -0.0226 | BO22: -0.0267 | BP22: -0.0282 | BQ22: -0.0283 | BR22: -0.027 | BS22: -0.0245 | BT22: -0.021 | BU22: -0.0169 | BV22: -0.0125 | BW22: -0.0081 | BX22: -0.0041 | BY22: -0.0009 | BZ22: 0.0017 | CA22: 0.0042 | CB22: 0.0064 | CC22: 0.0084 | CD22: 0.01 | CE22: 0.0113 | CF22: 0.0123 | CG22: 0.013 | CH22: 0.0134 | CI22: 0.0135
A23: 40 | B23: 0.0475 | C23: 0.0433 | D23: 0.0389 | E23: 0.0341 | F23: 0.029 | G23: 0.0235 | H23: 0.018 | I23: 0.0126 | J23: 0.0076 | K23: 0.003 | L23: -0.0008 | M23: -0.0036 | N23: -0.0054 | O23: -0.0062 | P23: -0.0059 | Q23: -0.0045 | R23: -0.0021 | S23: 0.0018 | T23: 0.007 | U23: 0.0134 | V23: 0.0204 | W23: 0.0272 | X23: 0.0334 | Y23: 0.0382 | Z23: 0.0413 | AA23: 0.0426 | AB23: 0.0422 | AC23: 0.0407 | AD23: 0.0382 | AE23: 0.0349 | AF23: 0.0311 | AG23: 0.0267 | AH23: 0.022 | AI23: 0.0173 | AJ23: 0.0128 | AK23: 0.0087 | AL23: 0.0051 | AM23: 0.0018 | AN23: -0.0011 | AO23: -0.0038 | AP23: -0.0062 | AQ23: -0.0076 | AR23: -0.0076 | AS23: -0.0063 | AT23: -0.0041 | AU23: -0.002 | AV23: -0.0009 | AW23: -0.001 | AX23: -0.0018 | AY23: -0.0021 | AZ23: -0.0011 | BA23: 0.0017 | BB23: 0.0059 | BC23: 0.0106 | BD23: 0.015 | BE23: 0.0183 | BF23: 0.0201 | BG23: 0.0198 | BH23: 0.0175 | BI23: 0.0132 | BJ23: 0.0072 | BK23: 0.0003 | BL23: -0.0067 | BM23: -0.013 | BN23: -0.0181 | BO23: -0.0219 | BP23: -0.0236 | BQ23: -0.0241 | BR23: -0.0233 | BS23: -0.0215 | BT23: -0.0188 | BU23: -0.0155 | BV23: -0.0117 | BW23: -0.0079 | BX23: -0.0043 | BY23: -0.0013 | BZ23: 0.0012 | CA23: 0.0037 | CB23: 0.006 | CC23: 0.0081 | CD23: 0.0098 | CE23: 0.0112 | CF23: 0.0122 | CG23: 0.0129 | CH23: 0.0134 | CI23: 0.0135
A24: 41 | B24: 0.0464 | C24: 0.0422 | D24: 0.038 | E24: 0.0334 | F24: 0.0285 | G24: 0.0232 | H24: 0.0179 | I24: 0.0127 | J24: 0.0078 | K24: 0.0034 | L24: -0.0003 | M24: -0.0032 | N24: -0.0051 | O24: -0.006 | P24: -0.0058 | Q24: -0.0046 | R24: -0.0023 | S24: 0.0014 | T24: 0.0064 | U24: 0.0125 | V24: 0.0191 | W24: 0.0257 | X24: 0.0317 | Y24: 0.0365 | Z24: 0.0397 | AA24: 0.0412 | AB24: 0.0411 | AC24: 0.0399 | AD24: 0.0377 | AE24: 0.0348 | AF24: 0.0313 | AG24: 0.0274 | AH24: 0.0232 | AI24: 0.0191 | AJ24: 0.0151 | AK24: 0.0115 | AL24: 0.0082 | AM24: 0.005 | AN24: 0.0019 | AO24: -0.001 | AP24: -0.0037 | AQ24: -0.0056 | AR24: -0.0062 | AS24: -0.0057 | AT24: -0.0043 | AU24: -0.003 | AV24: -0.0026 | AW24: -0.0032 | AX24: -0.0043 | AY24: -0.0049 | AZ24: -0.004 | BA24: -0.0011 | BB24: 0.0033 | BC24: 0.0084 | BD24: 0.0133 | BE24: 0.0173 | BF24: 0.0198 | BG24: 0.0203 | BH24: 0.0188 | BI24: 0.0152 | BJ24: 0.0098 | BK24: 0.0035 | BL24: -0.003 | BM24: -0.0088 | BN24: -0.0135 | BO24: -0.017 | BP24: -0.0189 | BQ24: -0.0197 | BR24: -0.0195 | BS24: -0.0183 | BT24: -0.0163 | BU24: -0.0137 | BV24: -0.0106 | BW24: -0.0074 | BX24: -0.0043 | BY24: -0.0015 | BZ24: 0.0009 | CA24: 0.0034 | CB24: 0.0057 | CC24: 0.0078 | CD24: 0.0096 | CE24: 0.011 | CF24: 0.0121 | CG24: 0.0129 | CH24: 0.0134 | CI24: 0.0135
A25: 42 | B25: 0.0455 | C25: 0.0414 | D25: 0.0371 | E25: 0.0326 | F25: 0.0278 | G25: 0.0227 | H25: 0.0176 | I25: 0.0127 | J25: 0.008 | K25: 0.0037 | L25: 0.0001 | M25: -0.0027 | N25: -0.0047 | O25: -0.0057 | P25: -0.0057 | Q25: -0.0045 | R25: -0.0023 | S25: 0.0012 | T25: 0.006 | U25: 0.0117 | V25: 0.0181 | W25: 0.0244 | X25: 0.0302 | Y25: 0.0348 | Z25: 0.0381 | AA25: 0.0397 | AB25: 0.0398 | AC25: 0.0388 | AD25: 0.0369 | AE25: 0.0343 | AF25: 0.0311 | AG25: 0.0276 | AH25: 0.024 | AI25: 0.0203 | AJ25: 0.0169 | AK25: 0.0138 | AL25: 0.0108 | AM25: 0.0077 | AN25: 0.0047 | AO25: 0.0018 | AP25: -0.001 | AQ25: -0.0032 | AR25: -0.0043 | AS25: -0.0043 | AT25: -0.0037 | AU25: -0.0032 | AV25: -0.0034 | AW25: -0.0046 | AX25: -0.0062 | AY25: -0.0072 | AZ25: -0.0065 | BA25: -0.0039 | BB25: 0.0005 | BC25: 0.0058 | BD25: 0.0111 | BE25: 0.0156 | BF25: 0.0188 | BG25: 0.02 | BH25: 0.0192 | BI25: 0.0164 | BJ25: 0.0119 | BK25: 0.0063 | BL25: 0.0005 | BM25: -0.0048 | BN25: -0.0091 | BO25: -0.0123 | BP25: -0.0142 | BQ25: -0.0152 | BR25: -0.0155 | BS25: -0.0149 | BT25: -0.0136 | BU25: -0.0117 | BV25: -0.0093 | BW25: -0.0066 | BX25: -0.004 | BY25: -0.0016 | BZ25: 0.0007 | CA25: 0.0031 | CB25: 0.0054 | CC25: 0.0075 | CD25: 0.0094 | CE25: 0.0109 | CF25: 0.0121 | CG25: 0.0129 | CH25: 0.0133 | CI25: 0.0135
A26: 43 | B26: 0.0447 | C26: 0.0405 | D26: 0.0362 | E26: 0.0318 | F26: 0.027 | G26: 0.0221 | H26: 0.0172 | I26: 0.0125 | J26: 0.0081 | K26: 0.004 | L26: 0.0005 | M26: -0.0023 | N26: -0.0043 | O26: -0.0054 | P26: -0.0054 | Q26: -0.0043 | R26: -0.0021 | S26: 0.0013 | T26: 0.0058 | U26: 0.0113 | V26: 0.0172 | W26: 0.0232 | X26: 0.0288 | Y26: 0.0333 | Z26: 0.0365 | AA26: 0.0381 | AB26: 0.0384 | AC26: 0.0375 | AD26: 0.0357 | AE26: 0.0333 | AF26: 0.0305 | AG26: 0.0274 | AH26: 0.0242 | AI26: 0.0211 | AJ26: 0.0182 | AK26: 0.0154 | AL26: 0.0128 | AM26: 0.01 | AN26: 0.0072 | AO26: 0.0044 | AP26: 0.0017 | AQ26: -0.0005 | AR26: -0.0018 | AS26: -0.0022 | AT26: -0.0022 | AU26: -0.0024 | AV26: -0.0034 | AW26: -0.0052 | AX26: -0.0074 | AY26: -0.0088 | AZ26: -0.0086 | BA26: -0.0064 | BB26: -0.0022 | BC26: 0.0031 | BD26: 0.0085 | BE26: 0.0134 | BF26: 0.017 | BG26: 0.0189 | BH26: 0.0189 | BI26: 0.017 | BJ26: 0.0133 | BK26: 0.0086 | BL26: 0.0035 | BM26: -0.0012 | BN26: -0.0049 | BO26: -0.0077 | BP26: -0.0096 | BQ26: -0.0109 | BR26: -0.0114 | BS26: -0.0114 | BT26: -0.0107 | BU26: -0.0094 | BV26: -0.0077 | BW26: -0.0056 | BX26: -0.0035 | BY26: -0.0014 | BZ26: 0.0007 | CA26: 0.0029 | CB26: 0.0052 | CC26: 0.0073 | CD26: 0.0092 | CE26: 0.0107 | CF26: 0.012 | CG26: 0.0128 | CH26: 0.0133 | CI26: 0.0135
A27: 44 | B27: 0.0439 | C27: 0.0397 | D27: 0.0354 | E27: 0.0309 | F27: 0.0262 | G27: 0.0215 | H27: 0.0168 | I27: 0.0123 | J27: 0.0081 | K27: 0.0042 | L27: 0.0008 | M27: -0.002 | N27: -0.004 | O27: -0.005 | P27: -0.005 | Q27: -0.0039 | R27: -0.0017 | S27: 0.0016 | T27: 0.0059 | U27: 0.0111 | V27: 0.0167 | W27: 0.0223 | X27: 0.0275 | Y27: 0.0319 | Z27: 0.0349 | AA27: 0.0365 | AB27: 0.0368 | AC27: 0.0359 | AD27: 0.0343 | AE27: 0.032 | AF27: 0.0295 | AG27: 0.0268 | AH27: 0.0241 | AI27: 0.0214 | AJ27: 0.0189 | AK27: 0.0165 | AL27: 0.0142 | AM27: 0.0117 | AN27: 0.0092 | AO27: 0.0067 | AP27: 0.0043 | AQ27: 0.0023 | AR27: 0.0009 | AS27: 0.0003 | AT27: -0.0001 | AU27: -0.0009 | AV27: -0.0025 | AW27: -0.0049 | AX27: -0.0077 | AY27: -0.0097 | AZ27: -0.0101 | BA27: -0.0083 | BB27: -0.0046 | BC27: 0.0004 | BD27: 0.0058 | BE27: 0.0107 | BF27: 0.0147 | BG27: 0.0171 | BH27: 0.0178 | BI27: 0.0167 | BJ27: 0.014 | BK27: 0.0102 | BL27: 0.0059 | BM27: 0.002 | BN27: -0.0013 | BO27: -0.0036 | BP27: -0.0054 | BQ27: -0.0067 | BR27: -0.0076 | BS27: -0.0079 | BT27: -0.0077 | BU27: -0.0071 | BV27: -0.0059 | BW27: -0.0044 | BX27: -0.0027 | BY27: -0.001 | BZ27: 0.0008 | CA27: 0.0029 | CB27: 0.005 | CC27: 0.0071 | CD27: 0.009 | CE27: 0.0106 | CF27: 0.0119 | CG27: 0.0128 | CH27: 0.0133 | CI27: 0.0135
A28: 45 | B28: 0.0429 | C28: 0.0387 | D28: 0.0345 | E28: 0.0301 | F28: 0.0255 | G28: 0.0209 | H28: 0.0164 | I28: 0.0121 | J28: 0.0081 | K28: 0.0043 | L28: 0.001 | M28: -0.0017 | N28: -0.0036 | O28: -0.0046 | P28: -0.0045 | Q28: -0.0034 | R28: -0.0012 | S28: 0.0021 | T28: 0.0063 | U28: 0.0111 | V28: 0.0163 | W28: 0.0216 | X28: 0.0265 | Y28: 0.0306 | Z28: 0.0334 | AA28: 0.0349 | AB28: 0.035 | AC28: 0.0342 | AD28: 0.0326 | AE28: 0.0304 | AF28: 0.0282 | AG28: 0.0258 | AH28: 0.0235 | AI28: 0.0212 | AJ28: 0.019 | AK28: 0.017 | AL28: 0.015 | AM28: 0.013 | AN28: 0.0109 | AO28: 0.0087 | AP28: 0.0067 | AQ28: 0.005 | AR28: 0.0037 | AS28: 0.003 | AT28: 0.0024 | AU28: 0.0012 | AV28: -0.0009 | AW28: -0.0039 | AX28: -0.0072 | AY28: -0.0098 | AZ28: -0.0108 | BA28: -0.0096 | BB28: -0.0065 | BC28: -0.002 | BD28: 0.0031 | BE28: 0.0079 | BF28: 0.0119 | BG28: 0.0147 | BH28: 0.016 | BI28: 0.0157 | BJ28: 0.0138 | BK28: 0.0109 | BL28: 0.0076 | BM28: 0.0044 | BN28: 0.0018 | BO28: -0.0001 | BP28: -0.0016 | BQ28: -0.0029 | BR28: -0.0039 | BS28: -0.0046 | BT28: -0.0048 | BU28: -0.0046 | BV28: -0.004 | BW28: -0.0031 | BX28: -0.0018 | BY28: -0.0004 | BZ28: 0.0012 | CA28: 0.003 | CB28: 0.005 | CC28: 0.007 | CD28: 0.0089 | CE28: 0.0105 | CF28: 0.0118 | CG28: 0.0128 | CH28: 0.0133 | CI28: 0.0135
A29: 46 | B29: 0.0415 | C29: 0.0376 | D29: 0.0336 | E29: 0.0294 | F29: 0.025 | G29: 0.0205 | H29: 0.0162 | I29: 0.0121 | J29: 0.0081 | K29: 0.0045 | L29: 0.0012 | M29: -0.0014 | N29: -0.0033 | O29: -0.0041 | P29: -0.004 | Q29: -0.0028 | R29: -0.0005 | S29: 0.0027 | T29: 0.0067 | U29: 0.0113 | V29: 0.0162 | W29: 0.0211 | X29: 0.0257 | Y29: 0.0294 | Z29: 0.032 | AA29: 0.0332 | AB29: 0.0332 | AC29: 0.0323 | AD29: 0.0307 | AE29: 0.0287 | AF29: 0.0266 | AG29: 0.0246 | AH29: 0.0225 | AI29: 0.0205 | AJ29: 0.0186 | AK29: 0.0169 | AL29: 0.0153 | AM29: 0.0138 | AN29: 0.0121 | AO29: 0.0104 | AP29: 0.0088 | AQ29: 0.0075 | AR29: 0.0064 | AS29: 0.0057 | AT29: 0.005 | AU29: 0.0036 | AV29: 0.0012 | AW29: -0.0022 | AX29: -0.0059 | AY29: -0.009 | AZ29: -0.0106 | BA29: -0.0101 | BB29: -0.0077 | BC29: -0.0039 | BD29: 0.0006 | BE29: 0.0052 | BF29: 0.0091 | BG29: 0.012 | BH29: 0.0136 | BI29: 0.014 | BJ29: 0.0129 | BK29: 0.0109 | BL29: 0.0084 | BM29: 0.006 | BN29: 0.0041 | BO29: 0.0029 | BP29: 0.0016 | BQ29: 0.0004 | BR29: -0.0006 | BS29: -0.0015 | BT29: -0.002 | BU29: -0.0022 | BV29: -0.0021 | BW29: -0.0015 | BX29: -0.0007 | BY29: 0.0003 | BZ29: 0.0017 | CA29: 0.0033 | CB29: 0.0051 | CC29: 0.007 | CD29: 0.0088 | CE29: 0.0104 | CF29: 0.0117 | CG29: 0.0127 | CH29: 0.0133 | CI29: 0.0135
A30: 47 | B30: 0.0398 | C30: 0.0362 | D30: 0.0326 | E30: 0.0288 | F30: 0.0246 | G30: 0.0204 | H30: 0.0162 | I30: 0.0122 | J30: 0.0083 | K30: 0.0047 | L30: 0.0015 | M30: -0.0011 | N30: -0.0029 | O30: -0.0037 | P30: -0.0034 | Q30: -0.0021 | R30: 0.0001 | S30: 0.0033 | T30: 0.0072 | U30: 0.0116 | V30: 0.0162 | W30: 0.0208 | X30: 0.0249 | Y30: 0.0283 | Z30: 0.0305 | AA30: 0.0315 | AB30: 0.0314 | AC30: 0.0304 | AD30: 0.0288 | AE30: 0.0269 | AF30: 0.025 | AG30: 0.0231 | AH30: 0.0212 | AI30: 0.0194 | AJ30: 0.0178 | AK30: 0.0165 | AL30: 0.0153 | AM30: 0.0142 | AN30: 0.013 | AO30: 0.0118 | AP30: 0.0107 | AQ30: 0.0097 | AR30: 0.0089 | AS30: 0.0082 | AT30: 0.0075 | AU30: 0.0061 | AV30: 0.0035 | AW30: 0 | AX30: -0.0039 | AY30: -0.0074 | AZ30: -0.0095 | BA30: -0.0097 | BB30: -0.0081 | BC30: -0.0051 | BD30: -0.0013 | BE30: 0.0027 | BF30: 0.0063 | BG30: 0.0091 | BH30: 0.011 | BI30: 0.0117 | BJ30: 0.0113 | BK30: 0.01 | BL30: 0.0083 | BM30: 0.0067 | BN30: 0.0056 | BO30: 0.0051 | BP30: 0.0041 | BQ30: 0.0031 | BR30: 0.0021 | BS30: 0.0012 | BT30: 0.0005 | BU30: 0.0001 | BV30: -0.0001 | BW30: 0 | BX30: 0.0005 | BY30: 0.0013 | BZ30: 0.0023 | CA30: 0.0037 | CB30: 0.0053 | CC30: 0.0071 | CD30: 0.0088 | CE30: 0.0104 | CF30: 0.0117 | CG30: 0.0127 | CH30: 0.0133 | CI30: 0.0135
A31: 48 | B31: 0.0377 | C31: 0.0347 | D31: 0.0316 | E31: 0.0282 | F31: 0.0245 | G31: 0.0204 | H31: 0.0164 | I31: 0.0124 | J31: 0.0087 | K31: 0.0051 | L31: 0.0019 | M31: -0.0007 | N31: -0.0024 | O31: -0.0031 | P31: -0.0028 | Q31: -0.0015 | R31: 0.0008 | S31: 0.0039 | T31: 0.0077 | U31: 0.0119 | V31: 0.0162 | W31: 0.0205 | X31: 0.0243 | Y31: 0.0273 | Z31: 0.0291 | AA31: 0.0298 | AB31: 0.0295 | AC31: 0.0285 | AD31: 0.0269 | AE31: 0.0251 | AF31: 0.0232 | AG31: 0.0214 | AH31: 0.0197 | AI31: 0.018 | AJ31: 0.0167 | AK31: 0.0157 | AL31: 0.0149 | AM31: 0.0143 | AN31: 0.0137 | AO31: 0.0129 | AP31: 0.0122 | AQ31: 0.0115 | AR31: 0.0109 | AS31: 0.0104 | AT31: 0.0097 | AU31: 0.0084 | AV31: 0.0059 | AW31: 0.0025 | AX31: -0.0015 | AY31: -0.0051 | AZ31: -0.0076 | BA31: -0.0085 | BB31: -0.0077 | BC31: -0.0055 | BD31: -0.0026 | BE31: 0.0007 | BF31: 0.0038 | BG31: 0.0063 | BH31: 0.0082 | BI31: 0.0091 | BJ31: 0.0091 | BK31: 0.0084 | BL31: 0.0074 | BM31: 0.0066 | BN31: 0.0062 | BO31: 0.0065 | BP31: 0.0059 | BQ31: 0.0052 | BR31: 0.0044 | BS31: 0.0035 | BT31: 0.0028 | BU31: 0.0022 | BV31: 0.0018 | BW31: 0.0017 | BX31: 0.0019 | BY31: 0.0023 | BZ31: 0.0031 | CA31: 0.0042 | CB31: 0.0057 | CC31: 0.0072 | CD31: 0.0088 | CE31: 0.0104 | CF31: 0.0117 | CG31: 0.0127 | CH31: 0.0133 | CI31: 0.0135
A32: 49 | B32: 0.0355 | C32: 0.0331 | D32: 0.0306 | E32: 0.0277 | F32: 0.0244 | G32: 0.0207 | H32: 0.0168 | I32: 0.0129 | J32: 0.0092 | K32: 0.0056 | L32: 0.0025 | M32: -0.0001 | N32: -0.0019 | O32: -0.0026 | P32: -0.0023 | Q32: -0.001 | R32: 0.0013 | S32: 0.0043 | T32: 0.0079 | U32: 0.012 | V32: 0.0162 | W32: 0.0202 | X32: 0.0237 | Y32: 0.0263 | Z32: 0.0279 | AA32: 0.0283 | AB32: 0.0278 | AC32: 0.0267 | AD32: 0.0251 | AE32: 0.0233 | AF32: 0.0215 | AG32: 0.0197 | AH32: 0.018 | AI32: 0.0165 | AJ32: 0.0154 | AK32: 0.0147 | AL32: 0.0144 | AM32: 0.0142 | AN32: 0.014 | AO32: 0.0137 | AP32: 0.0133 | AQ32: 0.0129 | AR32: 0.0125 | AS32: 0.0121 | AT32: 0.0116 | AU32: 0.0104 | AV32: 0.0083 | AW32: 0.0051 | AX32: 0.0013 | AY32: -0.0023 | AZ32: -0.0051 | BA32: -0.0065 | BB32: -0.0064 | BC32: -0.0051 | BD32: -0.0031 | BE32: -0.0006 | BF32: 0.0018 | BG32: 0.0039 | BH32: 0.0054 | BI32: 0.0063 | BJ32: 0.0065 | BK32: 0.0062 | BL32: 0.0057 | BM32: 0.0056 | BN32: 0.006 | BO32: 0.0071 | BP32: 0.0069 | BQ32: 0.0065 | BR32: 0.006 | BS32: 0.0053 | BT32: 0.0046 | BU32: 0.004 | BV32: 0.0036 | BW32: 0.0033 | BX32: 0.0032 | BY32: 0.0035 | BZ32: 0.004 | CA32: 0.0049 | CB32: 0.0061 | CC32: 0.0075 | CD32: 0.009 | CE32: 0.0104 | CF32: 0.0117 | CG32: 0.0127 | CH32: 0.0133 | CI32: 0.0135
A33: 50 | B33: 0.0333 | C33: 0.0315 | D33: 0.0296 | E33: 0.0272 | F33: 0.0243 | G33: 0.0209 | H33: 0.0172 | I33: 0.0135 | J33: 0.0099 | K33: 0.0064 | L33: 0.0032 | M33: 0.0006 | N33: -0.0012 | O33: -0.002 | P33: -0.0018 | Q33: -0.0005 | R33: 0.0016 | S33: 0.0044 | T33: 0.008 | U33: 0.012 | V33: 0.0161 | W33: 0.0199 | X33: 0.0232 | Y33: 0.0255 | Z33: 0.0267 | AA33: 0.0269 | AB33: 0.0263 | AC33: 0.025 | AD33: 0.0234 | AE33: 0.0215 | AF33: 0.0197 | AG33: 0.0179 | AH33: 0.0162 | AI33: 0.0148 | AJ33: 0.0139 | AK33: 0.0136 | AL33: 0.0136 | AM33: 0.0139 | AN33: 0.0142 | AO33: 0.0142 | AP33: 0.0141 | AQ33: 0.0139 | AR33: 0.0136 | AS33: 0.0134 | AT33: 0.013 | AU33: 0.0121 | AV33: 0.0103 | AW33: 0.0075 | AX33: 0.0041 | AY33: 0.0006 | AZ33: -0.0021 | BA33: -0.0038 | BB33: -0.0043 | BC33: -0.0038 | BD33: -0.0026 | BE33: -0.001 | BF33: 0.0006 | BG33: 0.002 | BH33: 0.003 | BI33: 0.0036 | BJ33: 0.0037 | BK33: 0.0036 | BL33: 0.0035 | BM33: 0.0039 | BN33: 0.005 | BO33: 0.0068 | BP33: 0.0071 | BQ33: 0.0071 | BR33: 0.0069 | BS33: 0.0066 | BT33: 0.0061 | BU33: 0.0056 | BV33: 0.0051 | BW33: 0.0048 | BX33: 0.0046 | BY33: 0.0047 | BZ33: 0.005 | CA33: 0.0056 | CB33: 0.0066 | CC33: 0.0078 | CD33: 0.0091 | CE33: 0.0105 | CF33: 0.0117 | CG33: 0.0127 | CH33: 0.0133 | CI33: 0.0135
A34: 51 | B34: 0.0314 | C34: 0.0301 | D34: 0.0286 | E34: 0.0267 | F34: 0.0242 | G34: 0.0211 | H34: 0.0177 | I34: 0.0142 | J34: 0.0107 | K34: 0.0073 | L34: 0.0042 | M34: 0.0015 | N34: -0.0004 | O34: -0.0013 | P34: -0.0013 | Q34: -0.0003 | R34: 0.0016 | S34: 0.0043 | T34: 0.0078 | U34: 0.0117 | V34: 0.0157 | W34: 0.0195 | X34: 0.0226 | Y34: 0.0248 | Z34: 0.0258 | AA34: 0.0258 | AB34: 0.025 | AC34: 0.0235 | AD34: 0.0218 | AE34: 0.0198 | AF34: 0.0179 | AG34: 0.016 | AH34: 0.0144 | AI34: 0.0132 | AJ34: 0.0125 | AK34: 0.0124 | AL34: 0.0128 | AM34: 0.0134 | AN34: 0.014 | AO34: 0.0144 | AP34: 0.0145 | AQ34: 0.0144 | AR34: 0.0143 | AS34: 0.0142 | AT34: 0.014 | AU34: 0.0133 | AV34: 0.0119 | AW34: 0.0096 | AX34: 0.0066 | AY34: 0.0036 | AZ34: 0.001 | BA34: -0.0007 | BB34: -0.0016 | BC34: -0.0017 | BD34: -0.0012 | BE34: -0.0005 | BF34: 0.0003 | BG34: 0.0008 | BH34: 0.0011 | BI34: 0.0012 | BJ34: 0.001 | BK34: 0.0008 | BL34: 0.0009 | BM34: 0.0017 | BN34: 0.0033 | BO34: 0.0058 | BP34: 0.0064 | BQ34: 0.0069 | BR34: 0.0072 | BS34: 0.0072 | BT34: 0.0071 | BU34: 0.0068 | BV34: 0.0065 | BW34: 0.0062 | BX34: 0.006 | BY34: 0.0059 | BZ34: 0.006 | CA34: 0.0064 | CB34: 0.0072 | CC34: 0.0082 | CD34: 0.0094 | CE34: 0.0106 | CF34: 0.0117 | CG34: 0.0127 | CH34: 0.0133 | CI34: 0.0135
A35: 52 | B35: 0.03 | C35: 0.029 | D35: 0.0277 | E35: 0.0261 | F35: 0.0239 | G35: 0.0211 | H35: 0.018 | I35: 0.0148 | J35: 0.0115 | K35: 0.0083 | L35: 0.0052 | M35: 0.0026 | N35: 0.0005 | O35: -0.0006 | P35: -0.0008 | Q35: -0.0001 | R35: 0.0015 | S35: 0.004 | T35: 0.0073 | U35: 0.0112 | V35: 0.0152 | W35: 0.019 | X35: 0.022 | Y35: 0.0241 | Z35: 0.0251 | AA35: 0.025 | AB35: 0.0239 | AC35: 0.0223 | AD35: 0.0203 | AE35: 0.0182 | AF35: 0.0161 | AG35: 0.0143 | AH35: 0.0127 | AI35: 0.0117 | AJ35: 0.0112 | AK35: 0.0114 | AL35: 0.012 | AM35: 0.0128 | AN35: 0.0136 | AO35: 0.0142 | AP35: 0.0146 | AQ35: 0.0147 | AR35: 0.0147 | AS35: 0.0147 | AT35: 0.0146 | AU35: 0.0141 | AV35: 0.0131 | AW35: 0.0112 | AX35: 0.0089 | AY35: 0.0064 | AZ35: 0.0042 | BA35: 0.0026 | BB35: 0.0016 | BC35: 0.0012 | BD35: 0.001 | BE35: 0.0009 | BF35: 0.0008 | BG35: 0.0004 | BH35: -0.0001 | BI35: -0.0008 | BJ35: -0.0015 | BK35: -0.002 | BL35: -0.0019 | BM35: -0.0009 | BN35: 0.0011 | BO35: 0.0041 | BP35: 0.0051 | BQ35: 0.006 | BR35: 0.0068 | BS35: 0.0073 | BT35: 0.0075 | BU35: 0.0076 | BV35: 0.0076 | BW35: 0.0074 | BX35: 0.0072 | BY35: 0.0071 | BZ35: 0.007 | CA35: 0.0073 | CB35: 0.0078 | CC35: 0.0087 | CD35: 0.0097 | CE35: 0.0108 | CF35: 0.0118 | CG35: 0.0127 | CH35: 0.0133 | CI35: 0.0135
A36: 53 | B36: 0.0291 | C36: 0.0282 | D36: 0.027 | E36: 0.0255 | F36: 0.0235 | G36: 0.0209 | H36: 0.0181 | I36: 0.0152 | J36: 0.0123 | K36: 0.0093 | L36: 0.0064 | M36: 0.0037 | N36: 0.0016 | O36: 0.0002 | P36: -0.0004 | Q36: 0 | R36: 0.0013 | S36: 0.0036 | T36: 0.0067 | U36: 0.0105 | V36: 0.0145 | W36: 0.0183 | X36: 0.0214 | Y36: 0.0236 | Z36: 0.0245 | AA36: 0.0243 | AB36: 0.0231 | AC36: 0.0213 | AD36: 0.019 | AE36: 0.0166 | AF36: 0.0144 | AG36: 0.0125 | AH36: 0.0111 | AI36: 0.0103 | AJ36: 0.0101 | AK36: 0.0104 | AL36: 0.0112 | AM36: 0.0121 | AN36: 0.0131 | AO36: 0.0138 | AP36: 0.0143 | AQ36: 0.0146 | AR36: 0.0147 | AS36: 0.0148 | AT36: 0.0148 | AU36: 0.0145 | AV36: 0.0138 | AW36: 0.0124 | AX36: 0.0107 | AY36: 0.0088 | AZ36: 0.0072 | BA36: 0.006 | BB36: 0.0051 | BC36: 0.0045 | BD36: 0.0039 | BE36: 0.0032 | BF36: 0.0022 | BG36: 0.0009 | BH36: -0.0006 | BI36: -0.0021 | BJ36: -0.0035 | BK36: -0.0044 | BL36: -0.0045 | BM36: -0.0035 | BN36: -0.0013 | BO36: 0.0019 | BP36: 0.0032 | BQ36: 0.0045 | BR36: 0.0058 | BS36: 0.0068 | BT36: 0.0076 | BU36: 0.0081 | BV36: 0.0083 | BW36: 0.0084 | BX36: 0.0084 | BY36: 0.0082 | BZ36: 0.008 | CA36: 0.0081 | CB36: 0.0085 | CC36: 0.0092 | CD36: 0.01 | CE36: 0.011 | CF36: 0.0119 | CG36: 0.0127 | CH36: 0.0133 | CI36: 0.0135
A37: 54 | B37: 0.0288 | C37: 0.0277 | D37: 0.0264 | E37: 0.0249 | F37: 0.0228 | G37: 0.0205 | H37: 0.0179 | I37: 0.0154 | J37: 0.0128 | K37: 0.0102 | L37: 0.0075 | M37: 0.0049 | N37: 0.0026 | O37: 0.001 | P37: 0.0002 | Q37: 0.0002 | R37: 0.0011 | S37: 0.0031 | T37: 0.0061 | U37: 0.0097 | V37: 0.0137 | W37: 0.0175 | X37: 0.0208 | Y37: 0.023 | Z37: 0.0241 | AA37: 0.0238 | AB37: 0.0225 | AC37: 0.0204 | AD37: 0.0178 | AE37: 0.0151 | AF37: 0.0128 | AG37: 0.0109 | AH37: 0.0097 | AI37: 0.0091 | AJ37: 0.0091 | AK37: 0.0095 | AL37: 0.0104 | AM37: 0.0114 | AN37: 0.0124 | AO37: 0.0133 | AP37: 0.0139 | AQ37: 0.0143 | AR37: 0.0145 | AS37: 0.0147 | AT37: 0.0147 | AU37: 0.0145 | AV37: 0.014 | AW37: 0.0131 | AX37: 0.012 | AY37: 0.0108 | AZ37: 0.0099 | BA37: 0.0092 | BB37: 0.0086 | BC37: 0.0081 | BD37: 0.0072 | BE37: 0.006 | BF37: 0.0043 | BG37: 0.0022 | BH37: -0.0002 | BI37: -0.0027 | BJ37: -0.0049 | BK37: -0.0064 | BL37: -0.0069 | BM37: -0.006 | BN37: -0.0039 | BO37: -0.0007 | BP37: 0.0008 | BQ37: 0.0025 | BR37: 0.0043 | BS37: 0.0058 | BT37: 0.0072 | BU37: 0.0082 | BV37: 0.0088 | BW37: 0.0092 | BX37: 0.0093 | BY37: 0.0091 | BZ37: 0.0089 | CA37: 0.009 | CB37: 0.0092 | CC37: 0.0097 | CD37: 0.0104 | CE37: 0.0112 | CF37: 0.012 | CG37: 0.0128 | CH37: 0.0133 | CI37: 0.0135
A38: 55 | B38: 0.029 | C38: 0.0276 | D38: 0.026 | E38: 0.0242 | F38: 0.0221 | G38: 0.0198 | H38: 0.0175 | I38: 0.0153 | J38: 0.0131 | K38: 0.0108 | L38: 0.0083 | M38: 0.0059 | N38: 0.0037 | O38: 0.002 | P38: 0.0009 | Q38: 0.0005 | R38: 0.0012 | S38: 0.0028 | T38: 0.0056 | U38: 0.0091 | V38: 0.013 | W38: 0.0168 | X38: 0.0201 | Y38: 0.0225 | Z38: 0.0236 | AA38: 0.0234 | AB38: 0.0219 | AC38: 0.0196 | AD38: 0.0167 | AE38: 0.0138 | AF38: 0.0113 | AG38: 0.0095 | AH38: 0.0084 | AI38: 0.008 | AJ38: 0.0082 | AK38: 0.0088 | AL38: 0.0097 | AM38: 0.0107 | AN38: 0.0117 | AO38: 0.0126 | AP38: 0.0133 | AQ38: 0.0138 | AR38: 0.0141 | AS38: 0.0143 | AT38: 0.0143 | AU38: 0.0142 | AV38: 0.014 | AW38: 0.0135 | AX38: 0.0129 | AY38: 0.0124 | AZ38: 0.0121 | BA38: 0.012 | BB38: 0.0119 | BC38: 0.0116 | BD38: 0.0107 | BE38: 0.0092 | BF38: 0.007 | BG38: 0.0041 | BH38: 0.0009 | BI38: -0.0024 | BJ38: -0.0054 | BK38: -0.0076 | BL38: -0.0086 | BM38: -0.0082 | BN38: -0.0063 | BO38: -0.0034 | BP38: -0.0017 | BQ38: 0.0003 | BR38: 0.0024 | BS38: 0.0045 | BT38: 0.0064 | BU38: 0.0079 | BV38: 0.009 | BW38: 0.0098 | BX38: 0.0101 | BY38: 0.01 | BZ38: 0.0098 | CA38: 0.0097 | CB38: 0.0099 | CC38: 0.0102 | CD38: 0.0107 | CE38: 0.0114 | CF38: 0.0121 | CG38: 0.0128 | CH38: 0.0133 | CI38: 0.0135
A39: 56 | B39: 0.0295 | C39: 0.0276 | D39: 0.0257 | E39: 0.0236 | F39: 0.0212 | G39: 0.0189 | H39: 0.0168 | I39: 0.0148 | J39: 0.0129 | K39: 0.011 | L39: 0.0089 | M39: 0.0067 | N39: 0.0047 | O39: 0.003 | P39: 0.0018 | Q39: 0.0012 | R39: 0.0016 | S39: 0.0029 | T39: 0.0054 | U39: 0.0086 | V39: 0.0124 | W39: 0.0161 | X39: 0.0194 | Y39: 0.0218 | Z39: 0.023 | AA39: 0.0228 | AB39: 0.0213 | AC39: 0.0188 | AD39: 0.0157 | AE39: 0.0126 | AF39: 0.01 | AG39: 0.0082 | AH39: 0.0072 | AI39: 0.007 | AJ39: 0.0074 | AK39: 0.0081 | AL39: 0.009 | AM39: 0.01 | AN39: 0.0111 | AO39: 0.012 | AP39: 0.0127 | AQ39: 0.0132 | AR39: 0.0135 | AS39: 0.0136 | AT39: 0.0137 | AU39: 0.0137 | AV39: 0.0136 | AW39: 0.0135 | AX39: 0.0135 | AY39: 0.0136 | AZ39: 0.014 | BA39: 0.0145 | BB39: 0.0149 | BC39: 0.0149 | BD39: 0.0141 | BE39: 0.0125 | BF39: 0.0099 | BG39: 0.0066 | BH39: 0.0027 | BI39: -0.0013 | BJ39: -0.0051 | BK39: -0.008 | BL39: -0.0096 | BM39: -0.0097 | BN39: -0.0083 | BO39: -0.0058 | BP39: -0.0043 | BQ39: -0.0021 | BR39: 0.0004 | BS39: 0.0029 | BT39: 0.0053 | BU39: 0.0074 | BV39: 0.009 | BW39: 0.0101 | BX39: 0.0107 | BY39: 0.0107 | BZ39: 0.0105 | CA39: 0.0104 | CB39: 0.0105 | CC39: 0.0107 | CD39: 0.0111 | CE39: 0.0117 | CF39: 0.0123 | CG39: 0.0129 | CH39: 0.0133 | CI39: 0.0135
A40: 57 | B40: 0.0301 | C40: 0.0278 | D40: 0.0255 | E40: 0.023 | F40: 0.0204 | G40: 0.0179 | H40: 0.0158 | I40: 0.014 | J40: 0.0124 | K40: 0.0108 | L40: 0.0091 | M40: 0.0072 | N40: 0.0055 | O40: 0.0041 | P40: 0.0029 | Q40: 0.0023 | R40: 0.0024 | S40: 0.0035 | T40: 0.0056 | U40: 0.0086 | V40: 0.012 | W40: 0.0155 | X40: 0.0187 | Y40: 0.0211 | Z40: 0.0222 | AA40: 0.022 | AB40: 0.0205 | AC40: 0.0179 | AD40: 0.0148 | AE40: 0.0116 | AF40: 0.009 | AG40: 0.0071 | AH40: 0.0062 | AI40: 0.0061 | AJ40: 0.0066 | AK40: 0.0075 | AL40: 0.0084 | AM40: 0.0095 | AN40: 0.0105 | AO40: 0.0114 | AP40: 0.012 | AQ40: 0.0124 | AR40: 0.0127 | AS40: 0.0128 | AT40: 0.0129 | AU40: 0.013 | AV40: 0.0131 | AW40: 0.0133 | AX40: 0.0137 | AY40: 0.0144 | AZ40: 0.0153 | BA40: 0.0164 | BB40: 0.0173 | BC40: 0.0176 | BD40: 0.0171 | BE40: 0.0156 | BF40: 0.013 | BG40: 0.0094 | BH40: 0.0051 | BI40: 0.0006 | BJ40: -0.0038 | BK40: -0.0074 | BL40: -0.0097 | BM40: -0.0105 | BN40: -0.0098 | BO40: -0.0079 | BP40: -0.0065 | BQ40: -0.0043 | BR40: -0.0016 | BS40: 0.0013 | BT40: 0.0041 | BU40: 0.0066 | BV40: 0.0086 | BW40: 0.0101 | BX40: 0.011 | BY40: 0.0112 | BZ40: 0.0111 | CA40: 0.011 | CB40: 0.011 | CC40: 0.0112 | CD40: 0.0115 | CE40: 0.0119 | CF40: 0.0124 | CG40: 0.0129 | CH40: 0.0133 | CI40: 0.0135
A41: 58 | B41: 0.0306 | C41: 0.028 | D41: 0.0252 | E41: 0.0224 | F41: 0.0196 | G41: 0.017 | H41: 0.0148 | I41: 0.013 | J41: 0.0116 | K41: 0.0103 | L41: 0.0089 | M41: 0.0075 | N41: 0.0063 | O41: 0.0052 | P41: 0.0043 | Q41: 0.0037 | R41: 0.0037 | S41: 0.0046 | T41: 0.0064 | U41: 0.0089 | V41: 0.012 | W41: 0.0151 | X41: 0.018 | Y41: 0.0202 | Z41: 0.0213 | AA41: 0.021 | AB41: 0.0195 | AC41: 0.017 | AD41: 0.0139 | AE41: 0.0107 | AF41: 0.008 | AG41: 0.0062 | AH41: 0.0053 | AI41: 0.0053 | AJ41: 0.0059 | AK41: 0.0069 | AL41: 0.008 | AM41: 0.0091 | AN41: 0.0101 | AO41: 0.0109 | AP41: 0.0114 | AQ41: 0.0117 | AR41: 0.0118 | AS41: 0.0118 | AT41: 0.0119 | AU41: 0.0121 | AV41: 0.0125 | AW41: 0.013 | AX41: 0.0138 | AY41: 0.0149 | AZ41: 0.0163 | BA41: 0.0178 | BB41: 0.0191 | BC41: 0.0198 | BD41: 0.0196 | BE41: 0.0183 | BF41: 0.0158 | BG41: 0.0123 | BH41: 0.0079 | BI41: 0.003 | BJ41: -0.0018 | BK41: -0.006 | BL41: -0.009 | BM41: -0.0105 | BN41: -0.0106 | BO41: -0.0094 | BP41: -0.0083 | BQ41: -0.0062 | BR41: -0.0034 | BS41: -0.0004 | BT41: 0.0027 | BU41: 0.0056 | BV41: 0.0081 | BW41: 0.01 | BX41: 0.0111 | BY41: 0.0115 | BZ41: 0.0115 | CA41: 0.0115 | CB41: 0.0114 | CC41: 0.0115 | CD41: 0.0118 | CE41: 0.0122 | CF41: 0.0126 | CG41: 0.013 | CH41: 0.0134 | CI41: 0.0135
A42: 59 | B42: 0.0309 | C42: 0.0279 | D42: 0.0249 | E42: 0.0218 | F42: 0.0188 | G42: 0.016 | H42: 0.0137 | I42: 0.0119 | J42: 0.0106 | K42: 0.0095 | L42: 0.0085 | M42: 0.0076 | N42: 0.0069 | O42: 0.0063 | P42: 0.0057 | Q42: 0.0054 | R42: 0.0055 | S42: 0.0061 | T42: 0.0076 | U42: 0.0097 | V42: 0.0122 | W42: 0.0149 | X42: 0.0174 | Y42: 0.0193 | Z42: 0.0202 | AA42: 0.0198 | AB42: 0.0184 | AC42: 0.0159 | AD42: 0.0129 | AE42: 0.0098 | AF42: 0.0072 | AG42: 0.0054 | AH42: 0.0045 | AI42: 0.0046 | AJ42: 0.0052 | AK42: 0.0063 | AL42: 0.0075 | AM42: 0.0087 | AN42: 0.0098 | AO42: 0.0105 | AP42: 0.0108 | AQ42: 0.0109 | AR42: 0.0108 | AS42: 0.0108 | AT42: 0.0109 | AU42: 0.0112 | AV42: 0.0118 | AW42: 0.0127 | AX42: 0.0138 | AY42: 0.0152 | AZ42: 0.0169 | BA42: 0.0188 | BB42: 0.0204 | BC42: 0.0214 | BD42: 0.0216 | BE42: 0.0206 | BF42: 0.0184 | BG42: 0.015 | BH42: 0.0107 | BI42: 0.0058 | BJ42: 0.0007 | BK42: -0.004 | BL42: -0.0075 | BM42: -0.0097 | BN42: -0.0105 | BO42: -0.0101 | BP42: -0.0093 | BQ42: -0.0075 | BR42: -0.0049 | BS42: -0.0018 | BT42: 0.0015 | BU42: 0.0046 | BV42: 0.0074 | BW42: 0.0096 | BX42: 0.011 | BY42: 0.0117 | BZ42: 0.0118 | CA42: 0.0118 | CB42: 0.0118 | CC42: 0.0119 | CD42: 0.012 | CE42: 0.0123 | CF42: 0.0127 | CG42: 0.0131 | CH42: 0.0134 | CI42: 0.0135
A43: 60 | B43: 0.0309 | C43: 0.0277 | D43: 0.0245 | E43: 0.0212 | F43: 0.018 | G43: 0.0151 | H43: 0.0127 | I43: 0.0109 | J43: 0.0096 | K43: 0.0086 | L43: 0.008 | M43: 0.0076 | N43: 0.0074 | O43: 0.0073 | P43: 0.0073 | Q43: 0.0073 | R43: 0.0074 | S43: 0.008 | T43: 0.0091 | U43: 0.0108 | V43: 0.0128 | W43: 0.015 | X43: 0.0169 | Y43: 0.0184 | Z43: 0.019 | AA43: 0.0185 | AB43: 0.017 | AC43: 0.0147 | AD43: 0.0119 | AE43: 0.009 | AF43: 0.0065 | AG43: 0.0047 | AH43: 0.0038 | AI43: 0.0039 | AJ43: 0.0046 | AK43: 0.0058 | AL43: 0.0072 | AM43: 0.0085 | AN43: 0.0095 | AO43: 0.0101 | AP43: 0.0103 | AQ43: 0.0101 | AR43: 0.0098 | AS43: 0.0097 | AT43: 0.0098 | AU43: 0.0102 | AV43: 0.011 | AW43: 0.0122 | AX43: 0.0136 | AY43: 0.0153 | AZ43: 0.0173 | BA43: 0.0193 | BB43: 0.0212 | BC43: 0.0225 | BD43: 0.023 | BE43: 0.0224 | BF43: 0.0205 | BG43: 0.0174 | BH43: 0.0134 | BI43: 0.0086 | BJ43: 0.0035 | BK43: -0.0014 | BL43: -0.0054 | BM43: -0.0082 | BN43: -0.0096 | BO43: -0.0099 | BP43: -0.0096 | BQ43: -0.0082 | BR43: -0.0058 | BS43: -0.0029 | BT43: 0.0004 | BU43: 0.0036 | BV43: 0.0066 | BW43: 0.009 | BX43: 0.0107 | BY43: 0.0116 | BZ43: 0.0119 | CA43: 0.012 | CB43: 0.0121 | CC43: 0.0121 | CD43: 0.0123 | CE43: 0.0125 | CF43: 0.0128 | CG43: 0.0131 | CH43: 0.0134 | CI43: 0.0135
A44: 61 | B44: 0.0305 | C44: 0.0272 | D44: 0.0239 | E44: 0.0205 | F44: 0.0172 | G44: 0.0143 | H44: 0.0118 | I44: 0.01 | J44: 0.0087 | K44: 0.0079 | L44: 0.0076 | M44: 0.0076 | N44: 0.0079 | O44: 0.0083 | P44: 0.0087 | Q44: 0.0091 | R44: 0.0095 | S44: 0.01 | T44: 0.011 | U44: 0.0122 | V44: 0.0137 | W44: 0.0152 | X44: 0.0166 | Y44: 0.0176 | Z44: 0.0178 | AA44: 0.0172 | AB44: 0.0157 | AC44: 0.0135 | AD44: 0.0109 | AE44: 0.0082 | AF44: 0.0058 | AG44: 0.0041 | AH44: 0.0032 | AI44: 0.0033 | AJ44: 0.0041 | AK44: 0.0054 | AL44: 0.0069 | AM44: 0.0082 | AN44: 0.0092 | AO44: 0.0097 | AP44: 0.0097 | AQ44: 0.0093 | AR44: 0.0089 | AS44: 0.0086 | AT44: 0.0087 | AU44: 0.0093 | AV44: 0.0102 | AW44: 0.0116 | AX44: 0.0133 | AY44: 0.0152 | AZ44: 0.0174 | BA44: 0.0196 | BB44: 0.0216 | BC44: 0.0232 | BD44: 0.0239 | BE44: 0.0236 | BF44: 0.0221 | BG44: 0.0194 | BH44: 0.0157 | BI44: 0.0113 | BJ44: 0.0063 | BK44: 0.0014 | BL44: -0.0028 | BM44: -0.006 | BN44: -0.008 | BO44: -0.0089 | BP44: -0.009 | BQ44: -0.008 | BR44: -0.0061 | BS44: -0.0035 | BT44: -0.0004 | BU44: 0.0028 | BV44: 0.0057 | BW44: 0.0083 | BX44: 0.0102 | BY44: 0.0113 | BZ44: 0.0118 | CA44: 0.0121 | CB44: 0.0122 | CC44: 0.0123 | CD44: 0.0124 | CE44: 0.0126 | CF44: 0.0128 | CG44: 0.0131 | CH44: 0.0134 | CI44: 0.0135
A45: 62 | B45: 0.0296 | C45: 0.0263 | D45: 0.0231 | E45: 0.0197 | F45: 0.0165 | G45: 0.0136 | H45: 0.0111 | I45: 0.0094 | J45: 0.0082 | K45: 0.0075 | L45: 0.0074 | M45: 0.0076 | N45: 0.0083 | O45: 0.0092 | P45: 0.01 | Q45: 0.0108 | R45: 0.0115 | S45: 0.0121 | T45: 0.0129 | U45: 0.0137 | V45: 0.0147 | W45: 0.0157 | X45: 0.0165 | Y45: 0.017 | Z45: 0.0168 | AA45: 0.0159 | AB45: 0.0143 | AC45: 0.0122 | AD45: 0.0097 | AE45: 0.0072 | AF45: 0.005 | AG45: 0.0034 | AH45: 0.0027 | AI45: 0.0028 | AJ45: 0.0036 | AK45: 0.005 | AL45: 0.0066 | AM45: 0.008 | AN45: 0.009 | AO45: 0.0094 | AP45: 0.0092 | AQ45: 0.0086 | AR45: 0.008 | AS45: 0.0076 | AT45: 0.0077 | AU45: 0.0083 | AV45: 0.0094 | AW45: 0.0109 | AX45: 0.0128 | AY45: 0.0149 | AZ45: 0.0173 | BA45: 0.0196 | BB45: 0.0218 | BC45: 0.0235 | BD45: 0.0244 | BE45: 0.0244 | BF45: 0.0232 | BG45: 0.0209 | BH45: 0.0176 | BI45: 0.0135 | BJ45: 0.0089 | BK45: 0.0042 | BL45: 0 | BM45: -0.0034 | BN45: -0.0057 | BO45: -0.0071 | BP45: -0.0077 | BQ45: -0.0072 | BR45: -0.0057 | BS45: -0.0036 | BT45: -0.0009 | BU45: 0.0021 | BV45: 0.005 | BW45: 0.0075 | BX45: 0.0095 | BY45: 0.0108 | BZ45: 0.0115 | CA45: 0.012 | CB45: 0.0122 | CC45: 0.0124 | CD45: 0.0125 | CE45: 0.0127 | CF45: 0.0129 | CG45: 0.0131 | CH45: 0.0134 | CI45: 0.0135
A46: 63 | B46: 0.0284 | C46: 0.0253 | D46: 0.0221 | E46: 0.0189 | F46: 0.0159 | G46: 0.0131 | H46: 0.0108 | I46: 0.0091 | J46: 0.008 | K46: 0.0074 | L46: 0.0074 | M46: 0.0078 | N46: 0.0087 | O46: 0.0099 | P46: 0.0111 | Q46: 0.0123 | R46: 0.0132 | S46: 0.014 | T46: 0.0147 | U46: 0.0153 | V46: 0.0158 | W46: 0.0163 | X46: 0.0167 | Y46: 0.0166 | Z46: 0.0161 | AA46: 0.0149 | AB46: 0.0131 | AC46: 0.011 | AD46: 0.0086 | AE46: 0.0062 | AF46: 0.0042 | AG46: 0.0028 | AH46: 0.0021 | AI46: 0.0023 | AJ46: 0.0032 | AK46: 0.0047 | AL46: 0.0063 | AM46: 0.0077 | AN46: 0.0087 | AO46: 0.009 | AP46: 0.0087 | AQ46: 0.0079 | AR46: 0.0071 | AS46: 0.0067 | AT46: 0.0067 | AU46: 0.0074 | AV46: 0.0086 | AW46: 0.0102 | AX46: 0.0122 | AY46: 0.0145 | AZ46: 0.017 | BA46: 0.0195 | BB46: 0.0217 | BC46: 0.0235 | BD46: 0.0245 | BE46: 0.0247 | BF46: 0.0238 | BG46: 0.0218 | BH46: 0.019 | BI46: 0.0153 | BJ46: 0.0111 | BK46: 0.0068 | BL46: 0.0028 | BM46: -0.0005 | BN46: -0.0029 | BO46: -0.0047 | BP46: -0.0056 | BQ46: -0.0056 | BR46: -0.0047 | BS46: -0.0031 | BT46: -0.0009 | BU46: 0.0016 | BV46: 0.0043 | BW46: 0.0067 | BX46: 0.0087 | BY46: 0.0101 | BZ46: 0.011 | CA46: 0.0117 | CB46: 0.0121 | CC46: 0.0124 | CD46: 0.0125 | CE46: 0.0127 | CF46: 0.0128 | CG46: 0.013 | CH46: 0.0132 | CI46: 0.0134
A47: 64 | B47: 0.0271 | C47: 0.0241 | D47: 0.0211 | E47: 0.0182 | F47: 0.0153 | G47: 0.0127 | H47: 0.0106 | I47: 0.0091 | J47: 0.0081 | K47: 0.0077 | L47: 0.0077 | M47: 0.0082 | N47: 0.0092 | O47: 0.0105 | P47: 0.012 | Q47: 0.0134 | R47: 0.0147 | S47: 0.0157 | T47: 0.0163 | U47: 0.0167 | V47: 0.0169 | W47: 0.017 | X47: 0.017 | Y47: 0.0165 | Z47: 0.0156 | AA47: 0.0141 | AB47: 0.0121 | AC47: 0.0099 | AD47: 0.0075 | AE47: 0.0053 | AF47: 0.0035 | AG47: 0.0022 | AH47: 0.0017 | AI47: 0.002 | AJ47: 0.0029 | AK47: 0.0044 | AL47: 0.006 | AM47: 0.0075 | AN47: 0.0084 | AO47: 0.0086 | AP47: 0.0082 | AQ47: 0.0073 | AR47: 0.0064 | AS47: 0.0059 | AT47: 0.0059 | AU47: 0.0065 | AV47: 0.0077 | AW47: 0.0094 | AX47: 0.0115 | AY47: 0.014 | AZ47: 0.0166 | BA47: 0.0192 | BB47: 0.0215 | BC47: 0.0233 | BD47: 0.0244 | BE47: 0.0247 | BF47: 0.024 | BG47: 0.0223 | BH47: 0.0199 | BI47: 0.0166 | BJ47: 0.0129 | BK47: 0.0091 | BL47: 0.0055 | BM47: 0.0024 | BN47: 0 | BO47: -0.002 | BP47: -0.0031 | BQ47: -0.0035 | BR47: -0.0032 | BS47: -0.0022 | BT47: -0.0006 | BU47: 0.0015 | BV47: 0.0037 | BW47: 0.006 | BX47: 0.0079 | BY47: 0.0094 | BZ47: 0.0104 | CA47: 0.0113 | CB47: 0.0118 | CC47: 0.0122 | CD47: 0.0124 | CE47: 0.0126 | CF47: 0.0128 | CG47: 0.0129 | CH47: 0.0131 | CI47: 0.0132
A48: 65 | B48: 0.0256 | C48: 0.0229 | D48: 0.0202 | E48: 0.0175 | F48: 0.0149 | G48: 0.0126 | H48: 0.0108 | I48: 0.0094 | J48: 0.0086 | K48: 0.0082 | L48: 0.0082 | M48: 0.0087 | N48: 0.0097 | O48: 0.0111 | P48: 0.0127 | Q48: 0.0143 | R48: 0.0158 | S48: 0.0169 | T48: 0.0176 | U48: 0.0179 | V48: 0.018 | W48: 0.0179 | X48: 0.0175 | Y48: 0.0168 | Z48: 0.0155 | AA48: 0.0136 | AB48: 0.0114 | AC48: 0.009 | AD48: 0.0066 | AE48: 0.0044 | AF48: 0.0027 | AG48: 0.0017 | AH48: 0.0013 | AI48: 0.0017 | AJ48: 0.0027 | AK48: 0.0042 | AL48: 0.0058 | AM48: 0.0072 | AN48: 0.0081 | AO48: 0.0082 | AP48: 0.0077 | AQ48: 0.0068 | AR48: 0.0058 | AS48: 0.0052 | AT48: 0.0051 | AU48: 0.0057 | AV48: 0.0068 | AW48: 0.0086 | AX48: 0.0108 | AY48: 0.0133 | AZ48: 0.0161 | BA48: 0.0188 | BB48: 0.0212 | BC48: 0.023 | BD48: 0.0241 | BE48: 0.0244 | BF48: 0.0238 | BG48: 0.0224 | BH48: 0.0203 | BI48: 0.0175 | BJ48: 0.0142 | BK48: 0.0109 | BL48: 0.0078 | BM48: 0.0051 | BN48: 0.0028 | BO48: 0.0009 | BP48: -0.0004 | BQ48: -0.0011 | BR48: -0.0013 | BS48: -0.0009 | BT48: 0.0002 | BU48: 0.0016 | BV48: 0.0034 | BW48: 0.0054 | BX48: 0.0072 | BY48: 0.0086 | BZ48: 0.0098 | CA48: 0.0107 | CB48: 0.0115 | CC48: 0.012 | CD48: 0.0123 | CE48: 0.0125 | CF48: 0.0127 | CG48: 0.0128 | CH48: 0.013 | CI48: 0.0131
A49: 66 | B49: 0.0243 | C49: 0.0218 | D49: 0.0194 | E49: 0.017 | F49: 0.0146 | G49: 0.0126 | H49: 0.0111 | I49: 0.01 | J49: 0.0093 | K49: 0.0089 | L49: 0.0089 | M49: 0.0094 | N49: 0.0103 | O49: 0.0116 | P49: 0.0131 | Q49: 0.0148 | R49: 0.0164 | S49: 0.0177 | T49: 0.0185 | U49: 0.0189 | V49: 0.0189 | W49: 0.0187 | X49: 0.0182 | Y49: 0.0172 | Z49: 0.0157 | AA49: 0.0136 | AB49: 0.0111 | AC49: 0.0084 | AD49: 0.0059 | AE49: 0.0037 | AF49: 0.0021 | AG49: 0.0012 | AH49: 0.0009 | AI49: 0.0014 | AJ49: 0.0025 | AK49: 0.004 | AL49: 0.0057 | AM49: 0.007 | AN49: 0.0079 | AO49: 0.008 | AP49: 0.0074 | AQ49: 0.0064 | AR49: 0.0053 | AS49: 0.0046 | AT49: 0.0045 | AU49: 0.0049 | AV49: 0.006 | AW49: 0.0077 | AX49: 0.0099 | AY49: 0.0126 | AZ49: 0.0154 | BA49: 0.0182 | BB49: 0.0207 | BC49: 0.0225 | BD49: 0.0236 | BE49: 0.0239 | BF49: 0.0235 | BG49: 0.0223 | BH49: 0.0204 | BI49: 0.0179 | BJ49: 0.0151 | BK49: 0.0123 | BL49: 0.0096 | BM49: 0.0073 | BN49: 0.0053 | BO49: 0.0035 | BP49: 0.0023 | BQ49: 0.0014 | BR49: 0.0008 | BS49: 0.0007 | BT49: 0.0012 | BU49: 0.0021 | BV49: 0.0034 | BW49: 0.0049 | BX49: 0.0065 | BY49: 0.0079 | BZ49: 0.0091 | CA49: 0.0102 | CB49: 0.011 | CC49: 0.0117 | CD49: 0.0121 | CE49: 0.0124 | CF49: 0.0126 | CG49: 0.0127 | CH49: 0.0128 | CI49: 0.0129
A50: 67 | B50: 0.0232 | C50: 0.021 | D50: 0.0188 | E50: 0.0166 | F50: 0.0146 | G50: 0.0129 | H50: 0.0115 | I50: 0.0106 | J50: 0.01 | K50: 0.0097 | L50: 0.0097 | M50: 0.0101 | N50: 0.0108 | O50: 0.012 | P50: 0.0134 | Q50: 0.0151 | R50: 0.0168 | S50: 0.0182 | T50: 0.0191 | U50: 0.0196 | V50: 0.0197 | W50: 0.0195 | X50: 0.019 | Y50: 0.0179 | Z50: 0.0162 | AA50: 0.0138 | AB50: 0.0111 | AC50: 0.0082 | AD50: 0.0056 | AE50: 0.0033 | AF50: 0.0017 | AG50: 0.0008 | AH50: 0.0006 | AI50: 0.0012 | AJ50: 0.0024 | AK50: 0.0039 | AL50: 0.0056 | AM50: 0.0069 | AN50: 0.0077 | AO50: 0.0077 | AP50: 0.0071 | AQ50: 0.0061 | AR50: 0.005 | AS50: 0.0042 | AT50: 0.0039 | AU50: 0.0042 | AV50: 0.0052 | AW50: 0.0069 | AX50: 0.0091 | AY50: 0.0118 | AZ50: 0.0147 | BA50: 0.0175 | BB50: 0.02 | BC50: 0.0219 | BD50: 0.023 | BE50: 0.0234 | BF50: 0.023 | BG50: 0.022 | BH50: 0.0203 | BI50: 0.0181 | BJ50: 0.0157 | BK50: 0.0132 | BL50: 0.011 | BM50: 0.009 | BN50: 0.0073 | BO50: 0.0058 | BP50: 0.0047 | BQ50: 0.0038 | BR50: 0.003 | BS50: 0.0025 | BT50: 0.0024 | BU50: 0.0028 | BV50: 0.0036 | BW50: 0.0047 | BX50: 0.006 | BY50: 0.0073 | BZ50: 0.0085 | CA50: 0.0096 | CB50: 0.0106 | CC50: 0.0113 | CD50: 0.0118 | CE50: 0.0122 | CF50: 0.0124 | CG50: 0.0126 | CH50: 0.0127 | CI50: 0.0128
A51: 68 | B51: 0.0223 | C51: 0.0203 | D51: 0.0184 | E51: 0.0165 | F51: 0.0147 | G51: 0.0132 | H51: 0.012 | I51: 0.0112 | J51: 0.0107 | K51: 0.0105 | L51: 0.0105 | M51: 0.0107 | N51: 0.0114 | O51: 0.0123 | P51: 0.0136 | Q51: 0.0152 | R51: 0.0168 | S51: 0.0182 | T51: 0.0193 | U51: 0.02 | V51: 0.0203 | W51: 0.0203 | X51: 0.0198 | Y51: 0.0188 | Z51: 0.0169 | AA51: 0.0144 | AB51: 0.0115 | AC51: 0.0084 | AD51: 0.0056 | AE51: 0.0032 | AF51: 0.0015 | AG51: 0.0006 | AH51: 0.0005 | AI51: 0.0011 | AJ51: 0.0023 | AK51: 0.0039 | AL51: 0.0055 | AM51: 0.0068 | AN51: 0.0076 | AO51: 0.0076 | AP51: 0.007 | AQ51: 0.0059 | AR51: 0.0047 | AS51: 0.0038 | AT51: 0.0034 | AU51: 0.0036 | AV51: 0.0045 | AW51: 0.006 | AX51: 0.0082 | AY51: 0.0109 | AZ51: 0.0138 | BA51: 0.0167 | BB51: 0.0192 | BC51: 0.0211 | BD51: 0.0223 | BE51: 0.0227 | BF51: 0.0225 | BG51: 0.0215 | BH51: 0.02 | BI51: 0.0181 | BJ51: 0.0159 | BK51: 0.0138 | BL51: 0.0118 | BM51: 0.0101 | BN51: 0.0087 | BO51: 0.0075 | BP51: 0.0067 | BQ51: 0.0058 | BR51: 0.005 | BS51: 0.0043 | BT51: 0.0038 | BU51: 0.0037 | BV51: 0.0041 | BW51: 0.0048 | BX51: 0.0057 | BY51: 0.0068 | BZ51: 0.0079 | CA51: 0.0091 | CB51: 0.0101 | CC51: 0.0109 | CD51: 0.0115 | CE51: 0.012 | CF51: 0.0123 | CG51: 0.0124 | CH51: 0.0126 | CI51: 0.0127
A52: 69 | B52: 0.0217 | C52: 0.02 | D52: 0.0183 | E52: 0.0166 | F52: 0.015 | G52: 0.0136 | H52: 0.0125 | I52: 0.0118 | J52: 0.0114 | K52: 0.0112 | L52: 0.0111 | M52: 0.0113 | N52: 0.0118 | O52: 0.0126 | P52: 0.0137 | Q52: 0.0151 | R52: 0.0166 | S52: 0.0181 | T52: 0.0193 | U52: 0.0202 | V52: 0.0208 | W52: 0.021 | X52: 0.0207 | Y52: 0.0197 | Z52: 0.0179 | AA52: 0.0153 | AB52: 0.0122 | AC52: 0.009 | AD52: 0.0059 | AE52: 0.0034 | AF52: 0.0016 | AG52: 0.0006 | AH52: 0.0004 | AI52: 0.001 | AJ52: 0.0022 | AK52: 0.0039 | AL52: 0.0055 | AM52: 0.0068 | AN52: 0.0076 | AO52: 0.0076 | AP52: 0.0069 | AQ52: 0.0057 | AR52: 0.0045 | AS52: 0.0036 | AT52: 0.003 | AU52: 0.0031 | AV52: 0.0039 | AW52: 0.0053 | AX52: 0.0074 | AY52: 0.01 | AZ52: 0.0129 | BA52: 0.0158 | BB52: 0.0183 | BC52: 0.0203 | BD52: 0.0215 | BE52: 0.0221 | BF52: 0.0219 | BG52: 0.0211 | BH52: 0.0197 | BI52: 0.0179 | BJ52: 0.0159 | BK52: 0.014 | BL52: 0.0122 | BM52: 0.0107 | BN52: 0.0096 | BO52: 0.0087 | BP52: 0.0082 | BQ52: 0.0075 | BR52: 0.0067 | BS52: 0.0059 | BT52: 0.0052 | BU52: 0.0048 | BV52: 0.0047 | BW52: 0.005 | BX52: 0.0057 | BY52: 0.0065 | BZ52: 0.0075 | CA52: 0.0086 | CB52: 0.0096 | CC52: 0.0105 | CD52: 0.0112 | CE52: 0.0117 | CF52: 0.0121 | CG52: 0.0123 | CH52: 0.0124 | CI52: 0.0125
A53: 70 | B53: 0.0213 | C53: 0.0198 | D53: 0.0183 | E53: 0.0168 | F53: 0.0153 | G53: 0.014 | H53: 0.013 | I53: 0.0123 | J53: 0.0119 | K53: 0.0117 | L53: 0.0116 | M53: 0.0118 | N53: 0.0122 | O53: 0.0128 | P53: 0.0138 | Q53: 0.0149 | R53: 0.0163 | S53: 0.0177 | T53: 0.0191 | U53: 0.0203 | V53: 0.0212 | W53: 0.0217 | X53: 0.0216 | Y53: 0.0207 | Z53: 0.019 | AA53: 0.0164 | AB53: 0.0132 | AC53: 0.0098 | AD53: 0.0066 | AE53: 0.0038 | AF53: 0.0019 | AG53: 0.0007 | AH53: 0.0004 | AI53: 0.001 | AJ53: 0.0022 | AK53: 0.0039 | AL53: 0.0055 | AM53: 0.0069 | AN53: 0.0076 | AO53: 0.0076 | AP53: 0.0069 | AQ53: 0.0057 | AR53: 0.0044 | AS53: 0.0034 | AT53: 0.0027 | AU53: 0.0027 | AV53: 0.0033 | AW53: 0.0046 | AX53: 0.0066 | AY53: 0.0092 | AZ53: 0.012 | BA53: 0.0148 | BB53: 0.0174 | BC53: 0.0194 | BD53: 0.0207 | BE53: 0.0214 | BF53: 0.0213 | BG53: 0.0206 | BH53: 0.0193 | BI53: 0.0176 | BJ53: 0.0157 | BK53: 0.0139 | BL53: 0.0122 | BM53: 0.0109 | BN53: 0.01 | BO53: 0.0094 | BP53: 0.0091 | BQ53: 0.0086 | BR53: 0.008 | BS53: 0.0072 | BT53: 0.0065 | BU53: 0.0059 | BV53: 0.0055 | BW53: 0.0055 | BX53: 0.0058 | BY53: 0.0065 | BZ53: 0.0072 | CA53: 0.0082 | CB53: 0.0092 | CC53: 0.0101 | CD53: 0.0109 | CE53: 0.0115 | CF53: 0.0119 | CG53: 0.0121 | CH53: 0.0123 | CI53: 0.0124
A54: 71 | B54: 0.0211 | C54: 0.0197 | D54: 0.0183 | E54: 0.0169 | F54: 0.0156 | G54: 0.0144 | H54: 0.0134 | I54: 0.0127 | J54: 0.0123 | K54: 0.0121 | L54: 0.012 | M54: 0.0121 | N54: 0.0124 | O54: 0.0129 | P54: 0.0137 | Q54: 0.0147 | R54: 0.016 | S54: 0.0174 | T54: 0.0189 | U54: 0.0203 | V54: 0.0214 | W54: 0.0222 | X54: 0.0224 | Y54: 0.0218 | Z54: 0.0202 | AA54: 0.0176 | AB54: 0.0145 | AC54: 0.011 | AD54: 0.0076 | AE54: 0.0046 | AF54: 0.0024 | AG54: 0.0011 | AH54: 0.0006 | AI54: 0.0011 | AJ54: 0.0023 | AK54: 0.0039 | AL54: 0.0056 | AM54: 0.0069 | AN54: 0.0077 | AO54: 0.0076 | AP54: 0.0069 | AQ54: 0.0057 | AR54: 0.0044 | AS54: 0.0032 | AT54: 0.0025 | AU54: 0.0023 | AV54: 0.0028 | AW54: 0.004 | AX54: 0.0059 | AY54: 0.0083 | AZ54: 0.0111 | BA54: 0.0139 | BB54: 0.0165 | BC54: 0.0185 | BD54: 0.02 | BE54: 0.0207 | BF54: 0.0207 | BG54: 0.02 | BH54: 0.0188 | BI54: 0.0172 | BJ54: 0.0154 | BK54: 0.0136 | BL54: 0.012 | BM54: 0.0108 | BN54: 0.01 | BO54: 0.0096 | BP54: 0.0095 | BQ54: 0.0093 | BR54: 0.0088 | BS54: 0.0082 | BT54: 0.0076 | BU54: 0.0069 | BV54: 0.0064 | BW54: 0.0061 | BX54: 0.0062 | BY54: 0.0065 | BZ54: 0.0072 | CA54: 0.008 | CB54: 0.0089 | CC54: 0.0097 | CD54: 0.0105 | CE54: 0.0112 | CF54: 0.0117 | CG54: 0.012 | CH54: 0.0122 | CI54: 0.0123
A55: 72 | B55: 0.0209 | C55: 0.0196 | D55: 0.0183 | E55: 0.017 | F55: 0.0157 | G55: 0.0146 | H55: 0.0136 | I55: 0.0129 | J55: 0.0125 | K55: 0.0122 | L55: 0.0121 | M55: 0.0122 | N55: 0.0124 | O55: 0.0129 | P55: 0.0135 | Q55: 0.0144 | R55: 0.0157 | S55: 0.0171 | T55: 0.0187 | U55: 0.0203 | V55: 0.0217 | W55: 0.0227 | X55: 0.0231 | Y55: 0.0227 | Z55: 0.0213 | AA55: 0.0189 | AB55: 0.0158 | AC55: 0.0122 | AD55: 0.0087 | AE55: 0.0056 | AF55: 0.0032 | AG55: 0.0016 | AH55: 0.001 | AI55: 0.0013 | AJ55: 0.0024 | AK55: 0.004 | AL55: 0.0057 | AM55: 0.007 | AN55: 0.0077 | AO55: 0.0077 | AP55: 0.0069 | AQ55: 0.0057 | AR55: 0.0043 | AS55: 0.0031 | AT55: 0.0023 | AU55: 0.002 | AV55: 0.0024 | AW55: 0.0034 | AX55: 0.0052 | AY55: 0.0076 | AZ55: 0.0103 | BA55: 0.013 | BB55: 0.0156 | BC55: 0.0177 | BD55: 0.0192 | BE55: 0.02 | BF55: 0.0201 | BG55: 0.0194 | BH55: 0.0183 | BI55: 0.0167 | BJ55: 0.0149 | BK55: 0.0131 | BL55: 0.0116 | BM55: 0.0104 | BN55: 0.0097 | BO55: 0.0094 | BP55: 0.0095 | BQ55: 0.0095 | BR55: 0.0093 | BS55: 0.0089 | BT55: 0.0084 | BU55: 0.0078 | BV55: 0.0073 | BW55: 0.0069 | BX55: 0.0067 | BY55: 0.0068 | BZ55: 0.0072 | CA55: 0.0079 | CB55: 0.0086 | CC55: 0.0095 | CD55: 0.0103 | CE55: 0.0109 | CF55: 0.0114 | CG55: 0.0118 | CH55: 0.012 | CI55: 0.0121
A56: 73 | B56: 0.0207 | C56: 0.0195 | D56: 0.0182 | E56: 0.017 | F56: 0.0157 | G56: 0.0146 | H56: 0.0137 | I56: 0.013 | J56: 0.0126 | K56: 0.0123 | L56: 0.0121 | M56: 0.0121 | N56: 0.0123 | O56: 0.0127 | P56: 0.0134 | Q56: 0.0142 | R56: 0.0154 | S56: 0.0169 | T56: 0.0185 | U56: 0.0202 | V56: 0.0218 | W56: 0.0231 | X56: 0.0238 | Y56: 0.0236 | Z56: 0.0224 | AA56: 0.0202 | AB56: 0.0171 | AC56: 0.0136 | AD56: 0.01 | AE56: 0.0067 | AF56: 0.0041 | AG56: 0.0024 | AH56: 0.0015 | AI56: 0.0017 | AJ56: 0.0027 | AK56: 0.0041 | AL56: 0.0057 | AM56: 0.007 | AN56: 0.0078 | AO56: 0.0077 | AP56: 0.0069 | AQ56: 0.0057 | AR56: 0.0043 | AS56: 0.003 | AT56: 0.0021 | AU56: 0.0017 | AV56: 0.002 | AW56: 0.0029 | AX56: 0.0046 | AY56: 0.0069 | AZ56: 0.0095 | BA56: 0.0122 | BB56: 0.0148 | BC56: 0.017 | BD56: 0.0185 | BE56: 0.0193 | BF56: 0.0194 | BG56: 0.0188 | BH56: 0.0177 | BI56: 0.0161 | BJ56: 0.0143 | BK56: 0.0126 | BL56: 0.0111 | BM56: 0.01 | BN56: 0.0093 | BO56: 0.009 | BP56: 0.0092 | BQ56: 0.0094 | BR56: 0.0094 | BS56: 0.0093 | BT56: 0.009 | BU56: 0.0086 | BV56: 0.0081 | BW56: 0.0076 | BX56: 0.0073 | BY56: 0.0072 | BZ56: 0.0074 | CA56: 0.0078 | CB56: 0.0085 | CC56: 0.0093 | CD56: 0.01 | CE56: 0.0107 | CF56: 0.0112 | CG56: 0.0116 | CH56: 0.0119 | CI56: 0.012
A57: 74 | B57: 0.0204 | C57: 0.0192 | D57: 0.0179 | E57: 0.0167 | F57: 0.0155 | G57: 0.0144 | H57: 0.0135 | I57: 0.0129 | J57: 0.0124 | K57: 0.0121 | L57: 0.012 | M57: 0.0119 | N57: 0.0121 | O57: 0.0125 | P57: 0.0131 | Q57: 0.014 | R57: 0.0153 | S57: 0.0168 | T57: 0.0185 | U57: 0.0203 | V57: 0.022 | W57: 0.0234 | X57: 0.0243 | Y57: 0.0244 | Z57: 0.0234 | AA57: 0.0214 | AB57: 0.0184 | AC57: 0.015 | AD57: 0.0113 | AE57: 0.008 | AF57: 0.0052 | AG57: 0.0032 | AH57: 0.0022 | AI57: 0.0022 | AJ57: 0.003 | AK57: 0.0043 | AL57: 0.0058 | AM57: 0.0071 | AN57: 0.0078 | AO57: 0.0077 | AP57: 0.0069 | AQ57: 0.0056 | AR57: 0.0042 | AS57: 0.0028 | AT57: 0.0019 | AU57: 0.0015 | AV57: 0.0016 | AW57: 0.0025 | AX57: 0.004 | AY57: 0.0062 | AZ57: 0.0088 | BA57: 0.0116 | BB57: 0.0142 | BC57: 0.0164 | BD57: 0.0179 | BE57: 0.0187 | BF57: 0.0188 | BG57: 0.0182 | BH57: 0.017 | BI57: 0.0155 | BJ57: 0.0137 | BK57: 0.012 | BL57: 0.0105 | BM57: 0.0094 | BN57: 0.0087 | BO57: 0.0083 | BP57: 0.0087 | BQ57: 0.009 | BR57: 0.0092 | BS57: 0.0093 | BT57: 0.0093 | BU57: 0.009 | BV57: 0.0087 | BW57: 0.0083 | BX57: 0.008 | BY57: 0.0077 | BZ57: 0.0077 | CA57: 0.0079 | CB57: 0.0084 | CC57: 0.0092 | CD57: 0.0098 | CE57: 0.0105 | CF57: 0.011 | CG57: 0.0115 | CH57: 0.0117 | CI57: 0.0118
A58: 75 | B58: 0.0198 | C58: 0.0186 | D58: 0.0174 | E58: 0.0162 | F58: 0.015 | G58: 0.014 | H58: 0.0131 | I58: 0.0125 | J58: 0.0121 | K58: 0.0118 | L58: 0.0116 | M58: 0.0116 | N58: 0.0118 | O58: 0.0123 | P58: 0.013 | Q58: 0.0139 | R58: 0.0152 | S58: 0.0167 | T58: 0.0185 | U58: 0.0204 | V58: 0.0222 | W58: 0.0237 | X58: 0.0248 | Y58: 0.0251 | Z58: 0.0243 | AA58: 0.0224 | AB58: 0.0196 | AC58: 0.0163 | AD58: 0.0126 | AE58: 0.0092 | AF58: 0.0063 | AG58: 0.0042 | AH58: 0.003 | AI58: 0.0027 | AJ58: 0.0033 | AK58: 0.0045 | AL58: 0.0059 | AM58: 0.0071 | AN58: 0.0077 | AO58: 0.0076 | AP58: 0.0068 | AQ58: 0.0055 | AR58: 0.004 | AS58: 0.0027 | AT58: 0.0016 | AU58: 0.0012 | AV58: 0.0013 | AW58: 0.002 | AX58: 0.0035 | AY58: 0.0057 | AZ58: 0.0082 | BA58: 0.011 | BB58: 0.0137 | BC58: 0.0159 | BD58: 0.0174 | BE58: 0.0182 | BF58: 0.0182 | BG58: 0.0176 | BH58: 0.0164 | BI58: 0.0148 | BJ58: 0.013 | BK58: 0.0114 | BL58: 0.0099 | BM58: 0.0088 | BN58: 0.008 | BO58: 0.0076 | BP58: 0.008 | BQ58: 0.0084 | BR58: 0.0088 | BS58: 0.0091 | BT58: 0.0093 | BU58: 0.0093 | BV58: 0.0091 | BW58: 0.0089 | BX58: 0.0085 | BY58: 0.0082 | BZ58: 0.0081 | CA58: 0.0081 | CB58: 0.0085 | CC58: 0.009 | CD58: 0.0097 | CE58: 0.0103 | CF58: 0.0109 | CG58: 0.0113 | CH58: 0.0116 | CI58: 0.0117
A59: 76 | B59: 0.0191 | C59: 0.0178 | D59: 0.0166 | E59: 0.0154 | F59: 0.0143 | G59: 0.0133 | H59: 0.0125 | I59: 0.0119 | J59: 0.0116 | K59: 0.0113 | L59: 0.0112 | M59: 0.0113 | N59: 0.0115 | O59: 0.012 | P59: 0.0128 | Q59: 0.0138 | R59: 0.0152 | S59: 0.0168 | T59: 0.0186 | U59: 0.0205 | V59: 0.0224 | W59: 0.024 | X59: 0.0252 | Y59: 0.0256 | Z59: 0.025 | AA59: 0.0233 | AB59: 0.0207 | AC59: 0.0174 | AD59: 0.0139 | AE59: 0.0105 | AF59: 0.0075 | AG59: 0.0052 | AH59: 0.0038 | AI59: 0.0034 | AJ59: 0.0038 | AK59: 0.0048 | AL59: 0.006 | AM59: 0.0071 | AN59: 0.0077 | AO59: 0.0075 | AP59: 0.0067 | AQ59: 0.0054 | AR59: 0.0038 | AS59: 0.0024 | AT59: 0.0014 | AU59: 0.0008 | AV59: 0.0009 | AW59: 0.0016 | AX59: 0.003 | AY59: 0.0052 | AZ59: 0.0078 | BA59: 0.0106 | BB59: 0.0132 | BC59: 0.0154 | BD59: 0.0169 | BE59: 0.0177 | BF59: 0.0177 | BG59: 0.017 | BH59: 0.0157 | BI59: 0.0141 | BJ59: 0.0124 | BK59: 0.0107 | BL59: 0.0093 | BM59: 0.0081 | BN59: 0.0073 | BO59: 0.0068 | BP59: 0.0073 | BQ59: 0.0078 | BR59: 0.0083 | BS59: 0.0087 | BT59: 0.0091 | BU59: 0.0093 | BV59: 0.0094 | BW59: 0.0092 | BX59: 0.009 | BY59: 0.0087 | BZ59: 0.0084 | CA59: 0.0084 | CB59: 0.0086 | CC59: 0.009 | CD59: 0.0095 | CE59: 0.0102 | CF59: 0.0107 | CG59: 0.0111 | CH59: 0.0114 | CI59: 0.0116
A60: 77 | B60: 0.018 | C60: 0.0168 | D60: 0.0156 | E60: 0.0144 | F60: 0.0133 | G60: 0.0124 | H60: 0.0117 | I60: 0.0112 | J60: 0.0109 | K60: 0.0107 | L60: 0.0107 | M60: 0.0108 | N60: 0.0112 | O60: 0.0118 | P60: 0.0127 | Q60: 0.0138 | R60: 0.0153 | S60: 0.0169 | T60: 0.0187 | U60: 0.0207 | V60: 0.0225 | W60: 0.0242 | X60: 0.0255 | Y60: 0.026 | Z60: 0.0255 | AA60: 0.024 | AB60: 0.0216 | AC60: 0.0185 | AD60: 0.015 | AE60: 0.0116 | AF60: 0.0086 | AG60: 0.0063 | AH60: 0.0047 | AI60: 0.0041 | AJ60: 0.0043 | AK60: 0.0051 | AL60: 0.0061 | AM60: 0.0071 | AN60: 0.0076 | AO60: 0.0074 | AP60: 0.0065 | AQ60: 0.0051 | AR60: 0.0035 | AS60: 0.0021 | AT60: 0.001 | AU60: 0.0004 | AV60: 0.0004 | AW60: 0.0011 | AX60: 0.0026 | AY60: 0.0047 | AZ60: 0.0073 | BA60: 0.0102 | BB60: 0.0129 | BC60: 0.0151 | BD60: 0.0166 | BE60: 0.0173 | BF60: 0.0172 | BG60: 0.0164 | BH60: 0.0151 | BI60: 0.0135 | BJ60: 0.0117 | BK60: 0.01 | BL60: 0.0086 | BM60: 0.0075 | BN60: 0.0066 | BO60: 0.006 | BP60: 0.0065 | BQ60: 0.007 | BR60: 0.0076 | BS60: 0.0082 | BT60: 0.0088 | BU60: 0.0091 | BV60: 0.0094 | BW60: 0.0094 | BX60: 0.0093 | BY60: 0.0091 | BZ60: 0.0088 | CA60: 0.0087 | CB60: 0.0087 | CC60: 0.009 | CD60: 0.0094 | CE60: 0.01 | CF60: 0.0106 | CG60: 0.011 | CH60: 0.0113 | CI60: 0.0114
A61: 78 | B61: 0.0166 | C61: 0.0155 | D61: 0.0143 | E61: 0.0132 | F61: 0.0122 | G61: 0.0113 | H61: 0.0106 | I61: 0.0102 | J61: 0.01 | K61: 0.0099 | L61: 0.0101 | M61: 0.0104 | N61: 0.0109 | O61: 0.0117 | P61: 0.0126 | Q61: 0.0139 | R61: 0.0153 | S61: 0.017 | T61: 0.0189 | U61: 0.0208 | V61: 0.0227 | W61: 0.0244 | X61: 0.0257 | Y61: 0.0262 | Z61: 0.0259 | AA61: 0.0245 | AB61: 0.0222 | AC61: 0.0193 | AD61: 0.016 | AE61: 0.0126 | AF61: 0.0097 | AG61: 0.0073 | AH61: 0.0056 | AI61: 0.0048 | AJ61: 0.0048 | AK61: 0.0054 | AL61: 0.0063 | AM61: 0.0071 | AN61: 0.0074 | AO61: 0.0072 | AP61: 0.0063 | AQ61: 0.0048 | AR61: 0.0032 | AS61: 0.0017 | AT61: 0.0005 | AU61: -0.0001 | AV61: -0.0001 | AW61: 0.0006 | AX61: 0.0021 | AY61: 0.0043 | AZ61: 0.0069 | BA61: 0.0098 | BB61: 0.0126 | BC61: 0.0148 | BD61: 0.0163 | BE61: 0.0169 | BF61: 0.0168 | BG61: 0.0159 | BH61: 0.0146 | BI61: 0.0129 | BJ61: 0.0111 | BK61: 0.0094 | BL61: 0.0079 | BM61: 0.0068 | BN61: 0.0059 | BO61: 0.0052 | BP61: 0.0057 | BQ61: 0.0063 | BR61: 0.007 | BS61: 0.0077 | BT61: 0.0083 | BU61: 0.0088 | BV61: 0.0093 | BW61: 0.0095 | BX61: 0.0095 | BY61: 0.0093 | BZ61: 0.0091 | CA61: 0.0089 | CB61: 0.0089 | CC61: 0.009 | CD61: 0.0093 | CE61: 0.0098 | CF61: 0.0103 | CG61: 0.0108 | CH61: 0.0111 | CI61: 0.0113
A62: 79 | B62: 0.0151 | C62: 0.014 | D62: 0.0129 | E62: 0.0118 | F62: 0.0108 | G62: 0.01 | H62: 0.0094 | I62: 0.009 | J62: 0.009 | K62: 0.0091 | L62: 0.0094 | M62: 0.0099 | N62: 0.0106 | O62: 0.0115 | P62: 0.0126 | Q62: 0.0139 | R62: 0.0155 | S62: 0.0172 | T62: 0.0191 | U62: 0.021 | V62: 0.0229 | W62: 0.0245 | X62: 0.0258 | Y62: 0.0264 | Z62: 0.0261 | AA62: 0.0248 | AB62: 0.0227 | AC62: 0.0199 | AD62: 0.0167 | AE62: 0.0135 | AF62: 0.0106 | AG62: 0.0082 | AH62: 0.0065 | AI62: 0.0056 | AJ62: 0.0054 | AK62: 0.0058 | AL62: 0.0064 | AM62: 0.007 | AN62: 0.0073 | AO62: 0.007 | AP62: 0.006 | AQ62: 0.0045 | AR62: 0.0028 | AS62: 0.0012 | AT62: 0 | AU62: -0.0006 | AV62: -0.0007 | AW62: 0 | AX62: 0.0016 | AY62: 0.0038 | AZ62: 0.0066 | BA62: 0.0095 | BB62: 0.0123 | BC62: 0.0145 | BD62: 0.016 | BE62: 0.0166 | BF62: 0.0164 | BG62: 0.0155 | BH62: 0.0141 | BI62: 0.0124 | BJ62: 0.0105 | BK62: 0.0088 | BL62: 0.0073 | BM62: 0.0061 | BN62: 0.0052 | BO62: 0.0045 | BP62: 0.005 | BQ62: 0.0056 | BR62: 0.0063 | BS62: 0.007 | BT62: 0.0078 | BU62: 0.0085 | BV62: 0.009 | BW62: 0.0094 | BX62: 0.0095 | BY62: 0.0094 | BZ62: 0.0093 | CA62: 0.0091 | CB62: 0.009 | CC62: 0.0091 | CD62: 0.0093 | CE62: 0.0096 | CF62: 0.0101 | CG62: 0.0106 | CH62: 0.011 | CI62: 0.0111
A63: 80 | B63: 0.0133 | C63: 0.0123 | D63: 0.0112 | E63: 0.0102 | F63: 0.0093 | G63: 0.0086 | H63: 0.008 | I63: 0.0078 | J63: 0.0078 | K63: 0.0081 | L63: 0.0087 | M63: 0.0094 | N63: 0.0103 | O63: 0.0113 | P63: 0.0126 | Q63: 0.014 | R63: 0.0156 | S63: 0.0174 | T63: 0.0193 | U63: 0.0212 | V63: 0.023 | W63: 0.0246 | X63: 0.0258 | Y63: 0.0264 | Z63: 0.0261 | AA63: 0.025 | AB63: 0.023 | AC63: 0.0203 | AD63: 0.0173 | AE63: 0.0142 | AF63: 0.0114 | AG63: 0.009 | AH63: 0.0073 | AI63: 0.0062 | AJ63: 0.0059 | AK63: 0.0061 | AL63: 0.0066 | AM63: 0.007 | AN63: 0.0071 | AO63: 0.0067 | AP63: 0.0056 | AQ63: 0.0041 | AR63: 0.0023 | AS63: 0.0007 | AT63: -0.0005 | AU63: -0.0013 | AV63: -0.0013 | AW63: -0.0005 | AX63: 0.001 | AY63: 0.0033 | AZ63: 0.0061 | BA63: 0.0091 | BB63: 0.0119 | BC63: 0.0142 | BD63: 0.0157 | BE63: 0.0163 | BF63: 0.0161 | BG63: 0.0152 | BH63: 0.0137 | BI63: 0.0119 | BJ63: 0.01 | BK63: 0.0082 | BL63: 0.0067 | BM63: 0.0055 | BN63: 0.0046 | BO63: 0.0038 | BP63: 0.0043 | BQ63: 0.0049 | BR63: 0.0056 | BS63: 0.0064 | BT63: 0.0072 | BU63: 0.008 | BV63: 0.0086 | BW63: 0.0091 | BX63: 0.0094 | BY63: 0.0094 | BZ63: 0.0093 | CA63: 0.0092 | CB63: 0.0091 | CC63: 0.0091 | CD63: 0.0092 | CE63: 0.0095 | CF63: 0.0099 | CG63: 0.0103 | CH63: 0.0107 | CI63: 0.011
A64: 81 | B64: 0.0114 | C64: 0.0104 | D64: 0.0095 | E64: 0.0086 | F64: 0.0077 | G64: 0.0071 | H64: 0.0066 | I64: 0.0065 | J64: 0.0067 | K64: 0.0071 | L64: 0.0079 | M64: 0.0088 | N64: 0.0099 | O64: 0.0112 | P64: 0.0126 | Q64: 0.0141 | R64: 0.0158 | S64: 0.0176 | T64: 0.0195 | U64: 0.0214 | V64: 0.0231 | W64: 0.0247 | X64: 0.0258 | Y64: 0.0263 | Z64: 0.026 | AA64: 0.0249 | AB64: 0.023 | AC64: 0.0206 | AD64: 0.0177 | AE64: 0.0148 | AF64: 0.0121 | AG64: 0.0097 | AH64: 0.008 | AI64: 0.0068 | AJ64: 0.0064 | AK64: 0.0064 | AL64: 0.0067 | AM64: 0.007 | AN64: 0.0069 | AO64: 0.0064 | AP64: 0.0052 | AQ64: 0.0036 | AR64: 0.0018 | AS64: 0.0001 | AT64: -0.0012 | AU64: -0.0019 | AV64: -0.0019 | AW64: -0.0012 | AX64: 0.0005 | AY64: 0.0028 | AZ64: 0.0057 | BA64: 0.0087 | BB64: 0.0116 | BC64: 0.0139 | BD64: 0.0154 | BE64: 0.016 | BF64: 0.0158 | BG64: 0.0149 | BH64: 0.0134 | BI64: 0.0115 | BJ64: 0.0096 | BK64: 0.0078 | BL64: 0.0062 | BM64: 0.005 | BN64: 0.004 | BO64: 0.0032 | BP64: 0.0036 | BQ64: 0.0042 | BR64: 0.005 | BS64: 0.0058 | BT64: 0.0066 | BU64: 0.0074 | BV64: 0.0081 | BW64: 0.0087 | BX64: 0.009 | BY64: 0.0091 | BZ64: 0.0091 | CA64: 0.009 | CB64: 0.0089 | CC64: 0.0089 | CD64: 0.009 | CE64: 0.0092 | CF64: 0.0095 | CG64: 0.0099 | CH64: 0.0102 | CI64: 0.0105
A65: 82 | B65: 0.0093 | C65: 0.0085 | D65: 0.0076 | E65: 0.0068 | F65: 0.0061 | G65: 0.0055 | H65: 0.0052 | I65: 0.0052 | J65: 0.0055 | K65: 0.0061 | L65: 0.007 | M65: 0.0082 | N65: 0.0095 | O65: 0.0109 | P65: 0.0125 | Q65: 0.0142 | R65: 0.016 | S65: 0.0178 | T65: 0.0197 | U65: 0.0216 | V65: 0.0232 | W65: 0.0246 | X65: 0.0256 | Y65: 0.0261 | Z65: 0.0258 | AA65: 0.0247 | AB65: 0.0229 | AC65: 0.0206 | AD65: 0.0179 | AE65: 0.0151 | AF65: 0.0125 | AG65: 0.0103 | AH65: 0.0085 | AI65: 0.0074 | AJ65: 0.0068 | AK65: 0.0067 | AL65: 0.0068 | AM65: 0.0069 | AN65: 0.0067 | AO65: 0.006 | AP65: 0.0048 | AQ65: 0.0031 | AR65: 0.0012 | AS65: -0.0005 | AT65: -0.0018 | AU65: -0.0026 | AV65: -0.0026 | AW65: -0.0018 | AX65: -0.0002 | AY65: 0.0023 | AZ65: 0.0052 | BA65: 0.0082 | BB65: 0.0111 | BC65: 0.0135 | BD65: 0.015 | BE65: 0.0157 | BF65: 0.0155 | BG65: 0.0146 | BH65: 0.0131 | BI65: 0.0112 | BJ65: 0.0093 | BK65: 0.0075 | BL65: 0.0059 | BM65: 0.0046 | BN65: 0.0035 | BO65: 0.0027 | BP65: 0.003 | BQ65: 0.0036 | BR65: 0.0043 | BS65: 0.0052 | BT65: 0.006 | BU65: 0.0068 | BV65: 0.0075 | BW65: 0.0081 | BX65: 0.0086 | BY65: 0.0087 | BZ65: 0.0088 | CA65: 0.0087 | CB65: 0.0087 | CC65: 0.0087 | CD65: 0.0087 | CE65: 0.0089 | CF65: 0.0091 | CG65: 0.0094 | CH65: 0.0098 | CI65: 0.0101
A66: 83 | B66: 0.0072 | C66: 0.0065 | D66: 0.0057 | E66: 0.005 | F66: 0.0044 | G66: 0.004 | H66: 0.0038 | I66: 0.0039 | J66: 0.0043 | K66: 0.0051 | L66: 0.0062 | M66: 0.0075 | N66: 0.009 | O66: 0.0107 | P66: 0.0125 | Q66: 0.0143 | R66: 0.0162 | S66: 0.0181 | T66: 0.0199 | U66: 0.0217 | V66: 0.0232 | W66: 0.0245 | X66: 0.0254 | Y66: 0.0257 | Z66: 0.0254 | AA66: 0.0244 | AB66: 0.0227 | AC66: 0.0205 | AD66: 0.0179 | AE66: 0.0153 | AF66: 0.0129 | AG66: 0.0107 | AH66: 0.009 | AI66: 0.0078 | AJ66: 0.0071 | AK66: 0.0068 | AL66: 0.0068 | AM66: 0.0068 | AN66: 0.0064 | AO66: 0.0056 | AP66: 0.0043 | AQ66: 0.0025 | AR66: 0.0006 | AS66: -0.0011 | AT66: -0.0025 | AU66: -0.0033 | AV66: -0.0033 | AW66: -0.0025 | AX66: -0.0008 | AY66: 0.0016 | AZ66: 0.0046 | BA66: 0.0077 | BB66: 0.0106 | BC66: 0.013 | BD66: 0.0146 | BE66: 0.0153 | BF66: 0.0152 | BG66: 0.0143 | BH66: 0.0129 | BI66: 0.011 | BJ66: 0.0091 | BK66: 0.0072 | BL66: 0.0056 | BM66: 0.0043 | BN66: 0.0031 | BO66: 0.0022 | BP66: 0.0025 | BQ66: 0.0031 | BR66: 0.0038 | BS66: 0.0046 | BT66: 0.0054 | BU66: 0.0062 | BV66: 0.007 | BW66: 0.0076 | BX66: 0.008 | BY66: 0.0083 | BZ66: 0.0084 | CA66: 0.0084 | CB66: 0.0084 | CC66: 0.0084 | CD66: 0.0085 | CE66: 0.0086 | CF66: 0.0088 | CG66: 0.009 | CH66: 0.0093 | CI66: 0.0096
A67: 84 | B67: 0.0051 | C67: 0.0045 | D67: 0.0038 | E67: 0.0033 | F67: 0.0028 | G67: 0.0025 | H67: 0.0024 | I67: 0.0027 | J67: 0.0033 | K67: 0.0042 | L67: 0.0054 | M67: 0.0069 | N67: 0.0086 | O67: 0.0104 | P67: 0.0124 | Q67: 0.0144 | R67: 0.0164 | S67: 0.0183 | T67: 0.0201 | U67: 0.0218 | V67: 0.0232 | W67: 0.0244 | X67: 0.0251 | Y67: 0.0253 | Z67: 0.025 | AA67: 0.0239 | AB67: 0.0223 | AC67: 0.0202 | AD67: 0.0178 | AE67: 0.0153 | AF67: 0.013 | AG67: 0.0109 | AH67: 0.0093 | AI67: 0.008 | AJ67: 0.0073 | AK67: 0.0069 | AL67: 0.0068 | AM67: 0.0066 | AN67: 0.0061 | AO67: 0.0052 | AP67: 0.0038 | AQ67: 0.002 | AR67: 0 | AS67: -0.0018 | AT67: -0.0031 | AU67: -0.0039 | AV67: -0.0039 | AW67: -0.0031 | AX67: -0.0014 | AY67: 0.001 | AZ67: 0.0039 | BA67: 0.007 | BB67: 0.01 | BC67: 0.0124 | BD67: 0.0141 | BE67: 0.0149 | BF67: 0.0148 | BG67: 0.014 | BH67: 0.0126 | BI67: 0.0108 | BJ67: 0.0089 | BK67: 0.0071 | BL67: 0.0055 | BM67: 0.004 | BN67: 0.0028 | BO67: 0.0018 | BP67: 0.0021 | BQ67: 0.0026 | BR67: 0.0033 | BS67: 0.0041 | BT67: 0.0049 | BU67: 0.0057 | BV67: 0.0064 | BW67: 0.0071 | BX67: 0.0075 | BY67: 0.0078 | BZ67: 0.0079 | CA67: 0.008 | CB67: 0.008 | CC67: 0.0081 | CD67: 0.0081 | CE67: 0.0082 | CF67: 0.0084 | CG67: 0.0086 | CH67: 0.0089 | CI67: 0.0091
A68: 85 | B68: 0.0029 | C68: 0.0024 | D68: 0.002 | E68: 0.0015 | F68: 0.0012 | G68: 0.001 | H68: 0.0011 | I68: 0.0015 | J68: 0.0022 | K68: 0.0033 | L68: 0.0046 | M68: 0.0063 | N68: 0.0081 | O68: 0.0102 | P68: 0.0123 | Q68: 0.0144 | R68: 0.0165 | S68: 0.0185 | T68: 0.0203 | U68: 0.0218 | V68: 0.0231 | W68: 0.0241 | X68: 0.0247 | Y68: 0.0248 | Z68: 0.0244 | AA68: 0.0234 | AB68: 0.0218 | AC68: 0.0198 | AD68: 0.0175 | AE68: 0.0152 | AF68: 0.013 | AG68: 0.0111 | AH68: 0.0094 | AI68: 0.0082 | AJ68: 0.0074 | AK68: 0.007 | AL68: 0.0067 | AM68: 0.0063 | AN68: 0.0057 | AO68: 0.0047 | AP68: 0.0032 | AQ68: 0.0013 | AR68: -0.0006 | AS68: -0.0024 | AT68: -0.0038 | AU68: -0.0045 | AV68: -0.0046 | AW68: -0.0038 | AX68: -0.0021 | AY68: 0.0003 | AZ68: 0.0032 | BA68: 0.0063 | BB68: 0.0093 | BC68: 0.0117 | BD68: 0.0135 | BE68: 0.0144 | BF68: 0.0144 | BG68: 0.0137 | BH68: 0.0124 | BI68: 0.0107 | BJ68: 0.0088 | BK68: 0.007 | BL68: 0.0054 | BM68: 0.0039 | BN68: 0.0026 | BO68: 0.0014 | BP68: 0.0017 | BQ68: 0.0022 | BR68: 0.0028 | BS68: 0.0036 | BT68: 0.0044 | BU68: 0.0052 | BV68: 0.0059 | BW68: 0.0065 | BX68: 0.007 | BY68: 0.0072 | BZ68: 0.0074 | CA68: 0.0075 | CB68: 0.0076 | CC68: 0.0077 | CD68: 0.0077 | CE68: 0.0078 | CF68: 0.008 | CG68: 0.0082 | CH68: 0.0084 | CI68: 0.0087
A69: 86 | B69: 0.0007 | C69: 0.0004 | D69: 0.0001 | E69: -0.0002 | F69: -0.0003 | G69: -0.0003 | H69: -0.0001 | I69: 0.0005 | J69: 0.0013 | K69: 0.0025 | L69: 0.004 | M69: 0.0057 | N69: 0.0077 | O69: 0.0099 | P69: 0.0122 | Q69: 0.0144 | R69: 0.0166 | S69: 0.0186 | T69: 0.0203 | U69: 0.0218 | V69: 0.023 | W69: 0.0238 | X69: 0.0243 | Y69: 0.0243 | Z69: 0.0237 | AA69: 0.0227 | AB69: 0.0212 | AC69: 0.0193 | AD69: 0.0171 | AE69: 0.015 | AF69: 0.0129 | AG69: 0.011 | AH69: 0.0094 | AI69: 0.0082 | AJ69: 0.0074 | AK69: 0.0068 | AL69: 0.0064 | AM69: 0.006 | AN69: 0.0052 | AO69: 0.0041 | AP69: 0.0026 | AQ69: 0.0007 | AR69: -0.0012 | AS69: -0.003 | AT69: -0.0044 | AU69: -0.0051 | AV69: -0.0052 | AW69: -0.0044 | AX69: -0.0027 | AY69: -0.0004 | AZ69: 0.0025 | BA69: 0.0056 | BB69: 0.0085 | BC69: 0.011 | BD69: 0.0128 | BE69: 0.0137 | BF69: 0.0139 | BG69: 0.0133 | BH69: 0.0121 | BI69: 0.0105 | BJ69: 0.0088 | BK69: 0.007 | BL69: 0.0053 | BM69: 0.0038 | BN69: 0.0025 | BO69: 0.0012 | BP69: 0.0014 | BQ69: 0.0018 | BR69: 0.0024 | BS69: 0.0031 | BT69: 0.0039 | BU69: 0.0047 | BV69: 0.0054 | BW69: 0.006 | BX69: 0.0065 | BY69: 0.0068 | BZ69: 0.0069 | CA69: 0.007 | CB69: 0.0071 | CC69: 0.0072 | CD69: 0.0073 | CE69: 0.0074 | CF69: 0.0076 | CG69: 0.0077 | CH69: 0.008 | CI69: 0.0082
A70: 87 | B70: -0.0014 | C70: -0.0016 | D70: -0.0017 | E70: -0.0017 | F70: -0.0017 | G70: -0.0015 | H70: -0.0011 | I70: -0.0004 | J70: 0.0006 | K70: 0.0019 | L70: 0.0034 | M70: 0.0053 | N70: 0.0074 | O70: 0.0097 | P70: 0.0121 | Q70: 0.0144 | R70: 0.0166 | S70: 0.0186 | T70: 0.0203 | U70: 0.0217 | V70: 0.0227 | W70: 0.0234 | X70: 0.0237 | Y70: 0.0236 | Z70: 0.023 | AA70: 0.0219 | AB70: 0.0204 | AC70: 0.0186 | AD70: 0.0166 | AE70: 0.0146 | AF70: 0.0126 | AG70: 0.0109 | AH70: 0.0093 | AI70: 0.0081 | AJ70: 0.0073 | AK70: 0.0066 | AL70: 0.0061 | AM70: 0.0055 | AN70: 0.0047 | AO70: 0.0035 | AP70: 0.0019 | AQ70: 0.0001 | AR70: -0.0019 | AS70: -0.0036 | AT70: -0.0049 | AU70: -0.0057 | AV70: -0.0057 | AW70: -0.0049 | AX70: -0.0033 | AY70: -0.001 | AZ70: 0.0018 | BA70: 0.0048 | BB70: 0.0077 | BC70: 0.0101 | BD70: 0.012 | BE70: 0.013 | BF70: 0.0133 | BG70: 0.0129 | BH70: 0.0118 | BI70: 0.0104 | BJ70: 0.0087 | BK70: 0.007 | BL70: 0.0054 | BM70: 0.0038 | BN70: 0.0024 | BO70: 0.001 | BP70: 0.0012 | BQ70: 0.0016 | BR70: 0.0021 | BS70: 0.0028 | BT70: 0.0035 | BU70: 0.0042 | BV70: 0.0049 | BW70: 0.0055 | BX70: 0.006 | BY70: 0.0063 | BZ70: 0.0064 | CA70: 0.0065 | CB70: 0.0066 | CC70: 0.0068 | CD70: 0.0069 | CE70: 0.007 | CF70: 0.0071 | CG70: 0.0073 | CH70: 0.0075 | CI70: 0.0077
A71: 88 | B71: -0.0035 | C71: -0.0035 | D71: -0.0034 | E71: -0.0032 | F71: -0.003 | G71: -0.0026 | H71: -0.002 | I71: -0.0012 | J71: 0 | K71: 0.0013 | L71: 0.003 | M71: 0.005 | N71: 0.0072 | O71: 0.0095 | P71: 0.012 | Q71: 0.0143 | R71: 0.0166 | S71: 0.0185 | T71: 0.0202 | U71: 0.0215 | V71: 0.0224 | W71: 0.0229 | X71: 0.0231 | Y71: 0.0229 | Z71: 0.0222 | AA71: 0.0211 | AB71: 0.0197 | AC71: 0.0179 | AD71: 0.0161 | AE71: 0.0141 | AF71: 0.0123 | AG71: 0.0106 | AH71: 0.0091 | AI71: 0.0079 | AJ71: 0.007 | AK71: 0.0063 | AL71: 0.0057 | AM71: 0.005 | AN71: 0.0041 | AO71: 0.0029 | AP71: 0.0013 | AQ71: -0.0006 | AR71: -0.0025 | AS71: -0.0042 | AT71: -0.0055 | AU71: -0.0062 | AV71: -0.0062 | AW71: -0.0055 | AX71: -0.0039 | AY71: -0.0017 | AZ71: 0.001 | BA71: 0.0039 | BB71: 0.0068 | BC71: 0.0092 | BD71: 0.0111 | BE71: 0.0123 | BF71: 0.0127 | BG71: 0.0124 | BH71: 0.0115 | BI71: 0.0102 | BJ71: 0.0086 | BK71: 0.007 | BL71: 0.0054 | BM71: 0.0038 | BN71: 0.0023 | BO71: 0.0009 | BP71: 0.001 | BQ71: 0.0014 | BR71: 0.0019 | BS71: 0.0025 | BT71: 0.0031 | BU71: 0.0038 | BV71: 0.0045 | BW71: 0.0051 | BX71: 0.0055 | BY71: 0.0058 | BZ71: 0.0059 | CA71: 0.0061 | CB71: 0.0061 | CC71: 0.0063 | CD71: 0.0064 | CE71: 0.0065 | CF71: 0.0067 | CG71: 0.0068 | CH71: 0.007 | CI71: 0.0073
A72: 89 | B72: -0.0056 | C72: -0.0053 | D72: -0.005 | E72: -0.0046 | F72: -0.0041 | G72: -0.0035 | H72: -0.0028 | I72: -0.0018 | J72: -0.0005 | K72: 0.001 | L72: 0.0028 | M72: 0.0048 | N72: 0.0071 | O72: 0.0095 | P72: 0.0119 | Q72: 0.0143 | R72: 0.0164 | S72: 0.0184 | T72: 0.02 | U72: 0.0212 | V72: 0.022 | W72: 0.0224 | X72: 0.0224 | Y72: 0.0221 | Z72: 0.0213 | AA72: 0.0202 | AB72: 0.0188 | AC72: 0.0172 | AD72: 0.0154 | AE72: 0.0136 | AF72: 0.0118 | AG72: 0.0102 | AH72: 0.0088 | AI72: 0.0076 | AJ72: 0.0066 | AK72: 0.0058 | AL72: 0.0051 | AM72: 0.0044 | AN72: 0.0034 | AO72: 0.0021 | AP72: 0.0006 | AQ72: -0.0012 | AR72: -0.0031 | AS72: -0.0047 | AT72: -0.0059 | AU72: -0.0066 | AV72: -0.0066 | AW72: -0.0059 | AX72: -0.0045 | AY72: -0.0023 | AZ72: 0.0003 | BA72: 0.0031 | BB72: 0.0059 | BC72: 0.0083 | BD72: 0.0102 | BE72: 0.0114 | BF72: 0.0119 | BG72: 0.0118 | BH72: 0.0111 | BI72: 0.0099 | BJ72: 0.0085 | BK72: 0.007 | BL72: 0.0054 | BM72: 0.0039 | BN72: 0.0023 | BO72: 0.0009 | BP72: 0.001 | BQ72: 0.0012 | BR72: 0.0017 | BS72: 0.0022 | BT72: 0.0028 | BU72: 0.0035 | BV72: 0.0041 | BW72: 0.0046 | BX72: 0.0051 | BY72: 0.0053 | BZ72: 0.0055 | CA72: 0.0056 | CB72: 0.0057 | CC72: 0.0058 | CD72: 0.0059 | CE72: 0.0061 | CF72: 0.0062 | CG72: 0.0064 | CH72: 0.0066 | CI72: 0.0068
A73: 90 | B73: -0.0076 | C73: -0.007 | D73: -0.0065 | E73: -0.0058 | F73: -0.0051 | G73: -0.0043 | H73: -0.0033 | I73: -0.0022 | J73: -0.0008 | K73: 0.0008 | L73: 0.0027 | M73: 0.0048 | N73: 0.007 | O73: 0.0094 | P73: 0.0118 | Q73: 0.0142 | R73: 0.0163 | S73: 0.0181 | T73: 0.0196 | U73: 0.0207 | V73: 0.0214 | W73: 0.0217 | X73: 0.0217 | Y73: 0.0212 | Z73: 0.0204 | AA73: 0.0193 | AB73: 0.0179 | AC73: 0.0163 | AD73: 0.0146 | AE73: 0.0129 | AF73: 0.0113 | AG73: 0.0097 | AH73: 0.0083 | AI73: 0.0071 | AJ73: 0.0061 | AK73: 0.0053 | AL73: 0.0045 | AM73: 0.0037 | AN73: 0.0026 | AO73: 0.0014 | AP73: -0.0002 | AQ73: -0.0019 | AR73: -0.0036 | AS73: -0.0052 | AT73: -0.0063 | AU73: -0.007 | AV73: -0.007 | AW73: -0.0063 | AX73: -0.0049 | AY73: -0.0029 | AZ73: -0.0004 | BA73: 0.0023 | BB73: 0.005 | BC73: 0.0073 | BD73: 0.0092 | BE73: 0.0105 | BF73: 0.0112 | BG73: 0.0112 | BH73: 0.0106 | BI73: 0.0096 | BJ73: 0.0083 | BK73: 0.0069 | BL73: 0.0054 | BM73: 0.0039 | BN73: 0.0024 | BO73: 0.0009 | BP73: 0.001 | BQ73: 0.0012 | BR73: 0.0016 | BS73: 0.002 | BT73: 0.0026 | BU73: 0.0031 | BV73: 0.0037 | BW73: 0.0042 | BX73: 0.0046 | BY73: 0.0049 | BZ73: 0.005 | CA73: 0.0052 | CB73: 0.0053 | CC73: 0.0054 | CD73: 0.0054 | CE73: 0.0056 | CF73: 0.0058 | CG73: 0.0059 | CH73: 0.0061 | CI73: 0.0063
A74: 91 | B74: -0.0095 | C74: -0.0087 | D74: -0.0078 | E74: -0.0069 | F74: -0.006 | G74: -0.0049 | H74: -0.0038 | I74: -0.0024 | J74: -0.0009 | K74: 0.0008 | L74: 0.0027 | M74: 0.0049 | N74: 0.0071 | O74: 0.0095 | P74: 0.0118 | Q74: 0.014 | R74: 0.0161 | S74: 0.0178 | T74: 0.0192 | U74: 0.0202 | V74: 0.0208 | W74: 0.021 | X74: 0.0208 | Y74: 0.0203 | Z74: 0.0194 | AA74: 0.0183 | AB74: 0.0169 | AC74: 0.0154 | AD74: 0.0138 | AE74: 0.0122 | AF74: 0.0106 | AG74: 0.0091 | AH74: 0.0078 | AI74: 0.0066 | AJ74: 0.0055 | AK74: 0.0046 | AL74: 0.0038 | AM74: 0.0029 | AN74: 0.0018 | AO74: 0.0006 | AP74: -0.0009 | AQ74: -0.0025 | AR74: -0.0042 | AS74: -0.0056 | AT74: -0.0067 | AU74: -0.0073 | AV74: -0.0073 | AW74: -0.0067 | AX74: -0.0053 | AY74: -0.0034 | AZ74: -0.0011 | BA74: 0.0015 | BB74: 0.004 | BC74: 0.0063 | BD74: 0.0082 | BE74: 0.0095 | BF74: 0.0103 | BG74: 0.0105 | BH74: 0.0101 | BI74: 0.0093 | BJ74: 0.0081 | BK74: 0.0068 | BL74: 0.0054 | BM74: 0.004 | BN74: 0.0025 | BO74: 0.0011 | BP74: 0.0011 | BQ74: 0.0012 | BR74: 0.0015 | BS74: 0.0019 | BT74: 0.0024 | BU74: 0.0029 | BV74: 0.0034 | BW74: 0.0038 | BX74: 0.0042 | BY74: 0.0044 | BZ74: 0.0046 | CA74: 0.0048 | CB74: 0.0049 | CC74: 0.005 | CD74: 0.0051 | CE74: 0.0051 | CF74: 0.0053 | CG74: 0.0055 | CH74: 0.0056 | CI74: 0.0059
A75: 92 | B75: -0.0113 | C75: -0.0102 | D75: -0.009 | E75: -0.0079 | F75: -0.0067 | G75: -0.0054 | H75: -0.004 | I75: -0.0025 | J75: -0.0008 | K75: 0.001 | L75: 0.003 | M75: 0.0051 | N75: 0.0073 | O75: 0.0096 | P75: 0.0118 | Q75: 0.0139 | R75: 0.0158 | S75: 0.0174 | T75: 0.0187 | U75: 0.0195 | V75: 0.02 | W75: 0.0201 | X75: 0.0199 | Y75: 0.0193 | Z75: 0.0184 | AA75: 0.0173 | AB75: 0.0159 | AC75: 0.0145 | AD75: 0.013 | AE75: 0.0114 | AF75: 0.0099 | AG75: 0.0085 | AH75: 0.0071 | AI75: 0.0059 | AJ75: 0.0048 | AK75: 0.0039 | AL75: 0.003 | AM75: 0.002 | AN75: 0.001 | AO75: -0.0003 | AP75: -0.0017 | AQ75: -0.0032 | AR75: -0.0047 | AS75: -0.006 | AT75: -0.007 | AU75: -0.0075 | AV75: -0.0075 | AW75: -0.0069 | AX75: -0.0057 | AY75: -0.0039 | AZ75: -0.0017 | BA75: 0.0007 | BB75: 0.0031 | BC75: 0.0053 | BD75: 0.0072 | BE75: 0.0085 | BF75: 0.0094 | BG75: 0.0097 | BH75: 0.0095 | BI75: 0.0088 | BJ75: 0.0079 | BK75: 0.0067 | BL75: 0.0054 | BM75: 0.0041 | BN75: 0.0027 | BO75: 0.0014 | BP75: 0.0013 | BQ75: 0.0014 | BR75: 0.0016 | BS75: 0.0019 | BT75: 0.0022 | BU75: 0.0026 | BV75: 0.0031 | BW75: 0.0035 | BX75: 0.0038 | BY75: 0.004 | BZ75: 0.0042 | CA75: 0.0043 | CB75: 0.0045 | CC75: 0.0046 | CD75: 0.0047 | CE75: 0.0048 | CF75: 0.0048 | CG75: 0.005 | CH75: 0.0052 | CI75: 0.0054
A76: 93 | B76: -0.013 | C76: -0.0116 | D76: -0.0101 | E76: -0.0087 | F76: -0.0072 | G76: -0.0057 | H76: -0.0041 | I76: -0.0024 | J76: -0.0006 | K76: 0.0013 | L76: 0.0034 | M76: 0.0055 | N76: 0.0076 | O76: 0.0098 | P76: 0.0118 | Q76: 0.0138 | R76: 0.0155 | S76: 0.0169 | T76: 0.018 | U76: 0.0188 | V76: 0.0191 | W76: 0.0191 | X76: 0.0188 | Y76: 0.0182 | Z76: 0.0173 | AA76: 0.0162 | AB76: 0.0149 | AC76: 0.0135 | AD76: 0.012 | AE76: 0.0106 | AF76: 0.0091 | AG76: 0.0077 | AH76: 0.0064 | AI76: 0.0051 | AJ76: 0.004 | AK76: 0.003 | AL76: 0.0021 | AM76: 0.0011 | AN76: 0.0001 | AO76: -0.0011 | AP76: -0.0024 | AQ76: -0.0038 | AR76: -0.0052 | AS76: -0.0064 | AT76: -0.0072 | AU76: -0.0077 | AV76: -0.0077 | AW76: -0.0071 | AX76: -0.0059 | AY76: -0.0043 | AZ76: -0.0023 | BA76: 0 | BB76: 0.0022 | BC76: 0.0043 | BD76: 0.0061 | BE76: 0.0075 | BF76: 0.0084 | BG76: 0.0088 | BH76: 0.0088 | BI76: 0.0083 | BJ76: 0.0075 | BK76: 0.0065 | BL76: 0.0054 | BM76: 0.0042 | BN76: 0.003 | BO76: 0.0017 | BP76: 0.0016 | BQ76: 0.0016 | BR76: 0.0017 | BS76: 0.0019 | BT76: 0.0021 | BU76: 0.0025 | BV76: 0.0028 | BW76: 0.0031 | BX76: 0.0034 | BY76: 0.0036 | BZ76: 0.0038 | CA76: 0.0039 | CB76: 0.0041 | CC76: 0.0042 | CD76: 0.0043 | CE76: 0.0044 | CF76: 0.0045 | CG76: 0.0045 | CH76: 0.0047 | CI76: 0.0049
A77: 94 | B77: -0.0146 | C77: -0.0128 | D77: -0.0111 | E77: -0.0094 | F77: -0.0076 | G77: -0.0058 | H77: -0.004 | I77: -0.0021 | J77: -0.0001 | K77: 0.0019 | L77: 0.0039 | M77: 0.0059 | N77: 0.008 | O77: 0.01 | P77: 0.0119 | Q77: 0.0136 | R77: 0.0151 | S77: 0.0164 | T77: 0.0173 | U77: 0.0179 | V77: 0.0181 | W77: 0.0181 | X77: 0.0177 | Y77: 0.017 | Z77: 0.0161 | AA77: 0.015 | AB77: 0.0138 | AC77: 0.0125 | AD77: 0.0111 | AE77: 0.0096 | AF77: 0.0082 | AG77: 0.0068 | AH77: 0.0055 | AI77: 0.0043 | AJ77: 0.0031 | AK77: 0.0021 | AL77: 0.0011 | AM77: 0.0001 | AN77: -0.0009 | AO77: -0.002 | AP77: -0.0032 | AQ77: -0.0045 | AR77: -0.0057 | AS77: -0.0067 | AT77: -0.0074 | AU77: -0.0078 | AV77: -0.0077 | AW77: -0.0072 | AX77: -0.0061 | AY77: -0.0046 | AZ77: -0.0028 | BA77: -0.0007 | BB77: 0.0013 | BC77: 0.0033 | BD77: 0.005 | BE77: 0.0064 | BF77: 0.0074 | BG77: 0.0079 | BH77: 0.008 | BI77: 0.0077 | BJ77: 0.0071 | BK77: 0.0063 | BL77: 0.0054 | BM77: 0.0044 | BN77: 0.0033 | BO77: 0.0022 | BP77: 0.002 | BQ77: 0.0019 | BR77: 0.0019 | BS77: 0.002 | BT77: 0.0021 | BU77: 0.0023 | BV77: 0.0026 | BW77: 0.0028 | BX77: 0.003 | BY77: 0.0032 | BZ77: 0.0034 | CA77: 0.0035 | CB77: 0.0037 | CC77: 0.0038 | CD77: 0.0039 | CE77: 0.004 | CF77: 0.0041 | CG77: 0.0042 | CH77: 0.0042 | CI77: 0.0045
A78: 95 | B78: -0.016 | C78: -0.014 | D78: -0.0119 | E78: -0.0099 | F78: -0.0078 | G78: -0.0057 | H78: -0.0037 | I78: -0.0016 | J78: 0.0005 | K78: 0.0025 | L78: 0.0046 | M78: 0.0066 | N78: 0.0085 | O78: 0.0103 | P78: 0.012 | Q78: 0.0135 | R78: 0.0147 | S78: 0.0157 | T78: 0.0165 | U78: 0.0169 | V78: 0.017 | W78: 0.0169 | X78: 0.0165 | Y78: 0.0158 | Z78: 0.0149 | AA78: 0.0139 | AB78: 0.0127 | AC78: 0.0114 | AD78: 0.01 | AE78: 0.0087 | AF78: 0.0073 | AG78: 0.0059 | AH78: 0.0046 | AI78: 0.0033 | AJ78: 0.0022 | AK78: 0.0011 | AL78: 0.0001 | AM78: -0.0009 | AN78: -0.0019 | AO78: -0.003 | AP78: -0.004 | AQ78: -0.0051 | AR78: -0.0061 | AS78: -0.007 | AT78: -0.0076 | AU78: -0.0078 | AV78: -0.0077 | AW78: -0.0072 | AX78: -0.0062 | AY78: -0.0049 | AZ78: -0.0032 | BA78: -0.0014 | BB78: 0.0005 | BC78: 0.0023 | BD78: 0.0039 | BE78: 0.0053 | BF78: 0.0063 | BG78: 0.0069 | BH78: 0.0072 | BI78: 0.0071 | BJ78: 0.0067 | BK78: 0.0061 | BL78: 0.0054 | BM78: 0.0046 | BN78: 0.0037 | BO78: 0.0028 | BP78: 0.0025 | BQ78: 0.0023 | BR78: 0.0022 | BS78: 0.0021 | BT78: 0.0022 | BU78: 0.0023 | BV78: 0.0024 | BW78: 0.0025 | BX78: 0.0027 | BY78: 0.0029 | BZ78: 0.003 | CA78: 0.0032 | CB78: 0.0033 | CC78: 0.0034 | CD78: 0.0036 | CE78: 0.0037 | CF78: 0.0038 | CG78: 0.0038 | CH78: 0.0039 | CI78: 0.004
A79: 96 | B79: -0.0152 | C79: -0.0133 | D79: -0.0113 | E79: -0.0094 | F79: -0.0074 | G79: -0.0055 | H79: -0.0035 | I79: -0.0015 | J79: 0.0005 | K79: 0.0024 | L79: 0.0043 | M79: 0.0062 | N79: 0.0081 | O79: 0.0098 | P79: 0.0114 | Q79: 0.0128 | R79: 0.014 | S79: 0.0149 | T79: 0.0156 | U79: 0.0161 | V79: 0.0162 | W79: 0.0161 | X79: 0.0156 | Y79: 0.015 | Z79: 0.0142 | AA79: 0.0132 | AB79: 0.012 | AC79: 0.0108 | AD79: 0.0095 | AE79: 0.0082 | AF79: 0.0069 | AG79: 0.0056 | AH79: 0.0043 | AI79: 0.0032 | AJ79: 0.0021 | AK79: 0.001 | AL79: 0.0001 | AM79: -0.0009 | AN79: -0.0018 | AO79: -0.0028 | AP79: -0.0038 | AQ79: -0.0048 | AR79: -0.0058 | AS79: -0.0066 | AT79: -0.0072 | AU79: -0.0074 | AV79: -0.0073 | AW79: -0.0068 | AX79: -0.0059 | AY79: -0.0046 | AZ79: -0.0031 | BA79: -0.0013 | BB79: 0.0005 | BC79: 0.0022 | BD79: 0.0037 | BE79: 0.005 | BF79: 0.006 | BG79: 0.0066 | BH79: 0.0068 | BI79: 0.0067 | BJ79: 0.0064 | BK79: 0.0058 | BL79: 0.0051 | BM79: 0.0043 | BN79: 0.0035 | BO79: 0.0027 | BP79: 0.0027 | BQ79: 0.0025 | BR79: 0.0023 | BS79: 0.0022 | BT79: 0.0021 | BU79: 0.0022 | BV79: 0.0023 | BW79: 0.0024 | BX79: 0.0025 | BY79: 0.0026 | BZ79: 0.0028 | CA79: 0.0029 | CB79: 0.0031 | CC79: 0.0032 | CD79: 0.0033 | CE79: 0.0034 | CF79: 0.0035 | CG79: 0.0036 | CH79: 0.0037 | CI79: 0.0038
A80: 97 | B80: -0.0144 | C80: -0.0126 | D80: -0.0107 | E80: -0.0089 | F80: -0.007 | G80: -0.0052 | H80: -0.0033 | I80: -0.0014 | J80: 0.0004 | K80: 0.0023 | L80: 0.0041 | M80: 0.0059 | N80: 0.0076 | O80: 0.0093 | P80: 0.0108 | Q80: 0.0121 | R80: 0.0133 | S80: 0.0142 | T80: 0.0148 | U80: 0.0152 | V80: 0.0153 | W80: 0.0152 | X80: 0.0148 | Y80: 0.0142 | Z80: 0.0134 | AA80: 0.0125 | AB80: 0.0114 | AC80: 0.0103 | AD80: 0.009 | AE80: 0.0078 | AF80: 0.0065 | AG80: 0.0053 | AH80: 0.0041 | AI80: 0.003 | AJ80: 0.0019 | AK80: 0.001 | AL80: 0.0001 | AM80: -0.0008 | AN80: -0.0017 | AO80: -0.0027 | AP80: -0.0036 | AQ80: -0.0046 | AR80: -0.0055 | AS80: -0.0063 | AT80: -0.0068 | AU80: -0.0071 | AV80: -0.0069 | AW80: -0.0065 | AX80: -0.0056 | AY80: -0.0044 | AZ80: -0.0029 | BA80: -0.0012 | BB80: 0.0004 | BC80: 0.0021 | BD80: 0.0035 | BE80: 0.0047 | BF80: 0.0056 | BG80: 0.0062 | BH80: 0.0064 | BI80: 0.0064 | BJ80: 0.006 | BK80: 0.0055 | BL80: 0.0048 | BM80: 0.0041 | BN80: 0.0033 | BO80: 0.0025 | BP80: 0.0026 | BQ80: 0.0027 | BR80: 0.0024 | BS80: 0.0022 | BT80: 0.0022 | BU80: 0.0021 | BV80: 0.0022 | BW80: 0.0022 | BX80: 0.0023 | BY80: 0.0024 | BZ80: 0.0026 | CA80: 0.0027 | CB80: 0.0028 | CC80: 0.003 | CD80: 0.0031 | CE80: 0.0032 | CF80: 0.0033 | CG80: 0.0034 | CH80: 0.0035 | CI80: 0.0036
A81: 98 | B81: -0.0136 | C81: -0.0119 | D81: -0.0101 | E81: -0.0084 | F81: -0.0066 | G81: -0.0049 | H81: -0.0031 | I81: -0.0014 | J81: 0.0004 | K81: 0.0022 | L81: 0.0039 | M81: 0.0056 | N81: 0.0072 | O81: 0.0088 | P81: 0.0102 | Q81: 0.0114 | R81: 0.0125 | S81: 0.0134 | T81: 0.014 | U81: 0.0144 | V81: 0.0145 | W81: 0.0144 | X81: 0.014 | Y81: 0.0134 | Z81: 0.0127 | AA81: 0.0118 | AB81: 0.0108 | AC81: 0.0097 | AD81: 0.0085 | AE81: 0.0074 | AF81: 0.0062 | AG81: 0.005 | AH81: 0.0039 | AI81: 0.0028 | AJ81: 0.0018 | AK81: 0.0009 | AL81: 0.0001 | AM81: -0.0008 | AN81: -0.0016 | AO81: -0.0025 | AP81: -0.0034 | AQ81: -0.0043 | AR81: -0.0052 | AS81: -0.0059 | AT81: -0.0064 | AU81: -0.0067 | AV81: -0.0066 | AW81: -0.0061 | AX81: -0.0053 | AY81: -0.0041 | AZ81: -0.0027 | BA81: -0.0012 | BB81: 0.0004 | BC81: 0.002 | BD81: 0.0033 | BE81: 0.0045 | BF81: 0.0053 | BG81: 0.0059 | BH81: 0.0061 | BI81: 0.006 | BJ81: 0.0057 | BK81: 0.0052 | BL81: 0.0046 | BM81: 0.0039 | BN81: 0.0031 | BO81: 0.0024 | BP81: 0.0025 | BQ81: 0.0025 | BR81: 0.0026 | BS81: 0.0024 | BT81: 0.0022 | BU81: 0.0021 | BV81: 0.0021 | BW81: 0.0021 | BX81: 0.0022 | BY81: 0.0023 | BZ81: 0.0024 | CA81: 0.0025 | CB81: 0.0026 | CC81: 0.0028 | CD81: 0.0029 | CE81: 0.003 | CF81: 0.0031 | CG81: 0.0032 | CH81: 0.0033 | CI81: 0.0034
A82: 99 | B82: -0.0128 | C82: -0.0112 | D82: -0.0095 | E82: -0.0079 | F82: -0.0062 | G82: -0.0046 | H82: -0.0029 | I82: -0.0013 | J82: 0.0004 | K82: 0.002 | L82: 0.0037 | M82: 0.0053 | N82: 0.0068 | O82: 0.0082 | P82: 0.0096 | Q82: 0.0108 | R82: 0.0118 | S82: 0.0126 | T82: 0.0132 | U82: 0.0135 | V82: 0.0136 | W82: 0.0135 | X82: 0.0132 | Y82: 0.0126 | Z82: 0.0119 | AA82: 0.0111 | AB82: 0.0101 | AC82: 0.0091 | AD82: 0.008 | AE82: 0.0069 | AF82: 0.0058 | AG82: 0.0047 | AH82: 0.0037 | AI82: 0.0027 | AJ82: 0.0017 | AK82: 0.0009 | AL82: 0.0001 | AM82: -0.0007 | AN82: -0.0015 | AO82: -0.0024 | AP82: -0.0032 | AQ82: -0.0041 | AR82: -0.0049 | AS82: -0.0056 | AT82: -0.0061 | AU82: -0.0063 | AV82: -0.0062 | AW82: -0.0057 | AX82: -0.005 | AY82: -0.0039 | AZ82: -0.0026 | BA82: -0.0011 | BB82: 0.0004 | BC82: 0.0018 | BD82: 0.0031 | BE82: 0.0042 | BF82: 0.005 | BG82: 0.0055 | BH82: 0.0057 | BI82: 0.0057 | BJ82: 0.0054 | BK82: 0.0049 | BL82: 0.0043 | BM82: 0.0036 | BN82: 0.003 | BO82: 0.0022 | BP82: 0.0023 | BQ82: 0.0024 | BR82: 0.0025 | BS82: 0.0025 | BT82: 0.0023 | BU82: 0.0022 | BV82: 0.0021 | BW82: 0.002 | BX82: 0.0021 | BY82: 0.0021 | BZ82: 0.0022 | CA82: 0.0023 | CB82: 0.0024 | CC82: 0.0025 | CD82: 0.0027 | CE82: 0.0028 | CF82: 0.0029 | CG82: 0.003 | CH82: 0.0031 | CI82: 0.0032
A83: 100 | B83: -0.012 | C83: -0.0105 | D83: -0.0089 | E83: -0.0074 | F83: -0.0059 | G83: -0.0043 | H83: -0.0028 | I83: -0.0012 | J83: 0.0004 | K83: 0.0019 | L83: 0.0034 | M83: 0.0049 | N83: 0.0064 | O83: 0.0077 | P83: 0.009 | Q83: 0.0101 | R83: 0.011 | S83: 0.0118 | T83: 0.0124 | U83: 0.0127 | V83: 0.0128 | W83: 0.0127 | X83: 0.0124 | Y83: 0.0119 | Z83: 0.0112 | AA83: 0.0104 | AB83: 0.0095 | AC83: 0.0085 | AD83: 0.0075 | AE83: 0.0065 | AF83: 0.0055 | AG83: 0.0044 | AH83: 0.0034 | AI83: 0.0025 | AJ83: 0.0016 | AK83: 0.0008 | AL83: 0.0001 | AM83: -0.0007 | AN83: -0.0014 | AO83: -0.0022 | AP83: -0.003 | AQ83: -0.0038 | AR83: -0.0046 | AS83: -0.0052 | AT83: -0.0057 | AU83: -0.0059 | AV83: -0.0058 | AW83: -0.0054 | AX83: -0.0047 | AY83: -0.0036 | AZ83: -0.0024 | BA83: -0.001 | BB83: 0.0004 | BC83: 0.0017 | BD83: 0.0029 | BE83: 0.0039 | BF83: 0.0047 | BG83: 0.0052 | BH83: 0.0054 | BI83: 0.0053 | BJ83: 0.005 | BK83: 0.0046 | BL83: 0.004 | BM83: 0.0034 | BN83: 0.0028 | BO83: 0.0021 | BP83: 0.0022 | BQ83: 0.0023 | BR83: 0.0023 | BS83: 0.0024 | BT83: 0.0025 | BU83: 0.0022 | BV83: 0.0021 | BW83: 0.002 | BX83: 0.002 | BY83: 0.002 | BZ83: 0.002 | CA83: 0.0021 | CB83: 0.0022 | CC83: 0.0023 | CD83: 0.0025 | CE83: 0.0026 | CF83: 0.0027 | CG83: 0.0028 | CH83: 0.0029 | CI83: 0.003
A84: 101 | B84: -0.0112 | C84: -0.0098 | D84: -0.0083 | E84: -0.0069 | F84: -0.0055 | G84: -0.004 | H84: -0.0026 | I84: -0.0011 | J84: 0.0003 | K84: 0.0018 | L84: 0.0032 | M84: 0.0046 | N84: 0.0059 | O84: 0.0072 | P84: 0.0084 | Q84: 0.0094 | R84: 0.0103 | S84: 0.011 | T84: 0.0115 | U84: 0.0118 | V84: 0.0119 | W84: 0.0118 | X84: 0.0115 | Y84: 0.0111 | Z84: 0.0104 | AA84: 0.0097 | AB84: 0.0089 | AC84: 0.008 | AD84: 0.007 | AE84: 0.0061 | AF84: 0.0051 | AG84: 0.0041 | AH84: 0.0032 | AI84: 0.0023 | AJ84: 0.0015 | AK84: 0.0008 | AL84: 0 | AM84: -0.0006 | AN84: -0.0013 | AO84: -0.0021 | AP84: -0.0028 | AQ84: -0.0036 | AR84: -0.0043 | AS84: -0.0049 | AT84: -0.0053 | AU84: -0.0055 | AV84: -0.0054 | AW84: -0.005 | AX84: -0.0043 | AY84: -0.0034 | AZ84: -0.0023 | BA84: -0.001 | BB84: 0.0003 | BC84: 0.0016 | BD84: 0.0027 | BE84: 0.0037 | BF84: 0.0044 | BG84: 0.0048 | BH84: 0.005 | BI84: 0.0049 | BJ84: 0.0047 | BK84: 0.0043 | BL84: 0.0038 | BM84: 0.0032 | BN84: 0.0026 | BO84: 0.002 | BP84: 0.002 | BQ84: 0.0021 | BR84: 0.0022 | BS84: 0.0023 | BT84: 0.0023 | BU84: 0.0024 | BV84: 0.0021 | BW84: 0.002 | BX84: 0.0019 | BY84: 0.0019 | BZ84: 0.0019 | CA84: 0.0019 | CB84: 0.002 | CC84: 0.0021 | CD84: 0.0023 | CE84: 0.0024 | CF84: 0.0025 | CG84: 0.0026 | CH84: 0.0027 | CI84: 0.0028
A85: 102 | B85: -0.0104 | C85: -0.0091 | D85: -0.0077 | E85: -0.0064 | F85: -0.0051 | G85: -0.0037 | H85: -0.0024 | I85: -0.001 | J85: 0.0003 | K85: 0.0017 | L85: 0.003 | M85: 0.0043 | N85: 0.0055 | O85: 0.0067 | P85: 0.0078 | Q85: 0.0087 | R85: 0.0096 | S85: 0.0102 | T85: 0.0107 | U85: 0.011 | V85: 0.0111 | W85: 0.011 | X85: 0.0107 | Y85: 0.0103 | Z85: 0.0097 | AA85: 0.009 | AB85: 0.0082 | AC85: 0.0074 | AD85: 0.0065 | AE85: 0.0056 | AF85: 0.0047 | AG85: 0.0038 | AH85: 0.003 | AI85: 0.0022 | AJ85: 0.0014 | AK85: 0.0007 | AL85: 0 | AM85: -0.0006 | AN85: -0.0013 | AO85: -0.0019 | AP85: -0.0026 | AQ85: -0.0033 | AR85: -0.004 | AS85: -0.0045 | AT85: -0.0049 | AU85: -0.0051 | AV85: -0.005 | AW85: -0.0047 | AX85: -0.004 | AY85: -0.0032 | AZ85: -0.0021 | BA85: -0.0009 | BB85: 0.0003 | BC85: 0.0015 | BD85: 0.0026 | BE85: 0.0034 | BF85: 0.0041 | BG85: 0.0045 | BH85: 0.0047 | BI85: 0.0046 | BJ85: 0.0044 | BK85: 0.004 | BL85: 0.0035 | BM85: 0.003 | BN85: 0.0024 | BO85: 0.0018 | BP85: 0.0019 | BQ85: 0.002 | BR85: 0.0021 | BS85: 0.0021 | BT85: 0.0022 | BU85: 0.0022 | BV85: 0.0022 | BW85: 0.002 | BX85: 0.0019 | BY85: 0.0018 | BZ85: 0.0018 | CA85: 0.0018 | CB85: 0.0019 | CC85: 0.0019 | CD85: 0.0021 | CE85: 0.0022 | CF85: 0.0023 | CG85: 0.0024 | CH85: 0.0025 | CI85: 0.0026
A86: 103 | B86: -0.0096 | C86: -0.0084 | D86: -0.0071 | E86: -0.0059 | F86: -0.0047 | G86: -0.0034 | H86: -0.0022 | I86: -0.001 | J86: 0.0003 | K86: 0.0015 | L86: 0.0027 | M86: 0.0039 | N86: 0.0051 | O86: 0.0062 | P86: 0.0072 | Q86: 0.0081 | R86: 0.0088 | S86: 0.0094 | T86: 0.0099 | U86: 0.0101 | V86: 0.0102 | W86: 0.0101 | X86: 0.0099 | Y86: 0.0095 | Z86: 0.009 | AA86: 0.0083 | AB86: 0.0076 | AC86: 0.0068 | AD86: 0.006 | AE86: 0.0052 | AF86: 0.0044 | AG86: 0.0035 | AH86: 0.0027 | AI86: 0.002 | AJ86: 0.0013 | AK86: 0.0007 | AL86: 0 | AM86: -0.0006 | AN86: -0.0012 | AO86: -0.0018 | AP86: -0.0024 | AQ86: -0.0031 | AR86: -0.0037 | AS86: -0.0042 | AT86: -0.0045 | AU86: -0.0047 | AV86: -0.0046 | AW86: -0.0043 | AX86: -0.0037 | AY86: -0.0029 | AZ86: -0.0019 | BA86: -0.0008 | BB86: 0.0003 | BC86: 0.0014 | BD86: 0.0024 | BE86: 0.0032 | BF86: 0.0038 | BG86: 0.0041 | BH86: 0.0043 | BI86: 0.0042 | BJ86: 0.004 | BK86: 0.0037 | BL86: 0.0032 | BM86: 0.0027 | BN86: 0.0022 | BO86: 0.0017 | BP86: 0.0018 | BQ86: 0.0018 | BR86: 0.0019 | BS86: 0.002 | BT86: 0.002 | BU86: 0.0021 | BV86: 0.0021 | BW86: 0.0021 | BX86: 0.0019 | BY86: 0.0017 | BZ86: 0.0017 | CA86: 0.0017 | CB86: 0.0017 | CC86: 0.0018 | CD86: 0.0019 | CE86: 0.002 | CF86: 0.0021 | CG86: 0.0022 | CH86: 0.0023 | CI86: 0.0024
A87: 104 | B87: -0.0088 | C87: -0.0077 | D87: -0.0066 | E87: -0.0054 | F87: -0.0043 | G87: -0.0032 | H87: -0.002 | I87: -0.0009 | J87: 0.0003 | K87: 0.0014 | L87: 0.0025 | M87: 0.0036 | N87: 0.0047 | O87: 0.0057 | P87: 0.0066 | Q87: 0.0074 | R87: 0.0081 | S87: 0.0087 | T87: 0.0091 | U87: 0.0093 | V87: 0.0094 | W87: 0.0093 | X87: 0.0091 | Y87: 0.0087 | Z87: 0.0082 | AA87: 0.0076 | AB87: 0.007 | AC87: 0.0063 | AD87: 0.0055 | AE87: 0.0048 | AF87: 0.004 | AG87: 0.0032 | AH87: 0.0025 | AI87: 0.0018 | AJ87: 0.0012 | AK87: 0.0006 | AL87: 0 | AM87: -0.0005 | AN87: -0.0011 | AO87: -0.0016 | AP87: -0.0022 | AQ87: -0.0028 | AR87: -0.0034 | AS87: -0.0038 | AT87: -0.0042 | AU87: -0.0043 | AV87: -0.0042 | AW87: -0.0039 | AX87: -0.0034 | AY87: -0.0027 | AZ87: -0.0018 | BA87: -0.0008 | BB87: 0.0003 | BC87: 0.0013 | BD87: 0.0022 | BE87: 0.0029 | BF87: 0.0034 | BG87: 0.0038 | BH87: 0.0039 | BI87: 0.0039 | BJ87: 0.0037 | BK87: 0.0034 | BL87: 0.003 | BM87: 0.0025 | BN87: 0.002 | BO87: 0.0015 | BP87: 0.0016 | BQ87: 0.0017 | BR87: 0.0018 | BS87: 0.0018 | BT87: 0.0019 | BU87: 0.0019 | BV87: 0.0019 | BW87: 0.0019 | BX87: 0.0019 | BY87: 0.0017 | BZ87: 0.0016 | CA87: 0.0015 | CB87: 0.0015 | CC87: 0.0016 | CD87: 0.0017 | CE87: 0.0018 | CF87: 0.0019 | CG87: 0.002 | CH87: 0.0021 | CI87: 0.0022
A88: 105 | B88: -0.008 | C88: -0.007 | D88: -0.006 | E88: -0.0049 | F88: -0.0039 | G88: -0.0029 | H88: -0.0018 | I88: -0.0008 | J88: 0.0002 | K88: 0.0013 | L88: 0.0023 | M88: 0.0033 | N88: 0.0042 | O88: 0.0052 | P88: 0.006 | Q88: 0.0067 | R88: 0.0074 | S88: 0.0079 | T88: 0.0082 | U88: 0.0085 | V88: 0.0085 | W88: 0.0084 | X88: 0.0082 | Y88: 0.0079 | Z88: 0.0075 | AA88: 0.0069 | AB88: 0.0063 | AC88: 0.0057 | AD88: 0.005 | AE88: 0.0043 | AF88: 0.0036 | AG88: 0.0029 | AH88: 0.0023 | AI88: 0.0017 | AJ88: 0.0011 | AK88: 0.0005 | AL88: 0 | AM88: -0.0005 | AN88: -0.001 | AO88: -0.0015 | AP88: -0.002 | AQ88: -0.0026 | AR88: -0.0031 | AS88: -0.0035 | AT88: -0.0038 | AU88: -0.0039 | AV88: -0.0039 | AW88: -0.0036 | AX88: -0.0031 | AY88: -0.0024 | AZ88: -0.0016 | BA88: -0.0007 | BB88: 0.0002 | BC88: 0.0012 | BD88: 0.002 | BE88: 0.0026 | BF88: 0.0031 | BG88: 0.0035 | BH88: 0.0036 | BI88: 0.0035 | BJ88: 0.0033 | BK88: 0.0031 | BL88: 0.0027 | BM88: 0.0023 | BN88: 0.0018 | BO88: 0.0014 | BP88: 0.0015 | BQ88: 0.0015 | BR88: 0.0016 | BS88: 0.0017 | BT88: 0.0017 | BU88: 0.0018 | BV88: 0.0018 | BW88: 0.0018 | BX88: 0.0018 | BY88: 0.0017 | BZ88: 0.0015 | CA88: 0.0014 | CB88: 0.0014 | CC88: 0.0014 | CD88: 0.0015 | CE88: 0.0016 | CF88: 0.0017 | CG88: 0.0018 | CH88: 0.0019 | CI88: 0.002
A89: 106 | B89: -0.0072 | C89: -0.0063 | D89: -0.0054 | E89: -0.0044 | F89: -0.0035 | G89: -0.0026 | H89: -0.0017 | I89: -0.0007 | J89: 0.0002 | K89: 0.0011 | L89: 0.0021 | M89: 0.003 | N89: 0.0038 | O89: 0.0046 | P89: 0.0054 | Q89: 0.0061 | R89: 0.0066 | S89: 0.0071 | T89: 0.0074 | U89: 0.0076 | V89: 0.0077 | W89: 0.0076 | X89: 0.0074 | Y89: 0.0071 | Z89: 0.0067 | AA89: 0.0062 | AB89: 0.0057 | AC89: 0.0051 | AD89: 0.0045 | AE89: 0.0039 | AF89: 0.0033 | AG89: 0.0027 | AH89: 0.0021 | AI89: 0.0015 | AJ89: 0.001 | AK89: 0.0005 | AL89: 0 | AM89: -0.0004 | AN89: -0.0009 | AO89: -0.0013 | AP89: -0.0018 | AQ89: -0.0023 | AR89: -0.0028 | AS89: -0.0031 | AT89: -0.0034 | AU89: -0.0035 | AV89: -0.0035 | AW89: -0.0032 | AX89: -0.0028 | AY89: -0.0022 | AZ89: -0.0014 | BA89: -0.0006 | BB89: 0.0002 | BC89: 0.001 | BD89: 0.0018 | BE89: 0.0024 | BF89: 0.0028 | BG89: 0.0031 | BH89: 0.0032 | BI89: 0.0032 | BJ89: 0.003 | BK89: 0.0028 | BL89: 0.0024 | BM89: 0.0021 | BN89: 0.0017 | BO89: 0.0013 | BP89: 0.0013 | BQ89: 0.0014 | BR89: 0.0015 | BS89: 0.0015 | BT89: 0.0016 | BU89: 0.0016 | BV89: 0.0016 | BW89: 0.0016 | BX89: 0.0016 | BY89: 0.0016 | BZ89: 0.0015 | CA89: 0.0014 | CB89: 0.0013 | CC89: 0.0013 | CD89: 0.0013 | CE89: 0.0014 | CF89: 0.0015 | CG89: 0.0016 | CH89: 0.0017 | CI89: 0.0018
A90: 107 | B90: -0.0064 | C90: -0.0056 | D90: -0.0048 | E90: -0.0039 | F90: -0.0031 | G90: -0.0023 | H90: -0.0015 | I90: -0.0006 | J90: 0.0002 | K90: 0.001 | L90: 0.0018 | M90: 0.0026 | N90: 0.0034 | O90: 0.0041 | P90: 0.0048 | Q90: 0.0054 | R90: 0.0059 | S90: 0.0063 | T90: 0.0066 | U90: 0.0068 | V90: 0.0068 | W90: 0.0068 | X90: 0.0066 | Y90: 0.0063 | Z90: 0.006 | AA90: 0.0055 | AB90: 0.0051 | AC90: 0.0046 | AD90: 0.004 | AE90: 0.0035 | AF90: 0.0029 | AG90: 0.0024 | AH90: 0.0018 | AI90: 0.0013 | AJ90: 0.0009 | AK90: 0.0004 | AL90: 0 | AM90: -0.0004 | AN90: -0.0008 | AO90: -0.0012 | AP90: -0.0016 | AQ90: -0.002 | AR90: -0.0024 | AS90: -0.0028 | AT90: -0.003 | AU90: -0.0031 | AV90: -0.0031 | AW90: -0.0029 | AX90: -0.0025 | AY90: -0.0019 | AZ90: -0.0013 | BA90: -0.0006 | BB90: 0.0002 | BC90: 0.0009 | BD90: 0.0016 | BE90: 0.0021 | BF90: 0.0025 | BG90: 0.0028 | BH90: 0.0029 | BI90: 0.0028 | BJ90: 0.0027 | BK90: 0.0024 | BL90: 0.0022 | BM90: 0.0018 | BN90: 0.0015 | BO90: 0.0011 | BP90: 0.0012 | BQ90: 0.0013 | BR90: 0.0013 | BS90: 0.0014 | BT90: 0.0014 | BU90: 0.0015 | BV90: 0.0015 | BW90: 0.0015 | BX90: 0.0015 | BY90: 0.0014 | BZ90: 0.0014 | CA90: 0.0013 | CB90: 0.0012 | CC90: 0.0011 | CD90: 0.0012 | CE90: 0.0012 | CF90: 0.0013 | CG90: 0.0014 | CH90: 0.0015 | CI90: 0.0016
A91: 108 | B91: -0.0056 | C91: -0.0049 | D91: -0.0042 | E91: -0.0035 | F91: -0.0027 | G91: -0.002 | H91: -0.0013 | I91: -0.0006 | J91: 0.0002 | K91: 0.0009 | L91: 0.0016 | M91: 0.0023 | N91: 0.003 | O91: 0.0036 | P91: 0.0042 | Q91: 0.0047 | R91: 0.0052 | S91: 0.0055 | T91: 0.0058 | U91: 0.0059 | V91: 0.006 | W91: 0.0059 | X91: 0.0058 | Y91: 0.0055 | Z91: 0.0052 | AA91: 0.0049 | AB91: 0.0044 | AC91: 0.004 | AD91: 0.0035 | AE91: 0.003 | AF91: 0.0025 | AG91: 0.0021 | AH91: 0.0016 | AI91: 0.0012 | AJ91: 0.0008 | AK91: 0.0004 | AL91: 0 | AM91: -0.0003 | AN91: -0.0007 | AO91: -0.001 | AP91: -0.0014 | AQ91: -0.0018 | AR91: -0.0021 | AS91: -0.0024 | AT91: -0.0026 | AU91: -0.0027 | AV91: -0.0027 | AW91: -0.0025 | AX91: -0.0022 | AY91: -0.0017 | AZ91: -0.0011 | BA91: -0.0005 | BB91: 0.0002 | BC91: 0.0008 | BD91: 0.0014 | BE91: 0.0018 | BF91: 0.0022 | BG91: 0.0024 | BH91: 0.0025 | BI91: 0.0025 | BJ91: 0.0023 | BK91: 0.0021 | BL91: 0.0019 | BM91: 0.0016 | BN91: 0.0013 | BO91: 0.001 | BP91: 0.001 | BQ91: 0.0011 | BR91: 0.0012 | BS91: 0.0012 | BT91: 0.0013 | BU91: 0.0013 | BV91: 0.0013 | BW91: 0.0014 | BX91: 0.0013 | BY91: 0.0013 | BZ91: 0.0012 | CA91: 0.0012 | CB91: 0.0011 | CC91: 0.001 | CD91: 0.001 | CE91: 0.001 | CF91: 0.0011 | CG91: 0.0012 | CH91: 0.0013 | CI91: 0.0014
A92: 109 | B92: -0.0048 | C92: -0.0042 | D92: -0.0036 | E92: -0.003 | F92: -0.0023 | G92: -0.0017 | H92: -0.0011 | I92: -0.0005 | J92: 0.0001 | K92: 0.0008 | L92: 0.0014 | M92: 0.002 | N92: 0.0025 | O92: 0.0031 | P92: 0.0036 | Q92: 0.004 | R92: 0.0044 | S92: 0.0047 | T92: 0.0049 | U92: 0.0051 | V92: 0.0051 | W92: 0.0051 | X92: 0.0049 | Y92: 0.0047 | Z92: 0.0045 | AA92: 0.0042 | AB92: 0.0038 | AC92: 0.0034 | AD92: 0.003 | AE92: 0.0026 | AF92: 0.0022 | AG92: 0.0018 | AH92: 0.0014 | AI92: 0.001 | AJ92: 0.0006 | AK92: 0.0003 | AL92: 0 | AM92: -0.0003 | AN92: -0.0006 | AO92: -0.0009 | AP92: -0.0012 | AQ92: -0.0015 | AR92: -0.0018 | AS92: -0.0021 | AT92: -0.0023 | AU92: -0.0024 | AV92: -0.0023 | AW92: -0.0022 | AX92: -0.0019 | AY92: -0.0015 | AZ92: -0.001 | BA92: -0.0004 | BB92: 0.0001 | BC92: 0.0007 | BD92: 0.0012 | BE92: 0.0016 | BF92: 0.0019 | BG92: 0.0021 | BH92: 0.0021 | BI92: 0.0021 | BJ92: 0.002 | BK92: 0.0018 | BL92: 0.0016 | BM92: 0.0014 | BN92: 0.0011 | BO92: 0.0008 | BP92: 0.0009 | BQ92: 0.001 | BR92: 0.001 | BS92: 0.0011 | BT92: 0.0011 | BU92: 0.0011 | BV92: 0.0012 | BW92: 0.0012 | BX92: 0.0012 | BY92: 0.0012 | BZ92: 0.0011 | CA92: 0.001 | CB92: 0.001 | CC92: 0.0009 | CD92: 0.0009 | CE92: 0.0009 | CF92: 0.0009 | CG92: 0.001 | CH92: 0.0011 | CI92: 0.0012
A93: 110 | B93: -0.004 | C93: -0.0035 | D93: -0.003 | E93: -0.0025 | F93: -0.002 | G93: -0.0014 | H93: -0.0009 | I93: -0.0004 | J93: 0.0001 | K93: 0.0006 | L93: 0.0011 | M93: 0.0016 | N93: 0.0021 | O93: 0.0026 | P93: 0.003 | Q93: 0.0034 | R93: 0.0037 | S93: 0.0039 | T93: 0.0041 | U93: 0.0042 | V93: 0.0043 | W93: 0.0042 | X93: 0.0041 | Y93: 0.004 | Z93: 0.0037 | AA93: 0.0035 | AB93: 0.0032 | AC93: 0.0028 | AD93: 0.0025 | AE93: 0.0022 | AF93: 0.0018 | AG93: 0.0015 | AH93: 0.0011 | AI93: 0.0008 | AJ93: 0.0005 | AK93: 0.0003 | AL93: 0 | AM93: -0.0002 | AN93: -0.0005 | AO93: -0.0007 | AP93: -0.001 | AQ93: -0.0013 | AR93: -0.0015 | AS93: -0.0017 | AT93: -0.0019 | AU93: -0.002 | AV93: -0.0019 | AW93: -0.0018 | AX93: -0.0016 | AY93: -0.0012 | AZ93: -0.0008 | BA93: -0.0003 | BB93: 0.0001 | BC93: 0.0006 | BD93: 0.001 | BE93: 0.0013 | BF93: 0.0016 | BG93: 0.0017 | BH93: 0.0018 | BI93: 0.0018 | BJ93: 0.0017 | BK93: 0.0015 | BL93: 0.0013 | BM93: 0.0011 | BN93: 0.0009 | BO93: 0.0007 | BP93: 0.0008 | BQ93: 0.0008 | BR93: 0.0009 | BS93: 0.0009 | BT93: 0.0009 | BU93: 0.001 | BV93: 0.001 | BW93: 0.001 | BX93: 0.001 | BY93: 0.001 | BZ93: 0.001 | CA93: 0.0009 | CB93: 0.0009 | CC93: 0.0008 | CD93: 0.0007 | CE93: 0.0007 | CF93: 0.0007 | CG93: 0.0008 | CH93: 0.0009 | CI93: 0.001
A94: 111 | B94: -0.0032 | C94: -0.0028 | D94: -0.0024 | E94: -0.002 | F94: -0.0016 | G94: -0.0011 | H94: -0.0007 | I94: -0.0003 | J94: 0.0001 | K94: 0.0005 | L94: 0.0009 | M94: 0.0013 | N94: 0.0017 | O94: 0.0021 | P94: 0.0024 | Q94: 0.0027 | R94: 0.0029 | S94: 0.0031 | T94: 0.0033 | U94: 0.0034 | V94: 0.0034 | W94: 0.0034 | X94: 0.0033 | Y94: 0.0032 | Z94: 0.003 | AA94: 0.0028 | AB94: 0.0025 | AC94: 0.0023 | AD94: 0.002 | AE94: 0.0017 | AF94: 0.0015 | AG94: 0.0012 | AH94: 0.0009 | AI94: 0.0007 | AJ94: 0.0004 | AK94: 0.0002 | AL94: 0 | AM94: -0.0002 | AN94: -0.0004 | AO94: -0.0006 | AP94: -0.0008 | AQ94: -0.001 | AR94: -0.0012 | AS94: -0.0014 | AT94: -0.0015 | AU94: -0.0016 | AV94: -0.0015 | AW94: -0.0014 | AX94: -0.0012 | AY94: -0.001 | AZ94: -0.0006 | BA94: -0.0003 | BB94: 0.0001 | BC94: 0.0005 | BD94: 0.0008 | BE94: 0.0011 | BF94: 0.0013 | BG94: 0.0014 | BH94: 0.0014 | BI94: 0.0014 | BJ94: 0.0013 | BK94: 0.0012 | BL94: 0.0011 | BM94: 0.0009 | BN94: 0.0007 | BO94: 0.0006 | BP94: 0.0006 | BQ94: 0.0007 | BR94: 0.0007 | BS94: 0.0008 | BT94: 0.0008 | BU94: 0.0008 | BV94: 0.0008 | BW94: 0.0008 | BX94: 0.0009 | BY94: 0.0009 | BZ94: 0.0008 | CA94: 0.0008 | CB94: 0.0007 | CC94: 0.0007 | CD94: 0.0006 | CE94: 0.0005 | CF94: 0.0006 | CG94: 0.0006 | CH94: 0.0007 | CI94: 0.0008
A95: 112 | B95: -0.0024 | C95: -0.0021 | D95: -0.0018 | E95: -0.0015 | F95: -0.0012 | G95: -0.0009 | H95: -0.0006 | I95: -0.0002 | J95: 0.0001 | K95: 0.0004 | L95: 0.0007 | M95: 0.001 | N95: 0.0013 | O95: 0.0015 | P95: 0.0018 | Q95: 0.002 | R95: 0.0022 | S95: 0.0024 | T95: 0.0025 | U95: 0.0025 | V95: 0.0026 | W95: 0.0025 | X95: 0.0025 | Y95: 0.0024 | Z95: 0.0022 | AA95: 0.0021 | AB95: 0.0019 | AC95: 0.0017 | AD95: 0.0015 | AE95: 0.0013 | AF95: 0.0011 | AG95: 0.0009 | AH95: 0.0007 | AI95: 0.0005 | AJ95: 0.0003 | AK95: 0.0002 | AL95: 0 | AM95: -0.0001 | AN95: -0.0003 | AO95: -0.0004 | AP95: -0.0006 | AQ95: -0.0008 | AR95: -0.0009 | AS95: -0.001 | AT95: -0.0011 | AU95: -0.0012 | AV95: -0.0012 | AW95: -0.0011 | AX95: -0.0009 | AY95: -0.0007 | AZ95: -0.0005 | BA95: -0.0002 | BB95: 0.0001 | BC95: 0.0003 | BD95: 0.0006 | BE95: 0.0008 | BF95: 0.0009 | BG95: 0.001 | BH95: 0.0011 | BI95: 0.0011 | BJ95: 0.001 | BK95: 0.0009 | BL95: 0.0008 | BM95: 0.0007 | BN95: 0.0006 | BO95: 0.0004 | BP95: 0.0005 | BQ95: 0.0005 | BR95: 0.0006 | BS95: 0.0006 | BT95: 0.0006 | BU95: 0.0007 | BV95: 0.0007 | BW95: 0.0007 | BX95: 0.0007 | BY95: 0.0007 | BZ95: 0.0007 | CA95: 0.0007 | CB95: 0.0006 | CC95: 0.0006 | CD95: 0.0005 | CE95: 0.0004 | CF95: 0.0004 | CG95: 0.0004 | CH95: 0.0005 | CI95: 0.0006
A96: 113 | B96: -0.0016 | C96: -0.0014 | D96: -0.0012 | E96: -0.001 | F96: -0.0008 | G96: -0.0006 | H96: -0.0004 | I96: -0.0002 | J96: 0 | K96: 0.0003 | L96: 0.0005 | M96: 0.0007 | N96: 0.0008 | O96: 0.001 | P96: 0.0012 | Q96: 0.0013 | R96: 0.0015 | S96: 0.0016 | T96: 0.0016 | U96: 0.0017 | V96: 0.0017 | W96: 0.0017 | X96: 0.0016 | Y96: 0.0016 | Z96: 0.0015 | AA96: 0.0014 | AB96: 0.0013 | AC96: 0.0011 | AD96: 0.001 | AE96: 0.0009 | AF96: 0.0007 | AG96: 0.0006 | AH96: 0.0005 | AI96: 0.0003 | AJ96: 0.0002 | AK96: 0.0001 | AL96: 0 | AM96: -0.0001 | AN96: -0.0002 | AO96: -0.0003 | AP96: -0.0004 | AQ96: -0.0005 | AR96: -0.0006 | AS96: -0.0007 | AT96: -0.0008 | AU96: -0.0008 | AV96: -0.0008 | AW96: -0.0007 | AX96: -0.0006 | AY96: -0.0005 | AZ96: -0.0003 | BA96: -0.0001 | BB96: 0 | BC96: 0.0002 | BD96: 0.0004 | BE96: 0.0005 | BF96: 0.0006 | BG96: 0.0007 | BH96: 0.0007 | BI96: 0.0007 | BJ96: 0.0007 | BK96: 0.0006 | BL96: 0.0005 | BM96: 0.0005 | BN96: 0.0004 | BO96: 0.0003 | BP96: 0.0003 | BQ96: 0.0004 | BR96: 0.0004 | BS96: 0.0005 | BT96: 0.0005 | BU96: 0.0005 | BV96: 0.0005 | BW96: 0.0005 | BX96: 0.0005 | BY96: 0.0005 | BZ96: 0.0005 | CA96: 0.0005 | CB96: 0.0005 | CC96: 0.0004 | CD96: 0.0004 | CE96: 0.0003 | CF96: 0.0003 | CG96: 0.0002 | CH96: 0.0003 | CI96: 0.0004
A97: 114 | B97: -0.0008 | C97: -0.0007 | D97: -0.0006 | E97: -0.0005 | F97: -0.0004 | G97: -0.0003 | H97: -0.0002 | I97: -0.0001 | J97: 0 | K97: 0.0001 | L97: 0.0002 | M97: 0.0003 | N97: 0.0004 | O97: 0.0005 | P97: 0.0006 | Q97: 0.0007 | R97: 0.0007 | S97: 0.0008 | T97: 0.0008 | U97: 0.0008 | V97: 0.0009 | W97: 0.0008 | X97: 0.0008 | Y97: 0.0008 | Z97: 0.0007 | AA97: 0.0007 | AB97: 0.0006 | AC97: 0.0006 | AD97: 0.0005 | AE97: 0.0004 | AF97: 0.0004 | AG97: 0.0003 | AH97: 0.0002 | AI97: 0.0002 | AJ97: 0.0001 | AK97: 0.0001 | AL97: 0 | AM97: 0 | AN97: -0.0001 | AO97: -0.0001 | AP97: -0.0002 | AQ97: -0.0003 | AR97: -0.0003 | AS97: -0.0003 | AT97: -0.0004 | AU97: -0.0004 | AV97: -0.0004 | AW97: -0.0004 | AX97: -0.0003 | AY97: -0.0002 | AZ97: -0.0002 | BA97: -0.0001 | BB97: 0 | BC97: 0.0001 | BD97: 0.0002 | BE97: 0.0003 | BF97: 0.0003 | BG97: 0.0003 | BH97: 0.0004 | BI97: 0.0004 | BJ97: 0.0003 | BK97: 0.0003 | BL97: 0.0003 | BM97: 0.0002 | BN97: 0.0002 | BO97: 0.0001 | BP97: 0.0002 | BQ97: 0.0003 | BR97: 0.0003 | BS97: 0.0003 | BT97: 0.0003 | BU97: 0.0003 | BV97: 0.0003 | BW97: 0.0003 | BX97: 0.0003 | BY97: 0.0003 | BZ97: 0.0003 | CA97: 0.0003 | CB97: 0.0003 | CC97: 0.0003 | CD97: 0.0003 | CE97: 0.0002 | CF97: 0.0002 | CG97: 0.0001 | CH97: 0.0001 | CI97: 0.0002
A98: 115 | B98: 0 | C98: 0 | D98: 0 | E98: 0 | F98: 0 | G98: 0 | H98: 0 | I98: 0 | J98: 0 | K98: 0 | L98: 0 | M98: 0 | N98: 0 | O98: 0 | P98: 0 | Q98: 0 | R98: 0 | S98: 0 | T98: 0 | U98: 0 | V98: 0 | W98: 0 | X98: 0 | Y98: 0 | Z98: 0 | AA98: 0 | AB98: 0 | AC98: 0 | AD98: 0 | AE98: 0 | AF98: 0 | AG98: 0 | AH98: 0 | AI98: 0 | AJ98: 0 | AK98: 0 | AL98: 0 | AM98: 0 | AN98: 0 | AO98: 0 | AP98: 0 | AQ98: 0 | AR98: 0 | AS98: 0 | AT98: 0 | AU98: 0 | AV98: 0 | AW98: 0 | AX98: 0 | AY98: 0 | AZ98: 0 | BA98: 0 | BB98: 0 | BC98: 0 | BD98: 0 | BE98: 0 | BF98: 0 | BG98: 0 | BH98: 0 | BI98: 0 | BJ98: 0 | BK98: 0 | BL98: 0 | BM98: 0 | BN98: 0 | BO98: 0 | BP98: 0.0001 | BQ98: 0.0001 | BR98: 0.0001 | BS98: 0.0002 | BT98: 0.0002 | BU98: 0.0002 | BV98: 0.0002 | BW98: 0.0002 | BX98: 0.0002 | BY98: 0.0002 | BZ98: 0.0002 | CA98: 0.0002 | CB98: 0.0002 | CC98: 0.0002 | CD98: 0.0002 | CE98: 0.0001 | CF98: 0.0001 | CG98: 0 | CH98: 0 | CI98: 0
A99: 116 | B99: 0 | C99: 0 | D99: 0 | E99: 0 | F99: 0 | G99: 0 | H99: 0 | I99: 0 | J99: 0 | K99: 0 | L99: 0 | M99: 0 | N99: 0 | O99: 0 | P99: 0 | Q99: 0 | R99: 0 | S99: 0 | T99: 0 | U99: 0 | V99: 0 | W99: 0 | X99: 0 | Y99: 0 | Z99: 0 | AA99: 0 | AB99: 0 | AC99: 0 | AD99: 0 | AE99: 0 | AF99: 0 | AG99: 0 | AH99: 0 | AI99: 0 | AJ99: 0 | AK99: 0 | AL99: 0 | AM99: 0 | AN99: 0 | AO99: 0 | AP99: 0 | AQ99: 0 | AR99: 0 | AS99: 0 | AT99: 0 | AU99: 0 | AV99: 0 | AW99: 0 | AX99: 0 | AY99: 0 | AZ99: 0 | BA99: 0 | BB99: 0 | BC99: 0 | BD99: 0 | BE99: 0 | BF99: 0 | BG99: 0 | BH99: 0 | BI99: 0 | BJ99: 0 | BK99: 0 | BL99: 0 | BM99: 0 | BN99: 0 | BO99: 0 | BP99: 0 | BQ99: 0.0001 | BR99: 0.0001 | BS99: 0.0001 | BT99: 0.0001 | BU99: 0.0001 | BV99: 0.0001 | BW99: 0.0001 | BX99: 0.0001 | BY99: 0.0001 | BZ99: 0.0001 | CA99: 0.0001 | CB99: 0.0001 | CC99: 0.0001 | CD99: 0.0001 | CE99: 0.0001 | CF99: 0.0001 | CG99: 0 | CH99: 0 | CI99: 0
A100: 117 | B100: 0 | C100: 0 | D100: 0 | E100: 0 | F100: 0 | G100: 0 | H100: 0 | I100: 0 | J100: 0 | K100: 0 | L100: 0 | M100: 0 | N100: 0 | O100: 0 | P100: 0 | Q100: 0 | R100: 0 | S100: 0 | T100: 0 | U100: 0 | V100: 0 | W100: 0 | X100: 0 | Y100: 0 | Z100: 0 | AA100: 0 | AB100: 0 | AC100: 0 | AD100: 0 | AE100: 0 | AF100: 0 | AG100: 0 | AH100: 0 | AI100: 0 | AJ100: 0 | AK100: 0 | AL100: 0 | AM100: 0 | AN100: 0 | AO100: 0 | AP100: 0 | AQ100: 0 | AR100: 0 | AS100: 0 | AT100: 0 | AU100: 0 | AV100: 0 | AW100: 0 | AX100: 0 | AY100: 0 | AZ100: 0 | BA100: 0 | BB100: 0 | BC100: 0 | BD100: 0 | BE100: 0 | BF100: 0 | BG100: 0 | BH100: 0 | BI100: 0 | BJ100: 0 | BK100: 0 | BL100: 0 | BM100: 0 | BN100: 0 | BO100: 0 | BP100: 0 | BQ100: 0 | BR100: 0 | BS100: 0.0001 | BT100: 0.0001 | BU100: 0.0001 | BV100: 0.0001 | BW100: 0.0001 | BX100: 0.0001 | BY100: 0.0001 | BZ100: 0.0001 | CA100: 0.0001 | CB100: 0.0001 | CC100: 0.0001 | CD100: 0.0001 | CE100: 0.0001 | CF100: 0.0001 | CG100: 0 | CH100: 0 | CI100: 0
A101: 118 | B101: 0 | C101: 0 | D101: 0 | E101: 0 | F101: 0 | G101: 0 | H101: 0 | I101: 0 | J101: 0 | K101: 0 | L101: 0 | M101: 0 | N101: 0 | O101: 0 | P101: 0 | Q101: 0 | R101: 0 | S101: 0 | T101: 0 | U101: 0 | V101: 0 | W101: 0 | X101: 0 | Y101: 0 | Z101: 0 | AA101: 0 | AB101: 0 | AC101: 0 | AD101: 0 | AE101: 0 | AF101: 0 | AG101: 0 | AH101: 0 | AI101: 0 | AJ101: 0 | AK101: 0 | AL101: 0 | AM101: 0 | AN101: 0 | AO101: 0 | AP101: 0 | AQ101: 0 | AR101: 0 | AS101: 0 | AT101: 0 | AU101: 0 | AV101: 0 | AW101: 0 | AX101: 0 | AY101: 0 | AZ101: 0 | BA101: 0 | BB101: 0 | BC101: 0 | BD101: 0 | BE101: 0 | BF101: 0 | BG101: 0 | BH101: 0 | BI101: 0 | BJ101: 0 | BK101: 0 | BL101: 0 | BM101: 0 | BN101: 0 | BO101: 0 | BP101: 0 | BQ101: 0 | BR101: 0 | BS101: 0 | BT101: 0 | BU101: 0 | BV101: 0 | BW101: 0 | BX101: 0 | BY101: 0 | BZ101: 0 | CA101: 0 | CB101: 0 | CC101: 0 | CD101: 0 | CE101: 0 | CF101: 0 | CG101: 0 | CH101: 0 | CI101: 0
A102: 119 | B102: 0 | C102: 0 | D102: 0 | E102: 0 | F102: 0 | G102: 0 | H102: 0 | I102: 0 | J102: 0 | K102: 0 | L102: 0 | M102: 0 | N102: 0 | O102: 0 | P102: 0 | Q102: 0 | R102: 0 | S102: 0 | T102: 0 | U102: 0 | V102: 0 | W102: 0 | X102: 0 | Y102: 0 | Z102: 0 | AA102: 0 | AB102: 0 | AC102: 0 | AD102: 0 | AE102: 0 | AF102: 0 | AG102: 0 | AH102: 0 | AI102: 0 | AJ102: 0 | AK102: 0 | AL102: 0 | AM102: 0 | AN102: 0 | AO102: 0 | AP102: 0 | AQ102: 0 | AR102: 0 | AS102: 0 | AT102: 0 | AU102: 0 | AV102: 0 | AW102: 0 | AX102: 0 | AY102: 0 | AZ102: 0 | BA102: 0 | BB102: 0 | BC102: 0 | BD102: 0 | BE102: 0 | BF102: 0 | BG102: 0 | BH102: 0 | BI102: 0 | BJ102: 0 | BK102: 0 | BL102: 0 | BM102: 0 | BN102: 0 | BO102: 0 | BP102: 0 | BQ102: 0 | BR102: 0 | BS102: 0 | BT102: 0 | BU102: 0 | BV102: 0 | BW102: 0 | BX102: 0 | BY102: 0 | BZ102: 0 | CA102: 0 | CB102: 0 | CC102: 0 | CD102: 0 | CE102: 0 | CF102: 0 | CG102: 0 | CH102: 0 | CI102: 0
A103: 120 | B103: 0 | C103: 0 | D103: 0 | E103: 0 | F103: 0 | G103: 0 | H103: 0 | I103: 0 | J103: 0 | K103: 0 | L103: 0 | M103: 0 | N103: 0 | O103: 0 | P103: 0 | Q103: 0 | R103: 0 | S103: 0 | T103: 0 | U103: 0 | V103: 0 | W103: 0 | X103: 0 | Y103: 0 | Z103: 0 | AA103: 0 | AB103: 0 | AC103: 0 | AD103: 0 | AE103: 0 | AF103: 0 | AG103: 0 | AH103: 0 | AI103: 0 | AJ103: 0 | AK103: 0 | AL103: 0 | AM103: 0 | AN103: 0 | AO103: 0 | AP103: 0 | AQ103: 0 | AR103: 0 | AS103: 0 | AT103: 0 | AU103: 0 | AV103: 0 | AW103: 0 | AX103: 0 | AY103: 0 | AZ103: 0 | BA103: 0 | BB103: 0 | BC103: 0 | BD103: 0 | BE103: 0 | BF103: 0 | BG103: 0 | BH103: 0 | BI103: 0 | BJ103: 0 | BK103: 0 | BL103: 0 | BM103: 0 | BN103: 0 | BO103: 0 | BP103: 0 | BQ103: 0 | BR103: 0 | BS103: 0 | BT103: 0 | BU103: 0 | BV103: 0 | BW103: 0 | BX103: 0 | BY103: 0 | BZ103: 0 | CA103: 0 | CB103: 0 | CC103: 0 | CD103: 0 | CE103: 0 | CF103: 0 | CG103: 0 | CH103: 0 | CI103: 0

Sheet Male - Rev (hidden)
B1: MP-2019 - Male
C2: 1951 | L2: 1960 | V2: 1970 | AF2: 1980 | AP2: 1990 | AZ2: 2000 | BJ2: 2010 | BT2: 2020 | CD2: 2030
A3: 95 | B3: 95 | C3: =OFFSET(Male!B$18,'Male - Rev'!$A3-35,0) -> -0.0193 | D3: =OFFSET(Male!C$18,'Male - Rev'!$A3-35,0) -> -0.0178 | E3: =OFFSET(Male!D$18,'Male - Rev'!$A3-35,0) -> -0.0164 | F3: =OFFSET(Male!E$18,'Male - Rev'!$A3-35,0) -> -0.015 | G3: =OFFSET(Male!F$18,'Male - Rev'!$A3-35,0) -> -0.0136 | H3: =OFFSET(Male!G$18,'Male - Rev'!$A3-35,0) -> -0.0121 | I3: =OFFSET(Male!H$18,'Male - Rev'!$A3-35,0) -> -0.0105 | J3: =OFFSET(Male!I$18,'Male - Rev'!$A3-35,0) -> -0.009 | K3: =OFFSET(Male!J$18,'Male - Rev'!$A3-35,0) -> -0.0073 | L3: =OFFSET(Male!K$18,'Male - Rev'!$A3-35,0) -> -0.0056 | M3: =OFFSET(Male!L$18,'Male - Rev'!$A3-35,0) -> -0.0038 | N3: =OFFSET(Male!M$18,'Male - Rev'!$A3-35,0) -> -0.002 | O3: =OFFSET(Male!N$18,'Male - Rev'!$A3-35,0) -> -0.0001 | P3: =OFFSET(Male!O$18,'Male - Rev'!$A3-35,0) -> 0.0018 | Q3: =OFFSET(Male!P$18,'Male - Rev'!$A3-35,0) -> 0.0036 | R3: =OFFSET(Male!Q$18,'Male - Rev'!$A3-35,0) -> 0.0054 | S3: =OFFSET(Male!R$18,'Male - Rev'!$A3-35,0) -> 0.0071 | T3: =OFFSET(Male!S$18,'Male - Rev'!$A3-35,0) -> 0.0086 | U3: =OFFSET(Male!T$18,'Male - Rev'!$A3-35,0) -> 0.01 | V3: =OFFSET(Male!U$18,'Male - Rev'!$A3-35,0) -> 0.0111 | W3: =OFFSET(Male!V$18,'Male - Rev'!$A3-35,0) -> 0.0121 | X3: =OFFSET(Male!W$18,'Male - Rev'!$A3-35,0) -> 0.0127 | Y3: =OFFSET(Male!X$18,'Male - Rev'!$A3-35,0) -> 0.0131 | Z3: =OFFSET(Male!Y$18,'Male - Rev'!$A3-35,0) -> 0.0132 | AA3: =OFFSET(Male!Z$18,'Male - Rev'!$A3-35,0) -> 0.0131 | AB3: =OFFSET(Male!AA$18,'Male - Rev'!$A3-35,0) -> 0.0126 | AC3: =OFFSET(Male!AB$18,'Male - Rev'!$A3-35,0) -> 0.0119 | AD3: =OFFSET(Male!AC$18,'Male - Rev'!$A3-35,0) -> 0.0109 | AE3: =OFFSET(Male!AD$18,'Male - Rev'!$A3-35,0) -> 0.0097 | AF3: =OFFSET(Male!AE$18,'Male - Rev'!$A3-35,0) -> 0.0083 | AG3: =OFFSET(Male!AF$18,'Male - Rev'!$A3-35,0) -> 0.0067 | AH3: =OFFSET(Male!AG$18,'Male - Rev'!$A3-35,0) -> 0.0049 | AI3: =OFFSET(Male!AH$18,'Male - Rev'!$A3-35,0) -> 0.0031 | AJ3: =OFFSET(Male!AI$18,'Male - Rev'!$A3-35,0) -> 0.0013 | AK3: =OFFSET(Male!AJ$18,'Male - Rev'!$A3-35,0) -> -0.0006 | AL3: =OFFSET(Male!AK$18,'Male - Rev'!$A3-35,0) -> -0.0023 | AM3: =OFFSET(Male!AL$18,'Male - Rev'!$A3-35,0) -> -0.004 | AN3: =OFFSET(Male!AM$18,'Male - Rev'!$A3-35,0) -> -0.0054 | AO3: =OFFSET(Male!AN$18,'Male - Rev'!$A3-35,0) -> -0.0067 | AP3: =OFFSET(Male!AO$18,'Male - Rev'!$A3-35,0) -> -0.0078 | AQ3: =OFFSET(Male!AP$18,'Male - Rev'!$A3-35,0) -> -0.0086 | AR3: =OFFSET(Male!AQ$18,'Male - Rev'!$A3-35,0) -> -0.0092 | AS3: =OFFSET(Male!AR$18,'Male - Rev'!$A3-35,0) -> -0.0095 | AT3: =OFFSET(Male!AS$18,'Male - Rev'!$A3-35,0) -> -0.0094 | AU3: =OFFSET(Male!AT$18,'Male - Rev'!$A3-35,0) -> -0.0091 | AV3: =OFFSET(Male!AU$18,'Male - Rev'!$A3-35,0) -> -0.0085 | AW3: =OFFSET(Male!AV$18,'Male - Rev'!$A3-35,0) -> -0.0076 | AX3: =OFFSET(Male!AW$18,'Male - Rev'!$A3-35,0) -> -0.0065 | AY3: =OFFSET(Male!AX$18,'Male - Rev'!$A3-35,0) -> -0.0052 | AZ3: =OFFSET(Male!AY$18,'Male - Rev'!$A3-35,0) -> -0.0037 | BA3: =OFFSET(Male!AZ$18,'Male - Rev'!$A3-35,0) -> -0.0022 | BB3: =OFFSET(Male!BA$18,'Male - Rev'!$A3-35,0) -> -0.0005 | BC3: =OFFSET(Male!BB$18,'Male - Rev'!$A3-35,0) -> 0.001 | BD3: =OFFSET(Male!BC$18,'Male - Rev'!$A3-35,0) -> 0.0025 | BE3: =OFFSET(Male!BD$18,'Male - Rev'!$A3-35,0) -> 0.0039 | BF3: =OFFSET(Male!BE$18,'Male - Rev'!$A3-35,0) -> 0.005 | BG3: =OFFSET(Male!BF$18,'Male - Rev'!$A3-35,0) -> 0.0059 | BH3: =OFFSET(Male!BG$18,'Male - Rev'!$A3-35,0) -> 0.0066 | BI3: =OFFSET(Male!BH$18,'Male - Rev'!$A3-35,0) -> 0.007 | BJ3: =OFFSET(Male!BI$18,'Male - Rev'!$A3-35,0) -> 0.0071 | BK3: =OFFSET(Male!BJ$18,'Male - Rev'!$A3-35,0) -> 0.007 | BL3: =OFFSET(Male!BK$18,'Male - Rev'!$A3-35,0) -> 0.0068 | BM3: =OFFSET(Male!BL$18,'Male - Rev'!$A3-35,0) -> 0.0064 | BN3: =OFFSET(Male!BM$18,'Male - Rev'!$A3-35,0) -> 0.0059 | BO3: =OFFSET(Male!BN$18,'Male - Rev'!$A3-35,0) -> 0.0054 | BP3: =OFFSET(Male!BO$18,'Male - Rev'!$A3-35,0) -> 0.0048 | BQ3: =OFFSET(Male!BP$18,'Male - Rev'!$A3-35,0) -> 0.0045 | BR3: =OFFSET(Male!BQ$18,'Male - Rev'!$A3-35,0) -> 0.0042 | BS3: =OFFSET(Male!BR$18,'Male - Rev'!$A3-35,0) -> 0.0039 | BT3: =OFFSET(Male!BS$18,'Male - Rev'!$A3-35,0) -> 0.0037 | BU3: =OFFSET(Male!BT$18,'Male - Rev'!$A3-35,0) -> 0.0035 | BV3: =OFFSET(Male!BU$18,'Male - Rev'!$A3-35,0) -> 0.0034 | BW3: =OFFSET(Male!BV$18,'Male - Rev'!$A3-35,0) -> 0.0034 | BX3: =OFFSET(Male!BW$18,'Male - Rev'!$A3-35,0) -> 0.0034 | BY3: =OFFSET(Male!BX$18,'Male - Rev'!$A3-35,0) -> 0.0034 | BZ3: =OFFSET(Male!BY$18,'Male - Rev'!$A3-35,0) -> 0.0035 | CA3: =OFFSET(Male!BZ$18,'Male - Rev'!$A3-35,0) -> 0.0035 | CB3: =OFFSET(Male!CA$18,'Male - Rev'!$A3-35,0) -> 0.0036 | CC3: =OFFSET(Male!CB$18,'Male - Rev'!$A3-35,0) -> 0.0036 | CD3: =OFFSET(Male!CC$18,'Male - Rev'!$A3-35,0) -> 0.0037 | CE3: =OFFSET(Male!CD$18,'Male - Rev'!$A3-35,0) -> 0.0037 | CF3: =OFFSET(Male!CE$18,'Male - Rev'!$A3-35,0) -> 0.0037 | CG3: =OFFSET(Male!CF$18,'Male - Rev'!$A3-35,0) -> 0.0038 | CH3: =OFFSET(Male!CG$18,'Male - Rev'!$A3-35,0) -> 0.0038 | CI3: =OFFSET(Male!CH$18,'Male - Rev'!$A3-35,0) -> 0.0039 | CJ3: =OFFSET(Male!CI$18,'Male - Rev'!$A3-35,0) -> 0.004 | CK3: =CJ3 -> 0.004 | CL3: =CK3 -> 0.004
A4: =A3-1 -> 94 | B4: =B3-1 -> 94 | C4: =OFFSET(Male!B$18,'Male - Rev'!$A4-35,0) -> -0.016 | D4: =OFFSET(Male!C$18,'Male - Rev'!$A4-35,0) -> -0.015 | E4: =OFFSET(Male!D$18,'Male - Rev'!$A4-35,0) -> -0.0141 | F4: =OFFSET(Male!E$18,'Male - Rev'!$A4-35,0) -> -0.0131 | G4: =OFFSET(Male!F$18,'Male - Rev'!$A4-35,0) -> -0.0121 | H4: =OFFSET(Male!G$18,'Male - Rev'!$A4-35,0) -> -0.011 | I4: =OFFSET(Male!H$18,'Male - Rev'!$A4-35,0) -> -0.0098 | J4: =OFFSET(Male!I$18,'Male - Rev'!$A4-35,0) -> -0.0085 | K4: =OFFSET(Male!J$18,'Male - Rev'!$A4-35,0) -> -0.0071 | L4: =OFFSET(Male!K$18,'Male - Rev'!$A4-35,0) -> -0.0056 | M4: =OFFSET(Male!L$18,'Male - Rev'!$A4-35,0) -> -0.004 | N4: =OFFSET(Male!M$18,'Male - Rev'!$A4-35,0) -> -0.0022 | O4: =OFFSET(Male!N$18,'Male - Rev'!$A4-35,0) -> -0.0003 | P4: =OFFSET(Male!O$18,'Male - Rev'!$A4-35,0) -> 0.0015 | Q4: =OFFSET(Male!P$18,'Male - Rev'!$A4-35,0) -> 0.0034 | R4: =OFFSET(Male!Q$18,'Male - Rev'!$A4-35,0) -> 0.0053 | S4: =OFFSET(Male!R$18,'Male - Rev'!$A4-35,0) -> 0.007 | T4: =OFFSET(Male!S$18,'Male - Rev'!$A4-35,0) -> 0.0087 | U4: =OFFSET(Male!T$18,'Male - Rev'!$A4-35,0) -> 0.0101 | V4: =OFFSET(Male!U$18,'Male - Rev'!$A4-35,0) -> 0.0113 | W4: =OFFSET(Male!V$18,'Male - Rev'!$A4-35,0) -> 0.0123 | X4: =OFFSET(Male!W$18,'Male - Rev'!$A4-35,0) -> 0.0129 | Y4: =OFFSET(Male!X$18,'Male - Rev'!$A4-35,0) -> 0.0133 | Z4: =OFFSET(Male!Y$18,'Male - Rev'!$A4-35,0) -> 0.0134 | AA4: =OFFSET(Male!Z$18,'Male - Rev'!$A4-35,0) -> 0.0133 | AB4: =OFFSET(Male!AA$18,'Male - Rev'!$A4-35,0) -> 0.0128 | AC4: =OFFSET(Male!AB$18,'Male - Rev'!$A4-35,0) -> 0.0121 | AD4: =OFFSET(Male!AC$18,'Male - Rev'!$A4-35,0) -> 0.0111 | AE4: =OFFSET(Male!AD$18,'Male - Rev'!$A4-35,0) -> 0.0098 | AF4: =OFFSET(Male!AE$18,'Male - Rev'!$A4-35,0) -> 0.0084 | AG4: =OFFSET(Male!AF$18,'Male - Rev'!$A4-35,0) -> 0.0068 | AH4: =OFFSET(Male!AG$18,'Male - Rev'!$A4-35,0) -> 0.0051 | AI4: =OFFSET(Male!AH$18,'Male - Rev'!$A4-35,0) -> 0.0033 | AJ4: =OFFSET(Male!AI$18,'Male - Rev'!$A4-35,0) -> 0.0015 | AK4: =OFFSET(Male!AJ$18,'Male - Rev'!$A4-35,0) -> -0.0003 | AL4: =OFFSET(Male!AK$18,'Male - Rev'!$A4-35,0) -> -0.002 | AM4: =OFFSET(Male!AL$18,'Male - Rev'!$A4-35,0) -> -0.0036 | AN4: =OFFSET(Male!AM$18,'Male - Rev'!$A4-35,0) -> -0.005 | AO4: =OFFSET(Male!AN$18,'Male - Rev'!$A4-35,0) -> -0.0062 | AP4: =OFFSET(Male!AO$18,'Male - Rev'!$A4-35,0) -> -0.0072 | AQ4: =OFFSET(Male!AP$18,'Male - Rev'!$A4-35,0) -> -0.0079 | AR4: =OFFSET(Male!AQ$18,'Male - Rev'!$A4-35,0) -> -0.0084 | AS4: =OFFSET(Male!AR$18,'Male - Rev'!$A4-35,0) -> -0.0086 | AT4: =OFFSET(Male!AS$18,'Male - Rev'!$A4-35,0) -> -0.0084 | AU4: =OFFSET(Male!AT$18,'Male - Rev'!$A4-35,0) -> -0.008 | AV4: =OFFSET(Male!AU$18,'Male - Rev'!$A4-35,0) -> -0.0072 | AW4: =OFFSET(Male!AV$18,'Male - Rev'!$A4-35,0) -> -0.0062 | AX4: =OFFSET(Male!AW$18,'Male - Rev'!$A4-35,0) -> -0.005 | AY4: =OFFSET(Male!AX$18,'Male - Rev'!$A4-35,0) -> -0.0036 | AZ4: =OFFSET(Male!AY$18,'Male - Rev'!$A4-35,0) -> -0.002 | BA4: =OFFSET(Male!AZ$18,'Male - Rev'!$A4-35,0) -> -0.0003 | BB4: =OFFSET(Male!BA$18,'Male - Rev'!$A4-35,0) -> 0.0014 | BC4: =OFFSET(Male!BB$18,'Male - Rev'!$A4-35,0) -> 0.003 | BD4: =OFFSET(Male!BC$18,'Male - Rev'!$A4-35,0) -> 0.0044 | BE4: =OFFSET(Male!BD$18,'Male - Rev'!$A4-35,0) -> 0.0057 | BF4: =OFFSET(Male!BE$18,'Male - Rev'!$A4-35,0) -> 0.0067 | BG4: =OFFSET(Male!BF$18,'Male - Rev'!$A4-35,0) -> 0.0075 | BH4: =OFFSET(Male!BG$18,'Male - Rev'!$A4-35,0) -> 0.0079 | BI4: =OFFSET(Male!BH$18,'Male - Rev'!$A4-35,0) -> 0.008 | BJ4: =OFFSET(Male!BI$18,'Male - Rev'!$A4-35,0) -> 0.0079 | BK4: =OFFSET(Male!BJ$18,'Male - Rev'!$A4-35,0) -> 0.0076 | BL4: =OFFSET(Male!BK$18,'Male - Rev'!$A4-35,0) -> 0.0071 | BM4: =OFFSET(Male!BL$18,'Male - Rev'!$A4-35,0) -> 0.0064 | BN4: =OFFSET(Male!BM$18,'Male - Rev'!$A4-35,0) -> 0.0057 | BO4: =OFFSET(Male!BN$18,'Male - Rev'!$A4-35,0) -> 0.005 | BP4: =OFFSET(Male!BO$18,'Male - Rev'!$A4-35,0) -> 0.0042 | BQ4: =OFFSET(Male!BP$18,'Male - Rev'!$A4-35,0) -> 0.0039 | BR4: =OFFSET(Male!BQ$18,'Male - Rev'!$A4-35,0) -> 0.0037 | BS4: =OFFSET(Male!BR$18,'Male - Rev'!$A4-35,0) -> 0.0036 | BT4: =OFFSET(Male!BS$18,'Male - Rev'!$A4-35,0) -> 0.0035 | BU4: =OFFSET(Male!BT$18,'Male - Rev'!$A4-35,0) -> 0.0035 | BV4: =OFFSET(Male!BU$18,'Male - Rev'!$A4-35,0) -> 0.0035 | BW4: =OFFSET(Male!BV$18,'Male - Rev'!$A4-35,0) -> 0.0036 | BX4: =OFFSET(Male!BW$18,'Male - Rev'!$A4-35,0) -> 0.0037 | BY4: =OFFSET(Male!BX$18,'Male - Rev'!$A4-35,0) -> 0.0038 | BZ4: =OFFSET(Male!BY$18,'Male - Rev'!$A4-35,0) -> 0.0038 | CA4: =OFFSET(Male!BZ$18,'Male - Rev'!$A4-35,0) -> 0.0039 | CB4: =OFFSET(Male!CA$18,'Male - Rev'!$A4-35,0) -> 0.0039 | CC4: =OFFSET(Male!CB$18,'Male - Rev'!$A4-35,0) -> 0.004 | CD4: =OFFSET(Male!CC$18,'Male - Rev'!$A4-35,0) -> 0.004 | CE4: =OFFSET(Male!CD$18,'Male - Rev'!$A4-35,0) -> 0.004 | CF4: =OFFSET(Male!CE$18,'Male - Rev'!$A4-35,0) -> 0.0041 | CG4: =OFFSET(Male!CF$18,'Male - Rev'!$A4-35,0) -> 0.0041 | CH4: =OFFSET(Male!CG$18,'Male - Rev'!$A4-35,0) -> 0.0042 | CI4: =OFFSET(Male!CH$18,'Male - Rev'!$A4-35,0) -> 0.0042 | CJ4: =OFFSET(Male!CI$18,'Male - Rev'!$A4-35,0) -> 0.0045 | CK4: =CJ4 -> 0.0045 | CL4: 0.0045
A5: =A4-1 -> 93 | B5: 93 | C5: =OFFSET(Male!B$18,'Male - Rev'!$A5-35,0) -> -0.0129 | D5: =OFFSET(Male!C$18,'Male - Rev'!$A5-35,0) -> -0.0123 | E5: =OFFSET(Male!D$18,'Male - Rev'!$A5-35,0) -> -0.0118 | F5: =OFFSET(Male!E$18,'Male - Rev'!$A5-35,0) -> -0.0112 | G5: =OFFSET(Male!F$18,'Male - Rev'!$A5-35,0) -> -0.0106 | H5: =OFFSET(Male!G$18,'Male - Rev'!$A5-35,0) -> -0.0099 | I5: =OFFSET(Male!H$18,'Male - Rev'!$A5-35,0) -> -0.0091 | J5: =OFFSET(Male!I$18,'Male - Rev'!$A5-35,0) -> -0.0081 | K5: =OFFSET(Male!J$18,'Male - Rev'!$A5-35,0) -> -0.0069 | L5: =OFFSET(Male!K$18,'Male - Rev'!$A5-35,0) -> -0.0056 | M5: =OFFSET(Male!L$18,'Male - Rev'!$A5-35,0) -> -0.004 | N5: =OFFSET(Male!M$18,'Male - Rev'!$A5-35,0) -> -0.0024 | O5: =OFFSET(Male!N$18,'Male - Rev'!$A5-35,0) -> -0.0005 | P5: =OFFSET(Male!O$18,'Male - Rev'!$A5-35,0) -> 0.0014 | Q5: =OFFSET(Male!P$18,'Male - Rev'!$A5-35,0) -> 0.0033 | R5: =OFFSET(Male!Q$18,'Male - Rev'!$A5-35,0) -> 0.0052 | S5: =OFFSET(Male!R$18,'Male - Rev'!$A5-35,0) -> 0.007 | T5: =OFFSET(Male!S$18,'Male - Rev'!$A5-35,0) -> 0.0087 | U5: =OFFSET(Male!T$18,'Male - Rev'!$A5-35,0) -> 0.0101 | V5: =OFFSET(Male!U$18,'Male - Rev'!$A5-35,0) -> 0.0114 | W5: =OFFSET(Male!V$18,'Male - Rev'!$A5-35,0) -> 0.0124 | X5: =OFFSET(Male!W$18,'Male - Rev'!$A5-35,0) -> 0.0131 | Y5: =OFFSET(Male!X$18,'Male - Rev'!$A5-35,0) -> 0.0135 | Z5: =OFFSET(Male!Y$18,'Male - Rev'!$A5-35,0) -> 0.0136 | AA5: =OFFSET(Male!Z$18,'Male - Rev'!$A5-35,0) -> 0.0134 | AB5: =OFFSET(Male!AA$18,'Male - Rev'!$A5-35,0) -> 0.013 | AC5: =OFFSET(Male!AB$18,'Male - Rev'!$A5-35,0) -> 0.0122 | AD5: =OFFSET(Male!AC$18,'Male - Rev'!$A5-35,0) -> 0.0112 | AE5: =OFFSET(Male!AD$18,'Male - Rev'!$A5-35,0) -> 0.01 | AF5: =OFFSET(Male!AE$18,'Male - Rev'!$A5-35,0) -> 0.0085 | AG5: =OFFSET(Male!AF$18,'Male - Rev'!$A5-35,0) -> 0.0069 | AH5: =OFFSET(Male!AG$18,'Male - Rev'!$A5-35,0) -> 0.0052 | AI5: =OFFSET(Male!AH$18,'Male - Rev'!$A5-35,0) -> 0.0034 | AJ5: =OFFSET(Male!AI$18,'Male - Rev'!$A5-35,0) -> 0.0016 | AK5: =OFFSET(Male!AJ$18,'Male - Rev'!$A5-35,0) -> -0.0001 | AL5: =OFFSET(Male!AK$18,'Male - Rev'!$A5-35,0) -> -0.0017 | AM5: =OFFSET(Male!AL$18,'Male - Rev'!$A5-35,0) -> -0.0032 | AN5: =OFFSET(Male!AM$18,'Male - Rev'!$A5-35,0) -> -0.0045 | AO5: =OFFSET(Male!AN$18,'Male - Rev'!$A5-35,0) -> -0.0056 | AP5: =OFFSET(Male!AO$18,'Male - Rev'!$A5-35,0) -> -0.0065 | AQ5: =OFFSET(Male!AP$18,'Male - Rev'!$A5-35,0) -> -0.0071 | AR5: =OFFSET(Male!AQ$18,'Male - Rev'!$A5-35,0) -> -0.0075 | AS5: =OFFSET(Male!AR$18,'Male - Rev'!$A5-35,0) -> -0.0076 | AT5: =OFFSET(Male!AS$18,'Male - Rev'!$A5-35,0) -> -0.0073 | AU5: =OFFSET(Male!AT$18,'Male - Rev'!$A5-35,0) -> -0.0068 | AV5: =OFFSET(Male!AU$18,'Male - Rev'!$A5-35,0) -> -0.006 | AW5: =OFFSET(Male!AV$18,'Male - Rev'!$A5-35,0) -> -0.0048 | AX5: =OFFSET(Male!AW$18,'Male - Rev'!$A5-35,0) -> -0.0035 | AY5: =OFFSET(Male!AX$18,'Male - Rev'!$A5-35,0) -> -0.0019 | AZ5: =OFFSET(Male!AY$18,'Male - Rev'!$A5-35,0) -> -0.0003 | BA5: =OFFSET(Male!AZ$18,'Male - Rev'!$A5-35,0) -> 0.0015 | BB5: =OFFSET(Male!BA$18,'Male - Rev'!$A5-35,0) -> 0.0032 | BC5: =OFFSET(Male!BB$18,'Male - Rev'!$A5-35,0) -> 0.0048 | BD5: =OFFSET(Male!BC$18,'Male - Rev'!$A5-35,0) -> 0.0063 | BE5: =OFFSET(Male!BD$18,'Male - Rev'!$A5-35,0) -> 0.0074 | BF5: =OFFSET(Male!BE$18,'Male - Rev'!$A5-35,0) -> 0.0083 | BG5: =OFFSET(Male!BF$18,'Male - Rev'!$A5-35,0) -> 0.0089 | BH5: =OFFSET(Male!BG$18,'Male - Rev'!$A5-35,0) -> 0.0091 | BI5: =OFFSET(Male!BH$18,'Male - Rev'!$A5-35,0) -> 0.009 | BJ5: =OFFSET(Male!BI$18,'Male - Rev'!$A5-35,0) -> 0.0087 | BK5: =OFFSET(Male!BJ$18,'Male - Rev'!$A5-35,0) -> 0.0081 | BL5: =OFFSET(Male!BK$18,'Male - Rev'!$A5-35,0) -> 0.0074 | BM5: =OFFSET(Male!BL$18,'Male - Rev'!$A5-35,0) -> 0.0065 | BN5: =OFFSET(Male!BM$18,'Male - Rev'!$A5-35,0) -> 0.0056 | BO5: =OFFSET(Male!BN$18,'Male - Rev'!$A5-35,0) -> 0.0046 | BP5: =OFFSET(Male!BO$18,'Male - Rev'!$A5-35,0) -> 0.0037 | BQ5: =OFFSET(Male!BP$18,'Male - Rev'!$A5-35,0) -> 0.0035 | BR5: =OFFSET(Male!BQ$18,'Male - Rev'!$A5-35,0) -> 0.0034 | BS5: =OFFSET(Male!BR$18,'Male - Rev'!$A5-35,0) -> 0.0034 | BT5: =OFFSET(Male!BS$18,'Male - Rev'!$A5-35,0) -> 0.0035 | BU5: =OFFSET(Male!BT$18,'Male - Rev'!$A5-35,0) -> 0.0036 | BV5: =OFFSET(Male!BU$18,'Male - Rev'!$A5-35,0) -> 0.0037 | BW5: =OFFSET(Male!BV$18,'Male - Rev'!$A5-35,0) -> 0.0039 | BX5: =OFFSET(Male!BW$18,'Male - Rev'!$A5-35,0) -> 0.004 | BY5: =OFFSET(Male!BX$18,'Male - Rev'!$A5-35,0) -> 0.0041 | BZ5: =OFFSET(Male!BY$18,'Male - Rev'!$A5-35,0) -> 0.0042 | CA5: =OFFSET(Male!BZ$18,'Male - Rev'!$A5-35,0) -> 0.0042 | CB5: =OFFSET(Male!CA$18,'Male - Rev'!$A5-35,0) -> 0.0043 | CC5: =OFFSET(Male!CB$18,'Male - Rev'!$A5-35,0) -> 0.0043 | CD5: =OFFSET(Male!CC$18,'Male - Rev'!$A5-35,0) -> 0.0044 | CE5: =OFFSET(Male!CD$18,'Male - Rev'!$A5-35,0) -> 0.0044 | CF5: =OFFSET(Male!CE$18,'Male - Rev'!$A5-35,0) -> 0.0044 | CG5: =OFFSET(Male!CF$18,'Male - Rev'!$A5-35,0) -> 0.0045 | CH5: =OFFSET(Male!CG$18,'Male - Rev'!$A5-35,0) -> 0.0045 | CI5: =OFFSET(Male!CH$18,'Male - Rev'!$A5-35,0) -> 0.0047 | CJ5: =OFFSET(Male!CI$18,'Male - Rev'!$A5-35,0) -> 0.0049 | CK5: =CJ5 -> 0.0049 | CL5: 0.0049
A6: 92 | B6: 92 | C6: =OFFSET(Male!B$18,'Male - Rev'!$A6-35,0) -> -0.01 | D6: =OFFSET(Male!C$18,'Male - Rev'!$A6-35,0) -> -0.0099 | E6: =OFFSET(Male!D$18,'Male - Rev'!$A6-35,0) -> -0.0097 | F6: =OFFSET(Male!E$18,'Male - Rev'!$A6-35,0) -> -0.0095 | G6: =OFFSET(Male!F$18,'Male - Rev'!$A6-35,0) -> -0.0092 | H6: =OFFSET(Male!G$18,'Male - Rev'!$A6-35,0) -> -0.0088 | I6: =OFFSET(Male!H$18,'Male - Rev'!$A6-35,0) -> -0.0083 | J6: =OFFSET(Male!I$18,'Male - Rev'!$A6-35,0) -> -0.0076 | K6: =OFFSET(Male!J$18,'Male - Rev'!$A6-35,0) -> -0.0066 | L6: =OFFSET(Male!K$18,'Male - Rev'!$A6-35,0) -> -0.0055 | M6: =OFFSET(Male!L$18,'Male - Rev'!$A6-35,0) -> -0.0041 | N6: =OFFSET(Male!M$18,'Male - Rev'!$A6-35,0) -> -0.0025 | O6: =OFFSET(Male!N$18,'Male - Rev'!$A6-35,0) -> -0.0007 | P6: =OFFSET(Male!O$18,'Male - Rev'!$A6-35,0) -> 0.0012 | Q6: =OFFSET(Male!P$18,'Male - Rev'!$A6-35,0) -> 0.0031 | R6: =OFFSET(Male!Q$18,'Male - Rev'!$A6-35,0) -> 0.0051 | S6: =OFFSET(Male!R$18,'Male - Rev'!$A6-35,0) -> 0.0069 | T6: =OFFSET(Male!S$18,'Male - Rev'!$A6-35,0) -> 0.0086 | U6: =OFFSET(Male!T$18,'Male - Rev'!$A6-35,0) -> 0.0101 | V6: =OFFSET(Male!U$18,'Male - Rev'!$A6-35,0) -> 0.0114 | W6: =OFFSET(Male!V$18,'Male - Rev'!$A6-35,0) -> 0.0125 | X6: =OFFSET(Male!W$18,'Male - Rev'!$A6-35,0) -> 0.0132 | Y6: =OFFSET(Male!X$18,'Male - Rev'!$A6-35,0) -> 0.0136 | Z6: =OFFSET(Male!Y$18,'Male - Rev'!$A6-35,0) -> 0.0138 | AA6: =OFFSET(Male!Z$18,'Male - Rev'!$A6-35,0) -> 0.0136 | AB6: =OFFSET(Male!AA$18,'Male - Rev'!$A6-35,0) -> 0.0131 | AC6: =OFFSET(Male!AB$18,'Male - Rev'!$A6-35,0) -> 0.0123 | AD6: =OFFSET(Male!AC$18,'Male - Rev'!$A6-35,0) -> 0.0113 | AE6: =OFFSET(Male!AD$18,'Male - Rev'!$A6-35,0) -> 0.0101 | AF6: =OFFSET(Male!AE$18,'Male - Rev'!$A6-35,0) -> 0.0086 | AG6: =OFFSET(Male!AF$18,'Male - Rev'!$A6-35,0) -> 0.007 | AH6: =OFFSET(Male!AG$18,'Male - Rev'!$A6-35,0) -> 0.0053 | AI6: =OFFSET(Male!AH$18,'Male - Rev'!$A6-35,0) -> 0.0036 | AJ6: =OFFSET(Male!AI$18,'Male - Rev'!$A6-35,0) -> 0.0018 | AK6: =OFFSET(Male!AJ$18,'Male - Rev'!$A6-35,0) -> 0.0002 | AL6: =OFFSET(Male!AK$18,'Male - Rev'!$A6-35,0) -> -0.0013 | AM6: =OFFSET(Male!AL$18,'Male - Rev'!$A6-35,0) -> -0.0027 | AN6: =OFFSET(Male!AM$18,'Male - Rev'!$A6-35,0) -> -0.0039 | AO6: =OFFSET(Male!AN$18,'Male - Rev'!$A6-35,0) -> -0.0049 | AP6: =OFFSET(Male!AO$18,'Male - Rev'!$A6-35,0) -> -0.0057 | AQ6: =OFFSET(Male!AP$18,'Male - Rev'!$A6-35,0) -> -0.0062 | AR6: =OFFSET(Male!AQ$18,'Male - Rev'!$A6-35,0) -> -0.0065 | AS6: =OFFSET(Male!AR$18,'Male - Rev'!$A6-35,0) -> -0.0065 | AT6: =OFFSET(Male!AS$18,'Male - Rev'!$A6-35,0) -> -0.0062 | AU6: =OFFSET(Male!AT$18,'Male - Rev'!$A6-35,0) -> -0.0056 | AV6: =OFFSET(Male!AU$18,'Male - Rev'!$A6-35,0) -> -0.0046 | AW6: =OFFSET(Male!AV$18,'Male - Rev'!$A6-35,0) -> -0.0034 | AX6: =OFFSET(Male!AW$18,'Male - Rev'!$A6-35,0) -> -0.002 | AY6: =OFFSET(Male!AX$18,'Male - Rev'!$A6-35,0) -> -0.0004 | AZ6: =OFFSET(Male!AY$18,'Male - Rev'!$A6-35,0) -> 0.0014 | BA6: =OFFSET(Male!AZ$18,'Male - Rev'!$A6-35,0) -> 0.0032 | BB6: =OFFSET(Male!BA$18,'Male - Rev'!$A6-35,0) -> 0.005 | BC6: =OFFSET(Male!BB$18,'Male - Rev'!$A6-35,0) -> 0.0066 | BD6: =OFFSET(Male!BC$18,'Male - Rev'!$A6-35,0) -> 0.008 | BE6: =OFFSET(Male!BD$18,'Male - Rev'!$A6-35,0) -> 0.0091 | BF6: =OFFSET(Male!BE$18,'Male - Rev'!$A6-35,0) -> 0.0099 | BG6: =OFFSET(Male!BF$18,'Male - Rev'!$A6-35,0) -> 0.0103 | BH6: =OFFSET(Male!BG$18,'Male - Rev'!$A6-35,0) -> 0.0103 | BI6: =OFFSET(Male!BH$18,'Male - Rev'!$A6-35,0) -> 0.01 | BJ6: =OFFSET(Male!BI$18,'Male - Rev'!$A6-35,0) -> 0.0094 | BK6: =OFFSET(Male!BJ$18,'Male - Rev'!$A6-35,0) -> 0.0086 | BL6: =OFFSET(Male!BK$18,'Male - Rev'!$A6-35,0) -> 0.0077 | BM6: =OFFSET(Male!BL$18,'Male - Rev'!$A6-35,0) -> 0.0066 | BN6: =OFFSET(Male!BM$18,'Male - Rev'!$A6-35,0) -> 0.0056 | BO6: =OFFSET(Male!BN$18,'Male - Rev'!$A6-35,0) -> 0.0044 | BP6: =OFFSET(Male!BO$18,'Male - Rev'!$A6-35,0) -> 0.0033 | BQ6: =OFFSET(Male!BP$18,'Male - Rev'!$A6-35,0) -> 0.0032 | BR6: =OFFSET(Male!BQ$18,'Male - Rev'!$A6-35,0) -> 0.0032 | BS6: =OFFSET(Male!BR$18,'Male - Rev'!$A6-35,0) -> 0.0033 | BT6: =OFFSET(Male!BS$18,'Male - Rev'!$A6-35,0) -> 0.0035 | BU6: =OFFSET(Male!BT$18,'Male - Rev'!$A6-35,0) -> 0.0037 | BV6: =OFFSET(Male!BU$18,'Male - Rev'!$A6-35,0) -> 0.0039 | BW6: =OFFSET(Male!BV$18,'Male - Rev'!$A6-35,0) -> 0.0041 | BX6: =OFFSET(Male!BW$18,'Male - Rev'!$A6-35,0) -> 0.0043 | BY6: =OFFSET(Male!BX$18,'Male - Rev'!$A6-35,0) -> 0.0045 | BZ6: =OFFSET(Male!BY$18,'Male - Rev'!$A6-35,0) -> 0.0046 | CA6: =OFFSET(Male!BZ$18,'Male - Rev'!$A6-35,0) -> 0.0046 | CB6: =OFFSET(Male!CA$18,'Male - Rev'!$A6-35,0) -> 0.0046 | CC6: =OFFSET(Male!CB$18,'Male - Rev'!$A6-35,0) -> 0.0047 | CD6: =OFFSET(Male!CC$18,'Male - Rev'!$A6-35,0) -> 0.0047 | CE6: =OFFSET(Male!CD$18,'Male - Rev'!$A6-35,0) -> 0.0047 | CF6: =OFFSET(Male!CE$18,'Male - Rev'!$A6-35,0) -> 0.0048 | CG6: =OFFSET(Male!CF$18,'Male - Rev'!$A6-35,0) -> 0.0048 | CH6: =OFFSET(Male!CG$18,'Male - Rev'!$A6-35,0) -> 0.005 | CI6: =OFFSET(Male!CH$18,'Male - Rev'!$A6-35,0) -> 0.0052 | CJ6: =OFFSET(Male!CI$18,'Male - Rev'!$A6-35,0) -> 0.0054 | CK6: =CJ6 -> 0.0054 | CL6: 0.0054
A7: 91 | B7: 91 | C7: =OFFSET(Male!B$18,'Male - Rev'!$A7-35,0) -> -0.0074 | D7: =OFFSET(Male!C$18,'Male - Rev'!$A7-35,0) -> -0.0075 | E7: =OFFSET(Male!D$18,'Male - Rev'!$A7-35,0) -> -0.0077 | F7: =OFFSET(Male!E$18,'Male - Rev'!$A7-35,0) -> -0.0078 | G7: =OFFSET(Male!F$18,'Male - Rev'!$A7-35,0) -> -0.0079 | H7: =OFFSET(Male!G$18,'Male - Rev'!$A7-35,0) -> -0.0078 | I7: =OFFSET(Male!H$18,'Male - Rev'!$A7-35,0) -> -0.0075 | J7: =OFFSET(Male!I$18,'Male - Rev'!$A7-35,0) -> -0.007 | K7: =OFFSET(Male!J$18,'Male - Rev'!$A7-35,0) -> -0.0063 | L7: =OFFSET(Male!K$18,'Male - Rev'!$A7-35,0) -> -0.0053 | M7: =OFFSET(Male!L$18,'Male - Rev'!$A7-35,0) -> -0.004 | N7: =OFFSET(Male!M$18,'Male - Rev'!$A7-35,0) -> -0.0025 | O7: =OFFSET(Male!N$18,'Male - Rev'!$A7-35,0) -> -0.0008 | P7: =OFFSET(Male!O$18,'Male - Rev'!$A7-35,0) -> 0.001 | Q7: =OFFSET(Male!P$18,'Male - Rev'!$A7-35,0) -> 0.003 | R7: =OFFSET(Male!Q$18,'Male - Rev'!$A7-35,0) -> 0.0049 | S7: =OFFSET(Male!R$18,'Male - Rev'!$A7-35,0) -> 0.0068 | T7: =OFFSET(Male!S$18,'Male - Rev'!$A7-35,0) -> 0.0085 | U7: =OFFSET(Male!T$18,'Male - Rev'!$A7-35,0) -> 0.0101 | V7: =OFFSET(Male!U$18,'Male - Rev'!$A7-35,0) -> 0.0114 | W7: =OFFSET(Male!V$18,'Male - Rev'!$A7-35,0) -> 0.0125 | X7: =OFFSET(Male!W$18,'Male - Rev'!$A7-35,0) -> 0.0132 | Y7: =OFFSET(Male!X$18,'Male - Rev'!$A7-35,0) -> 0.0137 | Z7: =OFFSET(Male!Y$18,'Male - Rev'!$A7-35,0) -> 0.0139 | AA7: =OFFSET(Male!Z$18,'Male - Rev'!$A7-35,0) -> 0.0137 | AB7: =OFFSET(Male!AA$18,'Male - Rev'!$A7-35,0) -> 0.0132 | AC7: =OFFSET(Male!AB$18,'Male - Rev'!$A7-35,0) -> 0.0124 | AD7: =OFFSET(Male!AC$18,'Male - Rev'!$A7-35,0) -> 0.0114 | AE7: =OFFSET(Male!AD$18,'Male - Rev'!$A7-35,0) -> 0.0101 | AF7: =OFFSET(Male!AE$18,'Male - Rev'!$A7-35,0) -> 0.0087 | AG7: =OFFSET(Male!AF$18,'Male - Rev'!$A7-35,0) -> 0.0071 | AH7: =OFFSET(Male!AG$18,'Male - Rev'!$A7-35,0) -> 0.0054 | AI7: =OFFSET(Male!AH$18,'Male - Rev'!$A7-35,0) -> 0.0037 | AJ7: =OFFSET(Male!AI$18,'Male - Rev'!$A7-35,0) -> 0.002 | AK7: =OFFSET(Male!AJ$18,'Male - Rev'!$A7-35,0) -> 0.0005 | AL7: =OFFSET(Male!AK$18,'Male - Rev'!$A7-35,0) -> -0.0009 | AM7: =OFFSET(Male!AL$18,'Male - Rev'!$A7-35,0) -> -0.0022 | AN7: =OFFSET(Male!AM$18,'Male - Rev'!$A7-35,0) -> -0.0032 | AO7: =OFFSET(Male!AN$18,'Male - Rev'!$A7-35,0) -> -0.0041 | AP7: =OFFSET(Male!AO$18,'Male - Rev'!$A7-35,0) -> -0.0047 | AQ7: =OFFSET(Male!AP$18,'Male - Rev'!$A7-35,0) -> -0.0052 | AR7: =OFFSET(Male!AQ$18,'Male - Rev'!$A7-35,0) -> -0.0054 | AS7: =OFFSET(Male!AR$18,'Male - Rev'!$A7-35,0) -> -0.0053 | AT7: =OFFSET(Male!AS$18,'Male - Rev'!$A7-35,0) -> -0.005 | AU7: =OFFSET(Male!AT$18,'Male - Rev'!$A7-35,0) -> -0.0043 | AV7: =OFFSET(Male!AU$18,'Male - Rev'!$A7-35,0) -> -0.0033 | AW7: =OFFSET(Male!AV$18,'Male - Rev'!$A7-35,0) -> -0.002 | AX7: =OFFSET(Male!AW$18,'Male - Rev'!$A7-35,0) -> -0.0005 | AY7: =OFFSET(Male!AX$18,'Male - Rev'!$A7-35,0) -> 0.0012 | AZ7: =OFFSET(Male!AY$18,'Male - Rev'!$A7-35,0) -> 0.003 | BA7: =OFFSET(Male!AZ$18,'Male - Rev'!$A7-35,0) -> 0.0049 | BB7: =OFFSET(Male!BA$18,'Male - Rev'!$A7-35,0) -> 0.0067 | BC7: =OFFSET(Male!BB$18,'Male - Rev'!$A7-35,0) -> 0.0083 | BD7: =OFFSET(Male!BC$18,'Male - Rev'!$A7-35,0) -> 0.0097 | BE7: =OFFSET(Male!BD$18,'Male - Rev'!$A7-35,0) -> 0.0107 | BF7: =OFFSET(Male!BE$18,'Male - Rev'!$A7-35,0) -> 0.0113 | BG7: =OFFSET(Male!BF$18,'Male - Rev'!$A7-35,0) -> 0.0116 | BH7: =OFFSET(Male!BG$18,'Male - Rev'!$A7-35,0) -> 0.0114 | BI7: =OFFSET(Male!BH$18,'Male - Rev'!$A7-35,0) -> 0.0109 | BJ7: =OFFSET(Male!BI$18,'Male - Rev'!$A7-35,0) -> 0.0101 | BK7: =OFFSET(Male!BJ$18,'Male - Rev'!$A7-35,0) -> 0.0091 | BL7: =OFFSET(Male!BK$18,'Male - Rev'!$A7-35,0) -> 0.008 | BM7: =OFFSET(Male!BL$18,'Male - Rev'!$A7-35,0) -> 0.0068 | BN7: =OFFSET(Male!BM$18,'Male - Rev'!$A7-35,0) -> 0.0056 | BO7: =OFFSET(Male!BN$18,'Male - Rev'!$A7-35,0) -> 0.0043 | BP7: =OFFSET(Male!BO$18,'Male - Rev'!$A7-35,0) -> 0.0031 | BQ7: =OFFSET(Male!BP$18,'Male - Rev'!$A7-35,0) -> 0.0031 | BR7: =OFFSET(Male!BQ$18,'Male - Rev'!$A7-35,0) -> 0.0032 | BS7: =OFFSET(Male!BR$18,'Male - Rev'!$A7-35,0) -> 0.0033 | BT7: =OFFSET(Male!BS$18,'Male - Rev'!$A7-35,0) -> 0.0036 | BU7: =OFFSET(Male!BT$18,'Male - Rev'!$A7-35,0) -> 0.0039 | BV7: =OFFSET(Male!BU$18,'Male - Rev'!$A7-35,0) -> 0.0042 | BW7: =OFFSET(Male!BV$18,'Male - Rev'!$A7-35,0) -> 0.0044 | BX7: =OFFSET(Male!BW$18,'Male - Rev'!$A7-35,0) -> 0.0047 | BY7: =OFFSET(Male!BX$18,'Male - Rev'!$A7-35,0) -> 0.0048 | BZ7: =OFFSET(Male!BY$18,'Male - Rev'!$A7-35,0) -> 0.0049 | CA7: =OFFSET(Male!BZ$18,'Male - Rev'!$A7-35,0) -> 0.005 | CB7: =OFFSET(Male!CA$18,'Male - Rev'!$A7-35,0) -> 0.005 | CC7: =OFFSET(Male!CB$18,'Male - Rev'!$A7-35,0) -> 0.005 | CD7: =OFFSET(Male!CC$18,'Male - Rev'!$A7-35,0) -> 0.0051 | CE7: =OFFSET(Male!CD$18,'Male - Rev'!$A7-35,0) -> 0.0051 | CF7: =OFFSET(Male!CE$18,'Male - Rev'!$A7-35,0) -> 0.0051 | CG7: =OFFSET(Male!CF$18,'Male - Rev'!$A7-35,0) -> 0.0052 | CH7: =OFFSET(Male!CG$18,'Male - Rev'!$A7-35,0) -> 0.0054 | CI7: =OFFSET(Male!CH$18,'Male - Rev'!$A7-35,0) -> 0.0056 | CJ7: =OFFSET(Male!CI$18,'Male - Rev'!$A7-35,0) -> 0.0059 | CK7: =CJ7 -> 0.0059 | CL7: 0.0059
